Workbook

Sheet Algemeen

Sheet Externe blootstelling
C2: Therapie | D2: I-131 benigne (0,4 GBq) | G2: Activiteit op Ontslagtijdstip | K2: Blootstelling gedurende rekenperiode (µSv) | Q2: Blootstelling periode met leefregels (µSv) | Y2: Blootstelling periode zonder leefregels (µSv)
C3: Gebruik ontslagcriterium/-tijdstip | D3: Nee | G3: Therapie | H3: =IF($D$45="tijd",IF(OR(ISNUMBER($D$47)=FALSE,$D$20<$D$47),D24*EXP(-(D26+$D$46)*$D$20),IF(OR(ISNUMBER($D$49),$D$20<$D$49),D24*EXP(-($D$46-$D$48)*$D$47)*EXP(-(D26+$D$48)*$D$20),D24*EXP(-($D$46-$D$48)*$D$47)*EXP(-($D$48-$D$50)*$D$49)*EXP(-(D26+$D$50)*$D$20))),IF(ISNUMBER($D$51)=TRUE,D24*($D$47*EXP(-($D$46+D26)*$D$20)+$D$49*EXP(-($D$48+D26)*$D$20)+$D$51*EXP(-($D$50+D26)*$D$20)),IF(ISNUMBER(D49)=TRUE,D24*($D$47*EXP(-($D$46+D26)*$D$20)+$D$49*EXP(-($D$48+D26)*$D$20)),D24*($D$47*EXP(-($D$46+D26)*$D$20))))) -> 0.4 | I3: GBq | K3: Handeling | L3: Kind | M3: Verzorger < 60 jaar | N3: Verzorger ≥ 60 jaar | O3: Overigen | Q3: Handeling | R3: Duur (uur) | S3: Afstand (m) | T3: Kind | U3: Verzorger < 60 jaar | V3: Verzorger ≥ 60 jaar | W3: Overigen | Y3: Handeling | Z3: Duur (uur) | AA3: Afstand (m) | AB3: Kind | AC3: Verzorger < 60 jaar | AD3: Verzorger ≥ 60 jaar | AE3: Overigen
C4: Ontslagcriterium | D4: 20 | E4: µSv h-1 op 1 meter | G4: =IF($D$11="Geen verontreiniging","","Verontreiniging #1") ->  | H4: =IF(D31="Geen verontreiniging",0,IF($D$45="tijd",IF(OR(ISNUMBER($D$47)=FALSE,$D$20<$D$47),D32*EXP(-(D33+$D$46)*$D$20),IF(OR(ISNUMBER($D$49),$D$20<$D$49),D32*EXP(-($D$46-$D$48)*$D$47)*EXP(-(D33+$D$48)*$D$20),D32*EXP(-($D$46-$D$48)*$D$47)*EXP(-($D$48-$D$50)*$D$49)*EXP(-(D33+$D$50)*$D$20))),IF(ISNUMBER($D$51)=TRUE,D32*($D$47*EXP(-($D$46+D33)*$D$20)+$D$49*EXP(-($D$48+D33)*$D$20)+$D$51*EXP(-($D$50+D33)*$D$20)),IF(ISNUMBER(D49),D32*($D$47*EXP(-($D$46+D33)*$D$20)+$D$49*EXP(-($D$48+D33)*$D$20)),D32*($D$47*EXP(-($D$46+D33)*$D$20)))))) -> 0 | I4: =IF($D$11="Geen verontreiniging","","GBq") ->  | K4: =Scenario!$A3 -> Betaald werk | L4: =T4+AB4 -> 0 | M4: =U4+AC4 -> 0 | N4: 0 | O4: 31.7842405 | Q4: =Scenario!$A3 -> Betaald werk | R4: =Scenario!$D3 -> 0 | S4: =Scenario!$F3 -> 2 | T4: =IF(Scenario!K3="nee",0,($H$10*$D$29*$D$27+$H$11*$D$36*$D$34+$H$12*$D$43*$D$41)*($R4/168)*(1/($S4*$S4))*$D$25) -> 0 | U4: =IF(Scenario!L3="nee",0,($H$10*$D$29*$D$27+$H$11*$D$36*$D$34+$H$12*$D$43*$D$41)*($R4/168)*(1/($S4*$S4))*$D$25) -> 0 | V4: =IF(Scenario!M3="nee",0,($H$10*$D$29*$D$27+$H$11*$D$36*$D$34+$H$12*$D$43*$D$41)*($R4/168)*(1/($S4*$S4))*$D$25) -> 0 | W4: =IF(Scenario!N3="nee",0,($H$10*$D$29*$D$27+$H$11*$D$36*$D$34+$H$12*$D$43*$D$41)*($R4/168)*(1/($S4*$S4))*$D$25) -> 0 | Y4: =Scenario!$A3 -> Betaald werk | Z4: =Scenario!$C3 -> 28.7 | AA4: =Scenario!$E3 -> 2 | AB4: =IF(Scenario!G3="nee",0,($H$15*$D$29*$D$27+$H$16*$D$36*$D$34+$H$17*$D$43*$D$41)*($Z4/168)*(1/($AA4*$AA4))*$D$25) -> 0 | AC4: =IF(Scenario!H3="nee",0,($H$15*$D$29*$D$27+$H$16*$D$36*$D$34+$H$17*$D$43*$D$41)*($Z4/168)*(1/($AA4*$AA4))*$D$25) -> 0 | AD4: =IF(Scenario!I3="nee",0,($H$15*$D$29*$D$27+$H$16*$D$36*$D$34+$H$17*$D$43*$D$41)*($Z4/168)*(1/($AA4*$AA4))*$D$25) -> 0 | AE4: =IF(Scenario!J3="nee",0,($H$15*$D$29*$D$27+$H$16*$D$36*$D$34+$H$17*$D$43*$D$41)*($Z4/168)*(1/($AA4*$AA4))*$D$25) -> 31.7842405
C5: Ontslagtijdstip | D5: 49.67156882 | E5: h na toediening | G5: =IF($D$13="Geen verontreiniging","","Verontreiniging #2") ->  | H5: =IF(D38="Geen verontreiniging",0,IF($D$45="tijd",IF(OR(ISNUMBER($D$47)=FALSE,$D$20<$D$47),D39*EXP(-(D40+$D$46)*$D$20),IF(OR(ISNUMBER($D$49),$D$20<$D$49),D39*EXP(-($D$46-$D$48)*$D$47)*EXP(-(D40+$D$48)*$D$20),D39*EXP(-($D$46-$D$48)*$D$47)*EXP(-($D$48-$D$50)*$D$49)*EXP(-(D40+$D$50)*$D$20))),IF(ISNUMBER($D$51)=TRUE,D39*($D$47*EXP(-($D$46+D40)*$D$20)+$D$49*EXP(-($D$48+D40)*$D$20)+$D$51*EXP(-($D$50+D40)*$D$20)),IF(ISNUMBER(D49)=TRUE,D39*($D$47*EXP(-($D$46+D40)*$D$20)+$D$49*EXP(-($D$48+D40)*$D$20)),D39*($D$47*EXP(-($D$46+D40)*$D$20)))))) -> 0 | I5: =IF($D$13="Geen verontreiniging","","GBq") ->  | K5: =Scenario!$A4 -> Scholing | L5: =T5+AB5 -> 0 | M5: =U5+AC5 -> 0 | N5: =V5+AD5 -> 0 | O5: =W5+AE5 -> 12.18608728 | Q5: =Scenario!$A4 -> Scholing | R5: =Scenario!$D4 -> 0.9 | S5: =Scenario!$F4 -> 1 | T5: =IF(Scenario!K4="nee",0,($H$10*$D$29*$D$27+$H$11*$D$36*$D$34+$H$12*$D$43*$D$41)*($R5/168)*(1/($S5*$S5))*$D$25) -> 0 | U5: =IF(Scenario!L4="nee",0,($H$10*$D$29*$D$27+$H$11*$D$36*$D$34+$H$12*$D$43*$D$41)*($R5/168)*(1/($S5*$S5))*$D$25) -> 0 | V5: =IF(Scenario!M4="nee",0,($H$10*$D$29*$D$27+$H$11*$D$36*$D$34+$H$12*$D$43*$D$41)*($R5/168)*(1/($S5*$S5))*$D$25) -> 0 | W5: =IF(Scenario!N4="nee",0,($H$10*$D$29*$D$27+$H$11*$D$36*$D$34+$H$12*$D$43*$D$41)*($R5/168)*(1/($S5*$S5))*$D$25) -> 8.199213906 | Y5: =Scenario!$A4 -> Scholing | Z5: =Scenario!$C4 -> 0.9 | AA5: =Scenario!$E4 -> 1 | AB5: =IF(Scenario!G4="nee",0,($H$15*$D$29*$D$27+$H$16*$D$36*$D$34+$H$17*$D$43*$D$41)*($Z5/168)*(1/($AA5*$AA5))*$D$25) -> 0 | AC5: =IF(Scenario!H4="nee",0,($H$15*$D$29*$D$27+$H$16*$D$36*$D$34+$H$17*$D$43*$D$41)*($Z5/168)*(1/($AA5*$AA5))*$D$25) -> 0 | AD5: =IF(Scenario!I4="nee",0,($H$15*$D$29*$D$27+$H$16*$D$36*$D$34+$H$17*$D$43*$D$41)*($Z5/168)*(1/($AA5*$AA5))*$D$25) -> 0 | AE5: =IF(Scenario!J4="nee",0,($H$15*$D$29*$D$27+$H$16*$D$36*$D$34+$H$17*$D$43*$D$41)*($Z5/168)*(1/($AA5*$AA5))*$D$25) -> 3.986873372
C6: Rekenperiode | D6: 21 | E6: dagen | K6: =Scenario!$A5 -> Zorg voor het huishouden | L6: 0 | M6: 0 | N6: 0 | O6: 0 | Q6: =Scenario!$A5 -> Zorg voor het huishouden | R6: =Scenario!$D5 -> 21 | S6: =Scenario!$F5 -> 0 | T6: =IF(Scenario!K5="nee",0,($H$10*$D$29*$D$27+$H$11*$D$36*$D$34+$H$12*$D$43*$D$41)*($R6/168)*(1/($S6*$S6))*$D$25) -> 0 | U6: =IF(Scenario!L5="nee",0,($H$10*$D$29*$D$27+$H$11*$D$36*$D$34+$H$12*$D$43*$D$41)*($R6/168)*(1/($S6*$S6))*$D$25) -> 0 | V6: =IF(Scenario!M5="nee",0,($H$10*$D$29*$D$27+$H$11*$D$36*$D$34+$H$12*$D$43*$D$41)*($R6/168)*(1/($S6*$S6))*$D$25) -> 0 | W6: =IF(Scenario!N5="nee",0,($H$10*$D$29*$D$27+$H$11*$D$36*$D$34+$H$12*$D$43*$D$41)*($R6/168)*(1/($S6*$S6))*$D$25) -> 0 | Y6: =Scenario!$A5 -> Zorg voor het huishouden | Z6: =Scenario!$C5 -> 21 | AA6: =Scenario!$E5 -> 0 | AB6: =IF(Scenario!G5="nee",0,($H$15*$D$29*$D$27+$H$16*$D$36*$D$34+$H$17*$D$43*$D$41)*($Z6/168)*(1/($AA6*$AA6))*$D$25) -> 0 | AC6: =IF(Scenario!H5="nee",0,($H$15*$D$29*$D$27+$H$16*$D$36*$D$34+$H$17*$D$43*$D$41)*($Z6/168)*(1/($AA6*$AA6))*$D$25) -> 0 | AD6: =IF(Scenario!I5="nee",0,($H$15*$D$29*$D$27+$H$16*$D$36*$D$34+$H$17*$D$43*$D$41)*($Z6/168)*(1/($AA6*$AA6))*$D$25) -> 0 | AE6: =IF(Scenario!J5="nee",0,($H$15*$D$29*$D$27+$H$16*$D$36*$D$34+$H$17*$D$43*$D$41)*($Z6/168)*(1/($AA6*$AA6))*$D$25) -> 0
C7: Periode leefregels | D7: 7 | E7: dagen | G7: Dosistempo op Ontslagtijdstip | H7: =IF(D31="Geen verontreiniging",IF(D38="Geen verontreiniging",H3*D27*D29,H3*D27*D29+H5*D41*D43),IF(D38="Geen verontreiniging",H3*D27*D29+H4*D34*D36,H3*D27*D29+H4*D34*D36+H5*D41*D43)) -> 26.8 | I7: µSv h-1 op 1 m | K7: =Scenario!$A6 -> Kinderen naar bed brengen | L7: 12.45897929 | M7: 0 | N7: 0 | O7: 0 | Q7: =Scenario!$A6 -> Kinderen naar bed brengen | R7: =Scenario!$D6 -> 0 | S7: =Scenario!$F6 -> 0.8 | T7: =IF(Scenario!K6="nee",0,($H$10*$D$29*$D$27+$H$11*$D$36*$D$34+$H$12*$D$43*$D$41)*($R7/168)*(1/($S7*$S7))*$D$25) -> 0 | U7: =IF(Scenario!L6="nee",0,($H$10*$D$29*$D$27+$H$11*$D$36*$D$34+$H$12*$D$43*$D$41)*($R7/168)*(1/($S7*$S7))*$D$25) -> 0 | V7: =IF(Scenario!M6="nee",0,($H$10*$D$29*$D$27+$H$11*$D$36*$D$34+$H$12*$D$43*$D$41)*($R7/168)*(1/($S7*$S7))*$D$25) -> 0 | W7: =IF(Scenario!N6="nee",0,($H$10*$D$29*$D$27+$H$11*$D$36*$D$34+$H$12*$D$43*$D$41)*($R7/168)*(1/($S7*$S7))*$D$25) -> 0 | Y7: =Scenario!$A6 -> Kinderen naar bed brengen | Z7: =Scenario!$C6 -> 1.8 | AA7: =Scenario!$E6 -> 0.8 | AB7: =IF(Scenario!G6="nee",0,($H$15*$D$29*$D$27+$H$16*$D$36*$D$34+$H$17*$D$43*$D$41)*($Z7/168)*(1/($AA7*$AA7))*$D$25) -> 12.45897929 | AC7: =IF(Scenario!H6="nee",0,($H$15*$D$29*$D$27+$H$16*$D$36*$D$34+$H$17*$D$43*$D$41)*($Z7/168)*(1/($AA7*$AA7))*$D$25) -> 0 | AD7: =IF(Scenario!I6="nee",0,($H$15*$D$29*$D$27+$H$16*$D$36*$D$34+$H$17*$D$43*$D$41)*($Z7/168)*(1/($AA7*$AA7))*$D$25) -> 0 | AE7: =IF(Scenario!J6="nee",0,($H$15*$D$29*$D$27+$H$16*$D$36*$D$34+$H$17*$D$43*$D$41)*($Z7/168)*(1/($AA7*$AA7))*$D$25) -> 0
C8: Diameter patiënt | D8: 30 | E8: cm | K8: =Scenario!$A7 -> Kinderen fysieke verzorging | L8: 17.99630342 | M8: 0 | N8: 0 | O8: 0 | Q8: =Scenario!$A7 -> Kinderen fysieke verzorging | R8: =Scenario!$D7 -> 0 | S8: =Scenario!$F7 -> 0.8 | T8: =IF(Scenario!K7="nee",0,($H$10*$D$29*$D$27+$H$11*$D$36*$D$34+$H$12*$D$43*$D$41)*($R8/168)*(1/($S8*$S8))*$D$25) -> 0 | U8: =IF(Scenario!L7="nee",0,($H$10*$D$29*$D$27+$H$11*$D$36*$D$34+$H$12*$D$43*$D$41)*($R8/168)*(1/($S8*$S8))*$D$25) -> 0 | V8: =IF(Scenario!M7="nee",0,($H$10*$D$29*$D$27+$H$11*$D$36*$D$34+$H$12*$D$43*$D$41)*($R8/168)*(1/($S8*$S8))*$D$25) -> 0 | W8: =IF(Scenario!N7="nee",0,($H$10*$D$29*$D$27+$H$11*$D$36*$D$34+$H$12*$D$43*$D$41)*($R8/168)*(1/($S8*$S8))*$D$25) -> 0 | Y8: =Scenario!$A7 -> Kinderen fysieke verzorging | Z8: =Scenario!$C7 -> 2.6 | AA8: =Scenario!$E7 -> 0.8 | AB8: =IF(Scenario!G7="nee",0,($H$15*$D$29*$D$27+$H$16*$D$36*$D$34+$H$17*$D$43*$D$41)*($Z8/168)*(1/($AA8*$AA8))*$D$25) -> 17.99630342 | AC8: =IF(Scenario!H7="nee",0,($H$15*$D$29*$D$27+$H$16*$D$36*$D$34+$H$17*$D$43*$D$41)*($Z8/168)*(1/($AA8*$AA8))*$D$25) -> 0 | AD8: =IF(Scenario!I7="nee",0,($H$15*$D$29*$D$27+$H$16*$D$36*$D$34+$H$17*$D$43*$D$41)*($Z8/168)*(1/($AA8*$AA8))*$D$25) -> 0 | AE8: =IF(Scenario!J7="nee",0,($H$15*$D$29*$D$27+$H$16*$D$36*$D$34+$H$17*$D$43*$D$41)*($Z8/168)*(1/($AA8*$AA8))*$D$25) -> 0
C9: Toegediende activiteit | E9: GBq | G9: Desintegraties gedurende leefregels | K9: =Scenario!$A8 -> Kinderen hulp met school | L9: 1.384331032 | M9: 0 | N9: 0 | O9: 0 | Q9: =Scenario!$A8 -> Kinderen hulp met school | R9: =Scenario!$D8 -> 0 | S9: =Scenario!$F8 -> 0.8 | T9: =IF(Scenario!K8="nee",0,($H$10*$D$29*$D$27+$H$11*$D$36*$D$34+$H$12*$D$43*$D$41)*($R9/168)*(1/($S9*$S9))*$D$25) -> 0 | U9: =IF(Scenario!L8="nee",0,($H$10*$D$29*$D$27+$H$11*$D$36*$D$34+$H$12*$D$43*$D$41)*($R9/168)*(1/($S9*$S9))*$D$25) -> 0 | V9: =IF(Scenario!M8="nee",0,($H$10*$D$29*$D$27+$H$11*$D$36*$D$34+$H$12*$D$43*$D$41)*($R9/168)*(1/($S9*$S9))*$D$25) -> 0 | W9: =IF(Scenario!N8="nee",0,($H$10*$D$29*$D$27+$H$11*$D$36*$D$34+$H$12*$D$43*$D$41)*($R9/168)*(1/($S9*$S9))*$D$25) -> 0 | Y9: =Scenario!$A8 -> Kinderen hulp met school | Z9: =Scenario!$C8 -> 0.2 | AA9: =Scenario!$E8 -> 0.8 | AB9: =IF(Scenario!G8="nee",0,($H$15*$D$29*$D$27+$H$16*$D$36*$D$34+$H$17*$D$43*$D$41)*($Z9/168)*(1/($AA9*$AA9))*$D$25) -> 1.384331032 | AC9: =IF(Scenario!H8="nee",0,($H$15*$D$29*$D$27+$H$16*$D$36*$D$34+$H$17*$D$43*$D$41)*($Z9/168)*(1/($AA9*$AA9))*$D$25) -> 0 | AD9: =IF(Scenario!I8="nee",0,($H$15*$D$29*$D$27+$H$16*$D$36*$D$34+$H$17*$D$43*$D$41)*($Z9/168)*(1/($AA9*$AA9))*$D$25) -> 0 | AE9: =IF(Scenario!J8="nee",0,($H$15*$D$29*$D$27+$H$16*$D$36*$D$34+$H$17*$D$43*$D$41)*($Z9/168)*(1/($AA9*$AA9))*$D$25) -> 0
C10: Aantal giften | G10: Therapie | H10: =IF($D$45="tijd",IF(AND(OR(ISNUMBER($D$49)=FALSE,$D$20+$D$22<$D$49),$D$20>$D$47),$D$24*(-1/($D$48+$D$26))*EXP(-($D$46-$D$48)*$D$47)*(EXP(-($D$48+$D$26)*($D$20+$D$22))-EXP(-($D$48+$D$26)*$D$20)),IF(OR(ISNUMBER($D$47)=FALSE,$D$20+$D$22<$D$47),$D$24*(-1/($D$26+$D$46))*(EXP(-($D$26+$D$46)*($D$20+$D$22))-EXP(-($D$26+$D$46)*$D$20)),IF(AND(OR(ISNUMBER($D$49)=FALSE,$D$20+$D$22<$D$49),$D$20<$D$47),$D$24*(-1/($D$26+$D$46))*(EXP(-($D$26+$D$46)*$D$47)-EXP(-($D$26+$D$46)*$D$20))+$D$24*(-1/($D$26+$D$48))*EXP(-($D$46-$D$48)*$D$47)*(EXP(-($D$26+$D$48)*($D$20+$D$22))-EXP(-($D$26+$D$48)*$D$47)),IF(AND($D$20<$D$47,$D$20+$D$22>$D$49),$D$24*(-1/($D$26+$D$46))*(EXP(-($D$26+$D$46)*$D$47)-EXP(-($D$26+$D$46)*$D$20))+$D$24*(-1/($D$26+$D$48))*EXP(-($D$46-$D$48)*$D$47)*(EXP(-($D$26+$D$48)*$D$49)-EXP(-($D$26+$D$48)*$D$47))+$D$24*(-1/($D$26+$D$50))*EXP(-($D$46-$D$48)*$D$47)*EXP(-($D$48-$D$50)*$D$49)*(EXP(-($D$50+$D$26)*($D$20+$D$22))-EXP(-($D$26+$D$48)*$D$49)),IF(AND($D$20<$D$49,$D$20+$D$22>$D$49),$D$24*(-1/($D$26+$D$48))*EXP(-($D$46-$D$48)*$D$47)*(EXP(-($D$26+$D$48)*$D$49)-EXP(-($D$26+$D$48)*$D$20))+$D$24*(-1/($D$26+$D$50))*EXP(-($D$46-$D$48)*$D$47)*EXP(-($D$48-$D$50)*$D$49)*(EXP(-($D$50+$D$26)*($D$20+$D$22))-EXP(-($D$26+$D$48)*$D$49)),$D$24*(-1/($D$26+$D$50))*EXP(-($D$46-$D$48)*$D$47)*EXP(-($D$48-$D$50)*$D$49)*(EXP(-($D$50+$D$26)*($D$20+$D$22))-EXP(-($D$26+$D$48)*$D$20))))))),IF($D$51="",IF($D$49="",$D$24*(-1/($D$46+$D$26))*(EXP(-($D$46+$D$26)*($D$20+$D$22))-EXP(-($D$46+$D$26)*$D$20)),$D$24*$D$47*(-1/($D$46+$D$26))*(EXP(-($D$46+$D$26)*($D$20+$D$22))-EXP(-($D$46+$D$26)*$D$20))+$D$24*$D$49*(-1/($D$48+$D$26))*(EXP(-($D$48+$D$26)*($D$20+$D$22))-EXP(-($D$48+$D$26)*$D$20))),$D$24*$D$47*(-1/($D$46+$D$26))*(EXP(-($D$46+$D$26)*($D$20+$D$22))-EXP(-($D$46+$D$26)*$D$20))+$D$24*$D$49*(-1/($D$48+$D$26))*(EXP(-($D$48+$D$26)*($D$20+$D$22))-EXP(-($D$48+$D$26)*$D$20))+$D$24*$D$51*(-1/($D$50+$D$26))*(EXP(-($D$50+$D$26)*($D$20+$D$22))-EXP(-($D$50+$D$26)*$D$20)))) -> 22.84358103 | I10: GBq h | K10: =Scenario!$A9 -> Kinderen spelen, voorlezen | L10: 15.22764135 | M10: 0 | N10: 0 | O10: 0 | Q10: =Scenario!$A9 -> Kinderen spelen, voorlezen | R10: =Scenario!$D9 -> 0 | S10: =Scenario!$F9 -> 0.8 | T10: =IF(Scenario!K9="nee",0,($H$10*$D$29*$D$27+$H$11*$D$36*$D$34+$H$12*$D$43*$D$41)*($R10/168)*(1/($S10*$S10))*$D$25) -> 0 | U10: =IF(Scenario!L9="nee",0,($H$10*$D$29*$D$27+$H$11*$D$36*$D$34+$H$12*$D$43*$D$41)*($R10/168)*(1/($S10*$S10))*$D$25) -> 0 | V10: =IF(Scenario!M9="nee",0,($H$10*$D$29*$D$27+$H$11*$D$36*$D$34+$H$12*$D$43*$D$41)*($R10/168)*(1/($S10*$S10))*$D$25) -> 0 | W10: =IF(Scenario!N9="nee",0,($H$10*$D$29*$D$27+$H$11*$D$36*$D$34+$H$12*$D$43*$D$41)*($R10/168)*(1/($S10*$S10))*$D$25) -> 0 | Y10: =Scenario!$A9 -> Kinderen spelen, voorlezen | Z10: =Scenario!$C9 -> 2.2 | AA10: =Scenario!$E9 -> 0.8 | AB10: =IF(Scenario!G9="nee",0,($H$15*$D$29*$D$27+$H$16*$D$36*$D$34+$H$17*$D$43*$D$41)*($Z10/168)*(1/($AA10*$AA10))*$D$25) -> 15.22764135 | AC10: =IF(Scenario!H9="nee",0,($H$15*$D$29*$D$27+$H$16*$D$36*$D$34+$H$17*$D$43*$D$41)*($Z10/168)*(1/($AA10*$AA10))*$D$25) -> 0 | AD10: =IF(Scenario!I9="nee",0,($H$15*$D$29*$D$27+$H$16*$D$36*$D$34+$H$17*$D$43*$D$41)*($Z10/168)*(1/($AA10*$AA10))*$D$25) -> 0 | AE10: =IF(Scenario!J9="nee",0,($H$15*$D$29*$D$27+$H$16*$D$36*$D$34+$H$17*$D$43*$D$41)*($Z10/168)*(1/($AA10*$AA10))*$D$25) -> 0
C11: Verontreiniging #1 | D11: Geen verontreiniging | G11: =IF($D$11="Geen verontreiniging","","Verontreiniging #1") ->  | H11: =IF(D11="Geen verontreiniging",0,IF($D$45="tijd",IF(AND(OR(ISNUMBER($D$49)=FALSE,$D$20+$D$22<$D$49),$D$20>$D$47),$D$32*(-1/($D$48+$D$33))*EXP(-($D$46-$D$48)*$D$47)*(EXP(-($D$48+$D$33)*($D$20+$D$22))-EXP(-($D$48+$D$33)*$D$20)),IF(OR(ISNUMBER($D$47)=FALSE,$D$20+$D$22<$D$47),$D$32*(-1/($D$33+$D$46))*(EXP(-($D$33+$D$46)*($D$20+$D$22))-EXP(-($D$33+$D$46)*$D$20)),IF(AND(OR(ISNUMBER($D$49)=FALSE,$D$20+$D$22<$D$49),$D$20<$D$47),$D$32*(-1/($D$33+$D$46))*(EXP(-($D$33+$D$46)*$D$47)-EXP(-($D$33+$D$46)*$D$20))+$D$32*(-1/($D$33+$D$48))*EXP(-($D$46-$D$48)*$D$47)*(EXP(-($D$33+$D$48)*($D$20+$D$22))-EXP(-($D$33+$D$48)*$D$47)),IF(AND($D$20<$D$47,$D$20+$D$22>$D$49),$D$32*(-1/($D$33+$D$46))*(EXP(-($D$33+$D$46)*$D$47)-EXP(-($D$33+$D$46)*$D$20))+$D$32*(-1/($D$33+$D$48))*EXP(-($D$46-$D$48)*$D$47)*(EXP(-($D$33+$D$48)*$D$49)-EXP(-($D$33+$D$48)*$D$47))+$D$32*(-1/($D$33+$D$50))*EXP(-($D$46-$D$48)*$D$47)*EXP(-($D$48-$D$50)*$D$49)*(EXP(-($D$50+$D$33)*($D$20+$D$22))-EXP(-($D$33+$D$48)*$D$49)),IF(AND($D$20<$D$49,$D$20+$D$22>$D$49),$D$32*(-1/($D$33+$D$48))*EXP(-($D$46-$D$48)*$D$47)*(EXP(-($D$33+$D$48)*$D$49)-EXP(-($D$33+$D$48)*$D$20))+$D$32*(-1/($D$33+$D$50))*EXP(-($D$46-$D$48)*$D$47)*EXP(-($D$48-$D$50)*$D$49)*(EXP(-($D$50+$D$33)*($D$20+$D$22))-EXP(-($D$33+$D$48)*$D$49)),$D$32*(-1/($D$33+$D$50))*EXP(-($D$46-$D$48)*$D$47)*EXP(-($D$48-$D$50)*$D$49)*(EXP(-($D$50+$D$33)*($D$20+$D$22))-EXP(-($D$33+$D$48)*$D$20))))))),IF($D$51="",IF($D$49="",$D$32*(-1/($D$46+$D$33))*(EXP(-($D$46+$D$33)*($D$20+$D$22))-EXP(-($D$46+$D$33)*$D$20)),$D$32*$D$47*(-1/($D$46+$D$33))*(EXP(-($D$46+$D$33)*($D$20+$D$22))-EXP(-($D$46+$D$33)*$D$20))+$D$32*$D$49*(-1/($D$48+$D$33))*(EXP(-($D$48+$D$33)*($D$20+$D$22))-EXP(-($D$48+$D$33)*$D$20))),$D$32*$D$47*(-1/($D$46+$D$33))*(EXP(-($D$46+$D$33)*($D$20+$D$22))-EXP(-($D$46+$D$33)*$D$20))+$D$32*$D$49*(-1/($D$48+$D$33))*(EXP(-($D$48+$D$33)*($D$20+$D$22))-EXP(-($D$48+$D$33)*$D$20))+$D$32*$D$51*(-1/($D$50+$D$33))*(EXP(-($D$50+$D$33)*($D$20+$D$22))-EXP(-($D$50+$D$33)*$D$20))))) -> 0 | I11: =IF($D$11="Geen verontreiniging","","GBq h") ->  | K11: =Scenario!$A10 -> Kind vergezellen | L11: 4.845158612 | M11: 0 | N11: 0 | O11: 0 | Q11: =Scenario!$A10 -> Kind vergezellen | R11: =Scenario!$D10 -> 0 | S11: =Scenario!$F10 -> 0.8 | T11: =IF(Scenario!K10="nee",0,($H$10*$D$29*$D$27+$H$11*$D$36*$D$34+$H$12*$D$43*$D$41)*($R11/168)*(1/($S11*$S11))*$D$25) -> 0 | U11: =IF(Scenario!L10="nee",0,($H$10*$D$29*$D$27+$H$11*$D$36*$D$34+$H$12*$D$43*$D$41)*($R11/168)*(1/($S11*$S11))*$D$25) -> 0 | V11: =IF(Scenario!M10="nee",0,($H$10*$D$29*$D$27+$H$11*$D$36*$D$34+$H$12*$D$43*$D$41)*($R11/168)*(1/($S11*$S11))*$D$25) -> 0 | W11: =IF(Scenario!N10="nee",0,($H$10*$D$29*$D$27+$H$11*$D$36*$D$34+$H$12*$D$43*$D$41)*($R11/168)*(1/($S11*$S11))*$D$25) -> 0 | Y11: =Scenario!$A10 -> Kind vergezellen | Z11: =Scenario!$C10 -> 0.7 | AA11: =Scenario!$E10 -> 0.8 | AB11: =IF(Scenario!G10="nee",0,($H$15*$D$29*$D$27+$H$16*$D$36*$D$34+$H$17*$D$43*$D$41)*($Z11/168)*(1/($AA11*$AA11))*$D$25) -> 4.845158612 | AC11: =IF(Scenario!H10="nee",0,($H$15*$D$29*$D$27+$H$16*$D$36*$D$34+$H$17*$D$43*$D$41)*($Z11/168)*(1/($AA11*$AA11))*$D$25) -> 0 | AD11: =IF(Scenario!I10="nee",0,($H$15*$D$29*$D$27+$H$16*$D$36*$D$34+$H$17*$D$43*$D$41)*($Z11/168)*(1/($AA11*$AA11))*$D$25) -> 0 | AE11: =IF(Scenario!J10="nee",0,($H$15*$D$29*$D$27+$H$16*$D$36*$D$34+$H$17*$D$43*$D$41)*($Z11/168)*(1/($AA11*$AA11))*$D$25) -> 0
C12: =IF(D11="Geen verontreiniging","","Activiteit verontreiniging #1") ->  | E12: =IF(D11="Geen verontreiniging","","GBq") ->  | G12: =IF($D$13="Geen verontreiniging","","Verontreiniging #2") ->  | H12: =IF(D13="Geen verontreiniging",0,IF($D$45="tijd",IF(AND(OR(ISNUMBER($D$49)=FALSE,$D$20+$D$22<$D$49),$D$20>$D$47),$D$39*(-1/($D$48+$D$40))*EXP(-($D$46-$D$48)*$D$47)*(EXP(-($D$48+$D$40)*($D$20+$D$22))-EXP(-($D$48+$D$40)*$D$20)),IF(OR(ISNUMBER($D$47)=FALSE,$D$20+$D$22<$D$47),$D$39*(-1/($D$40+$D$46))*(EXP(-($D$40+$D$46)*($D$20+$D$22))-EXP(-($D$40+$D$46)*$D$20)),IF(AND(OR(ISNUMBER($D$49)=FALSE,$D$20+$D$22<$D$49),$D$20<$D$47),$D$39*(-1/($D$40+$D$46))*(EXP(-($D$40+$D$46)*$D$47)-EXP(-($D$40+$D$46)*$D$20))+$D$39*(-1/($D$40+$D$48))*EXP(-($D$46-$D$48)*$D$47)*(EXP(-($D$40+$D$48)*($D$20+$D$22))-EXP(-($D$40+$D$48)*$D$47)),IF(AND($D$20<$D$47,$D$20+$D$22>$D$49),$D$39*(-1/($D$40+$D$46))*(EXP(-($D$40+$D$46)*$D$47)-EXP(-($D$40+$D$46)*$D$20))+$D$39*(-1/($D$40+$D$48))*EXP(-($D$46-$D$48)*$D$47)*(EXP(-($D$40+$D$48)*$D$49)-EXP(-($D$40+$D$48)*$D$47))+$D$39*(-1/($D$40+$D$50))*EXP(-($D$46-$D$48)*$D$47)*EXP(-($D$48-$D$50)*$D$49)*(EXP(-($D$50+$D$40)*($D$20+$D$22))-EXP(-($D$40+$D$48)*$D$49)),IF(AND($D$20<$D$49,$D$20+$D$22>$D$49),$D$39*(-1/($D$40+$D$48))*EXP(-($D$46-$D$48)*$D$47)*(EXP(-($D$40+$D$48)*$D$49)-EXP(-($D$40+$D$48)*$D$20))+D39*(-1/($D$40+$D$50))*EXP(-($D$46-$D$48)*$D$47)*EXP(-($D$48-$D$50)*$D$49)*(EXP(-($D$50+$D$40)*($D$20+$D$22))-EXP(-($D$40+$D$48)*$D$49)),$D$39*(-1/($D$40+$D$50))*EXP(-($D$46-$D$48)*$D$47)*EXP(-($D$48-$D$50)*$D$49)*(EXP(-($D$50+$D$40)*($D$20+$D$22))-EXP(-($D$40+$D$48)*$D$20))))))),IF($D$51="",IF($D$49="",$D$39*(-1/($D$46+$D$40))*(EXP(-($D$46+$D$40)*($D$20+$D$22))-EXP(-($D$46+$D$40)*$D$20)),$D$39*$D$47*(-1/($D$46+$D$40))*(EXP(-($D$46+$D$40)*($D$20+$D$22))-EXP(-($D$46+$D$40)*$D$20))+$D$39*$D$49*(-1/($D$48+$D$40))*(EXP(-($D$48+$D$40)*($D$20+$D$22))-EXP(-($D$48+$D$40)*$D$20))),$D$39*$D$47*(-1/($D$46+$D$40))*(EXP(-($D$46+$D$40)*($D$20+$D$22))-EXP(-($D$46+$D$40)*$D$20))+$D$39*$D$49*(-1/($D$48+$D$40))*(EXP(-($D$48+$D$40)*($D$20+$D$22))-EXP(-($D$48+$D$40)*$D$20))+$D$39*$D$51*(-1/($D$50+$D$40))*(EXP(-($D$50+$D$40)*($D$20+$D$22))-EXP(-($D$50+$D$40)*$D$20))))) -> 0 | I12: =IF($D$13="Geen verontreiniging","","GBq h") ->  | K12: =Scenario!$A11 -> Bedrust | L12: 0 | M12: 452.6858152 | N12: 452.6858152 | O12: 0 | Q12: =Scenario!$A11 -> Bedrust | R12: =Scenario!$D11 -> 56 | S12: =Scenario!$F11 -> 2.8 | T12: =IF(Scenario!K11="nee",0,($H$10*$D$29*$D$27+$H$11*$D$36*$D$34+$H$12*$D$43*$D$41)*($R12/168)*(1/($S12*$S12))*$D$25) -> 0 | U12: =IF(Scenario!L11="nee",0,($H$10*$D$29*$D$27+$H$11*$D$36*$D$34+$H$12*$D$43*$D$41)*($R12/168)*(1/($S12*$S12))*$D$25) -> 65.07312624 | V12: =IF(Scenario!M11="nee",0,($H$10*$D$29*$D$27+$H$11*$D$36*$D$34+$H$12*$D$43*$D$41)*($R12/168)*(1/($S12*$S12))*$D$25) -> 65.07312624 | W12: =IF(Scenario!N11="nee",0,($H$10*$D$29*$D$27+$H$11*$D$36*$D$34+$H$12*$D$43*$D$41)*($R12/168)*(1/($S12*$S12))*$D$25) -> 0 | Y12: =Scenario!$A11 -> Bedrust | Z12: =Scenario!$C11 -> 56 | AA12: =Scenario!$E11 -> 0.8 | AB12: =IF(Scenario!G11="nee",0,($H$15*$D$29*$D$27+$H$16*$D$36*$D$34+$H$17*$D$43*$D$41)*($Z12/168)*(1/($AA12*$AA12))*$D$25) -> 0 | AC12: =IF(Scenario!H11="nee",0,($H$15*$D$29*$D$27+$H$16*$D$36*$D$34+$H$17*$D$43*$D$41)*($Z12/168)*(1/($AA12*$AA12))*$D$25) -> 387.612689 | AD12: =IF(Scenario!I11="nee",0,($H$15*$D$29*$D$27+$H$16*$D$36*$D$34+$H$17*$D$43*$D$41)*($Z12/168)*(1/($AA12*$AA12))*$D$25) -> 387.612689 | AE12: =IF(Scenario!J11="nee",0,($H$15*$D$29*$D$27+$H$16*$D$36*$D$34+$H$17*$D$43*$D$41)*($Z12/168)*(1/($AA12*$AA12))*$D$25) -> 0
C13: Verontreiniging #2 | D13: Geen verontreiniging | K13: =Scenario!$A12 -> Vrijen | L13: 0 | M13: 84.6256061 | N13: 84.6256061 | O13: 0 | Q13: =Scenario!$A12 -> Vrijen | R13: =Scenario!$D12 -> 1 | S13: =Scenario!$F12 -> 0.4 | T13: =IF(Scenario!K12="nee",0,($H$10*$D$29*$D$27+$H$11*$D$36*$D$34+$H$12*$D$43*$D$41)*($R13/168)*(1/($S13*$S13))*$D$25) -> 0 | U13: =IF(Scenario!L12="nee",0,($H$10*$D$29*$D$27+$H$11*$D$36*$D$34+$H$12*$D$43*$D$41)*($R13/168)*(1/($S13*$S13))*$D$25) -> 56.93898546 | V13: =IF(Scenario!M12="nee",0,($H$10*$D$29*$D$27+$H$11*$D$36*$D$34+$H$12*$D$43*$D$41)*($R13/168)*(1/($S13*$S13))*$D$25) -> 56.93898546 | W13: =IF(Scenario!N12="nee",0,($H$10*$D$29*$D$27+$H$11*$D$36*$D$34+$H$12*$D$43*$D$41)*($R13/168)*(1/($S13*$S13))*$D$25) -> 0 | Y13: =Scenario!$A12 -> Vrijen | Z13: =Scenario!$C12 -> 1 | AA13: =Scenario!$E12 -> 0.4 | AB13: =IF(Scenario!G12="nee",0,($H$15*$D$29*$D$27+$H$16*$D$36*$D$34+$H$17*$D$43*$D$41)*($Z13/168)*(1/($AA13*$AA13))*$D$25) -> 0 | AC13: =IF(Scenario!H12="nee",0,($H$15*$D$29*$D$27+$H$16*$D$36*$D$34+$H$17*$D$43*$D$41)*($Z13/168)*(1/($AA13*$AA13))*$D$25) -> 27.68662064 | AD13: =IF(Scenario!I12="nee",0,($H$15*$D$29*$D$27+$H$16*$D$36*$D$34+$H$17*$D$43*$D$41)*($Z13/168)*(1/($AA13*$AA13))*$D$25) -> 27.68662064 | AE13: =IF(Scenario!J12="nee",0,($H$15*$D$29*$D$27+$H$16*$D$36*$D$34+$H$17*$D$43*$D$41)*($Z13/168)*(1/($AA13*$AA13))*$D$25) -> 0
C14: =IF(D13="Geen verontreiniging","","Activiteit verontreiniging #1") ->  | E14: =IF(D13="Geen verontreiniging","","GBq") ->  | G14: Desintegraties gedurende rekenperiode na leefregels | K14: =Scenario!$A13 -> Eten en drinken | L14: 147.4505967 | M14: 147.4505967 | N14: 147.4505967 | O14: 0 | Q14: =Scenario!$A13 -> Eten en drinken | R14: =Scenario!$D13 -> 10.8 | S14: =Scenario!$F13 -> 2.6 | T14: =IF(Scenario!K13="nee",0,($H$10*$D$29*$D$27+$H$11*$D$36*$D$34+$H$12*$D$43*$D$41)*($R14/168)*(1/($S14*$S14))*$D$25) -> 14.55481758 | U14: =IF(Scenario!L13="nee",0,($H$10*$D$29*$D$27+$H$11*$D$36*$D$34+$H$12*$D$43*$D$41)*($R14/168)*(1/($S14*$S14))*$D$25) -> 14.55481758 | V14: =IF(Scenario!M13="nee",0,($H$10*$D$29*$D$27+$H$11*$D$36*$D$34+$H$12*$D$43*$D$41)*($R14/168)*(1/($S14*$S14))*$D$25) -> 14.55481758 | W14: =IF(Scenario!N13="nee",0,($H$10*$D$29*$D$27+$H$11*$D$36*$D$34+$H$12*$D$43*$D$41)*($R14/168)*(1/($S14*$S14))*$D$25) -> 0 | Y14: =Scenario!$A13 -> Eten en drinken | Z14: =Scenario!$C13 -> 10.8 | AA14: =Scenario!$E13 -> 0.6 | AB14: =IF(Scenario!G13="nee",0,($H$15*$D$29*$D$27+$H$16*$D$36*$D$34+$H$17*$D$43*$D$41)*($Z14/168)*(1/($AA14*$AA14))*$D$25) -> 132.8957791 | AC14: =IF(Scenario!H13="nee",0,($H$15*$D$29*$D$27+$H$16*$D$36*$D$34+$H$17*$D$43*$D$41)*($Z14/168)*(1/($AA14*$AA14))*$D$25) -> 132.8957791 | AD14: =IF(Scenario!I13="nee",0,($H$15*$D$29*$D$27+$H$16*$D$36*$D$34+$H$17*$D$43*$D$41)*($Z14/168)*(1/($AA14*$AA14))*$D$25) -> 132.8957791 | AE14: =IF(Scenario!J13="nee",0,($H$15*$D$29*$D$27+$H$16*$D$36*$D$34+$H$17*$D$43*$D$41)*($Z14/168)*(1/($AA14*$AA14))*$D$25) -> 0
G15: Therapie | H15: =IF($D$45="tijd",IF(AND(OR(ISNUMBER($D$49)=FALSE,$D$20+$D$21<$D$49),$D$20+$D$22>$D$47),$D$24*(-1/($D$48+$D$26))*EXP(-($D$46-$D$48)*$D$47)*(EXP(-($D$48+$D$26)*($D$20+$D$21))-EXP(-($D$48+$D$26)*($D$20+$D$22))),IF(OR(ISNUMBER($D$47)=FALSE,$D$20+$D$21<$D$47),$D$24*(-1/($D$26+$D$46))*(EXP(-($D$26+$D$46)*($D$20+$D$21))-EXP(-($D$26+$D$46)*($D$20+$D$22))),IF(AND(OR(ISNUMBER($D$49)=FALSE,$D$20+$D$21<$D$49),$D$20+$D$22<$D$47),$D$24*(-1/($D$26+$D$46))*(EXP(-($D$26+$D$46)*$D$47)-EXP(-($D$26+$D$46)*($D$20+$D$22)))+$D$24*(-1/($D$26+$D$48))*EXP(-($D$46-$D$48)*$D$47)*(EXP(-($D$26+$D$48)*($D$20+$D$21))-EXP(-($D$26+$D$48)*$D$47)),IF(AND($D$20+$D$22<$D$47,$D$20+$D$21>$D$49),$D$24*(-1/($D$26+$D$46))*(EXP(-($D$26+$D$46)*$D$47)-EXP(-($D$26+$D$46)*($D$20+$D$22)))+$D$24*(-1/($D$26+$D$48))*EXP(-($D$46-$D$48)*$D$47)*(EXP(-($D$26+$D$48)*$D$49)-EXP(-($D$26+$D$48)*$D$47))+$D$24*(-1/($D$26+$D$50))*EXP(-($D$46-$D$48)*$D$47)*EXP(-($D$48-$D$50)*$D$49)*(EXP(-($D$50+$D$26)*($D$20+$D$21))-EXP(-($D$26+$D$48)*$D$49)),IF(AND($D$20+$D$22<$D$49,$D$20+$D$21>$D$49),$D$24*(-1/($D$26+$D$48))*EXP(-($D$46-$D$48)*$D$47)*(EXP(-($D$26+$D$48)*$D$49)-EXP(-($D$26+$D$48)*($D$20+$D$22)))+$D$24*(-1/($D$26+$D$50))*EXP(-($D$46-$D$48)*$D$47)*EXP(-($D$48-$D$50)*$D$49)*(EXP(-($D$50+$D$26)*($D$20+$D$21))-EXP(-($D$26+$D$48)*$D$49)),$D$24*(-1/($D$26+$D$50))*EXP(-($D$46-$D$48)*$D$47)*EXP(-($D$48-$D$50)*$D$49)*(EXP(-($D$50+$D$26)*($D$20+$D$21))-EXP(-($D$26+$D$48)*($D$20+$D$22)))))))),IF($D$51="",IF($D$49="",$D$24*(-1/($D$46+$D$26))*(EXP(-($D$46+$D$26)*($D$20+$D$21))-EXP(-($D$46+$D$26)*($D$20+$D$22))),$D$24*$D$47*(-1/($D$46+$D$26))*((EXP(-($D$46+$D$26)*($D$20+$D$21)))-EXP(-($D$46+$D$26)*($D$20+$D$22)))+$D$24*$D$49*(-1/($D$48+$D$26))*(EXP(-($D$48+$D$26)*($D$20+$D$21))-EXP(-($D$48+$D$26)*($D$20+$D$22)))),$D$24*$D$47*(-1/($D$46+$D$26))*(EXP(-($D$46+$D$26)*($D$20+$D$21))-EXP(-($D$46+$D$26)*($D$20+$D$22)))+$D$24*$D$49*(-1/($D$48+$D$26))*(EXP(-($D$48+$D$26)*($D$20+$D$21))-EXP(-($D$48+$D$26)*($D$20+$D$22)))+$D$24*$D$51*(-1/($D$50+$D$26))*(EXP(-($D$50+$D$26)*($D$20+$D$21))-EXP(-($D$50+$D$26)*($D$20+$D$22))))) -> 11.10770691 | I15: GBq h | K15: =Scenario!$A14 -> Overige persoonlijke verzorging | L15: 0 | M15: 0 | N15: 0 | O15: 0 | Q15: =Scenario!$A14 -> Overige persoonlijke verzorging | R15: =Scenario!$D14 -> 6.7 | S15: =Scenario!$F14 -> 0 | T15: =IF(Scenario!K14="nee",0,($H$10*$D$29*$D$27+$H$11*$D$36*$D$34+$H$12*$D$43*$D$41)*($R15/168)*(1/($S15*$S15))*$D$25) -> 0 | U15: =IF(Scenario!L14="nee",0,($H$10*$D$29*$D$27+$H$11*$D$36*$D$34+$H$12*$D$43*$D$41)*($R15/168)*(1/($S15*$S15))*$D$25) -> 0 | V15: =IF(Scenario!M14="nee",0,($H$10*$D$29*$D$27+$H$11*$D$36*$D$34+$H$12*$D$43*$D$41)*($R15/168)*(1/($S15*$S15))*$D$25) -> 0 | W15: =IF(Scenario!N14="nee",0,($H$10*$D$29*$D$27+$H$11*$D$36*$D$34+$H$12*$D$43*$D$41)*($R15/168)*(1/($S15*$S15))*$D$25) -> 0 | Y15: =Scenario!$A14 -> Overige persoonlijke verzorging | Z15: =Scenario!$C14 -> 6.7 | AA15: =Scenario!$E14 -> 0 | AB15: =IF(Scenario!G14="nee",0,($H$15*$D$29*$D$27+$H$16*$D$36*$D$34+$H$17*$D$43*$D$41)*($Z15/168)*(1/($AA15*$AA15))*$D$25) -> 0 | AC15: =IF(Scenario!H14="nee",0,($H$15*$D$29*$D$27+$H$16*$D$36*$D$34+$H$17*$D$43*$D$41)*($Z15/168)*(1/($AA15*$AA15))*$D$25) -> 0 | AD15: =IF(Scenario!I14="nee",0,($H$15*$D$29*$D$27+$H$16*$D$36*$D$34+$H$17*$D$43*$D$41)*($Z15/168)*(1/($AA15*$AA15))*$D$25) -> 0 | AE15: =IF(Scenario!J14="nee",0,($H$15*$D$29*$D$27+$H$16*$D$36*$D$34+$H$17*$D$43*$D$41)*($Z15/168)*(1/($AA15*$AA15))*$D$25) -> 0
G16: =IF($D$11="Geen verontreiniging","","Verontreiniging #1") ->  | H16: =IF(D11="Geen verontreiniging",0,IF($D$45="tijd",IF(AND(OR(ISNUMBER($D$49)=FALSE,$D$20+$D$21<$D$49),$D$20+$D$22>$D$47),$D$32*(-1/($D$48+$D$33))*EXP(-($D$46-$D$48)*$D$47)*(EXP(-($D$48+$D$33)*($D$20+$D$21))-EXP(-($D$48+$D$33)*($D$20+$D$22))),IF(OR(ISNUMBER($D$47)=FALSE,$D$20+$D$21<$D$47),$D$32*(-1/($D$33+$D$46))*(EXP(-($D$33+$D$46)*($D$20+$D$21))-EXP(-($D$33+$D$46)*($D$20+$D$22))),IF(AND(OR(ISNUMBER($D$49)=FALSE,$D$20+$D$21<$D$49),$D$20+$D$22<$D$47),$D$32*(-1/($D$33+$D$46))*(EXP(-($D$33+$D$46)*$D$47)-EXP(-($D$33+$D$46)*($D$20+$D$22)))+$D$32*(-1/($D$33+$D$48))*EXP(-($D$46-$D$48)*$D$47)*(EXP(-($D$33+$D$48)*($D$20+$D$21))-EXP(-($D$33+$D$48)*$D$47)),IF(AND($D$20+$D$22<$D$47,$D$20+$D$21>$D$49),$D$32*(-1/($D$33+$D$46))*(EXP(-($D$33+$D$46)*$D$47)-EXP(-($D$33+$D$46)*($D$20+$D$22)))+$D$32*(-1/($D$33+$D$48))*EXP(-($D$46-$D$48)*$D$47)*(EXP(-($D$33+$D$48)*$D$49)-EXP(-($D$33+$D$48)*$D$47))+$D$32*(-1/($D$33+$D$50))*EXP(-($D$46-$D$48)*$D$47)*EXP(-($D$48-$D$50)*$D$49)*(EXP(-($D$50+$D$33)*($D$20+$D$21))-EXP(-($D$33+$D$48)*$D$49)),IF(AND($D$20+$D$22<$D$49,$D$20+$D$21>$D$49),$D$32*(-1/($D$33+$D$48))*EXP(-($D$46-$D$48)*$D$47)*(EXP(-($D$33+$D$48)*$D$49)-EXP(-($D$33+$D$48)*($D$20+$D$22)))+$D$32*(-1/($D$33+$D$50))*EXP(-($D$46-$D$48)*$D$47)*EXP(-($D$48-$D$50)*$D$49)*(EXP(-($D$50+$D$33)*($D$20+$D$21))-EXP(-($D$33+$D$48)*$D$49)),$D$32*(-1/($D$33+$D$50))*EXP(-($D$46-$D$48)*$D$47)*EXP(-($D$48-$D$50)*$D$49)*(EXP(-($D$50+$D$33)*($D$20+$D$21))-EXP(-($D$33+$D$48)*($D$20+$D$22)))))))),IF($D$51="",IF($D$49="",$D$32*(-1/($D$46+$D$33))*(EXP(-($D$46+$D$33)*($D$20+$D$21))-EXP(-($D$46+$D$33)*($D$20+$D$22))),$D$32*$D$47*(-1/($D$46+$D$33))*(EXP(-($D$46+$D$33)*($D$20+$D$21))-EXP(-($D$46+$D$33)*($D$20+$D$22)))+$D$32*$D$49*(-1/($D$48+$D$33))*(EXP(-($D$48+$D$33)*($D$20+$D$21))-EXP(-($D$48+$D$33)*($D$20+$D$22)))),$D$32*$D$47*(-1/($D$46+$D$33))*(EXP(-($D$46+$D$33)*($D$20+$D$21))-EXP(-($D$46+$D$33)*($D$20+$D$22)))+$D$32*$D$49*(-1/($D$48+$D$33))*(EXP(-($D$48+$D$33)*($D$20+$D$21))-EXP(-($D$48+$D$33)*($D$20+$D$22)))+$D$32*$D$51*(-1/($D$50+$D$33))*(EXP(-($D$50+$D$33)*($D$20+$D$21))-EXP(-($D$50+$D$33)*($D$20+$D$22)))))) -> 0 | I16: =IF($D$11="Geen verontreiniging","","GBq h") ->  | K16: =Scenario!$A15 -> Sociale contacten | L16: 42.88849633 | M16: 42.88849633 | N16: 42.88849633 | O16: 42.88849633 | Q16: =Scenario!$A15 -> Sociale contacten | R16: =Scenario!$D15 -> 10.1 | S16: =Scenario!$F15 -> 2 | T16: =IF(Scenario!K15="nee",0,($H$10*$D$29*$D$27+$H$11*$D$36*$D$34+$H$12*$D$43*$D$41)*($R16/168)*(1/($S16*$S16))*$D$25) -> 23.00335012 | U16: =IF(Scenario!L15="nee",0,($H$10*$D$29*$D$27+$H$11*$D$36*$D$34+$H$12*$D$43*$D$41)*($R16/168)*(1/($S16*$S16))*$D$25) -> 23.00335012 | V16: =IF(Scenario!M15="nee",0,($H$10*$D$29*$D$27+$H$11*$D$36*$D$34+$H$12*$D$43*$D$41)*($R16/168)*(1/($S16*$S16))*$D$25) -> 23.00335012 | W16: =IF(Scenario!N15="nee",0,($H$10*$D$29*$D$27+$H$11*$D$36*$D$34+$H$12*$D$43*$D$41)*($R16/168)*(1/($S16*$S16))*$D$25) -> 23.00335012 | Y16: =Scenario!$A15 -> Sociale contacten | Z16: =Scenario!$C15 -> 10.1 | AA16: =Scenario!$E15 -> 1.5 | AB16: =IF(Scenario!G15="nee",0,($H$15*$D$29*$D$27+$H$16*$D$36*$D$34+$H$17*$D$43*$D$41)*($Z16/168)*(1/($AA16*$AA16))*$D$25) -> 19.8851462 | AC16: =IF(Scenario!H15="nee",0,($H$15*$D$29*$D$27+$H$16*$D$36*$D$34+$H$17*$D$43*$D$41)*($Z16/168)*(1/($AA16*$AA16))*$D$25) -> 19.8851462 | AD16: =IF(Scenario!I15="nee",0,($H$15*$D$29*$D$27+$H$16*$D$36*$D$34+$H$17*$D$43*$D$41)*($Z16/168)*(1/($AA16*$AA16))*$D$25) -> 19.8851462 | AE16: =IF(Scenario!J15="nee",0,($H$15*$D$29*$D$27+$H$16*$D$36*$D$34+$H$17*$D$43*$D$41)*($Z16/168)*(1/($AA16*$AA16))*$D$25) -> 19.8851462
C17: Volledig overzicht gebruikte gegevens | G17: =IF($D$13="Geen verontreiniging","","Verontreiniging #2") ->  | H17: =IF(D13="Geen verontreiniging",0,IF($D$45="tijd",IF(AND(OR(ISNUMBER($D$49)=FALSE,$D$20+$D$21<$D$49),$D$20+$D$22>$D$47),$D$39*(-1/($D$48+$D$40))*EXP(-($D$46-$D$48)*$D$47)*(EXP(-($D$48+$D$40)*($D$20+$D$21))-EXP(-($D$48+$D$40)*($D$20+$D$22))),IF(OR(ISNUMBER($D$47)=FALSE,$D$20+$D$21<$D$47),$D$39*(-1/($D$40+$D$46))*(EXP(-($D$40+$D$46)*($D$20+$D$21))-EXP(-($D$40+$D$46)*($D$20+$D$22))),IF(AND(OR(ISNUMBER($D$49)=FALSE,$D$20+$D$21<$D$49),$D$20+$D$22<$D$47),$D$39*(-1/($D$40+$D$46))*(EXP(-($D$40+$D$46)*$D$47)-EXP(-($D$40+$D$46)*($D$20+$D$22)))+$D$39*(-1/($D$40+$D$48))*EXP(-($D$46-$D$48)*$D$47)*(EXP(-($D$40+$D$48)*($D$20+$D$21))-EXP(-($D$40+$D$48)*$D$47)),IF(AND($D$20+$D$22<$D$47,$D$20+$D$21>$D$49),$D$39*(-1/($D$40+$D$46))*(EXP(-($D$40+$D$46)*$D$47)-EXP(-($D$40+$D$46)*($D$20+$D$22)))+$D$39*(-1/($D$40+$D$48))*EXP(-($D$46-$D$48)*$D$47)*(EXP(-($D$40+$D$48)*$D$49)-EXP(-($D$40+$D$48)*$D$47))+$D$39*(-1/($D$40+$D$50))*EXP(-($D$46-$D$48)*$D$47)*EXP(-($D$48-$D$50)*$D$49)*(EXP(-($D$50+$D$40)*($D$20+$D$21))-EXP(-($D$40+$D$48)*$D$49)),IF(AND($D$20+$D$22<$D$49,$D$20+$D$21>$D$49),$D$39*(-1/($D$40+$D$48))*EXP(-($D$46-$D$48)*$D$47)*(EXP(-($D$40+$D$48)*$D$49)-EXP(-($D$40+$D$48)*($D$20+$D$22)))+D44*(-1/($D$40+$D$50))*EXP(-($D$46-$D$48)*$D$47)*EXP(-($D$48-$D$50)*$D$49)*(EXP(-($D$50+$D$40)*($D$20+$D$21))-EXP(-($D$40+$D$48)*$D$49)),$D$39*(-1/($D$40+$D$50))*EXP(-($D$46-$D$48)*$D$47)*EXP(-($D$48-$D$50)*$D$49)*(EXP(-($D$50+$D$40)*($D$20+$D$21))-EXP(-($D$40+$D$48)*($D$20+$D$22)))))))),IF($D$51="",IF($D$49="",$D$39*(-1/($D$46+$D$40))*(EXP(-($D$46+$D$40)*($D$20+$D$21))-EXP(-($D$46+$D$40)*($D$20+$D$22))),$D$39*$D$47*(-1/($D$46+$D$40))*(EXP(-($D$46+$D$40)*($D$20+$D$21))-EXP(-($D$46+$D$40)*($D$20+$D$22)))+$D$39*$D$49*(-1/($D$48+$D$40))*(EXP(-($D$48+$D$40)*($D$20+$D$21))-EXP(-($D$48+$D$40)*($D$20+$D$22)))),$D$39*$D$47*(-1/($D$46+$D$40))*(EXP(-($D$46+$D$40)*($D$20+$D$21))-EXP(-($D$46+$D$40)*($D$20+$D$22)))+$D$39*$D$49*(-1/($D$48+$D$40))*(EXP(-($D$48+$D$40)*($D$20+$D$21))-EXP(-($D$48+$D$40)*($D$20+$D$22)))+$D$39*$D$51*(-1/($D$50+$D$40))*(EXP(-($D$50+$D$40)*($D$20+$D$21))-EXP(-($D$50+$D$40)*($D$20+$D$22)))))) -> 0 | I17: =IF($D$13="Geen verontreiniging","","GBq h") ->  | K17: =Scenario!$A16 -> Lezen | L17: 0 | M17: 0 | N17: 0 | O17: 0 | Q17: =Scenario!$A16 -> Lezen | R17: =Scenario!$D16 -> 3.4 | S17: =Scenario!$F16 -> 0 | T17: =IF(Scenario!K16="nee",0,($H$10*$D$29*$D$27+$H$11*$D$36*$D$34+$H$12*$D$43*$D$41)*($R17/168)*(1/($S17*$S17))*$D$25) -> 0 | U17: =IF(Scenario!L16="nee",0,($H$10*$D$29*$D$27+$H$11*$D$36*$D$34+$H$12*$D$43*$D$41)*($R17/168)*(1/($S17*$S17))*$D$25) -> 0 | V17: =IF(Scenario!M16="nee",0,($H$10*$D$29*$D$27+$H$11*$D$36*$D$34+$H$12*$D$43*$D$41)*($R17/168)*(1/($S17*$S17))*$D$25) -> 0 | W17: =IF(Scenario!N16="nee",0,($H$10*$D$29*$D$27+$H$11*$D$36*$D$34+$H$12*$D$43*$D$41)*($R17/168)*(1/($S17*$S17))*$D$25) -> 0 | Y17: =Scenario!$A16 -> Lezen | Z17: =Scenario!$C16 -> 3.4 | AA17: =Scenario!$E16 -> 0 | AB17: =IF(Scenario!G16="nee",0,($H$15*$D$29*$D$27+$H$16*$D$36*$D$34+$H$17*$D$43*$D$41)*($Z17/168)*(1/($AA17*$AA17))*$D$25) -> 0 | AC17: =IF(Scenario!H16="nee",0,($H$15*$D$29*$D$27+$H$16*$D$36*$D$34+$H$17*$D$43*$D$41)*($Z17/168)*(1/($AA17*$AA17))*$D$25) -> 0 | AD17: =IF(Scenario!I16="nee",0,($H$15*$D$29*$D$27+$H$16*$D$36*$D$34+$H$17*$D$43*$D$41)*($Z17/168)*(1/($AA17*$AA17))*$D$25) -> 0 | AE17: =IF(Scenario!J16="nee",0,($H$15*$D$29*$D$27+$H$16*$D$36*$D$34+$H$17*$D$43*$D$41)*($Z17/168)*(1/($AA17*$AA17))*$D$25) -> 0
C18: Therapie | D18: =D2 -> I-131 benigne (0,4 GBq) | K18: =Scenario!$A17 -> Kijken (media) | L18: 59.87403943 | M18: 59.87403943 | N18: 59.87403943 | O18: 59.87403943 | Q18: =Scenario!$A17 -> Kijken (media) | R18: =Scenario!$D17 -> 14.1 | S18: =Scenario!$F17 -> 2 | T18: =IF(Scenario!K17="nee",0,($H$10*$D$29*$D$27+$H$11*$D$36*$D$34+$H$12*$D$43*$D$41)*($R18/168)*(1/($S18*$S18))*$D$25) -> 32.1135878 | U18: =IF(Scenario!L17="nee",0,($H$10*$D$29*$D$27+$H$11*$D$36*$D$34+$H$12*$D$43*$D$41)*($R18/168)*(1/($S18*$S18))*$D$25) -> 32.1135878 | V18: =IF(Scenario!M17="nee",0,($H$10*$D$29*$D$27+$H$11*$D$36*$D$34+$H$12*$D$43*$D$41)*($R18/168)*(1/($S18*$S18))*$D$25) -> 32.1135878 | W18: =IF(Scenario!N17="nee",0,($H$10*$D$29*$D$27+$H$11*$D$36*$D$34+$H$12*$D$43*$D$41)*($R18/168)*(1/($S18*$S18))*$D$25) -> 32.1135878 | Y18: =Scenario!$A17 -> Kijken (media) | Z18: =Scenario!$C17 -> 14.1 | AA18: =Scenario!$E17 -> 1.5 | AB18: =IF(Scenario!G17="nee",0,($H$15*$D$29*$D$27+$H$16*$D$36*$D$34+$H$17*$D$43*$D$41)*($Z18/168)*(1/($AA18*$AA18))*$D$25) -> 27.76045163 | AC18: =IF(Scenario!H17="nee",0,($H$15*$D$29*$D$27+$H$16*$D$36*$D$34+$H$17*$D$43*$D$41)*($Z18/168)*(1/($AA18*$AA18))*$D$25) -> 27.76045163 | AD18: =IF(Scenario!I17="nee",0,($H$15*$D$29*$D$27+$H$16*$D$36*$D$34+$H$17*$D$43*$D$41)*($Z18/168)*(1/($AA18*$AA18))*$D$25) -> 27.76045163 | AE18: =IF(Scenario!J17="nee",0,($H$15*$D$29*$D$27+$H$16*$D$36*$D$34+$H$17*$D$43*$D$41)*($Z18/168)*(1/($AA18*$AA18))*$D$25) -> 27.76045163
C19: Ontslagcriterium | D19: =IF(D3="Ontslagcriterium",D4,"") ->  | E19: µSv h-1 op 1 meter | K19: =Scenario!$A18 -> Sportbeoefening | L19: 0 | M19: 0 | N19: 0 | O19: 0 | Q19: =Scenario!$A18 -> Sportbeoefening | R19: =Scenario!$D18 -> 1.7 | S19: =Scenario!$F18 -> 0 | T19: =IF(Scenario!K18="nee",0,($H$10*$D$29*$D$27+$H$11*$D$36*$D$34+$H$12*$D$43*$D$41)*($R19/168)*(1/($S19*$S19))*$D$25) -> 0 | U19: =IF(Scenario!L18="nee",0,($H$10*$D$29*$D$27+$H$11*$D$36*$D$34+$H$12*$D$43*$D$41)*($R19/168)*(1/($S19*$S19))*$D$25) -> 0 | V19: =IF(Scenario!M18="nee",0,($H$10*$D$29*$D$27+$H$11*$D$36*$D$34+$H$12*$D$43*$D$41)*($R19/168)*(1/($S19*$S19))*$D$25) -> 0 | W19: =IF(Scenario!N18="nee",0,($H$10*$D$29*$D$27+$H$11*$D$36*$D$34+$H$12*$D$43*$D$41)*($R19/168)*(1/($S19*$S19))*$D$25) -> 0 | Y19: =Scenario!$A18 -> Sportbeoefening | Z19: =Scenario!$C18 -> 1.7 | AA19: =Scenario!$E18 -> 0 | AB19: =IF(Scenario!G18="nee",0,($H$15*$D$29*$D$27+$H$16*$D$36*$D$34+$H$17*$D$43*$D$41)*($Z19/168)*(1/($AA19*$AA19))*$D$25) -> 0 | AC19: =IF(Scenario!H18="nee",0,($H$15*$D$29*$D$27+$H$16*$D$36*$D$34+$H$17*$D$43*$D$41)*($Z19/168)*(1/($AA19*$AA19))*$D$25) -> 0 | AD19: =IF(Scenario!I18="nee",0,($H$15*$D$29*$D$27+$H$16*$D$36*$D$34+$H$17*$D$43*$D$41)*($Z19/168)*(1/($AA19*$AA19))*$D$25) -> 0 | AE19: =IF(Scenario!J18="nee",0,($H$15*$D$29*$D$27+$H$16*$D$36*$D$34+$H$17*$D$43*$D$41)*($Z19/168)*(1/($AA19*$AA19))*$D$25) -> 0
C20: Ontslagtijdstip | D20: =IF(D3="Nee",0,IF(D5="",0,MAX(0,D5))) -> 0 | E20: uur na toediening | K20: =Scenario!$A19 -> Sportwedstrijdbezoek | L20: 0 | M20: 5.41603879 | N20: 5.41603879 | O20: 5.41603879 | Q20: =Scenario!$A19 -> Sportwedstrijdbezoek | R20: =Scenario!$D19 -> 0.1 | S20: =Scenario!$F19 -> 0.5 | T20: =IF(Scenario!K19="nee",0,($H$10*$D$29*$D$27+$H$11*$D$36*$D$34+$H$12*$D$43*$D$41)*($R20/168)*(1/($S20*$S20))*$D$25) -> 0 | U20: =IF(Scenario!L19="nee",0,($H$10*$D$29*$D$27+$H$11*$D$36*$D$34+$H$12*$D$43*$D$41)*($R20/168)*(1/($S20*$S20))*$D$25) -> 3.644095069 | V20: =IF(Scenario!M19="nee",0,($H$10*$D$29*$D$27+$H$11*$D$36*$D$34+$H$12*$D$43*$D$41)*($R20/168)*(1/($S20*$S20))*$D$25) -> 3.644095069 | W20: =IF(Scenario!N19="nee",0,($H$10*$D$29*$D$27+$H$11*$D$36*$D$34+$H$12*$D$43*$D$41)*($R20/168)*(1/($S20*$S20))*$D$25) -> 3.644095069 | Y20: =Scenario!$A19 -> Sportwedstrijdbezoek | Z20: =Scenario!$C19 -> 0.1 | AA20: =Scenario!$E19 -> 0.5 | AB20: =IF(Scenario!G19="nee",0,($H$15*$D$29*$D$27+$H$16*$D$36*$D$34+$H$17*$D$43*$D$41)*($Z20/168)*(1/($AA20*$AA20))*$D$25) -> 0 | AC20: =IF(Scenario!H19="nee",0,($H$15*$D$29*$D$27+$H$16*$D$36*$D$34+$H$17*$D$43*$D$41)*($Z20/168)*(1/($AA20*$AA20))*$D$25) -> 1.771943721 | AD20: =IF(Scenario!I19="nee",0,($H$15*$D$29*$D$27+$H$16*$D$36*$D$34+$H$17*$D$43*$D$41)*($Z20/168)*(1/($AA20*$AA20))*$D$25) -> 1.771943721 | AE20: =IF(Scenario!J19="nee",0,($H$15*$D$29*$D$27+$H$16*$D$36*$D$34+$H$17*$D$43*$D$41)*($Z20/168)*(1/($AA20*$AA20))*$D$25) -> 1.771943721
C21: Rekenperiode | D21: =D6*24 -> 504 | E21: uur na ontslag | K21: =Scenario!$A20 -> Amateurkunstbeoefening | L21: 0 | M21: 21.66415516 | N21: 21.66415516 | O21: 21.66415516 | Q21: =Scenario!$A20 -> Amateurkunstbeoefening | R21: =Scenario!$D20 -> 0.4 | S21: =Scenario!$F20 -> 0.5 | T21: =IF(Scenario!K20="nee",0,($H$10*$D$29*$D$27+$H$11*$D$36*$D$34+$H$12*$D$43*$D$41)*($R21/168)*(1/($S21*$S21))*$D$25) -> 0 | U21: =IF(Scenario!L20="nee",0,($H$10*$D$29*$D$27+$H$11*$D$36*$D$34+$H$12*$D$43*$D$41)*($R21/168)*(1/($S21*$S21))*$D$25) -> 14.57638028 | V21: =IF(Scenario!M20="nee",0,($H$10*$D$29*$D$27+$H$11*$D$36*$D$34+$H$12*$D$43*$D$41)*($R21/168)*(1/($S21*$S21))*$D$25) -> 14.57638028 | W21: =IF(Scenario!N20="nee",0,($H$10*$D$29*$D$27+$H$11*$D$36*$D$34+$H$12*$D$43*$D$41)*($R21/168)*(1/($S21*$S21))*$D$25) -> 14.57638028 | Y21: =Scenario!$A20 -> Amateurkunstbeoefening | Z21: =Scenario!$C20 -> 0.4 | AA21: =Scenario!$E20 -> 0.5 | AB21: =IF(Scenario!G20="nee",0,($H$15*$D$29*$D$27+$H$16*$D$36*$D$34+$H$17*$D$43*$D$41)*($Z21/168)*(1/($AA21*$AA21))*$D$25) -> 0 | AC21: =IF(Scenario!H20="nee",0,($H$15*$D$29*$D$27+$H$16*$D$36*$D$34+$H$17*$D$43*$D$41)*($Z21/168)*(1/($AA21*$AA21))*$D$25) -> 7.087774884 | AD21: =IF(Scenario!I20="nee",0,($H$15*$D$29*$D$27+$H$16*$D$36*$D$34+$H$17*$D$43*$D$41)*($Z21/168)*(1/($AA21*$AA21))*$D$25) -> 7.087774884 | AE21: =IF(Scenario!J20="nee",0,($H$15*$D$29*$D$27+$H$16*$D$36*$D$34+$H$17*$D$43*$D$41)*($Z21/168)*(1/($AA21*$AA21))*$D$25) -> 7.087774884
C22: Periode leefregels | D22: =IF(ISNUMBER(D7)=FALSE,0,IF(D7>(D21/24),D21,24*D7)) -> 168 | E22: uur na ontslag | K22: =Scenario!$A21 -> Cultuurbezoek | L22: 0 | M22: 21.66415516 | N22: 21.66415516 | O22: 21.66415516 | Q22: =Scenario!$A21 -> Cultuurbezoek | R22: =Scenario!$D21 -> 0.4 | S22: =Scenario!$F21 -> 0.5 | T22: =IF(Scenario!K21="nee",0,($H$10*$D$29*$D$27+$H$11*$D$36*$D$34+$H$12*$D$43*$D$41)*($R22/168)*(1/($S22*$S22))*$D$25) -> 0 | U22: =IF(Scenario!L21="nee",0,($H$10*$D$29*$D$27+$H$11*$D$36*$D$34+$H$12*$D$43*$D$41)*($R22/168)*(1/($S22*$S22))*$D$25) -> 14.57638028 | V22: =IF(Scenario!M21="nee",0,($H$10*$D$29*$D$27+$H$11*$D$36*$D$34+$H$12*$D$43*$D$41)*($R22/168)*(1/($S22*$S22))*$D$25) -> 14.57638028 | W22: =IF(Scenario!N21="nee",0,($H$10*$D$29*$D$27+$H$11*$D$36*$D$34+$H$12*$D$43*$D$41)*($R22/168)*(1/($S22*$S22))*$D$25) -> 14.57638028 | Y22: =Scenario!$A21 -> Cultuurbezoek | Z22: =Scenario!$C21 -> 0.4 | AA22: =Scenario!$E21 -> 0.5 | AB22: =IF(Scenario!G21="nee",0,($H$15*$D$29*$D$27+$H$16*$D$36*$D$34+$H$17*$D$43*$D$41)*($Z22/168)*(1/($AA22*$AA22))*$D$25) -> 0 | AC22: =IF(Scenario!H21="nee",0,($H$15*$D$29*$D$27+$H$16*$D$36*$D$34+$H$17*$D$43*$D$41)*($Z22/168)*(1/($AA22*$AA22))*$D$25) -> 7.087774884 | AD22: =IF(Scenario!I21="nee",0,($H$15*$D$29*$D$27+$H$16*$D$36*$D$34+$H$17*$D$43*$D$41)*($Z22/168)*(1/($AA22*$AA22))*$D$25) -> 7.087774884 | AE22: =IF(Scenario!J21="nee",0,($H$15*$D$29*$D$27+$H$16*$D$36*$D$34+$H$17*$D$43*$D$41)*($Z22/168)*(1/($AA22*$AA22))*$D$25) -> 7.087774884
C23: Diameter patiënt | D23: =IF(D8="",30,D8) -> 30 | E23: cm | K23: =Scenario!$A22 -> Vrijwilligerswerk | L23: 4.671024352 | M23: 4.671024352 | N23: 4.671024352 | O23: 4.671024352 | Q23: =Scenario!$A22 -> Vrijwilligerswerk | R23: =Scenario!$D22 -> 1.1 | S23: =Scenario!$F22 -> 2 | T23: =IF(Scenario!K22="nee",0,($H$10*$D$29*$D$27+$H$11*$D$36*$D$34+$H$12*$D$43*$D$41)*($R23/168)*(1/($S23*$S23))*$D$25) -> 2.50531536 | U23: =IF(Scenario!L22="nee",0,($H$10*$D$29*$D$27+$H$11*$D$36*$D$34+$H$12*$D$43*$D$41)*($R23/168)*(1/($S23*$S23))*$D$25) -> 2.50531536 | V23: =IF(Scenario!M22="nee",0,($H$10*$D$29*$D$27+$H$11*$D$36*$D$34+$H$12*$D$43*$D$41)*($R23/168)*(1/($S23*$S23))*$D$25) -> 2.50531536 | W23: =IF(Scenario!N22="nee",0,($H$10*$D$29*$D$27+$H$11*$D$36*$D$34+$H$12*$D$43*$D$41)*($R23/168)*(1/($S23*$S23))*$D$25) -> 2.50531536 | Y23: =Scenario!$A22 -> Vrijwilligerswerk | Z23: =Scenario!$C22 -> 1.1 | AA23: =Scenario!$E22 -> 1.5 | AB23: =IF(Scenario!G22="nee",0,($H$15*$D$29*$D$27+$H$16*$D$36*$D$34+$H$17*$D$43*$D$41)*($Z23/168)*(1/($AA23*$AA23))*$D$25) -> 2.165708992 | AC23: =IF(Scenario!H22="nee",0,($H$15*$D$29*$D$27+$H$16*$D$36*$D$34+$H$17*$D$43*$D$41)*($Z23/168)*(1/($AA23*$AA23))*$D$25) -> 2.165708992 | AD23: =IF(Scenario!I22="nee",0,($H$15*$D$29*$D$27+$H$16*$D$36*$D$34+$H$17*$D$43*$D$41)*($Z23/168)*(1/($AA23*$AA23))*$D$25) -> 2.165708992 | AE23: =IF(Scenario!J22="nee",0,($H$15*$D$29*$D$27+$H$16*$D$36*$D$34+$H$17*$D$43*$D$41)*($Z23/168)*(1/($AA23*$AA23))*$D$25) -> 2.165708992
C24: Toegediende activiteit | D24: =IF(D9="",VLOOKUP($D$18,Inputparameters!$C$2:$S$100,2,FALSE),D9) -> 0.4 | E24: GBq | K24: =Scenario!$A23 -> Bijeenkomstenbezoek | L24: 0 | M24: 32.49623274 | N24: 32.49623274 | O24: 32.49623274 | Q24: =Scenario!$A23 -> Bijeenkomstenbezoek | R24: =Scenario!$D23 -> 0.6 | S24: =Scenario!$F23 -> 0.5 | T24: =IF(Scenario!K23="nee",0,($H$10*$D$29*$D$27+$H$11*$D$36*$D$34+$H$12*$D$43*$D$41)*($R24/168)*(1/($S24*$S24))*$D$25) -> 0 | U24: =IF(Scenario!L23="nee",0,($H$10*$D$29*$D$27+$H$11*$D$36*$D$34+$H$12*$D$43*$D$41)*($R24/168)*(1/($S24*$S24))*$D$25) -> 21.86457042 | V24: =IF(Scenario!M23="nee",0,($H$10*$D$29*$D$27+$H$11*$D$36*$D$34+$H$12*$D$43*$D$41)*($R24/168)*(1/($S24*$S24))*$D$25) -> 21.86457042 | W24: =IF(Scenario!N23="nee",0,($H$10*$D$29*$D$27+$H$11*$D$36*$D$34+$H$12*$D$43*$D$41)*($R24/168)*(1/($S24*$S24))*$D$25) -> 21.86457042 | Y24: =Scenario!$A23 -> Bijeenkomstenbezoek | Z24: =Scenario!$C23 -> 0.6 | AA24: =Scenario!$E23 -> 0.5 | AB24: =IF(Scenario!G23="nee",0,($H$15*$D$29*$D$27+$H$16*$D$36*$D$34+$H$17*$D$43*$D$41)*($Z24/168)*(1/($AA24*$AA24))*$D$25) -> 0 | AC24: =IF(Scenario!H23="nee",0,($H$15*$D$29*$D$27+$H$16*$D$36*$D$34+$H$17*$D$43*$D$41)*($Z24/168)*(1/($AA24*$AA24))*$D$25) -> 10.63166233 | AD24: =IF(Scenario!I23="nee",0,($H$15*$D$29*$D$27+$H$16*$D$36*$D$34+$H$17*$D$43*$D$41)*($Z24/168)*(1/($AA24*$AA24))*$D$25) -> 10.63166233 | AE24: =IF(Scenario!J23="nee",0,($H$15*$D$29*$D$27+$H$16*$D$36*$D$34+$H$17*$D$43*$D$41)*($Z24/168)*(1/($AA24*$AA24))*$D$25) -> 10.63166233
C25: Aantal giften | D25: =IF(D10="",VLOOKUP($D$18,Inputparameters!$C$2:$S$100,3,FALSE),D10) -> 1 | K25: =Scenario!$A24 -> Niet geboekt | L25: 0 | M25: 0 | N25: 0 | O25: 0 | Q25: =Scenario!$A24 -> Niet geboekt | R25: =Scenario!$D24 -> 3.5 | S25: =Scenario!$F24 -> 0 | T25: =IF(Scenario!K24="nee",0,($H$10*$D$29*$D$27+$H$11*$D$36*$D$34+$H$12*$D$43*$D$41)*($R25/168)*(1/($S25*$S25))*$D$25) -> 0 | U25: =IF(Scenario!L24="nee",0,($H$10*$D$29*$D$27+$H$11*$D$36*$D$34+$H$12*$D$43*$D$41)*($R25/168)*(1/($S25*$S25))*$D$25) -> 0 | V25: =IF(Scenario!M24="nee",0,($H$10*$D$29*$D$27+$H$11*$D$36*$D$34+$H$12*$D$43*$D$41)*($R25/168)*(1/($S25*$S25))*$D$25) -> 0 | W25: =IF(Scenario!N24="nee",0,($H$10*$D$29*$D$27+$H$11*$D$36*$D$34+$H$12*$D$43*$D$41)*($R25/168)*(1/($S25*$S25))*$D$25) -> 0 | Y25: =Scenario!$A24 -> Niet geboekt | Z25: =Scenario!$C24 -> 3.5 | AA25: =Scenario!$E24 -> 0 | AB25: =IF(Scenario!G24="nee",0,($H$15*$D$29*$D$27+$H$16*$D$36*$D$34+$H$17*$D$43*$D$41)*($Z25/168)*(1/($AA25*$AA25))*$D$25) -> 0 | AC25: =IF(Scenario!H24="nee",0,($H$15*$D$29*$D$27+$H$16*$D$36*$D$34+$H$17*$D$43*$D$41)*($Z25/168)*(1/($AA25*$AA25))*$D$25) -> 0 | AD25: =IF(Scenario!I24="nee",0,($H$15*$D$29*$D$27+$H$16*$D$36*$D$34+$H$17*$D$43*$D$41)*($Z25/168)*(1/($AA25*$AA25))*$D$25) -> 0 | AE25: =IF(Scenario!J24="nee",0,($H$15*$D$29*$D$27+$H$16*$D$36*$D$34+$H$17*$D$43*$D$41)*($Z25/168)*(1/($AA25*$AA25))*$D$25) -> 0
C26: λf | D26: =VLOOKUP($D$18,Inputparameters!$C$2:$S$100,4,FALSE) -> 0.003600764574 | E26: h-1
C27: hp(10) | D27: =VLOOKUP($D$18,Inputparameters!$C$2:$S$100,5,FALSE) -> 67 | E27: µSv h-1GBq-1 op 1 meter | L27: Signaalwaarden (mSv) | T27: Signaalwaarden (mSv) | AB27: Signaalwaarden (mSv)
C28: hp(0.07) | D28: =VLOOKUP($D$18,Inputparameters!$C$2:$S$100,6,FALSE) -> 3.4 | E28: mSv h-1GBq-1 op 10 centimeter | L28: 0.1 | M28: 0.3 | N28: 1.5 | O28: 0.1 | T28: =L28 -> 0.1 | U28: 0.3 | V28: 1.5 | W28: 0.1 | AB28: =L28 -> 0.1 | AC28: 0.3 | AD28: 1.5 | AE28: 0.1
C29: ftli | D29: =VLOOKUP($D$18,Inputparameters!$C$2:$T$100,18,FALSE) -> 1 | L29: 1 | M29: 3 | N29: 15 | O29: 0.3 | T29: 1 | U29: 3 | V29: 15 | W29: 0.3 | AB29: 1 | AC29: 3 | AD29: 15 | AE29: 0.3
L30: Blootstelling (mSv) | T30: Blootstelling zonder leefregels (mSv) | AB30: Blootstelling met leefregels (mSv)
C31: Verontreiniging #1 | D31: =D11 -> Geen verontreiniging | L31: Kind | M31: Verzorger < 60 jaar | N31: Verzorger ≥ 60 jaar | O31: Overigen | T31: Kind | U31: Verzorger < 60 jaar | V31: Verzorger ≥ 60 jaar | W31: Overigen | AB31: Kind | AC31: Verzorger < 60 jaar | AD31: Verzorger ≥ 60 jaar | AE31: Overigen
C32: =IF(D31="Geen verontreiniging","","Activiteit verontreiniging #1") ->  | D32: =IF(D12="",VLOOKUP($D$11,Inputparameters!$C$2:$S$100,2,FALSE),D12) -> 0 | E32: =IF(D31="Geen verontreiniging","","GBq") ->  | L32: =SUM(L4:L25)/1000 -> 0.3067965705 | M32: =SUM(M4:M25)/1000 -> 0.8734361599 | N32: 0.8734361599 | O32: =MAX(O4:O25)/1000 -> 0.05987403943 | T32: =SUM(T4:T25)/1000 -> 0.07217707087 | U32: =SUM(U4:U25)/1000 -> 0.2488506086 | V32: 0.2488506086 | W32: =MAX(W4:W25)/1000 -> 0.0321135878 | AB32: =SUM(AB4:AB25)/1000 -> 0.2346194996 | AC32: =SUM(AC4:AC25)/1000 -> 0.6245855513 | AD32: =SUM(AD4:AD25)/1000 -> 0.6245855513 | AE32: =MAX(AE4:AE25)/1000 -> 0.0317842405
C33: λf | D33: =VLOOKUP($D$31,Inputparameters!$C$2:$S$100,4,FALSE) -> 0 | E33: h-1
C34: hp(10) | D34: =IF($D$31="Geen verontreiniging",0,VLOOKUP($D$31,Inputparameters!$C$2:$S$100,5,FALSE)) -> 0 | E34: µSv h-1GBq-1 op 1 meter
C35: hp(0.07) | D35: =IF($D$31="Geen verontreiniging",0,VLOOKUP($D$31,Inputparameters!$C$2:$S$100,6,FALSE)) -> 0 | E35: mSv h-1GBq-1 op 10 centimeter
C36: ftli | D36: =IF($D$31="Geen verontreiniging",0,VLOOKUP($D$31,Inputparameters!$C$2:$T$100,18,FALSE)) -> 0
C38: Verontreiniging #2 | D38: =D13 -> Geen verontreiniging
C39: =IF(D38="Geen verontreiniging","","Activiteit verontreiniging #2") ->  | D39: =IF(D14="",VLOOKUP($D$13,Inputparameters!$C$2:$S$100,2,FALSE),D14) -> 0 | E39: =IF(D38="Geen verontreiniging","","GBq") -> 
C40: λf | D40: =VLOOKUP($D$38,Inputparameters!$C$2:$S$100,4,FALSE) -> 0 | E40: h-1
C41: hp(10) | D41: =IF($D$38="Geen verontreiniging",0,VLOOKUP($D$38,Inputparameters!$C$2:$S$100,5,FALSE)) -> 0 | E41: µSv h-1GBq-1 op 1 meter
C42: hp(0.07) | D42: =IF($D$38="Geen verontreiniging",0,VLOOKUP($D$38,Inputparameters!$C$2:$S$100,6,FALSE)) -> 0 | E42: mSv h-1GBq-1 op 10 centimeter
C43: ftli | D43: =IF($D$38="Geen verontreiniging",0,VLOOKUP($D$38,Inputparameters!$C$2:$T$100,18,FALSE)) -> 0
C45: Modus | D45: =VLOOKUP($D$18,Inputparameters!$C$2:$S$100,17,FALSE) -> tijd
C46: λb1 | D46: =VLOOKUP($D$18,Inputparameters!$C$2:$S$100,9,FALSE) -> 0.043 | E46: h-1
C47: =IF(VLOOKUP(D18,Inputparameters!$C$2:$S$100,17,FALSE)="tijd","T1","f1") -> T1 | D47: =IF(VLOOKUP($D$18,Inputparameters!$C$2:$S$100,17,FALSE)="tijd",VLOOKUP($D$18,Inputparameters!$C$2:$S$100,10,FALSE),VLOOKUP($D$18,Inputparameters!$C$2:$S$100,11,FALSE)) -> 17.1
C48: =IF(VLOOKUP(D18,Inputparameters!$C$2:$S$100,12,FALSE)="","","λb2") -> λb2 | D48: =IF(VLOOKUP(D18,Inputparameters!$C$2:$S$100,12,FALSE)="","",VLOOKUP(D18,Inputparameters!$C$2:S100,12,FALSE)) -> 0.0022 | E48: h-1
C49: =IF(VLOOKUP(D18,Inputparameters!C2:S100,12,FALSE)="","",IF(VLOOKUP(D18,Inputparameters!$C$2:$S$100,17,FALSE)="tijd","T2","f2")) -> T2 | D49: =IF(VLOOKUP($D$18,Inputparameters!$C$2:$S$100,17,FALSE)="tijd",IF(VLOOKUP($D$18,Inputparameters!$C$2:$S$100,13,FALSE)="","∞",VLOOKUP($D$18,Inputparameters!$C$2:$S$100,13,FALSE)),IF(VLOOKUP($D$18,Inputparameters!$C$2:$S$100,14,FALSE)="","",VLOOKUP($D$18,Inputparameters!$C$2:$S$100,14,FALSE))) -> ∞
C50: =IF(VLOOKUP(D18,Inputparameters!$C$2:$S$100,15,FALSE)="","","λb3") ->  | D50: =IF(VLOOKUP(D18,Inputparameters!$C$2:$S$100,15,FALSE)="","",VLOOKUP(D18,Inputparameters!$C$2:S102,15,FALSE)) -> 
C51: =IF(VLOOKUP(D18,Inputparameters!$C$2:$T$100,15,FALSE)="","",IF(VLOOKUP(D18,Inputparameters!$C$2:$T$100,17,FALSE)="tijd","T3","f3")) ->  | D51: =IF(VLOOKUP($D$18,Inputparameters!$C$2:$S$100,17,FALSE)="tijd",IF(VLOOKUP($D$18,Inputparameters!$C$2:$S$100,13,FALSE)="","","∞"),IF(VLOOKUP($D$18,Inputparameters!$C$2:$S$100,16,FALSE)="","",VLOOKUP($D$18,Inputparameters!$C$2:$S$100,16,FALSE))) -> 

Sheet Besmetting & ingestie
C2: Therapie | D2: Sm-153 EDTMP | G2: Activiteit op Taanmaak | K2: Activiteit op Taanmaak + Tmictie
C3: Toegediende activiteit | E3: GBq | G3: Therapie | H3: =IF($D38="tijd",IF(OR(ISNUMBER($D40)=FALSE,$D20<$D40),$D16*EXP(-($D22+$D39)*$D20),IF(OR(ISNUMBER($D42)=FALSE,$D20<$D42),$D16*EXP(-($D39-$D41)*$D40)*EXP(-($D22+$D41)*$D20),$D16*EXP(-($D39-$D41)*$D40)*EXP(-($D41-$D43)*$D42)*EXP(-($D22+$D43)*$D20))),$D16*($D40*EXP(-($D22+$D39)*$D20)+$D42*EXP(-($D22+$D41)*$D20)+$D44*EXP(-($D22+$D43)*$D20))) -> 3.075876452 | I3: GBq | K3: =IF($D38="tijd",IF(OR(ISNUMBER($D40)=FALSE,$D20+$D19<$D40),$D16*EXP(-($D22+$D39)*($D20+$D19)),IF(OR(ISNUMBER($D42)=FALSE,$D20+$D19<$D42),$D16*EXP(-($D39-$D41)*$D40)*EXP(-($D22+$D41)*($D20+$D19)),$D16*EXP(-($D39-$D41)*$D40)*EXP(-($D41-$D43)*$D42)*EXP(-($D22+$D43)*($D20+$D19)))),$D16*($D40*EXP(-($D22+$D39)*($D20+$D19))+$D42*EXP(-($D22+$D41)*($D20+$D19))+$D44*EXP(-($D22+$D43)*($D20+$D19)))) -> 2.04169786 | L3: GBq
C4: Verontreiniging #1 | D4: Geen verontreiniging | G4: =IF($D$4="Geen verontreiniging","","Verontreiniging #1") ->  | H4: =IF($D4="Geen verontreiniging",0,IF($D38="tijd",IF(OR(ISNUMBER($D40)=FALSE,$D20<$D40),$D27*EXP(-($D28+$D39)*$D20),IF(OR(ISNUMBER($D42)=FALSE,$D20<$D42),$D27*EXP(-($D39-$D41)*$D40)*EXP(-($D28+$D41)*$D20),$D27*EXP(-($D39-$D41)*$D40)*EXP(-($D41-$D43)*$D42)*EXP(-($D28+$D43)*$D20))),$D27*($D40*EXP(-($D28+$D39)*$D20)+$D42*EXP(-($D28+$D41)*$D20)+$D44*EXP(-($D28+$D43)*$D20)))) -> 0 | I4: =IF($D$4="Geen verontreiniging","","GBq") ->  | K4: =IF($D4="Geen verontreiniging",0,IF($D38="tijd",IF(OR(ISNUMBER($D40)=FALSE,$D20+$D19<$D40),$D27*EXP(-($D28+$D39)*($D20+$D19)),IF(OR(ISNUMBER($D42)=FALSE,$D20+$D19<$D42),$D27*EXP(-($D39-$D41)*$D40)*EXP(-($D28+$D41)*($D20+$D19)),$D27*EXP(-($D39-$D41)*$D40)*EXP(-($D41-$D43)*$D42)*EXP(-($D28+$D43)*($D20+$D19)))),$D27*($D40*EXP(-($D28+$D39)*($D20+$D19))+$D42*EXP(-($D28+$D41)*($D20+$D19))+$D44*EXP(-($D28+$D43)*($D20+$D19))))) -> 0 | L4: =IF($D$4="Geen verontreiniging","","GBq") -> 
C5: =IF(D4="Geen verontreiniging","","Activiteit verontreiniging #1") ->  | E5: =IF(D4="Geen verontreiniging","","GBq") ->  | G5: =IF($D$6="Geen verontreiniging","","Verontreiniging #2") ->  | H5: =IF($D6="Geen verontreiniging",0,IF($D38="tijd",IF(OR(ISNUMBER($D40)=FALSE,$D20<$D40),$D33*EXP(-($D34+$D39)*$D20),IF(OR(ISNUMBER($D42)=FALSE,$D20<$D42),$D33*EXP(-($D39-$D41)*$D40)*EXP(-($D34+$D41)*$D20),$D33*EXP(-($D39-$D41)*$D40)*EXP(-($D41-$D43)*$D42)*EXP(-($D34+$D43)*$D20))),$D33*($D40*EXP(-($D34+$D39)*$D20)+$D42*EXP(-($D34+$D41)*$D20)+$D44*EXP(-($D34+$D43)*$D20)))) -> 0 | I5: =IF($D$6="Geen verontreiniging","","GBq") ->  | K5: =IF($D6="Geen verontreiniging",0,IF($D38="tijd",IF(OR(ISNUMBER($D40)=FALSE,$D20+$D19<$D40),$D33*EXP(-($D34+$D39)*($D20+$D19)),IF(OR(ISNUMBER($D42)=FALSE,$D20+$D19<$D42),$D33*EXP(-($D39-$D41)*$D40)*EXP(-($D34+$D41)*($D20+$D19)),$D33*EXP(-($D39-$D41)*$D40)*EXP(-($D41-$D43)*$D42)*EXP(-($D34+$D43)*($D20+$D19)))),$D33*($D40*EXP(-($D34+$D39)*($D20+$D19))+$D42*EXP(-($D34+$D41)*($D20+$D19))+$D44*EXP(-($D34+$D43)*($D20+$D19))))) -> 0 | L5: =IF($D$6="Geen verontreiniging","","GBq") -> 
C6: Verontreiniging #2 | D6: Geen verontreiniging
C7: =IF(D6="Geen verontreiniging","","Activiteit verontreiniging #1") ->  | E7: =IF(D6="Geen verontreiniging","","GBq") ->  | G7: ΔA gedurende Tmictie (gecorrigeerd voor fysisch verval)
G8: Therapie | H8: =$H$3*EXP(-$D$22*$D$11)-$K$3 -> 1.034178592 | I8: GBq
C9: Vdruppel | E9: ml | G9: =IF($D$4="Geen verontreiniging","","Verontreiniging #1") ->  | H9: =$H$4*EXP(-$D$28*$D$11)-$K$4 -> 0 | I9: =IF($D$4="Geen verontreiniging","","GBq") -> 
C10: vU | E10: ml/uur | G10: =IF($D$6="Geen verontreiniging","","Verontreiniging #2") ->  | H10: =$H$5*EXP(-$D$34*$D$11)-$K$5 -> 0 | I10: =IF($D$6="Geen verontreiniging","","GBq") -> 
C11: Tmictie | E11: uur
C12: Taanmaak | D12: 1 | E12: uur | G12: Activiteit in druppel
G13: Therapie | H13: =$H$8*($D$17/($D$18*$D$19)) -> 0.0002068357183 | I13: GBq
C14: Volledig overzicht gebruikte gegevens | G14: =IF($D$4="Geen verontreiniging","","Verontreiniging #1") ->  | H14: =$H$9*($D$17/($D$18*$D$19)) -> 0 | I14: =IF(D26="Geen verontreiniging","","GBq") -> 
C15: Therapie | D15: =D2 -> Sm-153 EDTMP | G15: =IF($D$6="Geen verontreiniging","","Verontreiniging #2") ->  | H15: =$H$10*($D$17/($D$18*$D$19)) -> 0 | I15: =IF(D32="Geen verontreiniging","","GBq") -> 
C16: Toegediende activiteit | D16: =IF(D3="",VLOOKUP($D$15,Inputparameters!$C$2:$S$100,2,FALSE),D3) -> 3.7 | E16: GBq
C17: Vdruppel | D17: =IF(OR(D9="",ISNUMBER(D9)=FALSE),0.05,D9) -> 0.05 | E17: ml | G17: Huiddosistempo bij besmetting | H17: =1000000*(H13*D23+H14*D29+H15*D35) -> 320.5953634 | I17: mSv h-1
C18: vU | D18: =IF(OR(D10="",ISNUMBER(D10)=FALSE),1000/24,D10) -> 41.66666667 | E18: ml/uur | G18: Huiddosistempo bij besmetting 10% druppel | H18: =0.1*H17 -> 32.05953634 | I18: mSv h-1
C19: Tmictie | D19: =IF(OR(D11="",ISNUMBER(D11)=FALSE),6,D11) -> 6 | E19: uur | G19: Volgdosis bij ingestie 10% druppel | H19: =1000000000*($H$13*$D$24+$H$14*$D$30+$H$15*$D$36)*1000000*0.1 -> 15.30584316 | I19: µSv
C20: Taanmaak | D20: =IF(OR(D12="",ISNUMBER(D12)=FALSE),0,D12) -> 1 | E20: uur
C22: λf | D22: =VLOOKUP($D$15,Inputparameters!$C$2:$S$100,4,FALSE) -> 0.01490639098
C23: hhuidbesmetting(0.07) | D23: =VLOOKUP($D$15,Inputparameters!$C$2:$S$100,7,FALSE) -> 1.55 | E23: mSv h-1kBq-1 op 1 cm²
C24: DCC | D24: =VLOOKUP($D$15,Inputparameters!$C$2:$S$100,8,FALSE) -> 7.4e-10 | E24: Sv Bq-1
C26: Verontreiniging #1 | D26: =D4 -> Geen verontreiniging
C27: =IF(D26="Geen verontreiniging","","Activiteit verontreiniging #1") ->  | D27: =IF(D26="Geen verontreiniging","",IF(D5="",VLOOKUP($D$26,Inputparameters!$C$2:$S$100,2,FALSE),D5)) ->  | E27: =IF(D26="Geen verontreiniging","","GBq") -> 
C28: λf | D28: =IF(D26="Geen verontreiniging",0,VLOOKUP($D$26,Inputparameters!$C$2:$S$100,4,FALSE)) -> 0 | E28: h-1
C29: hhuidbesmetting(0.07) | D29: =IF($D$26="Geen verontreiniging",0,VLOOKUP($D$26,Inputparameters!$C$2:$S$100,7,FALSE)) -> 0 | E29: mSv h-1kBq-1 op 1 cm²
C30: =IF(D26="Geen verontreiniging","","DCC") ->  | D30: =IF($D$26="Geen verontreiniging",0,VLOOKUP($D$26,Inputparameters!$C$2:$S$100,8,FALSE)) -> 0 | E30: Sv Bq-1
C32: Verontreiniging #2 | D32: =D6 -> Geen verontreiniging
C33: =IF(D32="Geen verontreiniging","","Activiteit verontreiniging #2") ->  | D33: =IF(D32="Geen verontreiniging","",IF(D7="",VLOOKUP($D$32,Inputparameters!$C$2:$S$100,2,FALSE),D7)) ->  | E33: =IF(D32="Geen verontreiniging","","GBq") -> 
C34: λf | D34: =IF(D32="Geen verontreiniging",0,VLOOKUP($D$32,Inputparameters!$C$2:$S$100,4,FALSE)) -> 0 | E34: h-1
C35: hhuidbesmetting(0.07) | D35: =IF($D$32="Geen verontreiniging",0,VLOOKUP($D$32,Inputparameters!$C$2:$S$100,7,FALSE)) -> 0 | E35: mSv h-1kBq-1 op 1 cm²
C36: =IF(D32="Geen verontreiniging","","DCC") ->  | D36: =IF($D$32="Geen verontreiniging",0,VLOOKUP($D$32,Inputparameters!$C$2:$S$100,8,FALSE)) -> 0 | E36: Sv Bq-1
C38: Modus | D38: =VLOOKUP($D$15,Inputparameters!$C$2:$S$100,17,FALSE) -> fractie
C39: λb1 | D39: =VLOOKUP($D$15,Inputparameters!$C$2:$S$100,9,FALSE) -> 0.495105129
C40: =IF(VLOOKUP(D15,Inputparameters!$C$2:$S$100,17,FALSE)="tijd","T1","f1") -> f1 | D40: =IF(VLOOKUP($D$15,Inputparameters!$C$2:$S$100,17,FALSE)="tijd",VLOOKUP($D$15,Inputparameters!$C$2:$S$100,10,FALSE),VLOOKUP($D$15,Inputparameters!$C$2:$S$100,11,FALSE)) -> 0.4
C41: =IF(VLOOKUP(D15,Inputparameters!$C$2:$S$100,12,FALSE)="","","λb2") -> λb2 | D41: =IF(VLOOKUP(D15,Inputparameters!$C$2:$S$100,12,FALSE)="","",VLOOKUP(D15,Inputparameters!$C$2:S100,12,FALSE)) -> 0
C42: =IF(VLOOKUP(D15,Inputparameters!C2:S100,12,FALSE)="","",IF(VLOOKUP(D15,Inputparameters!$C$2:$S$100,17,FALSE)="tijd","T2","f2")) -> f2 | D42: =IF(VLOOKUP($D$15,Inputparameters!$C$2:$S$100,17,FALSE)="tijd",IF(VLOOKUP($D$15,Inputparameters!$C$2:$S$100,13,FALSE)="","∞",VLOOKUP($D$15,Inputparameters!$C$2:$S$100,13,FALSE)),IF(VLOOKUP($D$15,Inputparameters!$C$2:$S$100,14,FALSE)="","",VLOOKUP($D$15,Inputparameters!$C$2:$S$100,14,FALSE))) -> 0.6
C43: =IF(VLOOKUP(D15,Inputparameters!$C$2:$S$100,15,FALSE)="","","λb3") ->  | D43: =IF(VLOOKUP(D15,Inputparameters!$C$2:$S$100,15,FALSE)="",0,VLOOKUP(D15,Inputparameters!$C$2:S95,15,FALSE)) -> 0
C44: =IF(VLOOKUP(D15,Inputparameters!$C$2:$T$100,15,FALSE)="","",IF(VLOOKUP(D15,Inputparameters!$C$2:$T$100,17,FALSE)="tijd","T3","f3")) ->  | D44: =IF(VLOOKUP($D$15,Inputparameters!$C$2:$S$100,17,FALSE)="tijd",IF(VLOOKUP($D$15,Inputparameters!$C$2:$S$100,13,FALSE)="",0,"∞"),IF(VLOOKUP($D$15,Inputparameters!$C$2:$S$100,16,FALSE)="",0,VLOOKUP($D$15,Inputparameters!$C$2:$S$100,16,FALSE))) -> 0

Sheet Scenario
A1: Handeling | B1: KarakteristiekeHandeling | C1: Duur | D1: Duur met leefregels | E1: Afstand | F1: Afstand met leefregels | G1: Blootstelling zonder leefregels | K1: Blootstelling met leefregels
G2: Kind | H2: Partner <60 jr | I2: Partner >60 jr | J2: Derde | K2: Kind | L2: Partner <60 jr | M2: Partner >60 jr | N2: Derde
A3: Betaald werk | B3: Werken | C3: 28.7 | D3: 0 | E3: 2 | F3: 2 | G3: nee | H3: nee | I3: nee | J3: ja | K3: nee | L3: nee | M3: nee | N3: ja
A4: Scholing | B4: Scholing | C4: 0.9 | D4: 0.9 | E4: 1 | F4: 1 | G4: nee | H4: nee | I4: nee | J4: ja | K4: nee | L4: nee | M4: nee | N4: ja
A5: Zorg voor het huishouden | B5: Geen | C5: 21 | D5: 21 | E5: 0 | F5: 0 | G5: nee | H5: nee | I5: nee | J5: nee | K5: nee | L5: nee | M5: nee | N5: nee
A6: Kinderen naar bed brengen | B6: Voor kinderen zorgen | C6: 1.8 | D6: 0 | E6: 0.8 | F6: 0.8 | G6: ja | H6: nee | I6: nee | J6: nee | K6: ja | L6: nee | M6: nee | N6: nee
A7: Kinderen fysieke verzorging | B7: Voor kinderen zorgen | C7: 2.6 | D7: 0 | E7: 0.8 | F7: 0.8 | G7: ja | H7: nee | I7: nee | J7: nee | K7: ja | L7: nee | M7: nee | N7: nee
A8: Kinderen hulp met school | B8: Voor kinderen zorgen | C8: 0.2 | D8: 0 | E8: 0.8 | F8: 0.8 | G8: ja | H8: nee | I8: nee | J8: nee | K8: ja | L8: nee | M8: nee | N8: nee
A9: Kinderen spelen, voorlezen | B9: Voor kinderen zorgen | C9: 2.2 | D9: 0 | E9: 0.8 | F9: 0.8 | G9: ja | H9: nee | I9: nee | J9: nee | K9: ja | L9: nee | M9: nee | N9: nee
A10: Kind vergezellen | B10: Voor kinderen zorgen | C10: 0.7 | D10: 0 | E10: 0.8 | F10: 0.8 | G10: ja | H10: nee | I10: nee | J10: nee | K10: ja | L10: nee | M10: nee | N10: nee
A11: Bedrust | B11: Slapen | C11: 56 | D11: 56 | E11: 0.8 | F11: 2.8 | G11: nee | H11: ja | I11: ja | J11: nee | K11: nee | L11: ja | M11: ja | N11: nee
A12: Vrijen | B12: Vrijen | C12: 1 | D12: 1 | E12: 0.4 | F12: 0.4 | G12: nee | H12: ja | I12: ja | J12: nee | K12: nee | L12: ja | M12: ja | N12: nee
A13: Eten en drinken | B13: Samen tafelen | C13: 10.8 | D13: 10.8 | E13: 0.6 | F13: 2.6 | G13: ja | H13: ja | I13: ja | J13: nee | K13: ja | L13: ja | M13: ja | N13: nee
A14: Overige persoonlijke verzorging | B14: Geen | C14: 6.7 | D14: 6.7 | E14: 0 | F14: 0 | G14: nee | H14: nee | I14: nee | J14: nee | K14: nee | L14: nee | M14: nee | N14: nee
A15: Sociale contacten | B15: Sociale contacten | C15: 10.1 | D15: 10.1 | E15: 1.5 | F15: 2 | G15: ja | H15: ja | I15: ja | J15: ja | K15: ja | L15: ja | M15: ja | N15: ja
A16: Lezen | B16: Geen | C16: 3.4 | D16: 3.4 | E16: 0 | F16: 0 | G16: nee | H16: nee | I16: nee | J16: nee | K16: nee | L16: nee | M16: nee | N16: nee
A17: Kijken (media) | B17: Sociale contacten | C17: 14.1 | D17: 14.1 | E17: 1.5 | F17: 2 | G17: ja | H17: ja | I17: ja | J17: ja | K17: ja | L17: ja | M17: ja | N17: ja
A18: Sportbeoefening | B18: Geen | C18: 1.7 | D18: 1.7 | E18: 0 | F18: 0 | G18: nee | H18: nee | I18: nee | J18: nee | K18: nee | L18: nee | M18: nee | N18: nee
A19: Sportwedstrijdbezoek | B19: Uitgaan | C19: 0.1 | D19: 0.1 | E19: 0.5 | F19: 0.5 | G19: nee | H19: ja | I19: ja | J19: ja | K19: nee | L19: ja | M19: ja | N19: ja
A20: Amateurkunstbeoefening | B20: Uitgaan | C20: 0.4 | D20: 0.4 | E20: 0.5 | F20: 0.5 | G20: nee | H20: ja | I20: ja | J20: ja | K20: nee | L20: ja | M20: ja | N20: ja
A21: Cultuurbezoek | B21: Uitgaan | C21: 0.4 | D21: 0.4 | E21: 0.5 | F21: 0.5 | G21: nee | H21: ja | I21: ja | J21: ja | K21: nee | L21: ja | M21: ja | N21: ja
A22: Vrijwilligerswerk | B22: Sociale contacten | C22: 1.1 | D22: 1.1 | E22: 1.5 | F22: 2 | G22: ja | H22: ja | I22: ja | J22: ja | K22: ja | L22: ja | M22: ja | N22: ja
A23: Bijeenkomstenbezoek | B23: Uitgaan | C23: 0.6 | D23: 0.6 | E23: 0.5 | F23: 0.5 | G23: nee | H23: ja | I23: ja | J23: ja | K23: nee | L23: ja | M23: ja | N23: ja
A24: Niet geboekt | B24: Geen | C24: 3.5 | D24: 3.5 | E24: 0 | F24: 0 | G24: nee | H24: nee | I24: nee | J24: nee | K24: nee | L24: nee | M24: nee | N24: nee

Sheet Inputparameters
C1: Therapie | D1: A0 (GBq) | E1: Aantal giften | F1: λf (h-1) | G1: hfoton(10) (µSv h-1GBq-1 op 1m) [Otto, 2016] | H1: hfoton(0.07) (mSv h-1GBq-1 op 10cm) [Otto, 2016] | I1: hhuidbesmetting(0.07) (mSv h-1kBq-1 cm2) [Petoussi, 1993] | J1: DCC (Sv Bq-1) [ICRP 119, 2012] | K1: λb,1 (h-1) | L1: T1 (h) | M1: f1 | N1: λb,2 (h-1) | O1: T2 (h) | P1: f2 | Q1: λb,3 (h-1) | R1: f3 | S1: mode | T1: ftli
C2: I-131 benigne (0,4 GBq) | D2: 0.4 | E2: 1 | F2: =LN(2)/192.5 -> 0.003600764574 | G2: 67 | H2: 3.4 | I2: 1.39 | J2: 2.2e-08 | K2: 0.043 | L2: 17.1 | N2: 0.0022 | S2: tijd | T2: 1
C3: I-131 benigne (1,0 GBq) | D3: 1 | E3: 1 | F3: =LN(2)/192.5 -> 0.003600764574 | G3: 67 | H3: 3.4 | I3: 1.39 | J3: 2.2e-08 | K3: 0.043 | L3: 17.1 | N3: 0.0022 | S3: tijd | T3: 1
C4: I-131 maligne | D4: 7.4 | E4: 1 | F4: =LN(2)/192.5 -> 0.003600764574 | G4: 67 | H4: 3.4 | I4: 1.39 | J4: 2.2e-08 | K4: 0.033 | L4: 120 | N4: 0 | S4: tijd | T4: =F_tli!Q30 -> 0.8628320723
C5: Ra-223 dichloride | D5: 0.00375 | E5: 6 | F5: =LN(2)/274.3 -> 0.002526967483 | G5: 59 | H5: 6.7 | I5: 3.76 | J5: 1e-07 | K5: 0 | M5: 1 | N5: 0 | P5: 0 | S5: fractie | T5: =F_tli!Q727 -> 0.9584665796
C6: Lu-177 PSMA | D6: 7.4 | E6: 5 | F6: =LN(2)/159.5 -> 0.004345750348 | G6: 7 | H6: 0.6 | I6: 1.3 | J6: 5.3e-10 | K6: =LN(2)/1.71 -> 0.4053492284 | M6: 0.73 | N6: =LN(2)/55.2 -> 0.01255701414 | P6: 0.27 | S6: fractie | T6: =F_tli!Q427 -> 1.090068303
C7: Lu-177m PSMA | D7: 0.0037 | E7: 5 | F7: =LN(2)/3849.6 -> 0.0001800569359 | G7: 184 | H7: 14.1 | I7: 2.58 | J7: 1.7e-09 | K7: =LN(2)/1.71 -> 0.4053492284 | M7: 0.73 | N7: =LN(2)/55.2 -> 0.01255701414 | P7: 0.27 | S7: fractie | T7: =F_tli!Q477 -> 0.9936573462
C8: Y-90 microsferen | D8: 4 | E8: 1 | F8: =LN(2)/64.1 -> 0.01081352856 | G8: 1 | H8: 0 | I8: 1.61 | J8: 2.7e-09 | K8: 0 | M8: 1 | N8: 0 | P8: 0 | S8: fractie | T8: =F_tli!Q4 -> 0.8124322571
C9: Y-90 ibritumomab | D9: 1.2 | E9: 1 | F9: =LN(2)/64.1 -> 0.01081352856 | G9: 1 | H9: 0 | I9: 1.61 | J9: 2.7e-09 | K9: 0 | M9: 1 | N9: 0 | P9: 0 | S9: fractie | T9: =F_tli!Q4 -> 0.8124322571
C10: Y-90 radiosynoviorthese | D10: 0.22 | E10: 1 | F10: =LN(2)/64.1 -> 0.01081352856 | G10: 1 | H10: 0 | I10: 1.61 | J10: 2.7e-09 | K10: 0 | M10: 1 | N10: 0 | P10: 0 | S10: fractie | T10: =F_tli!Q4 -> 0.8124322571
C11: Re-186 sulfide | D11: 0.222 | E11: 1 | F11: =LN(2)/89.2 -> 0.007770708302 | G11: 4 | H11: 0.7 | I11: 1.64 | J11: 1.5e-09 | K11: 0 | M11: 1 | N11: 0 | P11: 0 | S11: fractie | T11: =F_tli!Q498 -> 1.122756239
C12: Re-186 HEDP | D12: 2 | E12: 1 | F12: =LN(2)/89.2 -> 0.007770708302 | G12: 4 | H12: 0.7 | I12: 1.64 | J12: 1.5e-09 | K12: =LN(2)/3.9 -> 0.1777300463 | M12: 0.543 | N12: =LN(2)/139.7 -> 0.004961683469 | P12: 0.457 | S12: fractie | T12: =F_tli!Q498 -> 1.122756239
C13: Re-188 HEDP | D13: 2 | E13: 1 | F13: =LN(2)/17 -> 0.04077336356 | G13: 10 | H13: 0.9 | I13: 1.78 | J13: 1.4e-09 | K13: =LN(2)/3.9 -> 0.1777300463 | M13: 0.543 | N13: =LN(2)/139.7 -> 0.004961683469 | P13: 0.457 | S13: fractie | T13: =F_tli!Q557 -> 0.9700617537
C14: Sm-153 EDTMP | D14: 3.7 | E14: 1 | F14: =LN(2)/46.5 -> 0.01490639098 | G14: 19 | H14: 1.7 | I14: 1.55 | J14: 7.4e-10 | K14: =LN(2)/1.4 -> 0.495105129 | M14: 0.4 | N14: 0 | P14: 0.6 | S14: fractie | T14: =F_tli!Q98 -> 0.7810353932
C15: Eu-154 EDTMP | D15: =0.0001*D14 -> 0.00037 | E15: 1 | F15: =LN(2)/75326 -> 9.201964535e-06 | G15: 193 | H15: 5.3 | I15: 1.83 | J15: 2e-09 | K15: =LN(2)/1.4 -> 0.495105129 | M15: 0.4 | N15: 0 | P15: 0.6 | S15: fractie | T15: =F_tli!Q409 -> 0.785283917
C16: Eu-152 EDTMP | D16: =0.0001*D14 -> 0.00037 | E16: 1 | F16: =LN(2)/118665 -> 5.841209966e-06 | G16: 189 | H16: 4.2 | I16: 0.849 | J16: 1.4e-09 | K16: =LN(2)/1.4 -> 0.495105129 | M16: 0.4 | N16: 0 | P16: 0.6 | S16: fractie | T16: =F_tli!Q239 -> 0.7723200913
C17: Sr-89 | D17: 0.148 | E17: 1 | F17: =LN(2)/1212.7 -> 0.0005715734976 | G17: 0 | H17: 0 | I17: 1.59 | J17: 2.6e-09 | K17: 0 | M17: 1 | N17: 0 | P17: 0 | S17: fractie | T17: 1
C18: Er-169 citraat colloid | D18: 0.033 | E18: 1 | F18: =LN(2)/225.6 -> 0.003072460907 | G18: 0 | H18: 0 | I18: 0.981 | J18: 3.7e-10 | K18: 0 | M18: 1 | N18: 0 | P18: 0 | S18: fractie | T18: =F_tli!Q414 -> 0.3889451407
C19: Geen verontreiniging | D19: 0 | E19: 0 | F19: 0 | G19: 0 | H19: 0 | I19: 0 | J19: 0 | K19: 0 | M19: 1 | N19: 0 | P19: 0 | S19: fractie | T19: 1

Sheet F_tli
A1: Radionuclide | B1: Type | C1: E (Mev) | D1: E(J) | E1: yield (photons/disint.) | F1: E/Φ (pSv cm2) | G1: yE/Φ | H1: μ | I1: b | J1: c | K1: a | L1: d | M1: ξ | N1: K(μr) | O1: B | P1: (yE/Φ)*exp(-µr)*B | Q1: ftli
A2: 90Y | B2: g | C2: 0.511 | D2: =C2*1000000*1.6E-19 -> 8.176e-14 | E2: 6.38e-05 | F2: =_xlfn.IFNA(INDEX('hp (pSv cm2)'!$B$2:$B$52,MATCH($C2,'hp (pSv cm2)'!$A$2:$A$52,1))+($C2-INDEX('hp (pSv cm2)'!$A$2:$A$52,MATCH($C2,'hp (pSv cm2)'!$A$2:$A$52,1)))*(INDEX('hp (pSv cm2)'!$B$2:$B$52,MATCH($C2,'hp (pSv cm2)'!$A$2:$A$52,1)+1)-INDEX('hp (pSv cm2)'!$B$2:$B$52,MATCH($C2,'hp (pSv cm2)'!$A$2:$A$52,1)))/(INDEX('hp (pSv cm2)'!$A$2:$A$52,MATCH($C2,'hp (pSv cm2)'!$A$2:$A$52,1)+1)-INDEX('hp (pSv cm2)'!$A$2:$A$52,MATCH($C2,'hp (pSv cm2)'!$A$2:$A$52,1))),$C2*'hp (pSv cm2)'!$B$2/'hp (pSv cm2)'!$A$2) -> 2.5184 | G2: =F2*E2 -> 0.00016067392 | H2: =_xlfn.IFNA(0.997*(INDEX('Mass attenuation coefficients'!$B$2:$B$37,MATCH($C2,'Mass attenuation coefficients'!$A$2:$A$37,1))+($C2-INDEX('Mass attenuation coefficients'!$A$2:$A$37,MATCH($C2,'Mass attenuation coefficients'!$A$2:$A$37,1)))*(INDEX('Mass attenuation coefficients'!$B$2:$B$37,MATCH($C2,'Mass attenuation coefficients'!$A$2:$A$37,1)+1)-INDEX('Mass attenuation coefficients'!$B$2:$B$37,MATCH($C2,'Mass attenuation coefficients'!$A$2:$A$37,1)))/(INDEX('Mass attenuation coefficients'!$A$2:$A$37,MATCH($C2,'Mass attenuation coefficients'!$A$2:$A$37,1)+1)-INDEX('Mass attenuation coefficients'!$A$2:$A$37,MATCH($C2,'Mass attenuation coefficients'!$A$2:$A$37,1)))),0.997*$C2*'Mass attenuation coefficients'!$B$2/'Mass attenuation coefficients'!$A$2) -> 0.0957777023 | I2: =_xlfn.IFNA(INDEX('Shultis Faw'!$C$2:$C$26,MATCH($C2,'Shultis Faw'!$A$2:$A$26,1))+($C2-INDEX('Shultis Faw'!$A$2:$A$26,MATCH($C2,'Shultis Faw'!$A$2:$A$26,1)))*(INDEX('Shultis Faw'!$C$2:$C$26,MATCH($C2,'Shultis Faw'!$A$2:$A$26,1)+1)-INDEX('Shultis Faw'!$C$2:$C$26,MATCH($C2,'Shultis Faw'!$A$2:$A$26,1)))/(INDEX('Shultis Faw'!$A$2:$A$26,MATCH($C2,'Shultis Faw'!$A$2:$A$26,1)+1)-INDEX('Shultis Faw'!$A$2:$A$26,MATCH($C2,'Shultis Faw'!$A$2:$A$26,1))),$C2*'Shultis Faw'!$C$2/'Shultis Faw'!$A$2) -> 2.48647 | J2: =_xlfn.IFNA(INDEX('Shultis Faw'!$D$2:$D$26,MATCH($C2,'Shultis Faw'!$A$2:$A$26,1))+($C2-INDEX('Shultis Faw'!$A$2:$A$26,MATCH($C2,'Shultis Faw'!$A$2:$A$26,1)))*(INDEX('Shultis Faw'!$D$2:$D$26,MATCH($C2,'Shultis Faw'!$A$2:$A$26,1)+1)-INDEX('Shultis Faw'!$D$2:$D$26,MATCH($C2,'Shultis Faw'!$A$2:$A$26,1)))/(INDEX('Shultis Faw'!$A$2:$A$26,MATCH($C2,'Shultis Faw'!$A$2:$A$26,1)+1)-INDEX('Shultis Faw'!$A$2:$A$26,MATCH($C2,'Shultis Faw'!$A$2:$A$26,1))),$C2*'Shultis Faw'!$D$2/'Shultis Faw'!$A$2) -> 1.75643 | K2: =_xlfn.IFNA(INDEX('Shultis Faw'!$B$2:$B$26,MATCH($C2,'Shultis Faw'!$A$2:$A$26,1))+($C2-INDEX('Shultis Faw'!$A$2:$A$26,MATCH($C2,'Shultis Faw'!$A$2:$A$26,1)))*(INDEX('Shultis Faw'!$B$2:$B$26,MATCH($C2,'Shultis Faw'!$A$2:$A$26,1)+1)-INDEX('Shultis Faw'!$B$2:$B$26,MATCH($C2,'Shultis Faw'!$A$2:$A$26,1)))/(INDEX('Shultis Faw'!$A$2:$A$26,MATCH($C2,'Shultis Faw'!$A$2:$A$26,1)+1)-INDEX('Shultis Faw'!$A$2:$A$26,MATCH($C2,'Shultis Faw'!$A$2:$A$26,1))),$C2*'Shultis Faw'!$B$2/'Shultis Faw'!$A$2) -> -0.13379 | L2: =_xlfn.IFNA(INDEX('Shultis Faw'!$E$2:$E$26,MATCH($C2,'Shultis Faw'!$A$2:$A$26,1))+($C2-INDEX('Shultis Faw'!$A$2:$A$26,MATCH($C2,'Shultis Faw'!$A$2:$A$26,1)))*(INDEX('Shultis Faw'!$E$2:$E$26,MATCH($C2,'Shultis Faw'!$A$2:$A$26,1)+1)-INDEX('Shultis Faw'!$E$2:$E$26,MATCH($C2,'Shultis Faw'!$A$2:$A$26,1)))/(INDEX('Shultis Faw'!$A$2:$A$26,MATCH($C2,'Shultis Faw'!$A$2:$A$26,1)+1)-INDEX('Shultis Faw'!$A$2:$A$26,MATCH($C2,'Shultis Faw'!$A$2:$A$26,1))),$C2*'Shultis Faw'!$E$2/'Shultis Faw'!$A$2) -> 0.054127 | M2: =_xlfn.IFNA(INDEX('Shultis Faw'!$F$2:$F$26,MATCH($C2,'Shultis Faw'!$A$2:$A$26,1))+($C2-INDEX('Shultis Faw'!$A$2:$A$26,MATCH($C2,'Shultis Faw'!$A$2:$A$26,1)))*(INDEX('Shultis Faw'!$F$2:$F$26,MATCH($C2,'Shultis Faw'!$A$2:$A$26,1)+1)-INDEX('Shultis Faw'!$F$2:$F$26,MATCH($C2,'Shultis Faw'!$A$2:$A$26,1)))/(INDEX('Shultis Faw'!$A$2:$A$26,MATCH($C2,'Shultis Faw'!$A$2:$A$26,1)+1)-INDEX('Shultis Faw'!$A$2:$A$26,MATCH($C2,'Shultis Faw'!$A$2:$A$26,1))),$C2*'Shultis Faw'!$F$2/'Shultis Faw'!$A$2) -> 14.319 | N2: =J2*(H2*'Externe blootstelling'!$D$23/2)^K2+L2*(TANH(((H2*'Externe blootstelling'!$D$23)/(2*M2))-2)-TANH(-2))/(1-TANH(-2)) -> 1.673532504 | O2: =IF(N2=1,1+(I2-1)*H2*'Externe blootstelling'!$D$23/2,1+(I2-1)*(N2^(H2*'Externe blootstelling'!$D$23/2)-1)/(N2-1)) -> 3.417740101 | P2: =G2*EXP(-H2*'Externe blootstelling'!$D$23/2)*O2 -> 0.0001305414732
B3: g | C3: 2.186254 | D3: =C3*1000000*1.6E-19 -> 3.4980064e-13 | E3: 1.4e-08 | F3: =_xlfn.IFNA(INDEX('hp (pSv cm2)'!$B$2:$B$52,MATCH($C3,'hp (pSv cm2)'!$A$2:$A$52,1))+($C3-INDEX('hp (pSv cm2)'!$A$2:$A$52,MATCH($C3,'hp (pSv cm2)'!$A$2:$A$52,1)))*(INDEX('hp (pSv cm2)'!$B$2:$B$52,MATCH($C3,'hp (pSv cm2)'!$A$2:$A$52,1)+1)-INDEX('hp (pSv cm2)'!$B$2:$B$52,MATCH($C3,'hp (pSv cm2)'!$A$2:$A$52,1)))/(INDEX('hp (pSv cm2)'!$A$2:$A$52,MATCH($C3,'hp (pSv cm2)'!$A$2:$A$52,1)+1)-INDEX('hp (pSv cm2)'!$A$2:$A$52,MATCH($C3,'hp (pSv cm2)'!$A$2:$A$52,1))),$C3*'hp (pSv cm2)'!$B$2/'hp (pSv cm2)'!$A$2) -> 7.90279658 | G3: =F3*E3 -> 1.106391521e-07 | H3: =_xlfn.IFNA(0.997*(INDEX('Mass attenuation coefficients'!$B$2:$B$37,MATCH($C3,'Mass attenuation coefficients'!$A$2:$A$37,1))+($C3-INDEX('Mass attenuation coefficients'!$A$2:$A$37,MATCH($C3,'Mass attenuation coefficients'!$A$2:$A$37,1)))*(INDEX('Mass attenuation coefficients'!$B$2:$B$37,MATCH($C3,'Mass attenuation coefficients'!$A$2:$A$37,1)+1)-INDEX('Mass attenuation coefficients'!$B$2:$B$37,MATCH($C3,'Mass attenuation coefficients'!$A$2:$A$37,1)))/(INDEX('Mass attenuation coefficients'!$A$2:$A$37,MATCH($C3,'Mass attenuation coefficients'!$A$2:$A$37,1)+1)-INDEX('Mass attenuation coefficients'!$A$2:$A$37,MATCH($C3,'Mass attenuation coefficients'!$A$2:$A$37,1)))),0.997*$C3*'Mass attenuation coefficients'!$B$2/'Mass attenuation coefficients'!$A$2) -> 0.04746492533 | I3: =_xlfn.IFNA(INDEX('Shultis Faw'!$C$2:$C$26,MATCH($C3,'Shultis Faw'!$A$2:$A$26,1))+($C3-INDEX('Shultis Faw'!$A$2:$A$26,MATCH($C3,'Shultis Faw'!$A$2:$A$26,1)))*(INDEX('Shultis Faw'!$C$2:$C$26,MATCH($C3,'Shultis Faw'!$A$2:$A$26,1)+1)-INDEX('Shultis Faw'!$C$2:$C$26,MATCH($C3,'Shultis Faw'!$A$2:$A$26,1)))/(INDEX('Shultis Faw'!$A$2:$A$26,MATCH($C3,'Shultis Faw'!$A$2:$A$26,1)+1)-INDEX('Shultis Faw'!$A$2:$A$26,MATCH($C3,'Shultis Faw'!$A$2:$A$26,1))),$C3*'Shultis Faw'!$C$2/'Shultis Faw'!$A$2) -> 1.814973234 | J3: =_xlfn.IFNA(INDEX('Shultis Faw'!$D$2:$D$26,MATCH($C3,'Shultis Faw'!$A$2:$A$26,1))+($C3-INDEX('Shultis Faw'!$A$2:$A$26,MATCH($C3,'Shultis Faw'!$A$2:$A$26,1)))*(INDEX('Shultis Faw'!$D$2:$D$26,MATCH($C3,'Shultis Faw'!$A$2:$A$26,1)+1)-INDEX('Shultis Faw'!$D$2:$D$26,MATCH($C3,'Shultis Faw'!$A$2:$A$26,1)))/(INDEX('Shultis Faw'!$A$2:$A$26,MATCH($C3,'Shultis Faw'!$A$2:$A$26,1)+1)-INDEX('Shultis Faw'!$A$2:$A$26,MATCH($C3,'Shultis Faw'!$A$2:$A$26,1))),$C3*'Shultis Faw'!$D$2/'Shultis Faw'!$A$2) -> 1.151208282 | K3: =_xlfn.IFNA(INDEX('Shultis Faw'!$B$2:$B$26,MATCH($C3,'Shultis Faw'!$A$2:$A$26,1))+($C3-INDEX('Shultis Faw'!$A$2:$A$26,MATCH($C3,'Shultis Faw'!$A$2:$A$26,1)))*(INDEX('Shultis Faw'!$B$2:$B$26,MATCH($C3,'Shultis Faw'!$A$2:$A$26,1)+1)-INDEX('Shultis Faw'!$B$2:$B$26,MATCH($C3,'Shultis Faw'!$A$2:$A$26,1)))/(INDEX('Shultis Faw'!$A$2:$A$26,MATCH($C3,'Shultis Faw'!$A$2:$A$26,1)+1)-INDEX('Shultis Faw'!$A$2:$A$26,MATCH($C3,'Shultis Faw'!$A$2:$A$26,1))),$C3*'Shultis Faw'!$B$2/'Shultis Faw'!$A$2) -> -0.034157396 | L3: =_xlfn.IFNA(INDEX('Shultis Faw'!$E$2:$E$26,MATCH($C3,'Shultis Faw'!$A$2:$A$26,1))+($C3-INDEX('Shultis Faw'!$A$2:$A$26,MATCH($C3,'Shultis Faw'!$A$2:$A$26,1)))*(INDEX('Shultis Faw'!$E$2:$E$26,MATCH($C3,'Shultis Faw'!$A$2:$A$26,1)+1)-INDEX('Shultis Faw'!$E$2:$E$26,MATCH($C3,'Shultis Faw'!$A$2:$A$26,1)))/(INDEX('Shultis Faw'!$A$2:$A$26,MATCH($C3,'Shultis Faw'!$A$2:$A$26,1)+1)-INDEX('Shultis Faw'!$A$2:$A$26,MATCH($C3,'Shultis Faw'!$A$2:$A$26,1))),$C3*'Shultis Faw'!$E$2/'Shultis Faw'!$A$2) -> 0.0139767044 | M3: =_xlfn.IFNA(INDEX('Shultis Faw'!$F$2:$F$26,MATCH($C3,'Shultis Faw'!$A$2:$A$26,1))+($C3-INDEX('Shultis Faw'!$A$2:$A$26,MATCH($C3,'Shultis Faw'!$A$2:$A$26,1)))*(INDEX('Shultis Faw'!$F$2:$F$26,MATCH($C3,'Shultis Faw'!$A$2:$A$26,1)+1)-INDEX('Shultis Faw'!$F$2:$F$26,MATCH($C3,'Shultis Faw'!$A$2:$A$26,1)))/(INDEX('Shultis Faw'!$A$2:$A$26,MATCH($C3,'Shultis Faw'!$A$2:$A$26,1)+1)-INDEX('Shultis Faw'!$A$2:$A$26,MATCH($C3,'Shultis Faw'!$A$2:$A$26,1))),$C3*'Shultis Faw'!$F$2/'Shultis Faw'!$A$2) -> 13.6509285 | N3: =J3*(H3*'Externe blootstelling'!$D$23/2)^K3+L3*(TANH(((H3*'Externe blootstelling'!$D$23)/(2*M3))-2)-TANH(-2))/(1-TANH(-2)) -> 1.164672001 | O3: =IF(N3=1,1+(I3-1)*H3*'Externe blootstelling'!$D$23/2,1+(I3-1)*(N3^(H3*'Externe blootstelling'!$D$23/2)-1)/(N3-1)) -> 1.56736943 | P3: =G3*EXP(-H3*'Externe blootstelling'!$D$23/2)*O3 -> 8.50890909e-08
Q4: =SUM(P2:P3)/SUM(G2:G3) -> 0.8124322571
A6: 131I | B6: X-ray | C6: 0.0053 | D6: =C6*1000000*1.6E-19 -> 8.48e-16 | E6: 0.00631 | F6: =_xlfn.IFNA(INDEX('hp (pSv cm2)'!$B$2:$B$52,MATCH($C6,'hp (pSv cm2)'!$A$2:$A$52,1))+($C6-INDEX('hp (pSv cm2)'!$A$2:$A$52,MATCH($C6,'hp (pSv cm2)'!$A$2:$A$52,1)))*(INDEX('hp (pSv cm2)'!$B$2:$B$52,MATCH($C6,'hp (pSv cm2)'!$A$2:$A$52,1)+1)-INDEX('hp (pSv cm2)'!$B$2:$B$52,MATCH($C6,'hp (pSv cm2)'!$A$2:$A$52,1)))/(INDEX('hp (pSv cm2)'!$A$2:$A$52,MATCH($C6,'hp (pSv cm2)'!$A$2:$A$52,1)+1)-INDEX('hp (pSv cm2)'!$A$2:$A$52,MATCH($C6,'hp (pSv cm2)'!$A$2:$A$52,1))),$C6*'hp (pSv cm2)'!$B$2/'hp (pSv cm2)'!$A$2) -> 0.01436 | G6: =F6*E6 -> 9.06116e-05 | H6: =_xlfn.IFNA(0.997*(INDEX('Mass attenuation coefficients'!$B$2:$B$37,MATCH($C6,'Mass attenuation coefficients'!$A$2:$A$37,1))+($C6-INDEX('Mass attenuation coefficients'!$A$2:$A$37,MATCH($C6,'Mass attenuation coefficients'!$A$2:$A$37,1)))*(INDEX('Mass attenuation coefficients'!$B$2:$B$37,MATCH($C6,'Mass attenuation coefficients'!$A$2:$A$37,1)+1)-INDEX('Mass attenuation coefficients'!$B$2:$B$37,MATCH($C6,'Mass attenuation coefficients'!$A$2:$A$37,1)))/(INDEX('Mass attenuation coefficients'!$A$2:$A$37,MATCH($C6,'Mass attenuation coefficients'!$A$2:$A$37,1)+1)-INDEX('Mass attenuation coefficients'!$A$2:$A$37,MATCH($C6,'Mass attenuation coefficients'!$A$2:$A$37,1)))),0.997*$C6*'Mass attenuation coefficients'!$B$2/'Mass attenuation coefficients'!$A$2) -> 37.086406 | I6: =_xlfn.IFNA(INDEX('Shultis Faw'!$C$2:$C$26,MATCH($C6,'Shultis Faw'!$A$2:$A$26,1))+($C6-INDEX('Shultis Faw'!$A$2:$A$26,MATCH($C6,'Shultis Faw'!$A$2:$A$26,1)))*(INDEX('Shultis Faw'!$C$2:$C$26,MATCH($C6,'Shultis Faw'!$A$2:$A$26,1)+1)-INDEX('Shultis Faw'!$C$2:$C$26,MATCH($C6,'Shultis Faw'!$A$2:$A$26,1)))/(INDEX('Shultis Faw'!$A$2:$A$26,MATCH($C6,'Shultis Faw'!$A$2:$A$26,1)+1)-INDEX('Shultis Faw'!$A$2:$A$26,MATCH($C6,'Shultis Faw'!$A$2:$A$26,1))),$C6*'Shultis Faw'!$C$2/'Shultis Faw'!$A$2) -> 0.41764 | J6: =_xlfn.IFNA(INDEX('Shultis Faw'!$D$2:$D$26,MATCH($C6,'Shultis Faw'!$A$2:$A$26,1))+($C6-INDEX('Shultis Faw'!$A$2:$A$26,MATCH($C6,'Shultis Faw'!$A$2:$A$26,1)))*(INDEX('Shultis Faw'!$D$2:$D$26,MATCH($C6,'Shultis Faw'!$A$2:$A$26,1)+1)-INDEX('Shultis Faw'!$D$2:$D$26,MATCH($C6,'Shultis Faw'!$A$2:$A$26,1)))/(INDEX('Shultis Faw'!$A$2:$A$26,MATCH($C6,'Shultis Faw'!$A$2:$A$26,1)+1)-INDEX('Shultis Faw'!$A$2:$A$26,MATCH($C6,'Shultis Faw'!$A$2:$A$26,1))),$C6*'Shultis Faw'!$D$2/'Shultis Faw'!$A$2) -> 0.1635933333 | K6: =_xlfn.IFNA(INDEX('Shultis Faw'!$B$2:$B$26,MATCH($C6,'Shultis Faw'!$A$2:$A$26,1))+($C6-INDEX('Shultis Faw'!$A$2:$A$26,MATCH($C6,'Shultis Faw'!$A$2:$A$26,1)))*(INDEX('Shultis Faw'!$B$2:$B$26,MATCH($C6,'Shultis Faw'!$A$2:$A$26,1)+1)-INDEX('Shultis Faw'!$B$2:$B$26,MATCH($C6,'Shultis Faw'!$A$2:$A$26,1)))/(INDEX('Shultis Faw'!$A$2:$A$26,MATCH($C6,'Shultis Faw'!$A$2:$A$26,1)+1)-INDEX('Shultis Faw'!$A$2:$A$26,MATCH($C6,'Shultis Faw'!$A$2:$A$26,1))),$C6*'Shultis Faw'!$B$2/'Shultis Faw'!$A$2) -> 0.06077333333 | L6: =_xlfn.IFNA(INDEX('Shultis Faw'!$E$2:$E$26,MATCH($C6,'Shultis Faw'!$A$2:$A$26,1))+($C6-INDEX('Shultis Faw'!$A$2:$A$26,MATCH($C6,'Shultis Faw'!$A$2:$A$26,1)))*(INDEX('Shultis Faw'!$E$2:$E$26,MATCH($C6,'Shultis Faw'!$A$2:$A$26,1)+1)-INDEX('Shultis Faw'!$E$2:$E$26,MATCH($C6,'Shultis Faw'!$A$2:$A$26,1)))/(INDEX('Shultis Faw'!$A$2:$A$26,MATCH($C6,'Shultis Faw'!$A$2:$A$26,1)+1)-INDEX('Shultis Faw'!$A$2:$A$26,MATCH($C6,'Shultis Faw'!$A$2:$A$26,1))),$C6*'Shultis Faw'!$E$2/'Shultis Faw'!$A$2) -> -0.03208266667 | M6: =_xlfn.IFNA(INDEX('Shultis Faw'!$F$2:$F$26,MATCH($C6,'Shultis Faw'!$A$2:$A$26,1))+($C6-INDEX('Shultis Faw'!$A$2:$A$26,MATCH($C6,'Shultis Faw'!$A$2:$A$26,1)))*(INDEX('Shultis Faw'!$F$2:$F$26,MATCH($C6,'Shultis Faw'!$A$2:$A$26,1)+1)-INDEX('Shultis Faw'!$F$2:$F$26,MATCH($C6,'Shultis Faw'!$A$2:$A$26,1)))/(INDEX('Shultis Faw'!$A$2:$A$26,MATCH($C6,'Shultis Faw'!$A$2:$A$26,1)+1)-INDEX('Shultis Faw'!$A$2:$A$26,MATCH($C6,'Shultis Faw'!$A$2:$A$26,1))),$C6*'Shultis Faw'!$F$2/'Shultis Faw'!$A$2) -> 5.027933333 | N6: =J6*(H6*'Externe blootstelling'!$D$23/2)^K6+L6*(TANH(((H6*'Externe blootstelling'!$D$23)/(2*M6))-2)-TANH(-2))/(1-TANH(-2)) -> 0.2081361364 | O6: =IF(N6=1,1+(I6-1)*H6*'Externe blootstelling'!$D$23/2,1+(I6-1)*(N6^(H6*'Externe blootstelling'!$D$23/2)-1)/(N6-1)) -> 0.2645705572 | P6: =G6*EXP(-H6*'Externe blootstelling'!$D$23/2)*O6 -> 6.072997744e-247
B7: X-ray | C7: 0.029459 | D7: 4.71344e-15 | E7: 0.0152 | F7: =_xlfn.IFNA(INDEX('hp (pSv cm2)'!$B$2:$B$52,MATCH($C7,'hp (pSv cm2)'!$A$2:$A$52,1))+($C7-INDEX('hp (pSv cm2)'!$A$2:$A$52,MATCH($C7,'hp (pSv cm2)'!$A$2:$A$52,1)))*(INDEX('hp (pSv cm2)'!$B$2:$B$52,MATCH($C7,'hp (pSv cm2)'!$A$2:$A$52,1)+1)-INDEX('hp (pSv cm2)'!$B$2:$B$52,MATCH($C7,'hp (pSv cm2)'!$A$2:$A$52,1)))/(INDEX('hp (pSv cm2)'!$A$2:$A$52,MATCH($C7,'hp (pSv cm2)'!$A$2:$A$52,1)+1)-INDEX('hp (pSv cm2)'!$A$2:$A$52,MATCH($C7,'hp (pSv cm2)'!$A$2:$A$52,1))),$C7*'hp (pSv cm2)'!$B$2/'hp (pSv cm2)'!$A$2) -> 0.3079966 | G7: 0.00468154832 | H7: =_xlfn.IFNA(0.997*(INDEX('Mass attenuation coefficients'!$B$2:$B$37,MATCH($C7,'Mass attenuation coefficients'!$A$2:$A$37,1))+($C7-INDEX('Mass attenuation coefficients'!$A$2:$A$37,MATCH($C7,'Mass attenuation coefficients'!$A$2:$A$37,1)))*(INDEX('Mass attenuation coefficients'!$B$2:$B$37,MATCH($C7,'Mass attenuation coefficients'!$A$2:$A$37,1)+1)-INDEX('Mass attenuation coefficients'!$B$2:$B$37,MATCH($C7,'Mass attenuation coefficients'!$A$2:$A$37,1)))/(INDEX('Mass attenuation coefficients'!$A$2:$A$37,MATCH($C7,'Mass attenuation coefficients'!$A$2:$A$37,1)+1)-INDEX('Mass attenuation coefficients'!$A$2:$A$37,MATCH($C7,'Mass attenuation coefficients'!$A$2:$A$37,1)))),0.997*$C7*'Mass attenuation coefficients'!$B$2/'Mass attenuation coefficients'!$A$2) -> 0.3978821618 | I7: =_xlfn.IFNA(INDEX('Shultis Faw'!$C$2:$C$26,MATCH($C7,'Shultis Faw'!$A$2:$A$26,1))+($C7-INDEX('Shultis Faw'!$A$2:$A$26,MATCH($C7,'Shultis Faw'!$A$2:$A$26,1)))*(INDEX('Shultis Faw'!$C$2:$C$26,MATCH($C7,'Shultis Faw'!$A$2:$A$26,1)+1)-INDEX('Shultis Faw'!$C$2:$C$26,MATCH($C7,'Shultis Faw'!$A$2:$A$26,1)))/(INDEX('Shultis Faw'!$A$2:$A$26,MATCH($C7,'Shultis Faw'!$A$2:$A$26,1)+1)-INDEX('Shultis Faw'!$A$2:$A$26,MATCH($C7,'Shultis Faw'!$A$2:$A$26,1))),$C7*'Shultis Faw'!$C$2/'Shultis Faw'!$A$2) -> 2.2858772 | J7: =_xlfn.IFNA(INDEX('Shultis Faw'!$D$2:$D$26,MATCH($C7,'Shultis Faw'!$A$2:$A$26,1))+($C7-INDEX('Shultis Faw'!$A$2:$A$26,MATCH($C7,'Shultis Faw'!$A$2:$A$26,1)))*(INDEX('Shultis Faw'!$D$2:$D$26,MATCH($C7,'Shultis Faw'!$A$2:$A$26,1)+1)-INDEX('Shultis Faw'!$D$2:$D$26,MATCH($C7,'Shultis Faw'!$A$2:$A$26,1)))/(INDEX('Shultis Faw'!$A$2:$A$26,MATCH($C7,'Shultis Faw'!$A$2:$A$26,1)+1)-INDEX('Shultis Faw'!$A$2:$A$26,MATCH($C7,'Shultis Faw'!$A$2:$A$26,1))),$C7*'Shultis Faw'!$D$2/'Shultis Faw'!$A$2) -> 0.7258833 | K7: =_xlfn.IFNA(INDEX('Shultis Faw'!$B$2:$B$26,MATCH($C7,'Shultis Faw'!$A$2:$A$26,1))+($C7-INDEX('Shultis Faw'!$A$2:$A$26,MATCH($C7,'Shultis Faw'!$A$2:$A$26,1)))*(INDEX('Shultis Faw'!$B$2:$B$26,MATCH($C7,'Shultis Faw'!$A$2:$A$26,1)+1)-INDEX('Shultis Faw'!$B$2:$B$26,MATCH($C7,'Shultis Faw'!$A$2:$A$26,1)))/(INDEX('Shultis Faw'!$A$2:$A$26,MATCH($C7,'Shultis Faw'!$A$2:$A$26,1)+1)-INDEX('Shultis Faw'!$A$2:$A$26,MATCH($C7,'Shultis Faw'!$A$2:$A$26,1))),$C7*'Shultis Faw'!$B$2/'Shultis Faw'!$A$2) -> 0.0900296 | L7: =_xlfn.IFNA(INDEX('Shultis Faw'!$E$2:$E$26,MATCH($C7,'Shultis Faw'!$A$2:$A$26,1))+($C7-INDEX('Shultis Faw'!$A$2:$A$26,MATCH($C7,'Shultis Faw'!$A$2:$A$26,1)))*(INDEX('Shultis Faw'!$E$2:$E$26,MATCH($C7,'Shultis Faw'!$A$2:$A$26,1)+1)-INDEX('Shultis Faw'!$E$2:$E$26,MATCH($C7,'Shultis Faw'!$A$2:$A$26,1)))/(INDEX('Shultis Faw'!$A$2:$A$26,MATCH($C7,'Shultis Faw'!$A$2:$A$26,1)+1)-INDEX('Shultis Faw'!$A$2:$A$26,MATCH($C7,'Shultis Faw'!$A$2:$A$26,1))),$C7*'Shultis Faw'!$E$2/'Shultis Faw'!$A$2) -> -0.04345808 | M7: =_xlfn.IFNA(INDEX('Shultis Faw'!$F$2:$F$26,MATCH($C7,'Shultis Faw'!$A$2:$A$26,1))+($C7-INDEX('Shultis Faw'!$A$2:$A$26,MATCH($C7,'Shultis Faw'!$A$2:$A$26,1)))*(INDEX('Shultis Faw'!$F$2:$F$26,MATCH($C7,'Shultis Faw'!$A$2:$A$26,1)+1)-INDEX('Shultis Faw'!$F$2:$F$26,MATCH($C7,'Shultis Faw'!$A$2:$A$26,1)))/(INDEX('Shultis Faw'!$A$2:$A$26,MATCH($C7,'Shultis Faw'!$A$2:$A$26,1)+1)-INDEX('Shultis Faw'!$A$2:$A$26,MATCH($C7,'Shultis Faw'!$A$2:$A$26,1))),$C7*'Shultis Faw'!$F$2/'Shultis Faw'!$A$2) -> 13.365478 | N7: =J7*(H7*'Externe blootstelling'!$D$23/2)^K7+L7*(TANH(((H7*'Externe blootstelling'!$D$23)/(2*M7))-2)-TANH(-2))/(1-TANH(-2)) -> 0.8514430814 | O7: =IF(N7=1,1+(I7-1)*H7*'Externe blootstelling'!$D$23/2,1+(I7-1)*(N7^(H7*'Externe blootstelling'!$D$23/2)-1)/(N7-1)) -> 6.340974347 | P7: =G7*EXP(-H7*'Externe blootstelling'!$D$23/2)*O7 -> 7.595827557e-05
B8: X-ray | C8: 0.029779 | D8: 4.76464e-15 | E8: 0.0281 | F8: =_xlfn.IFNA(INDEX('hp (pSv cm2)'!$B$2:$B$52,MATCH($C8,'hp (pSv cm2)'!$A$2:$A$52,1))+($C8-INDEX('hp (pSv cm2)'!$A$2:$A$52,MATCH($C8,'hp (pSv cm2)'!$A$2:$A$52,1)))*(INDEX('hp (pSv cm2)'!$B$2:$B$52,MATCH($C8,'hp (pSv cm2)'!$A$2:$A$52,1)+1)-INDEX('hp (pSv cm2)'!$B$2:$B$52,MATCH($C8,'hp (pSv cm2)'!$A$2:$A$52,1)))/(INDEX('hp (pSv cm2)'!$A$2:$A$52,MATCH($C8,'hp (pSv cm2)'!$A$2:$A$52,1)+1)-INDEX('hp (pSv cm2)'!$A$2:$A$52,MATCH($C8,'hp (pSv cm2)'!$A$2:$A$52,1))),$C8*'hp (pSv cm2)'!$B$2/'hp (pSv cm2)'!$A$2) -> 0.3103646 | G8: 0.00872124526 | H8: =_xlfn.IFNA(0.997*(INDEX('Mass attenuation coefficients'!$B$2:$B$37,MATCH($C8,'Mass attenuation coefficients'!$A$2:$A$37,1))+($C8-INDEX('Mass attenuation coefficients'!$A$2:$A$37,MATCH($C8,'Mass attenuation coefficients'!$A$2:$A$37,1)))*(INDEX('Mass attenuation coefficients'!$B$2:$B$37,MATCH($C8,'Mass attenuation coefficients'!$A$2:$A$37,1)+1)-INDEX('Mass attenuation coefficients'!$B$2:$B$37,MATCH($C8,'Mass attenuation coefficients'!$A$2:$A$37,1)))/(INDEX('Mass attenuation coefficients'!$A$2:$A$37,MATCH($C8,'Mass attenuation coefficients'!$A$2:$A$37,1)+1)-INDEX('Mass attenuation coefficients'!$A$2:$A$37,MATCH($C8,'Mass attenuation coefficients'!$A$2:$A$37,1)))),0.997*$C8*'Mass attenuation coefficients'!$B$2/'Mass attenuation coefficients'!$A$2) -> 0.3840358258 | I8: =_xlfn.IFNA(INDEX('Shultis Faw'!$C$2:$C$26,MATCH($C8,'Shultis Faw'!$A$2:$A$26,1))+($C8-INDEX('Shultis Faw'!$A$2:$A$26,MATCH($C8,'Shultis Faw'!$A$2:$A$26,1)))*(INDEX('Shultis Faw'!$C$2:$C$26,MATCH($C8,'Shultis Faw'!$A$2:$A$26,1)+1)-INDEX('Shultis Faw'!$C$2:$C$26,MATCH($C8,'Shultis Faw'!$A$2:$A$26,1)))/(INDEX('Shultis Faw'!$A$2:$A$26,MATCH($C8,'Shultis Faw'!$A$2:$A$26,1)+1)-INDEX('Shultis Faw'!$A$2:$A$26,MATCH($C8,'Shultis Faw'!$A$2:$A$26,1))),$C8*'Shultis Faw'!$C$2/'Shultis Faw'!$A$2) -> 2.3149332 | J8: =_xlfn.IFNA(INDEX('Shultis Faw'!$D$2:$D$26,MATCH($C8,'Shultis Faw'!$A$2:$A$26,1))+($C8-INDEX('Shultis Faw'!$A$2:$A$26,MATCH($C8,'Shultis Faw'!$A$2:$A$26,1)))*(INDEX('Shultis Faw'!$D$2:$D$26,MATCH($C8,'Shultis Faw'!$A$2:$A$26,1)+1)-INDEX('Shultis Faw'!$D$2:$D$26,MATCH($C8,'Shultis Faw'!$A$2:$A$26,1)))/(INDEX('Shultis Faw'!$A$2:$A$26,MATCH($C8,'Shultis Faw'!$A$2:$A$26,1)+1)-INDEX('Shultis Faw'!$A$2:$A$26,MATCH($C8,'Shultis Faw'!$A$2:$A$26,1))),$C8*'Shultis Faw'!$D$2/'Shultis Faw'!$A$2) -> 0.7318673 | K8: =_xlfn.IFNA(INDEX('Shultis Faw'!$B$2:$B$26,MATCH($C8,'Shultis Faw'!$A$2:$A$26,1))+($C8-INDEX('Shultis Faw'!$A$2:$A$26,MATCH($C8,'Shultis Faw'!$A$2:$A$26,1)))*(INDEX('Shultis Faw'!$B$2:$B$26,MATCH($C8,'Shultis Faw'!$A$2:$A$26,1)+1)-INDEX('Shultis Faw'!$B$2:$B$26,MATCH($C8,'Shultis Faw'!$A$2:$A$26,1)))/(INDEX('Shultis Faw'!$A$2:$A$26,MATCH($C8,'Shultis Faw'!$A$2:$A$26,1)+1)-INDEX('Shultis Faw'!$A$2:$A$26,MATCH($C8,'Shultis Faw'!$A$2:$A$26,1))),$C8*'Shultis Faw'!$B$2/'Shultis Faw'!$A$2) -> 0.0882376 | L8: =_xlfn.IFNA(INDEX('Shultis Faw'!$E$2:$E$26,MATCH($C8,'Shultis Faw'!$A$2:$A$26,1))+($C8-INDEX('Shultis Faw'!$A$2:$A$26,MATCH($C8,'Shultis Faw'!$A$2:$A$26,1)))*(INDEX('Shultis Faw'!$E$2:$E$26,MATCH($C8,'Shultis Faw'!$A$2:$A$26,1)+1)-INDEX('Shultis Faw'!$E$2:$E$26,MATCH($C8,'Shultis Faw'!$A$2:$A$26,1)))/(INDEX('Shultis Faw'!$A$2:$A$26,MATCH($C8,'Shultis Faw'!$A$2:$A$26,1)+1)-INDEX('Shultis Faw'!$A$2:$A$26,MATCH($C8,'Shultis Faw'!$A$2:$A$26,1))),$C8*'Shultis Faw'!$E$2/'Shultis Faw'!$A$2) -> -0.04253648 | M8: =_xlfn.IFNA(INDEX('Shultis Faw'!$F$2:$F$26,MATCH($C8,'Shultis Faw'!$A$2:$A$26,1))+($C8-INDEX('Shultis Faw'!$A$2:$A$26,MATCH($C8,'Shultis Faw'!$A$2:$A$26,1)))*(INDEX('Shultis Faw'!$F$2:$F$26,MATCH($C8,'Shultis Faw'!$A$2:$A$26,1)+1)-INDEX('Shultis Faw'!$F$2:$F$26,MATCH($C8,'Shultis Faw'!$A$2:$A$26,1)))/(INDEX('Shultis Faw'!$A$2:$A$26,MATCH($C8,'Shultis Faw'!$A$2:$A$26,1)+1)-INDEX('Shultis Faw'!$A$2:$A$26,MATCH($C8,'Shultis Faw'!$A$2:$A$26,1))),$C8*'Shultis Faw'!$F$2/'Shultis Faw'!$A$2) -> 13.314918 | N8: =J8*(H8*'Externe blootstelling'!$D$23/2)^K8+L8*(TANH(((H8*'Externe blootstelling'!$D$23)/(2*M8))-2)-TANH(-2))/(1-TANH(-2)) -> 0.8531222039 | O8: =IF(N8=1,1+(I8-1)*H8*'Externe blootstelling'!$D$23/2,1+(I8-1)*(N8^(H8*'Externe blootstelling'!$D$23/2)-1)/(N8-1)) -> 6.367185825 | P8: =G8*EXP(-H8*'Externe blootstelling'!$D$23/2)*O8 -> 0.0001748865558
B9: X-ray | C9: 0.033625 | D9: 5.38e-15 | E9: 0.00816 | F9: =_xlfn.IFNA(INDEX('hp (pSv cm2)'!$B$2:$B$52,MATCH($C9,'hp (pSv cm2)'!$A$2:$A$52,1))+($C9-INDEX('hp (pSv cm2)'!$A$2:$A$52,MATCH($C9,'hp (pSv cm2)'!$A$2:$A$52,1)))*(INDEX('hp (pSv cm2)'!$B$2:$B$52,MATCH($C9,'hp (pSv cm2)'!$A$2:$A$52,1)+1)-INDEX('hp (pSv cm2)'!$B$2:$B$52,MATCH($C9,'hp (pSv cm2)'!$A$2:$A$52,1)))/(INDEX('hp (pSv cm2)'!$A$2:$A$52,MATCH($C9,'hp (pSv cm2)'!$A$2:$A$52,1)+1)-INDEX('hp (pSv cm2)'!$A$2:$A$52,MATCH($C9,'hp (pSv cm2)'!$A$2:$A$52,1))),$C9*'hp (pSv cm2)'!$B$2/'hp (pSv cm2)'!$A$2) -> 0.325775 | G9: 0.002658324 | H9: =_xlfn.IFNA(0.997*(INDEX('Mass attenuation coefficients'!$B$2:$B$37,MATCH($C9,'Mass attenuation coefficients'!$A$2:$A$37,1))+($C9-INDEX('Mass attenuation coefficients'!$A$2:$A$37,MATCH($C9,'Mass attenuation coefficients'!$A$2:$A$37,1)))*(INDEX('Mass attenuation coefficients'!$B$2:$B$37,MATCH($C9,'Mass attenuation coefficients'!$A$2:$A$37,1)+1)-INDEX('Mass attenuation coefficients'!$B$2:$B$37,MATCH($C9,'Mass attenuation coefficients'!$A$2:$A$37,1)))/(INDEX('Mass attenuation coefficients'!$A$2:$A$37,MATCH($C9,'Mass attenuation coefficients'!$A$2:$A$37,1)+1)-INDEX('Mass attenuation coefficients'!$A$2:$A$37,MATCH($C9,'Mass attenuation coefficients'!$A$2:$A$37,1)))),0.997*$C9*'Mass attenuation coefficients'!$B$2/'Mass attenuation coefficients'!$A$2) -> 0.3356936387 | I9: =_xlfn.IFNA(INDEX('Shultis Faw'!$C$2:$C$26,MATCH($C9,'Shultis Faw'!$A$2:$A$26,1))+($C9-INDEX('Shultis Faw'!$A$2:$A$26,MATCH($C9,'Shultis Faw'!$A$2:$A$26,1)))*(INDEX('Shultis Faw'!$C$2:$C$26,MATCH($C9,'Shultis Faw'!$A$2:$A$26,1)+1)-INDEX('Shultis Faw'!$C$2:$C$26,MATCH($C9,'Shultis Faw'!$A$2:$A$26,1)))/(INDEX('Shultis Faw'!$A$2:$A$26,MATCH($C9,'Shultis Faw'!$A$2:$A$26,1)+1)-INDEX('Shultis Faw'!$A$2:$A$26,MATCH($C9,'Shultis Faw'!$A$2:$A$26,1))),$C9*'Shultis Faw'!$C$2/'Shultis Faw'!$A$2) -> 2.748975 | J9: =_xlfn.IFNA(INDEX('Shultis Faw'!$D$2:$D$26,MATCH($C9,'Shultis Faw'!$A$2:$A$26,1))+($C9-INDEX('Shultis Faw'!$A$2:$A$26,MATCH($C9,'Shultis Faw'!$A$2:$A$26,1)))*(INDEX('Shultis Faw'!$D$2:$D$26,MATCH($C9,'Shultis Faw'!$A$2:$A$26,1)+1)-INDEX('Shultis Faw'!$D$2:$D$26,MATCH($C9,'Shultis Faw'!$A$2:$A$26,1)))/(INDEX('Shultis Faw'!$A$2:$A$26,MATCH($C9,'Shultis Faw'!$A$2:$A$26,1)+1)-INDEX('Shultis Faw'!$A$2:$A$26,MATCH($C9,'Shultis Faw'!$A$2:$A$26,1))),$C9*'Shultis Faw'!$D$2/'Shultis Faw'!$A$2) -> 0.8741125 | K9: =_xlfn.IFNA(INDEX('Shultis Faw'!$B$2:$B$26,MATCH($C9,'Shultis Faw'!$A$2:$A$26,1))+($C9-INDEX('Shultis Faw'!$A$2:$A$26,MATCH($C9,'Shultis Faw'!$A$2:$A$26,1)))*(INDEX('Shultis Faw'!$B$2:$B$26,MATCH($C9,'Shultis Faw'!$A$2:$A$26,1)+1)-INDEX('Shultis Faw'!$B$2:$B$26,MATCH($C9,'Shultis Faw'!$A$2:$A$26,1)))/(INDEX('Shultis Faw'!$A$2:$A$26,MATCH($C9,'Shultis Faw'!$A$2:$A$26,1)+1)-INDEX('Shultis Faw'!$A$2:$A$26,MATCH($C9,'Shultis Faw'!$A$2:$A$26,1))),$C9*'Shultis Faw'!$B$2/'Shultis Faw'!$A$2) -> 0.048575 | L9: =_xlfn.IFNA(INDEX('Shultis Faw'!$E$2:$E$26,MATCH($C9,'Shultis Faw'!$A$2:$A$26,1))+($C9-INDEX('Shultis Faw'!$A$2:$A$26,MATCH($C9,'Shultis Faw'!$A$2:$A$26,1)))*(INDEX('Shultis Faw'!$E$2:$E$26,MATCH($C9,'Shultis Faw'!$A$2:$A$26,1)+1)-INDEX('Shultis Faw'!$E$2:$E$26,MATCH($C9,'Shultis Faw'!$A$2:$A$26,1)))/(INDEX('Shultis Faw'!$A$2:$A$26,MATCH($C9,'Shultis Faw'!$A$2:$A$26,1)+1)-INDEX('Shultis Faw'!$A$2:$A$26,MATCH($C9,'Shultis Faw'!$A$2:$A$26,1))),$C9*'Shultis Faw'!$E$2/'Shultis Faw'!$A$2) -> -0.02576875 | M9: =_xlfn.IFNA(INDEX('Shultis Faw'!$F$2:$F$26,MATCH($C9,'Shultis Faw'!$A$2:$A$26,1))+($C9-INDEX('Shultis Faw'!$A$2:$A$26,MATCH($C9,'Shultis Faw'!$A$2:$A$26,1)))*(INDEX('Shultis Faw'!$F$2:$F$26,MATCH($C9,'Shultis Faw'!$A$2:$A$26,1)+1)-INDEX('Shultis Faw'!$F$2:$F$26,MATCH($C9,'Shultis Faw'!$A$2:$A$26,1)))/(INDEX('Shultis Faw'!$A$2:$A$26,MATCH($C9,'Shultis Faw'!$A$2:$A$26,1)+1)-INDEX('Shultis Faw'!$A$2:$A$26,MATCH($C9,'Shultis Faw'!$A$2:$A$26,1))),$C9*'Shultis Faw'!$F$2/'Shultis Faw'!$A$2) -> 12.696375 | N9: =J9*(H9*'Externe blootstelling'!$D$23/2)^K9+L9*(TANH(((H9*'Externe blootstelling'!$D$23)/(2*M9))-2)-TANH(-2))/(1-TANH(-2)) -> 0.9449664196 | O9: =IF(N9=1,1+(I9-1)*H9*'Externe blootstelling'!$D$23/2,1+(I9-1)*(N9^(H9*'Externe blootstelling'!$D$23/2)-1)/(N9-1)) -> 8.881823833 | P9: =G9*EXP(-H9*'Externe blootstelling'!$D$23/2)*O9 -> 0.0001535541801
B10: X-ray | C10: 0.034496 | D10: 5.51936e-15 | E10: 0.00193 | F10: =_xlfn.IFNA(INDEX('hp (pSv cm2)'!$B$2:$B$52,MATCH($C10,'hp (pSv cm2)'!$A$2:$A$52,1))+($C10-INDEX('hp (pSv cm2)'!$A$2:$A$52,MATCH($C10,'hp (pSv cm2)'!$A$2:$A$52,1)))*(INDEX('hp (pSv cm2)'!$B$2:$B$52,MATCH($C10,'hp (pSv cm2)'!$A$2:$A$52,1)+1)-INDEX('hp (pSv cm2)'!$B$2:$B$52,MATCH($C10,'hp (pSv cm2)'!$A$2:$A$52,1)))/(INDEX('hp (pSv cm2)'!$A$2:$A$52,MATCH($C10,'hp (pSv cm2)'!$A$2:$A$52,1)+1)-INDEX('hp (pSv cm2)'!$A$2:$A$52,MATCH($C10,'hp (pSv cm2)'!$A$2:$A$52,1))),$C10*'hp (pSv cm2)'!$B$2/'hp (pSv cm2)'!$A$2) -> 0.3290848 | G10: 0.000635133664 | H10: =_xlfn.IFNA(0.997*(INDEX('Mass attenuation coefficients'!$B$2:$B$37,MATCH($C10,'Mass attenuation coefficients'!$A$2:$A$37,1))+($C10-INDEX('Mass attenuation coefficients'!$A$2:$A$37,MATCH($C10,'Mass attenuation coefficients'!$A$2:$A$37,1)))*(INDEX('Mass attenuation coefficients'!$B$2:$B$37,MATCH($C10,'Mass attenuation coefficients'!$A$2:$A$37,1)+1)-INDEX('Mass attenuation coefficients'!$B$2:$B$37,MATCH($C10,'Mass attenuation coefficients'!$A$2:$A$37,1)))/(INDEX('Mass attenuation coefficients'!$A$2:$A$37,MATCH($C10,'Mass attenuation coefficients'!$A$2:$A$37,1)+1)-INDEX('Mass attenuation coefficients'!$A$2:$A$37,MATCH($C10,'Mass attenuation coefficients'!$A$2:$A$37,1)))),0.997*$C10*'Mass attenuation coefficients'!$B$2/'Mass attenuation coefficients'!$A$2) -> 0.3263758462 | I10: =_xlfn.IFNA(INDEX('Shultis Faw'!$C$2:$C$26,MATCH($C10,'Shultis Faw'!$A$2:$A$26,1))+($C10-INDEX('Shultis Faw'!$A$2:$A$26,MATCH($C10,'Shultis Faw'!$A$2:$A$26,1)))*(INDEX('Shultis Faw'!$C$2:$C$26,MATCH($C10,'Shultis Faw'!$A$2:$A$26,1)+1)-INDEX('Shultis Faw'!$C$2:$C$26,MATCH($C10,'Shultis Faw'!$A$2:$A$26,1)))/(INDEX('Shultis Faw'!$A$2:$A$26,MATCH($C10,'Shultis Faw'!$A$2:$A$26,1)+1)-INDEX('Shultis Faw'!$A$2:$A$26,MATCH($C10,'Shultis Faw'!$A$2:$A$26,1))),$C10*'Shultis Faw'!$C$2/'Shultis Faw'!$A$2) -> 2.8484432 | J10: =_xlfn.IFNA(INDEX('Shultis Faw'!$D$2:$D$26,MATCH($C10,'Shultis Faw'!$A$2:$A$26,1))+($C10-INDEX('Shultis Faw'!$A$2:$A$26,MATCH($C10,'Shultis Faw'!$A$2:$A$26,1)))*(INDEX('Shultis Faw'!$D$2:$D$26,MATCH($C10,'Shultis Faw'!$A$2:$A$26,1)+1)-INDEX('Shultis Faw'!$D$2:$D$26,MATCH($C10,'Shultis Faw'!$A$2:$A$26,1)))/(INDEX('Shultis Faw'!$A$2:$A$26,MATCH($C10,'Shultis Faw'!$A$2:$A$26,1)+1)-INDEX('Shultis Faw'!$A$2:$A$26,MATCH($C10,'Shultis Faw'!$A$2:$A$26,1))),$C10*'Shultis Faw'!$D$2/'Shultis Faw'!$A$2) -> 0.9072976 | K10: =_xlfn.IFNA(INDEX('Shultis Faw'!$B$2:$B$26,MATCH($C10,'Shultis Faw'!$A$2:$A$26,1))+($C10-INDEX('Shultis Faw'!$A$2:$A$26,MATCH($C10,'Shultis Faw'!$A$2:$A$26,1)))*(INDEX('Shultis Faw'!$B$2:$B$26,MATCH($C10,'Shultis Faw'!$A$2:$A$26,1)+1)-INDEX('Shultis Faw'!$B$2:$B$26,MATCH($C10,'Shultis Faw'!$A$2:$A$26,1)))/(INDEX('Shultis Faw'!$A$2:$A$26,MATCH($C10,'Shultis Faw'!$A$2:$A$26,1)+1)-INDEX('Shultis Faw'!$A$2:$A$26,MATCH($C10,'Shultis Faw'!$A$2:$A$26,1))),$C10*'Shultis Faw'!$B$2/'Shultis Faw'!$A$2) -> 0.0393424 | L10: =_xlfn.IFNA(INDEX('Shultis Faw'!$E$2:$E$26,MATCH($C10,'Shultis Faw'!$A$2:$A$26,1))+($C10-INDEX('Shultis Faw'!$A$2:$A$26,MATCH($C10,'Shultis Faw'!$A$2:$A$26,1)))*(INDEX('Shultis Faw'!$E$2:$E$26,MATCH($C10,'Shultis Faw'!$A$2:$A$26,1)+1)-INDEX('Shultis Faw'!$E$2:$E$26,MATCH($C10,'Shultis Faw'!$A$2:$A$26,1)))/(INDEX('Shultis Faw'!$A$2:$A$26,MATCH($C10,'Shultis Faw'!$A$2:$A$26,1)+1)-INDEX('Shultis Faw'!$A$2:$A$26,MATCH($C10,'Shultis Faw'!$A$2:$A$26,1))),$C10*'Shultis Faw'!$E$2/'Shultis Faw'!$A$2) -> -0.0218928 | M10: =_xlfn.IFNA(INDEX('Shultis Faw'!$F$2:$F$26,MATCH($C10,'Shultis Faw'!$A$2:$A$26,1))+($C10-INDEX('Shultis Faw'!$A$2:$A$26,MATCH($C10,'Shultis Faw'!$A$2:$A$26,1)))*(INDEX('Shultis Faw'!$F$2:$F$26,MATCH($C10,'Shultis Faw'!$A$2:$A$26,1)+1)-INDEX('Shultis Faw'!$F$2:$F$26,MATCH($C10,'Shultis Faw'!$A$2:$A$26,1)))/(INDEX('Shultis Faw'!$A$2:$A$26,MATCH($C10,'Shultis Faw'!$A$2:$A$26,1)+1)-INDEX('Shultis Faw'!$A$2:$A$26,MATCH($C10,'Shultis Faw'!$A$2:$A$26,1))),$C10*'Shultis Faw'!$F$2/'Shultis Faw'!$A$2) -> 12.556144 | N10: =J10*(H10*'Externe blootstelling'!$D$23/2)^K10+L10*(TANH(((H10*'Externe blootstelling'!$D$23)/(2*M10))-2)-TANH(-2))/(1-TANH(-2)) -> 0.9653475394 | O10: =IF(N10=1,1+(I10-1)*H10*'Externe blootstelling'!$D$23/2,1+(I10-1)*(N10^(H10*'Externe blootstelling'!$D$23/2)-1)/(N10-1)) -> 9.458605584 | P10: =G10*EXP(-H10*'Externe blootstelling'!$D$23/2)*O10 -> 4.493076496e-05
B11: g | C11: 0.080185 | D11: 1.28296e-14 | E11: 0.02607 | F11: =_xlfn.IFNA(INDEX('hp (pSv cm2)'!$B$2:$B$52,MATCH($C11,'hp (pSv cm2)'!$A$2:$A$52,1))+($C11-INDEX('hp (pSv cm2)'!$A$2:$A$52,MATCH($C11,'hp (pSv cm2)'!$A$2:$A$52,1)))*(INDEX('hp (pSv cm2)'!$B$2:$B$52,MATCH($C11,'hp (pSv cm2)'!$A$2:$A$52,1)+1)-INDEX('hp (pSv cm2)'!$B$2:$B$52,MATCH($C11,'hp (pSv cm2)'!$A$2:$A$52,1)))/(INDEX('hp (pSv cm2)'!$A$2:$A$52,MATCH($C11,'hp (pSv cm2)'!$A$2:$A$52,1)+1)-INDEX('hp (pSv cm2)'!$A$2:$A$52,MATCH($C11,'hp (pSv cm2)'!$A$2:$A$52,1))),$C11*'hp (pSv cm2)'!$B$2/'hp (pSv cm2)'!$A$2) -> 0.44369375 | G11: 0.01156709606 | H11: =_xlfn.IFNA(0.997*(INDEX('Mass attenuation coefficients'!$B$2:$B$37,MATCH($C11,'Mass attenuation coefficients'!$A$2:$A$37,1))+($C11-INDEX('Mass attenuation coefficients'!$A$2:$A$37,MATCH($C11,'Mass attenuation coefficients'!$A$2:$A$37,1)))*(INDEX('Mass attenuation coefficients'!$B$2:$B$37,MATCH($C11,'Mass attenuation coefficients'!$A$2:$A$37,1)+1)-INDEX('Mass attenuation coefficients'!$B$2:$B$37,MATCH($C11,'Mass attenuation coefficients'!$A$2:$A$37,1)))/(INDEX('Mass attenuation coefficients'!$A$2:$A$37,MATCH($C11,'Mass attenuation coefficients'!$A$2:$A$37,1)+1)-INDEX('Mass attenuation coefficients'!$A$2:$A$37,MATCH($C11,'Mass attenuation coefficients'!$A$2:$A$37,1)))),0.997*$C11*'Mass attenuation coefficients'!$B$2/'Mass attenuation coefficients'!$A$2) -> 0.1830290107 | I11: =_xlfn.IFNA(INDEX('Shultis Faw'!$C$2:$C$26,MATCH($C11,'Shultis Faw'!$A$2:$A$26,1))+($C11-INDEX('Shultis Faw'!$A$2:$A$26,MATCH($C11,'Shultis Faw'!$A$2:$A$26,1)))*(INDEX('Shultis Faw'!$C$2:$C$26,MATCH($C11,'Shultis Faw'!$A$2:$A$26,1)+1)-INDEX('Shultis Faw'!$C$2:$C$26,MATCH($C11,'Shultis Faw'!$A$2:$A$26,1)))/(INDEX('Shultis Faw'!$A$2:$A$26,MATCH($C11,'Shultis Faw'!$A$2:$A$26,1)+1)-INDEX('Shultis Faw'!$A$2:$A$26,MATCH($C11,'Shultis Faw'!$A$2:$A$26,1))),$C11*'Shultis Faw'!$C$2/'Shultis Faw'!$A$2) -> 5.055337 | J11: =_xlfn.IFNA(INDEX('Shultis Faw'!$D$2:$D$26,MATCH($C11,'Shultis Faw'!$A$2:$A$26,1))+($C11-INDEX('Shultis Faw'!$A$2:$A$26,MATCH($C11,'Shultis Faw'!$A$2:$A$26,1)))*(INDEX('Shultis Faw'!$D$2:$D$26,MATCH($C11,'Shultis Faw'!$A$2:$A$26,1)+1)-INDEX('Shultis Faw'!$D$2:$D$26,MATCH($C11,'Shultis Faw'!$A$2:$A$26,1)))/(INDEX('Shultis Faw'!$A$2:$A$26,MATCH($C11,'Shultis Faw'!$A$2:$A$26,1)+1)-INDEX('Shultis Faw'!$A$2:$A$26,MATCH($C11,'Shultis Faw'!$A$2:$A$26,1))),$C11*'Shultis Faw'!$D$2/'Shultis Faw'!$A$2) -> 2.0604985 | K11: =_xlfn.IFNA(INDEX('Shultis Faw'!$B$2:$B$26,MATCH($C11,'Shultis Faw'!$A$2:$A$26,1))+($C11-INDEX('Shultis Faw'!$A$2:$A$26,MATCH($C11,'Shultis Faw'!$A$2:$A$26,1)))*(INDEX('Shultis Faw'!$B$2:$B$26,MATCH($C11,'Shultis Faw'!$A$2:$A$26,1)+1)-INDEX('Shultis Faw'!$B$2:$B$26,MATCH($C11,'Shultis Faw'!$A$2:$A$26,1)))/(INDEX('Shultis Faw'!$A$2:$A$26,MATCH($C11,'Shultis Faw'!$A$2:$A$26,1)+1)-INDEX('Shultis Faw'!$A$2:$A$26,MATCH($C11,'Shultis Faw'!$A$2:$A$26,1))),$C11*'Shultis Faw'!$B$2/'Shultis Faw'!$A$2) -> -0.1681665 | L11: =_xlfn.IFNA(INDEX('Shultis Faw'!$E$2:$E$26,MATCH($C11,'Shultis Faw'!$A$2:$A$26,1))+($C11-INDEX('Shultis Faw'!$A$2:$A$26,MATCH($C11,'Shultis Faw'!$A$2:$A$26,1)))*(INDEX('Shultis Faw'!$E$2:$E$26,MATCH($C11,'Shultis Faw'!$A$2:$A$26,1)+1)-INDEX('Shultis Faw'!$E$2:$E$26,MATCH($C11,'Shultis Faw'!$A$2:$A$26,1)))/(INDEX('Shultis Faw'!$A$2:$A$26,MATCH($C11,'Shultis Faw'!$A$2:$A$26,1)+1)-INDEX('Shultis Faw'!$A$2:$A$26,MATCH($C11,'Shultis Faw'!$A$2:$A$26,1))),$C11*'Shultis Faw'!$E$2/'Shultis Faw'!$A$2) -> 0.0770518 | M11: =_xlfn.IFNA(INDEX('Shultis Faw'!$F$2:$F$26,MATCH($C11,'Shultis Faw'!$A$2:$A$26,1))+($C11-INDEX('Shultis Faw'!$A$2:$A$26,MATCH($C11,'Shultis Faw'!$A$2:$A$26,1)))*(INDEX('Shultis Faw'!$F$2:$F$26,MATCH($C11,'Shultis Faw'!$A$2:$A$26,1)+1)-INDEX('Shultis Faw'!$F$2:$F$26,MATCH($C11,'Shultis Faw'!$A$2:$A$26,1)))/(INDEX('Shultis Faw'!$A$2:$A$26,MATCH($C11,'Shultis Faw'!$A$2:$A$26,1)+1)-INDEX('Shultis Faw'!$A$2:$A$26,MATCH($C11,'Shultis Faw'!$A$2:$A$26,1))),$C11*'Shultis Faw'!$F$2/'Shultis Faw'!$A$2) -> 13.666855 | N11: =J11*(H11*'Externe blootstelling'!$D$23/2)^K11+L11*(TANH(((H11*'Externe blootstelling'!$D$23)/(2*M11))-2)-TANH(-2))/(1-TANH(-2)) -> 1.739330935 | O11: =IF(N11=1,1+(I11-1)*H11*'Externe blootstelling'!$D$23/2,1+(I11-1)*(N11^(H11*'Externe blootstelling'!$D$23/2)-1)/(N11-1)) -> 20.58413626 | P11: =G11*EXP(-H11*'Externe blootstelling'!$D$23/2)*O11 -> 0.01529078034
B12: g | C12: 0.0859 | D12: 1.3744e-14 | E12: 5.1e-05 | F12: =_xlfn.IFNA(INDEX('hp (pSv cm2)'!$B$2:$B$52,MATCH($C12,'hp (pSv cm2)'!$A$2:$A$52,1))+($C12-INDEX('hp (pSv cm2)'!$A$2:$A$52,MATCH($C12,'hp (pSv cm2)'!$A$2:$A$52,1)))*(INDEX('hp (pSv cm2)'!$B$2:$B$52,MATCH($C12,'hp (pSv cm2)'!$A$2:$A$52,1)+1)-INDEX('hp (pSv cm2)'!$B$2:$B$52,MATCH($C12,'hp (pSv cm2)'!$A$2:$A$52,1)))/(INDEX('hp (pSv cm2)'!$A$2:$A$52,MATCH($C12,'hp (pSv cm2)'!$A$2:$A$52,1)+1)-INDEX('hp (pSv cm2)'!$A$2:$A$52,MATCH($C12,'hp (pSv cm2)'!$A$2:$A$52,1))),$C12*'hp (pSv cm2)'!$B$2/'hp (pSv cm2)'!$A$2) -> 0.465125 | G12: 2.3721375e-05 | H12: =_xlfn.IFNA(0.997*(INDEX('Mass attenuation coefficients'!$B$2:$B$37,MATCH($C12,'Mass attenuation coefficients'!$A$2:$A$37,1))+($C12-INDEX('Mass attenuation coefficients'!$A$2:$A$37,MATCH($C12,'Mass attenuation coefficients'!$A$2:$A$37,1)))*(INDEX('Mass attenuation coefficients'!$B$2:$B$37,MATCH($C12,'Mass attenuation coefficients'!$A$2:$A$37,1)+1)-INDEX('Mass attenuation coefficients'!$B$2:$B$37,MATCH($C12,'Mass attenuation coefficients'!$A$2:$A$37,1)))/(INDEX('Mass attenuation coefficients'!$A$2:$A$37,MATCH($C12,'Mass attenuation coefficients'!$A$2:$A$37,1)+1)-INDEX('Mass attenuation coefficients'!$A$2:$A$37,MATCH($C12,'Mass attenuation coefficients'!$A$2:$A$37,1)))),0.997*$C12*'Mass attenuation coefficients'!$B$2/'Mass attenuation coefficients'!$A$2) -> 0.179325405 | I12: =_xlfn.IFNA(INDEX('Shultis Faw'!$C$2:$C$26,MATCH($C12,'Shultis Faw'!$A$2:$A$26,1))+($C12-INDEX('Shultis Faw'!$A$2:$A$26,MATCH($C12,'Shultis Faw'!$A$2:$A$26,1)))*(INDEX('Shultis Faw'!$C$2:$C$26,MATCH($C12,'Shultis Faw'!$A$2:$A$26,1)+1)-INDEX('Shultis Faw'!$C$2:$C$26,MATCH($C12,'Shultis Faw'!$A$2:$A$26,1)))/(INDEX('Shultis Faw'!$A$2:$A$26,MATCH($C12,'Shultis Faw'!$A$2:$A$26,1)+1)-INDEX('Shultis Faw'!$A$2:$A$26,MATCH($C12,'Shultis Faw'!$A$2:$A$26,1))),$C12*'Shultis Faw'!$C$2/'Shultis Faw'!$A$2) -> 4.94218 | J12: =_xlfn.IFNA(INDEX('Shultis Faw'!$D$2:$D$26,MATCH($C12,'Shultis Faw'!$A$2:$A$26,1))+($C12-INDEX('Shultis Faw'!$A$2:$A$26,MATCH($C12,'Shultis Faw'!$A$2:$A$26,1)))*(INDEX('Shultis Faw'!$D$2:$D$26,MATCH($C12,'Shultis Faw'!$A$2:$A$26,1)+1)-INDEX('Shultis Faw'!$D$2:$D$26,MATCH($C12,'Shultis Faw'!$A$2:$A$26,1)))/(INDEX('Shultis Faw'!$A$2:$A$26,MATCH($C12,'Shultis Faw'!$A$2:$A$26,1)+1)-INDEX('Shultis Faw'!$A$2:$A$26,MATCH($C12,'Shultis Faw'!$A$2:$A$26,1))),$C12*'Shultis Faw'!$D$2/'Shultis Faw'!$A$2) -> 2.10679 | K12: =_xlfn.IFNA(INDEX('Shultis Faw'!$B$2:$B$26,MATCH($C12,'Shultis Faw'!$A$2:$A$26,1))+($C12-INDEX('Shultis Faw'!$A$2:$A$26,MATCH($C12,'Shultis Faw'!$A$2:$A$26,1)))*(INDEX('Shultis Faw'!$B$2:$B$26,MATCH($C12,'Shultis Faw'!$A$2:$A$26,1)+1)-INDEX('Shultis Faw'!$B$2:$B$26,MATCH($C12,'Shultis Faw'!$A$2:$A$26,1)))/(INDEX('Shultis Faw'!$A$2:$A$26,MATCH($C12,'Shultis Faw'!$A$2:$A$26,1)+1)-INDEX('Shultis Faw'!$A$2:$A$26,MATCH($C12,'Shultis Faw'!$A$2:$A$26,1))),$C12*'Shultis Faw'!$B$2/'Shultis Faw'!$A$2) -> -0.17331 | L12: =_xlfn.IFNA(INDEX('Shultis Faw'!$E$2:$E$26,MATCH($C12,'Shultis Faw'!$A$2:$A$26,1))+($C12-INDEX('Shultis Faw'!$A$2:$A$26,MATCH($C12,'Shultis Faw'!$A$2:$A$26,1)))*(INDEX('Shultis Faw'!$E$2:$E$26,MATCH($C12,'Shultis Faw'!$A$2:$A$26,1)+1)-INDEX('Shultis Faw'!$E$2:$E$26,MATCH($C12,'Shultis Faw'!$A$2:$A$26,1)))/(INDEX('Shultis Faw'!$A$2:$A$26,MATCH($C12,'Shultis Faw'!$A$2:$A$26,1)+1)-INDEX('Shultis Faw'!$A$2:$A$26,MATCH($C12,'Shultis Faw'!$A$2:$A$26,1))),$C12*'Shultis Faw'!$E$2/'Shultis Faw'!$A$2) -> 0.078652 | M12: =_xlfn.IFNA(INDEX('Shultis Faw'!$F$2:$F$26,MATCH($C12,'Shultis Faw'!$A$2:$A$26,1))+($C12-INDEX('Shultis Faw'!$A$2:$A$26,MATCH($C12,'Shultis Faw'!$A$2:$A$26,1)))*(INDEX('Shultis Faw'!$F$2:$F$26,MATCH($C12,'Shultis Faw'!$A$2:$A$26,1)+1)-INDEX('Shultis Faw'!$F$2:$F$26,MATCH($C12,'Shultis Faw'!$A$2:$A$26,1)))/(INDEX('Shultis Faw'!$A$2:$A$26,MATCH($C12,'Shultis Faw'!$A$2:$A$26,1)+1)-INDEX('Shultis Faw'!$A$2:$A$26,MATCH($C12,'Shultis Faw'!$A$2:$A$26,1))),$C12*'Shultis Faw'!$F$2/'Shultis Faw'!$A$2) -> 13.5697 | N12: =J12*(H12*'Externe blootstelling'!$D$23/2)^K12+L12*(TANH(((H12*'Externe blootstelling'!$D$23)/(2*M12))-2)-TANH(-2))/(1-TANH(-2)) -> 1.775461021 | O12: =IF(N12=1,1+(I12-1)*H12*'Externe blootstelling'!$D$23/2,1+(I12-1)*(N12^(H12*'Externe blootstelling'!$D$23/2)-1)/(N12-1)) -> 19.72822655 | P12: =G12*EXP(-H12*'Externe blootstelling'!$D$23/2)*O12 -> 3.177074492e-05
B13: g | C13: 0.16393 | D13: 2.62288e-14 | E13: 0.000211 | F13: =_xlfn.IFNA(INDEX('hp (pSv cm2)'!$B$2:$B$52,MATCH($C13,'hp (pSv cm2)'!$A$2:$A$52,1))+($C13-INDEX('hp (pSv cm2)'!$A$2:$A$52,MATCH($C13,'hp (pSv cm2)'!$A$2:$A$52,1)))*(INDEX('hp (pSv cm2)'!$B$2:$B$52,MATCH($C13,'hp (pSv cm2)'!$A$2:$A$52,1)+1)-INDEX('hp (pSv cm2)'!$B$2:$B$52,MATCH($C13,'hp (pSv cm2)'!$A$2:$A$52,1)))/(INDEX('hp (pSv cm2)'!$A$2:$A$52,MATCH($C13,'hp (pSv cm2)'!$A$2:$A$52,1)+1)-INDEX('hp (pSv cm2)'!$A$2:$A$52,MATCH($C13,'hp (pSv cm2)'!$A$2:$A$52,1))),$C13*'hp (pSv cm2)'!$B$2/'hp (pSv cm2)'!$A$2) -> 0.8174858 | G13: 0.0001724895038 | H13: =_xlfn.IFNA(0.997*(INDEX('Mass attenuation coefficients'!$B$2:$B$37,MATCH($C13,'Mass attenuation coefficients'!$A$2:$A$37,1))+($C13-INDEX('Mass attenuation coefficients'!$A$2:$A$37,MATCH($C13,'Mass attenuation coefficients'!$A$2:$A$37,1)))*(INDEX('Mass attenuation coefficients'!$B$2:$B$37,MATCH($C13,'Mass attenuation coefficients'!$A$2:$A$37,1)+1)-INDEX('Mass attenuation coefficients'!$B$2:$B$37,MATCH($C13,'Mass attenuation coefficients'!$A$2:$A$37,1)))/(INDEX('Mass attenuation coefficients'!$A$2:$A$37,MATCH($C13,'Mass attenuation coefficients'!$A$2:$A$37,1)+1)-INDEX('Mass attenuation coefficients'!$A$2:$A$37,MATCH($C13,'Mass attenuation coefficients'!$A$2:$A$37,1)))),0.997*$C13*'Mass attenuation coefficients'!$B$2/'Mass attenuation coefficients'!$A$2) -> 0.1462986833 | I13: =_xlfn.IFNA(INDEX('Shultis Faw'!$C$2:$C$26,MATCH($C13,'Shultis Faw'!$A$2:$A$26,1))+($C13-INDEX('Shultis Faw'!$A$2:$A$26,MATCH($C13,'Shultis Faw'!$A$2:$A$26,1)))*(INDEX('Shultis Faw'!$C$2:$C$26,MATCH($C13,'Shultis Faw'!$A$2:$A$26,1)+1)-INDEX('Shultis Faw'!$C$2:$C$26,MATCH($C13,'Shultis Faw'!$A$2:$A$26,1)))/(INDEX('Shultis Faw'!$A$2:$A$26,MATCH($C13,'Shultis Faw'!$A$2:$A$26,1)+1)-INDEX('Shultis Faw'!$A$2:$A$26,MATCH($C13,'Shultis Faw'!$A$2:$A$26,1))),$C13*'Shultis Faw'!$C$2/'Shultis Faw'!$A$2) -> 3.7802666 | J13: =_xlfn.IFNA(INDEX('Shultis Faw'!$D$2:$D$26,MATCH($C13,'Shultis Faw'!$A$2:$A$26,1))+($C13-INDEX('Shultis Faw'!$A$2:$A$26,MATCH($C13,'Shultis Faw'!$A$2:$A$26,1)))*(INDEX('Shultis Faw'!$D$2:$D$26,MATCH($C13,'Shultis Faw'!$A$2:$A$26,1)+1)-INDEX('Shultis Faw'!$D$2:$D$26,MATCH($C13,'Shultis Faw'!$A$2:$A$26,1)))/(INDEX('Shultis Faw'!$A$2:$A$26,MATCH($C13,'Shultis Faw'!$A$2:$A$26,1)+1)-INDEX('Shultis Faw'!$A$2:$A$26,MATCH($C13,'Shultis Faw'!$A$2:$A$26,1))),$C13*'Shultis Faw'!$D$2/'Shultis Faw'!$A$2) -> 2.2174832 | K13: =_xlfn.IFNA(INDEX('Shultis Faw'!$B$2:$B$26,MATCH($C13,'Shultis Faw'!$A$2:$A$26,1))+($C13-INDEX('Shultis Faw'!$A$2:$A$26,MATCH($C13,'Shultis Faw'!$A$2:$A$26,1)))*(INDEX('Shultis Faw'!$B$2:$B$26,MATCH($C13,'Shultis Faw'!$A$2:$A$26,1)+1)-INDEX('Shultis Faw'!$B$2:$B$26,MATCH($C13,'Shultis Faw'!$A$2:$A$26,1)))/(INDEX('Shultis Faw'!$A$2:$A$26,MATCH($C13,'Shultis Faw'!$A$2:$A$26,1)+1)-INDEX('Shultis Faw'!$A$2:$A$26,MATCH($C13,'Shultis Faw'!$A$2:$A$26,1))),$C13*'Shultis Faw'!$B$2/'Shultis Faw'!$A$2) -> -0.1824926 | L13: =_xlfn.IFNA(INDEX('Shultis Faw'!$E$2:$E$26,MATCH($C13,'Shultis Faw'!$A$2:$A$26,1))+($C13-INDEX('Shultis Faw'!$A$2:$A$26,MATCH($C13,'Shultis Faw'!$A$2:$A$26,1)))*(INDEX('Shultis Faw'!$E$2:$E$26,MATCH($C13,'Shultis Faw'!$A$2:$A$26,1)+1)-INDEX('Shultis Faw'!$E$2:$E$26,MATCH($C13,'Shultis Faw'!$A$2:$A$26,1)))/(INDEX('Shultis Faw'!$A$2:$A$26,MATCH($C13,'Shultis Faw'!$A$2:$A$26,1)+1)-INDEX('Shultis Faw'!$A$2:$A$26,MATCH($C13,'Shultis Faw'!$A$2:$A$26,1))),$C13*'Shultis Faw'!$E$2/'Shultis Faw'!$A$2) -> 0.07761642 | M13: =_xlfn.IFNA(INDEX('Shultis Faw'!$F$2:$F$26,MATCH($C13,'Shultis Faw'!$A$2:$A$26,1))+($C13-INDEX('Shultis Faw'!$A$2:$A$26,MATCH($C13,'Shultis Faw'!$A$2:$A$26,1)))*(INDEX('Shultis Faw'!$F$2:$F$26,MATCH($C13,'Shultis Faw'!$A$2:$A$26,1)+1)-INDEX('Shultis Faw'!$F$2:$F$26,MATCH($C13,'Shultis Faw'!$A$2:$A$26,1)))/(INDEX('Shultis Faw'!$A$2:$A$26,MATCH($C13,'Shultis Faw'!$A$2:$A$26,1)+1)-INDEX('Shultis Faw'!$A$2:$A$26,MATCH($C13,'Shultis Faw'!$A$2:$A$26,1))),$C13*'Shultis Faw'!$F$2/'Shultis Faw'!$A$2) -> 14.276366 | N13: =J13*(H13*'Externe blootstelling'!$D$23/2)^K13+L13*(TANH(((H13*'Externe blootstelling'!$D$23)/(2*M13))-2)-TANH(-2))/(1-TANH(-2)) -> 1.921687088 | O13: =IF(N13=1,1+(I13-1)*H13*'Externe blootstelling'!$D$23/2,1+(I13-1)*(N13^(H13*'Externe blootstelling'!$D$23/2)-1)/(N13-1)) -> 10.63200082 | P13: =G13*EXP(-H13*'Externe blootstelling'!$D$23/2)*O13 -> 0.0002043275893
B14: g | C14: 0.177214 | D14: 2.835424e-14 | E14: 0.00277 | F14: =_xlfn.IFNA(INDEX('hp (pSv cm2)'!$B$2:$B$52,MATCH($C14,'hp (pSv cm2)'!$A$2:$A$52,1))+($C14-INDEX('hp (pSv cm2)'!$A$2:$A$52,MATCH($C14,'hp (pSv cm2)'!$A$2:$A$52,1)))*(INDEX('hp (pSv cm2)'!$B$2:$B$52,MATCH($C14,'hp (pSv cm2)'!$A$2:$A$52,1)+1)-INDEX('hp (pSv cm2)'!$B$2:$B$52,MATCH($C14,'hp (pSv cm2)'!$A$2:$A$52,1)))/(INDEX('hp (pSv cm2)'!$A$2:$A$52,MATCH($C14,'hp (pSv cm2)'!$A$2:$A$52,1)+1)-INDEX('hp (pSv cm2)'!$A$2:$A$52,MATCH($C14,'hp (pSv cm2)'!$A$2:$A$52,1))),$C14*'hp (pSv cm2)'!$B$2/'hp (pSv cm2)'!$A$2) -> 0.88470284 | G14: 0.002450626867 | H14: =_xlfn.IFNA(0.997*(INDEX('Mass attenuation coefficients'!$B$2:$B$37,MATCH($C14,'Mass attenuation coefficients'!$A$2:$A$37,1))+($C14-INDEX('Mass attenuation coefficients'!$A$2:$A$37,MATCH($C14,'Mass attenuation coefficients'!$A$2:$A$37,1)))*(INDEX('Mass attenuation coefficients'!$B$2:$B$37,MATCH($C14,'Mass attenuation coefficients'!$A$2:$A$37,1)+1)-INDEX('Mass attenuation coefficients'!$B$2:$B$37,MATCH($C14,'Mass attenuation coefficients'!$A$2:$A$37,1)))/(INDEX('Mass attenuation coefficients'!$A$2:$A$37,MATCH($C14,'Mass attenuation coefficients'!$A$2:$A$37,1)+1)-INDEX('Mass attenuation coefficients'!$A$2:$A$37,MATCH($C14,'Mass attenuation coefficients'!$A$2:$A$37,1)))),0.997*$C14*'Mass attenuation coefficients'!$B$2/'Mass attenuation coefficients'!$A$2) -> 0.1427227633 | I14: =_xlfn.IFNA(INDEX('Shultis Faw'!$C$2:$C$26,MATCH($C14,'Shultis Faw'!$A$2:$A$26,1))+($C14-INDEX('Shultis Faw'!$A$2:$A$26,MATCH($C14,'Shultis Faw'!$A$2:$A$26,1)))*(INDEX('Shultis Faw'!$C$2:$C$26,MATCH($C14,'Shultis Faw'!$A$2:$A$26,1)+1)-INDEX('Shultis Faw'!$C$2:$C$26,MATCH($C14,'Shultis Faw'!$A$2:$A$26,1)))/(INDEX('Shultis Faw'!$A$2:$A$26,MATCH($C14,'Shultis Faw'!$A$2:$A$26,1)+1)-INDEX('Shultis Faw'!$A$2:$A$26,MATCH($C14,'Shultis Faw'!$A$2:$A$26,1))),$C14*'Shultis Faw'!$C$2/'Shultis Faw'!$A$2) -> 3.66894668 | J14: =_xlfn.IFNA(INDEX('Shultis Faw'!$D$2:$D$26,MATCH($C14,'Shultis Faw'!$A$2:$A$26,1))+($C14-INDEX('Shultis Faw'!$A$2:$A$26,MATCH($C14,'Shultis Faw'!$A$2:$A$26,1)))*(INDEX('Shultis Faw'!$D$2:$D$26,MATCH($C14,'Shultis Faw'!$A$2:$A$26,1)+1)-INDEX('Shultis Faw'!$D$2:$D$26,MATCH($C14,'Shultis Faw'!$A$2:$A$26,1)))/(INDEX('Shultis Faw'!$A$2:$A$26,MATCH($C14,'Shultis Faw'!$A$2:$A$26,1)+1)-INDEX('Shultis Faw'!$A$2:$A$26,MATCH($C14,'Shultis Faw'!$A$2:$A$26,1))),$C14*'Shultis Faw'!$D$2/'Shultis Faw'!$A$2) -> 2.19410336 | K14: =_xlfn.IFNA(INDEX('Shultis Faw'!$B$2:$B$26,MATCH($C14,'Shultis Faw'!$A$2:$A$26,1))+($C14-INDEX('Shultis Faw'!$A$2:$A$26,MATCH($C14,'Shultis Faw'!$A$2:$A$26,1)))*(INDEX('Shultis Faw'!$B$2:$B$26,MATCH($C14,'Shultis Faw'!$A$2:$A$26,1)+1)-INDEX('Shultis Faw'!$B$2:$B$26,MATCH($C14,'Shultis Faw'!$A$2:$A$26,1)))/(INDEX('Shultis Faw'!$A$2:$A$26,MATCH($C14,'Shultis Faw'!$A$2:$A$26,1)+1)-INDEX('Shultis Faw'!$A$2:$A$26,MATCH($C14,'Shultis Faw'!$A$2:$A$26,1))),$C14*'Shultis Faw'!$B$2/'Shultis Faw'!$A$2) -> -0.18010148 | L14: =_xlfn.IFNA(INDEX('Shultis Faw'!$E$2:$E$26,MATCH($C14,'Shultis Faw'!$A$2:$A$26,1))+($C14-INDEX('Shultis Faw'!$A$2:$A$26,MATCH($C14,'Shultis Faw'!$A$2:$A$26,1)))*(INDEX('Shultis Faw'!$E$2:$E$26,MATCH($C14,'Shultis Faw'!$A$2:$A$26,1)+1)-INDEX('Shultis Faw'!$E$2:$E$26,MATCH($C14,'Shultis Faw'!$A$2:$A$26,1)))/(INDEX('Shultis Faw'!$A$2:$A$26,MATCH($C14,'Shultis Faw'!$A$2:$A$26,1)+1)-INDEX('Shultis Faw'!$A$2:$A$26,MATCH($C14,'Shultis Faw'!$A$2:$A$26,1))),$C14*'Shultis Faw'!$E$2/'Shultis Faw'!$A$2) -> 0.077536716 | M14: =_xlfn.IFNA(INDEX('Shultis Faw'!$F$2:$F$26,MATCH($C14,'Shultis Faw'!$A$2:$A$26,1))+($C14-INDEX('Shultis Faw'!$A$2:$A$26,MATCH($C14,'Shultis Faw'!$A$2:$A$26,1)))*(INDEX('Shultis Faw'!$F$2:$F$26,MATCH($C14,'Shultis Faw'!$A$2:$A$26,1)+1)-INDEX('Shultis Faw'!$F$2:$F$26,MATCH($C14,'Shultis Faw'!$A$2:$A$26,1)))/(INDEX('Shultis Faw'!$A$2:$A$26,MATCH($C14,'Shultis Faw'!$A$2:$A$26,1)+1)-INDEX('Shultis Faw'!$A$2:$A$26,MATCH($C14,'Shultis Faw'!$A$2:$A$26,1))),$C14*'Shultis Faw'!$F$2/'Shultis Faw'!$A$2) -> 14.3587268 | N14: =J14*(H14*'Externe blootstelling'!$D$23/2)^K14+L14*(TANH(((H14*'Externe blootstelling'!$D$23)/(2*M14))-2)-TANH(-2))/(1-TANH(-2)) -> 1.913496278 | O14: =IF(N14=1,1+(I14-1)*H14*'Externe blootstelling'!$D$23/2,1+(I14-1)*(N14^(H14*'Externe blootstelling'!$D$23/2)-1)/(N14-1)) -> 9.799767678 | P14: =G14*EXP(-H14*'Externe blootstelling'!$D$23/2)*O14 -> 0.002823172026
B15: g | C15: 0.23218 | D15: 3.71488e-14 | E15: 2.3e-05 | F15: =_xlfn.IFNA(INDEX('hp (pSv cm2)'!$B$2:$B$52,MATCH($C15,'hp (pSv cm2)'!$A$2:$A$52,1))+($C15-INDEX('hp (pSv cm2)'!$A$2:$A$52,MATCH($C15,'hp (pSv cm2)'!$A$2:$A$52,1)))*(INDEX('hp (pSv cm2)'!$B$2:$B$52,MATCH($C15,'hp (pSv cm2)'!$A$2:$A$52,1)+1)-INDEX('hp (pSv cm2)'!$B$2:$B$52,MATCH($C15,'hp (pSv cm2)'!$A$2:$A$52,1)))/(INDEX('hp (pSv cm2)'!$A$2:$A$52,MATCH($C15,'hp (pSv cm2)'!$A$2:$A$52,1)+1)-INDEX('hp (pSv cm2)'!$A$2:$A$52,MATCH($C15,'hp (pSv cm2)'!$A$2:$A$52,1))),$C15*'hp (pSv cm2)'!$B$2/'hp (pSv cm2)'!$A$2) -> 1.164118 | G15: 2.6774714e-05 | H15: =_xlfn.IFNA(0.997*(INDEX('Mass attenuation coefficients'!$B$2:$B$37,MATCH($C15,'Mass attenuation coefficients'!$A$2:$A$37,1))+($C15-INDEX('Mass attenuation coefficients'!$A$2:$A$37,MATCH($C15,'Mass attenuation coefficients'!$A$2:$A$37,1)))*(INDEX('Mass attenuation coefficients'!$B$2:$B$37,MATCH($C15,'Mass attenuation coefficients'!$A$2:$A$37,1)+1)-INDEX('Mass attenuation coefficients'!$B$2:$B$37,MATCH($C15,'Mass attenuation coefficients'!$A$2:$A$37,1)))/(INDEX('Mass attenuation coefficients'!$A$2:$A$37,MATCH($C15,'Mass attenuation coefficients'!$A$2:$A$37,1)+1)-INDEX('Mass attenuation coefficients'!$A$2:$A$37,MATCH($C15,'Mass attenuation coefficients'!$A$2:$A$37,1)))),0.997*$C15*'Mass attenuation coefficients'!$B$2/'Mass attenuation coefficients'!$A$2) -> 0.1306856434 | I15: =_xlfn.IFNA(INDEX('Shultis Faw'!$C$2:$C$26,MATCH($C15,'Shultis Faw'!$A$2:$A$26,1))+($C15-INDEX('Shultis Faw'!$A$2:$A$26,MATCH($C15,'Shultis Faw'!$A$2:$A$26,1)))*(INDEX('Shultis Faw'!$C$2:$C$26,MATCH($C15,'Shultis Faw'!$A$2:$A$26,1)+1)-INDEX('Shultis Faw'!$C$2:$C$26,MATCH($C15,'Shultis Faw'!$A$2:$A$26,1)))/(INDEX('Shultis Faw'!$A$2:$A$26,MATCH($C15,'Shultis Faw'!$A$2:$A$26,1)+1)-INDEX('Shultis Faw'!$A$2:$A$26,MATCH($C15,'Shultis Faw'!$A$2:$A$26,1))),$C15*'Shultis Faw'!$C$2/'Shultis Faw'!$A$2) -> 3.2984356 | J15: =_xlfn.IFNA(INDEX('Shultis Faw'!$D$2:$D$26,MATCH($C15,'Shultis Faw'!$A$2:$A$26,1))+($C15-INDEX('Shultis Faw'!$A$2:$A$26,MATCH($C15,'Shultis Faw'!$A$2:$A$26,1)))*(INDEX('Shultis Faw'!$D$2:$D$26,MATCH($C15,'Shultis Faw'!$A$2:$A$26,1)+1)-INDEX('Shultis Faw'!$D$2:$D$26,MATCH($C15,'Shultis Faw'!$A$2:$A$26,1)))/(INDEX('Shultis Faw'!$A$2:$A$26,MATCH($C15,'Shultis Faw'!$A$2:$A$26,1)+1)-INDEX('Shultis Faw'!$A$2:$A$26,MATCH($C15,'Shultis Faw'!$A$2:$A$26,1))),$C15*'Shultis Faw'!$D$2/'Shultis Faw'!$A$2) -> 2.1115224 | K15: =_xlfn.IFNA(INDEX('Shultis Faw'!$B$2:$B$26,MATCH($C15,'Shultis Faw'!$A$2:$A$26,1))+($C15-INDEX('Shultis Faw'!$A$2:$A$26,MATCH($C15,'Shultis Faw'!$A$2:$A$26,1)))*(INDEX('Shultis Faw'!$B$2:$B$26,MATCH($C15,'Shultis Faw'!$A$2:$A$26,1)+1)-INDEX('Shultis Faw'!$B$2:$B$26,MATCH($C15,'Shultis Faw'!$A$2:$A$26,1)))/(INDEX('Shultis Faw'!$A$2:$A$26,MATCH($C15,'Shultis Faw'!$A$2:$A$26,1)+1)-INDEX('Shultis Faw'!$A$2:$A$26,MATCH($C15,'Shultis Faw'!$A$2:$A$26,1))),$C15*'Shultis Faw'!$B$2/'Shultis Faw'!$A$2) -> -0.1721384 | L15: =_xlfn.IFNA(INDEX('Shultis Faw'!$E$2:$E$26,MATCH($C15,'Shultis Faw'!$A$2:$A$26,1))+($C15-INDEX('Shultis Faw'!$A$2:$A$26,MATCH($C15,'Shultis Faw'!$A$2:$A$26,1)))*(INDEX('Shultis Faw'!$E$2:$E$26,MATCH($C15,'Shultis Faw'!$A$2:$A$26,1)+1)-INDEX('Shultis Faw'!$E$2:$E$26,MATCH($C15,'Shultis Faw'!$A$2:$A$26,1)))/(INDEX('Shultis Faw'!$A$2:$A$26,MATCH($C15,'Shultis Faw'!$A$2:$A$26,1)+1)-INDEX('Shultis Faw'!$A$2:$A$26,MATCH($C15,'Shultis Faw'!$A$2:$A$26,1))),$C15*'Shultis Faw'!$E$2/'Shultis Faw'!$A$2) -> 0.07357058 | M15: =_xlfn.IFNA(INDEX('Shultis Faw'!$F$2:$F$26,MATCH($C15,'Shultis Faw'!$A$2:$A$26,1))+($C15-INDEX('Shultis Faw'!$A$2:$A$26,MATCH($C15,'Shultis Faw'!$A$2:$A$26,1)))*(INDEX('Shultis Faw'!$F$2:$F$26,MATCH($C15,'Shultis Faw'!$A$2:$A$26,1)+1)-INDEX('Shultis Faw'!$F$2:$F$26,MATCH($C15,'Shultis Faw'!$A$2:$A$26,1)))/(INDEX('Shultis Faw'!$A$2:$A$26,MATCH($C15,'Shultis Faw'!$A$2:$A$26,1)+1)-INDEX('Shultis Faw'!$A$2:$A$26,MATCH($C15,'Shultis Faw'!$A$2:$A$26,1))),$C15*'Shultis Faw'!$F$2/'Shultis Faw'!$A$2) -> 14.406678 | N15: =J15*(H15*'Externe blootstelling'!$D$23/2)^K15+L15*(TANH(((H15*'Externe blootstelling'!$D$23)/(2*M15))-2)-TANH(-2))/(1-TANH(-2)) -> 1.88092457 | O15: =IF(N15=1,1+(I15-1)*H15*'Externe blootstelling'!$D$23/2,1+(I15-1)*(N15^(H15*'Externe blootstelling'!$D$23/2)-1)/(N15-1)) -> 7.39289531 | P15: =G15*EXP(-H15*'Externe blootstelling'!$D$23/2)*O15 -> 2.787395471e-05
B16: g | C16: 0.272498 | D16: 4.359968e-14 | E16: 0.000581 | F16: =_xlfn.IFNA(INDEX('hp (pSv cm2)'!$B$2:$B$52,MATCH($C16,'hp (pSv cm2)'!$A$2:$A$52,1))+($C16-INDEX('hp (pSv cm2)'!$A$2:$A$52,MATCH($C16,'hp (pSv cm2)'!$A$2:$A$52,1)))*(INDEX('hp (pSv cm2)'!$B$2:$B$52,MATCH($C16,'hp (pSv cm2)'!$A$2:$A$52,1)+1)-INDEX('hp (pSv cm2)'!$B$2:$B$52,MATCH($C16,'hp (pSv cm2)'!$A$2:$A$52,1)))/(INDEX('hp (pSv cm2)'!$A$2:$A$52,MATCH($C16,'hp (pSv cm2)'!$A$2:$A$52,1)+1)-INDEX('hp (pSv cm2)'!$A$2:$A$52,MATCH($C16,'hp (pSv cm2)'!$A$2:$A$52,1))),$C16*'hp (pSv cm2)'!$B$2/'hp (pSv cm2)'!$A$2) -> 1.3697398 | G16: 0.0007958188238 | H16: =_xlfn.IFNA(0.997*(INDEX('Mass attenuation coefficients'!$B$2:$B$37,MATCH($C16,'Mass attenuation coefficients'!$A$2:$A$37,1))+($C16-INDEX('Mass attenuation coefficients'!$A$2:$A$37,MATCH($C16,'Mass attenuation coefficients'!$A$2:$A$37,1)))*(INDEX('Mass attenuation coefficients'!$B$2:$B$37,MATCH($C16,'Mass attenuation coefficients'!$A$2:$A$37,1)+1)-INDEX('Mass attenuation coefficients'!$B$2:$B$37,MATCH($C16,'Mass attenuation coefficients'!$A$2:$A$37,1)))/(INDEX('Mass attenuation coefficients'!$A$2:$A$37,MATCH($C16,'Mass attenuation coefficients'!$A$2:$A$37,1)+1)-INDEX('Mass attenuation coefficients'!$A$2:$A$37,MATCH($C16,'Mass attenuation coefficients'!$A$2:$A$37,1)))),0.997*$C16*'Mass attenuation coefficients'!$B$2/'Mass attenuation coefficients'!$A$2) -> 0.1232893869 | I16: =_xlfn.IFNA(INDEX('Shultis Faw'!$C$2:$C$26,MATCH($C16,'Shultis Faw'!$A$2:$A$26,1))+($C16-INDEX('Shultis Faw'!$A$2:$A$26,MATCH($C16,'Shultis Faw'!$A$2:$A$26,1)))*(INDEX('Shultis Faw'!$C$2:$C$26,MATCH($C16,'Shultis Faw'!$A$2:$A$26,1)+1)-INDEX('Shultis Faw'!$C$2:$C$26,MATCH($C16,'Shultis Faw'!$A$2:$A$26,1)))/(INDEX('Shultis Faw'!$A$2:$A$26,MATCH($C16,'Shultis Faw'!$A$2:$A$26,1)+1)-INDEX('Shultis Faw'!$A$2:$A$26,MATCH($C16,'Shultis Faw'!$A$2:$A$26,1))),$C16*'Shultis Faw'!$C$2/'Shultis Faw'!$A$2) -> 3.07346116 | J16: =_xlfn.IFNA(INDEX('Shultis Faw'!$D$2:$D$26,MATCH($C16,'Shultis Faw'!$A$2:$A$26,1))+($C16-INDEX('Shultis Faw'!$A$2:$A$26,MATCH($C16,'Shultis Faw'!$A$2:$A$26,1)))*(INDEX('Shultis Faw'!$D$2:$D$26,MATCH($C16,'Shultis Faw'!$A$2:$A$26,1)+1)-INDEX('Shultis Faw'!$D$2:$D$26,MATCH($C16,'Shultis Faw'!$A$2:$A$26,1)))/(INDEX('Shultis Faw'!$A$2:$A$26,MATCH($C16,'Shultis Faw'!$A$2:$A$26,1)+1)-INDEX('Shultis Faw'!$A$2:$A$26,MATCH($C16,'Shultis Faw'!$A$2:$A$26,1))),$C16*'Shultis Faw'!$D$2/'Shultis Faw'!$A$2) -> 2.05830264 | K16: =_xlfn.IFNA(INDEX('Shultis Faw'!$B$2:$B$26,MATCH($C16,'Shultis Faw'!$A$2:$A$26,1))+($C16-INDEX('Shultis Faw'!$A$2:$A$26,MATCH($C16,'Shultis Faw'!$A$2:$A$26,1)))*(INDEX('Shultis Faw'!$B$2:$B$26,MATCH($C16,'Shultis Faw'!$A$2:$A$26,1)+1)-INDEX('Shultis Faw'!$B$2:$B$26,MATCH($C16,'Shultis Faw'!$A$2:$A$26,1)))/(INDEX('Shultis Faw'!$A$2:$A$26,MATCH($C16,'Shultis Faw'!$A$2:$A$26,1)+1)-INDEX('Shultis Faw'!$A$2:$A$26,MATCH($C16,'Shultis Faw'!$A$2:$A$26,1))),$C16*'Shultis Faw'!$B$2/'Shultis Faw'!$A$2) -> -0.16730024 | L16: =_xlfn.IFNA(INDEX('Shultis Faw'!$E$2:$E$26,MATCH($C16,'Shultis Faw'!$A$2:$A$26,1))+($C16-INDEX('Shultis Faw'!$A$2:$A$26,MATCH($C16,'Shultis Faw'!$A$2:$A$26,1)))*(INDEX('Shultis Faw'!$E$2:$E$26,MATCH($C16,'Shultis Faw'!$A$2:$A$26,1)+1)-INDEX('Shultis Faw'!$E$2:$E$26,MATCH($C16,'Shultis Faw'!$A$2:$A$26,1)))/(INDEX('Shultis Faw'!$A$2:$A$26,MATCH($C16,'Shultis Faw'!$A$2:$A$26,1)+1)-INDEX('Shultis Faw'!$A$2:$A$26,MATCH($C16,'Shultis Faw'!$A$2:$A$26,1))),$C16*'Shultis Faw'!$E$2/'Shultis Faw'!$A$2) -> 0.068772738 | M16: =_xlfn.IFNA(INDEX('Shultis Faw'!$F$2:$F$26,MATCH($C16,'Shultis Faw'!$A$2:$A$26,1))+($C16-INDEX('Shultis Faw'!$A$2:$A$26,MATCH($C16,'Shultis Faw'!$A$2:$A$26,1)))*(INDEX('Shultis Faw'!$F$2:$F$26,MATCH($C16,'Shultis Faw'!$A$2:$A$26,1)+1)-INDEX('Shultis Faw'!$F$2:$F$26,MATCH($C16,'Shultis Faw'!$A$2:$A$26,1)))/(INDEX('Shultis Faw'!$A$2:$A$26,MATCH($C16,'Shultis Faw'!$A$2:$A$26,1)+1)-INDEX('Shultis Faw'!$A$2:$A$26,MATCH($C16,'Shultis Faw'!$A$2:$A$26,1))),$C16*'Shultis Faw'!$F$2/'Shultis Faw'!$A$2) -> 14.2897558 | N16: =J16*(H16*'Externe blootstelling'!$D$23/2)^K16+L16*(TANH(((H16*'Externe blootstelling'!$D$23)/(2*M16))-2)-TANH(-2))/(1-TANH(-2)) -> 1.857471791 | O16: =IF(N16=1,1+(I16-1)*H16*'Externe blootstelling'!$D$23/2,1+(I16-1)*(N16^(H16*'Externe blootstelling'!$D$23/2)-1)/(N16-1)) -> 6.181738013 | P16: =G16*EXP(-H16*'Externe blootstelling'!$D$23/2)*O16 -> 0.0007740451553
B17: g | C17: 0.284305 | D17: 4.54888e-14 | E17: 0.0614 | F17: =_xlfn.IFNA(INDEX('hp (pSv cm2)'!$B$2:$B$52,MATCH($C17,'hp (pSv cm2)'!$A$2:$A$52,1))+($C17-INDEX('hp (pSv cm2)'!$A$2:$A$52,MATCH($C17,'hp (pSv cm2)'!$A$2:$A$52,1)))*(INDEX('hp (pSv cm2)'!$B$2:$B$52,MATCH($C17,'hp (pSv cm2)'!$A$2:$A$52,1)+1)-INDEX('hp (pSv cm2)'!$B$2:$B$52,MATCH($C17,'hp (pSv cm2)'!$A$2:$A$52,1)))/(INDEX('hp (pSv cm2)'!$A$2:$A$52,MATCH($C17,'hp (pSv cm2)'!$A$2:$A$52,1)+1)-INDEX('hp (pSv cm2)'!$A$2:$A$52,MATCH($C17,'hp (pSv cm2)'!$A$2:$A$52,1))),$C17*'hp (pSv cm2)'!$B$2/'hp (pSv cm2)'!$A$2) -> 1.4299555 | G17: 0.0877992677 | H17: =_xlfn.IFNA(0.997*(INDEX('Mass attenuation coefficients'!$B$2:$B$37,MATCH($C17,'Mass attenuation coefficients'!$A$2:$A$37,1))+($C17-INDEX('Mass attenuation coefficients'!$A$2:$A$37,MATCH($C17,'Mass attenuation coefficients'!$A$2:$A$37,1)))*(INDEX('Mass attenuation coefficients'!$B$2:$B$37,MATCH($C17,'Mass attenuation coefficients'!$A$2:$A$37,1)+1)-INDEX('Mass attenuation coefficients'!$B$2:$B$37,MATCH($C17,'Mass attenuation coefficients'!$A$2:$A$37,1)))/(INDEX('Mass attenuation coefficients'!$A$2:$A$37,MATCH($C17,'Mass attenuation coefficients'!$A$2:$A$37,1)+1)-INDEX('Mass attenuation coefficients'!$A$2:$A$37,MATCH($C17,'Mass attenuation coefficients'!$A$2:$A$37,1)))),0.997*$C17*'Mass attenuation coefficients'!$B$2/'Mass attenuation coefficients'!$A$2) -> 0.1211234164 | I17: =_xlfn.IFNA(INDEX('Shultis Faw'!$C$2:$C$26,MATCH($C17,'Shultis Faw'!$A$2:$A$26,1))+($C17-INDEX('Shultis Faw'!$A$2:$A$26,MATCH($C17,'Shultis Faw'!$A$2:$A$26,1)))*(INDEX('Shultis Faw'!$C$2:$C$26,MATCH($C17,'Shultis Faw'!$A$2:$A$26,1)+1)-INDEX('Shultis Faw'!$C$2:$C$26,MATCH($C17,'Shultis Faw'!$A$2:$A$26,1)))/(INDEX('Shultis Faw'!$A$2:$A$26,MATCH($C17,'Shultis Faw'!$A$2:$A$26,1)+1)-INDEX('Shultis Faw'!$A$2:$A$26,MATCH($C17,'Shultis Faw'!$A$2:$A$26,1))),$C17*'Shultis Faw'!$C$2/'Shultis Faw'!$A$2) -> 3.0075781 | J17: =_xlfn.IFNA(INDEX('Shultis Faw'!$D$2:$D$26,MATCH($C17,'Shultis Faw'!$A$2:$A$26,1))+($C17-INDEX('Shultis Faw'!$A$2:$A$26,MATCH($C17,'Shultis Faw'!$A$2:$A$26,1)))*(INDEX('Shultis Faw'!$D$2:$D$26,MATCH($C17,'Shultis Faw'!$A$2:$A$26,1)+1)-INDEX('Shultis Faw'!$D$2:$D$26,MATCH($C17,'Shultis Faw'!$A$2:$A$26,1)))/(INDEX('Shultis Faw'!$A$2:$A$26,MATCH($C17,'Shultis Faw'!$A$2:$A$26,1)+1)-INDEX('Shultis Faw'!$A$2:$A$26,MATCH($C17,'Shultis Faw'!$A$2:$A$26,1))),$C17*'Shultis Faw'!$D$2/'Shultis Faw'!$A$2) -> 2.0427174 | K17: =_xlfn.IFNA(INDEX('Shultis Faw'!$B$2:$B$26,MATCH($C17,'Shultis Faw'!$A$2:$A$26,1))+($C17-INDEX('Shultis Faw'!$A$2:$A$26,MATCH($C17,'Shultis Faw'!$A$2:$A$26,1)))*(INDEX('Shultis Faw'!$B$2:$B$26,MATCH($C17,'Shultis Faw'!$A$2:$A$26,1)+1)-INDEX('Shultis Faw'!$B$2:$B$26,MATCH($C17,'Shultis Faw'!$A$2:$A$26,1)))/(INDEX('Shultis Faw'!$A$2:$A$26,MATCH($C17,'Shultis Faw'!$A$2:$A$26,1)+1)-INDEX('Shultis Faw'!$A$2:$A$26,MATCH($C17,'Shultis Faw'!$A$2:$A$26,1))),$C17*'Shultis Faw'!$B$2/'Shultis Faw'!$A$2) -> -0.1658834 | L17: =_xlfn.IFNA(INDEX('Shultis Faw'!$E$2:$E$26,MATCH($C17,'Shultis Faw'!$A$2:$A$26,1))+($C17-INDEX('Shultis Faw'!$A$2:$A$26,MATCH($C17,'Shultis Faw'!$A$2:$A$26,1)))*(INDEX('Shultis Faw'!$E$2:$E$26,MATCH($C17,'Shultis Faw'!$A$2:$A$26,1)+1)-INDEX('Shultis Faw'!$E$2:$E$26,MATCH($C17,'Shultis Faw'!$A$2:$A$26,1)))/(INDEX('Shultis Faw'!$A$2:$A$26,MATCH($C17,'Shultis Faw'!$A$2:$A$26,1)+1)-INDEX('Shultis Faw'!$A$2:$A$26,MATCH($C17,'Shultis Faw'!$A$2:$A$26,1))),$C17*'Shultis Faw'!$E$2/'Shultis Faw'!$A$2) -> 0.067367705 | M17: =_xlfn.IFNA(INDEX('Shultis Faw'!$F$2:$F$26,MATCH($C17,'Shultis Faw'!$A$2:$A$26,1))+($C17-INDEX('Shultis Faw'!$A$2:$A$26,MATCH($C17,'Shultis Faw'!$A$2:$A$26,1)))*(INDEX('Shultis Faw'!$F$2:$F$26,MATCH($C17,'Shultis Faw'!$A$2:$A$26,1)+1)-INDEX('Shultis Faw'!$F$2:$F$26,MATCH($C17,'Shultis Faw'!$A$2:$A$26,1)))/(INDEX('Shultis Faw'!$A$2:$A$26,MATCH($C17,'Shultis Faw'!$A$2:$A$26,1)+1)-INDEX('Shultis Faw'!$A$2:$A$26,MATCH($C17,'Shultis Faw'!$A$2:$A$26,1))),$C17*'Shultis Faw'!$F$2/'Shultis Faw'!$A$2) -> 14.2555155 | N17: =J17*(H17*'Externe blootstelling'!$D$23/2)^K17+L17*(TANH(((H17*'Externe blootstelling'!$D$23)/(2*M17))-2)-TANH(-2))/(1-TANH(-2)) -> 1.850434227 | O17: =IF(N17=1,1+(I17-1)*H17*'Externe blootstelling'!$D$23/2,1+(I17-1)*(N17^(H17*'Externe blootstelling'!$D$23/2)-1)/(N17-1)) -> 5.860862203 | P17: =G17*EXP(-H17*'Externe blootstelling'!$D$23/2)*O17 -> 0.08363805678
B18: g | C18: 0.2958 | D18: 4.7328e-14 | E18: 1.2e-05 | F18: =_xlfn.IFNA(INDEX('hp (pSv cm2)'!$B$2:$B$52,MATCH($C18,'hp (pSv cm2)'!$A$2:$A$52,1))+($C18-INDEX('hp (pSv cm2)'!$A$2:$A$52,MATCH($C18,'hp (pSv cm2)'!$A$2:$A$52,1)))*(INDEX('hp (pSv cm2)'!$B$2:$B$52,MATCH($C18,'hp (pSv cm2)'!$A$2:$A$52,1)+1)-INDEX('hp (pSv cm2)'!$B$2:$B$52,MATCH($C18,'hp (pSv cm2)'!$A$2:$A$52,1)))/(INDEX('hp (pSv cm2)'!$A$2:$A$52,MATCH($C18,'hp (pSv cm2)'!$A$2:$A$52,1)+1)-INDEX('hp (pSv cm2)'!$A$2:$A$52,MATCH($C18,'hp (pSv cm2)'!$A$2:$A$52,1))),$C18*'hp (pSv cm2)'!$B$2/'hp (pSv cm2)'!$A$2) -> 1.48858 | G18: 1.786296e-05 | H18: =_xlfn.IFNA(0.997*(INDEX('Mass attenuation coefficients'!$B$2:$B$37,MATCH($C18,'Mass attenuation coefficients'!$A$2:$A$37,1))+($C18-INDEX('Mass attenuation coefficients'!$A$2:$A$37,MATCH($C18,'Mass attenuation coefficients'!$A$2:$A$37,1)))*(INDEX('Mass attenuation coefficients'!$B$2:$B$37,MATCH($C18,'Mass attenuation coefficients'!$A$2:$A$37,1)+1)-INDEX('Mass attenuation coefficients'!$B$2:$B$37,MATCH($C18,'Mass attenuation coefficients'!$A$2:$A$37,1)))/(INDEX('Mass attenuation coefficients'!$A$2:$A$37,MATCH($C18,'Mass attenuation coefficients'!$A$2:$A$37,1)+1)-INDEX('Mass attenuation coefficients'!$A$2:$A$37,MATCH($C18,'Mass attenuation coefficients'!$A$2:$A$37,1)))),0.997*$C18*'Mass attenuation coefficients'!$B$2/'Mass attenuation coefficients'!$A$2) -> 0.1190146816 | I18: =_xlfn.IFNA(INDEX('Shultis Faw'!$C$2:$C$26,MATCH($C18,'Shultis Faw'!$A$2:$A$26,1))+($C18-INDEX('Shultis Faw'!$A$2:$A$26,MATCH($C18,'Shultis Faw'!$A$2:$A$26,1)))*(INDEX('Shultis Faw'!$C$2:$C$26,MATCH($C18,'Shultis Faw'!$A$2:$A$26,1)+1)-INDEX('Shultis Faw'!$C$2:$C$26,MATCH($C18,'Shultis Faw'!$A$2:$A$26,1)))/(INDEX('Shultis Faw'!$A$2:$A$26,MATCH($C18,'Shultis Faw'!$A$2:$A$26,1)+1)-INDEX('Shultis Faw'!$A$2:$A$26,MATCH($C18,'Shultis Faw'!$A$2:$A$26,1))),$C18*'Shultis Faw'!$C$2/'Shultis Faw'!$A$2) -> 2.943436 | J18: =_xlfn.IFNA(INDEX('Shultis Faw'!$D$2:$D$26,MATCH($C18,'Shultis Faw'!$A$2:$A$26,1))+($C18-INDEX('Shultis Faw'!$A$2:$A$26,MATCH($C18,'Shultis Faw'!$A$2:$A$26,1)))*(INDEX('Shultis Faw'!$D$2:$D$26,MATCH($C18,'Shultis Faw'!$A$2:$A$26,1)+1)-INDEX('Shultis Faw'!$D$2:$D$26,MATCH($C18,'Shultis Faw'!$A$2:$A$26,1)))/(INDEX('Shultis Faw'!$A$2:$A$26,MATCH($C18,'Shultis Faw'!$A$2:$A$26,1)+1)-INDEX('Shultis Faw'!$A$2:$A$26,MATCH($C18,'Shultis Faw'!$A$2:$A$26,1))),$C18*'Shultis Faw'!$D$2/'Shultis Faw'!$A$2) -> 2.027544 | K18: =_xlfn.IFNA(INDEX('Shultis Faw'!$B$2:$B$26,MATCH($C18,'Shultis Faw'!$A$2:$A$26,1))+($C18-INDEX('Shultis Faw'!$A$2:$A$26,MATCH($C18,'Shultis Faw'!$A$2:$A$26,1)))*(INDEX('Shultis Faw'!$B$2:$B$26,MATCH($C18,'Shultis Faw'!$A$2:$A$26,1)+1)-INDEX('Shultis Faw'!$B$2:$B$26,MATCH($C18,'Shultis Faw'!$A$2:$A$26,1)))/(INDEX('Shultis Faw'!$A$2:$A$26,MATCH($C18,'Shultis Faw'!$A$2:$A$26,1)+1)-INDEX('Shultis Faw'!$A$2:$A$26,MATCH($C18,'Shultis Faw'!$A$2:$A$26,1))),$C18*'Shultis Faw'!$B$2/'Shultis Faw'!$A$2) -> -0.164504 | L18: =_xlfn.IFNA(INDEX('Shultis Faw'!$E$2:$E$26,MATCH($C18,'Shultis Faw'!$A$2:$A$26,1))+($C18-INDEX('Shultis Faw'!$A$2:$A$26,MATCH($C18,'Shultis Faw'!$A$2:$A$26,1)))*(INDEX('Shultis Faw'!$E$2:$E$26,MATCH($C18,'Shultis Faw'!$A$2:$A$26,1)+1)-INDEX('Shultis Faw'!$E$2:$E$26,MATCH($C18,'Shultis Faw'!$A$2:$A$26,1)))/(INDEX('Shultis Faw'!$A$2:$A$26,MATCH($C18,'Shultis Faw'!$A$2:$A$26,1)+1)-INDEX('Shultis Faw'!$A$2:$A$26,MATCH($C18,'Shultis Faw'!$A$2:$A$26,1))),$C18*'Shultis Faw'!$E$2/'Shultis Faw'!$A$2) -> 0.0659998 | M18: =_xlfn.IFNA(INDEX('Shultis Faw'!$F$2:$F$26,MATCH($C18,'Shultis Faw'!$A$2:$A$26,1))+($C18-INDEX('Shultis Faw'!$A$2:$A$26,MATCH($C18,'Shultis Faw'!$A$2:$A$26,1)))*(INDEX('Shultis Faw'!$F$2:$F$26,MATCH($C18,'Shultis Faw'!$A$2:$A$26,1)+1)-INDEX('Shultis Faw'!$F$2:$F$26,MATCH($C18,'Shultis Faw'!$A$2:$A$26,1)))/(INDEX('Shultis Faw'!$A$2:$A$26,MATCH($C18,'Shultis Faw'!$A$2:$A$26,1)+1)-INDEX('Shultis Faw'!$A$2:$A$26,MATCH($C18,'Shultis Faw'!$A$2:$A$26,1))),$C18*'Shultis Faw'!$F$2/'Shultis Faw'!$A$2) -> 14.22218 | N18: =J18*(H18*'Externe blootstelling'!$D$23/2)^K18+L18*(TANH(((H18*'Externe blootstelling'!$D$23)/(2*M18))-2)-TANH(-2))/(1-TANH(-2)) -> 1.843509521 | O18: =IF(N18=1,1+(I18-1)*H18*'Externe blootstelling'!$D$23/2,1+(I18-1)*(N18^(H18*'Externe blootstelling'!$D$23/2)-1)/(N18-1)) -> 5.562201004 | P18: =G18*EXP(-H18*'Externe blootstelling'!$D$23/2)*O18 -> 1.666820421e-05
B19: g | C19: 0.3024 | D19: 4.8384e-14 | E19: 4.6e-05 | F19: =_xlfn.IFNA(INDEX('hp (pSv cm2)'!$B$2:$B$52,MATCH($C19,'hp (pSv cm2)'!$A$2:$A$52,1))+($C19-INDEX('hp (pSv cm2)'!$A$2:$A$52,MATCH($C19,'hp (pSv cm2)'!$A$2:$A$52,1)))*(INDEX('hp (pSv cm2)'!$B$2:$B$52,MATCH($C19,'hp (pSv cm2)'!$A$2:$A$52,1)+1)-INDEX('hp (pSv cm2)'!$B$2:$B$52,MATCH($C19,'hp (pSv cm2)'!$A$2:$A$52,1)))/(INDEX('hp (pSv cm2)'!$A$2:$A$52,MATCH($C19,'hp (pSv cm2)'!$A$2:$A$52,1)+1)-INDEX('hp (pSv cm2)'!$A$2:$A$52,MATCH($C19,'hp (pSv cm2)'!$A$2:$A$52,1))),$C19*'hp (pSv cm2)'!$B$2/'hp (pSv cm2)'!$A$2) -> 1.52176 | G19: 7.000096e-05 | H19: =_xlfn.IFNA(0.997*(INDEX('Mass attenuation coefficients'!$B$2:$B$37,MATCH($C19,'Mass attenuation coefficients'!$A$2:$A$37,1))+($C19-INDEX('Mass attenuation coefficients'!$A$2:$A$37,MATCH($C19,'Mass attenuation coefficients'!$A$2:$A$37,1)))*(INDEX('Mass attenuation coefficients'!$B$2:$B$37,MATCH($C19,'Mass attenuation coefficients'!$A$2:$A$37,1)+1)-INDEX('Mass attenuation coefficients'!$B$2:$B$37,MATCH($C19,'Mass attenuation coefficients'!$A$2:$A$37,1)))/(INDEX('Mass attenuation coefficients'!$A$2:$A$37,MATCH($C19,'Mass attenuation coefficients'!$A$2:$A$37,1)+1)-INDEX('Mass attenuation coefficients'!$A$2:$A$37,MATCH($C19,'Mass attenuation coefficients'!$A$2:$A$37,1)))),0.997*$C19*'Mass attenuation coefficients'!$B$2/'Mass attenuation coefficients'!$A$2) -> 0.1179451 | I19: =_xlfn.IFNA(INDEX('Shultis Faw'!$C$2:$C$26,MATCH($C19,'Shultis Faw'!$A$2:$A$26,1))+($C19-INDEX('Shultis Faw'!$A$2:$A$26,MATCH($C19,'Shultis Faw'!$A$2:$A$26,1)))*(INDEX('Shultis Faw'!$C$2:$C$26,MATCH($C19,'Shultis Faw'!$A$2:$A$26,1)+1)-INDEX('Shultis Faw'!$C$2:$C$26,MATCH($C19,'Shultis Faw'!$A$2:$A$26,1)))/(INDEX('Shultis Faw'!$A$2:$A$26,MATCH($C19,'Shultis Faw'!$A$2:$A$26,1)+1)-INDEX('Shultis Faw'!$A$2:$A$26,MATCH($C19,'Shultis Faw'!$A$2:$A$26,1))),$C19*'Shultis Faw'!$C$2/'Shultis Faw'!$A$2) -> 2.91376 | J19: =_xlfn.IFNA(INDEX('Shultis Faw'!$D$2:$D$26,MATCH($C19,'Shultis Faw'!$A$2:$A$26,1))+($C19-INDEX('Shultis Faw'!$A$2:$A$26,MATCH($C19,'Shultis Faw'!$A$2:$A$26,1)))*(INDEX('Shultis Faw'!$D$2:$D$26,MATCH($C19,'Shultis Faw'!$A$2:$A$26,1)+1)-INDEX('Shultis Faw'!$D$2:$D$26,MATCH($C19,'Shultis Faw'!$A$2:$A$26,1)))/(INDEX('Shultis Faw'!$A$2:$A$26,MATCH($C19,'Shultis Faw'!$A$2:$A$26,1)+1)-INDEX('Shultis Faw'!$A$2:$A$26,MATCH($C19,'Shultis Faw'!$A$2:$A$26,1))),$C19*'Shultis Faw'!$D$2/'Shultis Faw'!$A$2) -> 2.01864 | K19: =_xlfn.IFNA(INDEX('Shultis Faw'!$B$2:$B$26,MATCH($C19,'Shultis Faw'!$A$2:$A$26,1))+($C19-INDEX('Shultis Faw'!$A$2:$A$26,MATCH($C19,'Shultis Faw'!$A$2:$A$26,1)))*(INDEX('Shultis Faw'!$B$2:$B$26,MATCH($C19,'Shultis Faw'!$A$2:$A$26,1)+1)-INDEX('Shultis Faw'!$B$2:$B$26,MATCH($C19,'Shultis Faw'!$A$2:$A$26,1)))/(INDEX('Shultis Faw'!$A$2:$A$26,MATCH($C19,'Shultis Faw'!$A$2:$A$26,1)+1)-INDEX('Shultis Faw'!$A$2:$A$26,MATCH($C19,'Shultis Faw'!$A$2:$A$26,1))),$C19*'Shultis Faw'!$B$2/'Shultis Faw'!$A$2) -> -0.16364 | L19: =_xlfn.IFNA(INDEX('Shultis Faw'!$E$2:$E$26,MATCH($C19,'Shultis Faw'!$A$2:$A$26,1))+($C19-INDEX('Shultis Faw'!$A$2:$A$26,MATCH($C19,'Shultis Faw'!$A$2:$A$26,1)))*(INDEX('Shultis Faw'!$E$2:$E$26,MATCH($C19,'Shultis Faw'!$A$2:$A$26,1)+1)-INDEX('Shultis Faw'!$E$2:$E$26,MATCH($C19,'Shultis Faw'!$A$2:$A$26,1)))/(INDEX('Shultis Faw'!$A$2:$A$26,MATCH($C19,'Shultis Faw'!$A$2:$A$26,1)+1)-INDEX('Shultis Faw'!$A$2:$A$26,MATCH($C19,'Shultis Faw'!$A$2:$A$26,1))),$C19*'Shultis Faw'!$E$2/'Shultis Faw'!$A$2) -> 0.065356 | M19: =_xlfn.IFNA(INDEX('Shultis Faw'!$F$2:$F$26,MATCH($C19,'Shultis Faw'!$A$2:$A$26,1))+($C19-INDEX('Shultis Faw'!$A$2:$A$26,MATCH($C19,'Shultis Faw'!$A$2:$A$26,1)))*(INDEX('Shultis Faw'!$F$2:$F$26,MATCH($C19,'Shultis Faw'!$A$2:$A$26,1)+1)-INDEX('Shultis Faw'!$F$2:$F$26,MATCH($C19,'Shultis Faw'!$A$2:$A$26,1)))/(INDEX('Shultis Faw'!$A$2:$A$26,MATCH($C19,'Shultis Faw'!$A$2:$A$26,1)+1)-INDEX('Shultis Faw'!$A$2:$A$26,MATCH($C19,'Shultis Faw'!$A$2:$A$26,1))),$C19*'Shultis Faw'!$F$2/'Shultis Faw'!$A$2) -> 14.21072 | N19: =J19*(H19*'Externe blootstelling'!$D$23/2)^K19+L19*(TANH(((H19*'Externe blootstelling'!$D$23)/(2*M19))-2)-TANH(-2))/(1-TANH(-2)) -> 1.839042211 | O19: =IF(N19=1,1+(I19-1)*H19*'Externe blootstelling'!$D$23/2,1+(I19-1)*(N19^(H19*'Externe blootstelling'!$D$23/2)-1)/(N19-1)) -> 5.421247094 | P19: =G19*EXP(-H19*'Externe blootstelling'!$D$23/2)*O19 -> 6.469334497e-05
B20: g | C20: 0.318088 | D20: 5.089408e-14 | E20: 0.000807 | F20: =_xlfn.IFNA(INDEX('hp (pSv cm2)'!$B$2:$B$52,MATCH($C20,'hp (pSv cm2)'!$A$2:$A$52,1))+($C20-INDEX('hp (pSv cm2)'!$A$2:$A$52,MATCH($C20,'hp (pSv cm2)'!$A$2:$A$52,1)))*(INDEX('hp (pSv cm2)'!$B$2:$B$52,MATCH($C20,'hp (pSv cm2)'!$A$2:$A$52,1)+1)-INDEX('hp (pSv cm2)'!$B$2:$B$52,MATCH($C20,'hp (pSv cm2)'!$A$2:$A$52,1)))/(INDEX('hp (pSv cm2)'!$A$2:$A$52,MATCH($C20,'hp (pSv cm2)'!$A$2:$A$52,1)+1)-INDEX('hp (pSv cm2)'!$A$2:$A$52,MATCH($C20,'hp (pSv cm2)'!$A$2:$A$52,1))),$C20*'hp (pSv cm2)'!$B$2/'hp (pSv cm2)'!$A$2) -> 1.5986312 | G20: 0.001290095378 | H20: =_xlfn.IFNA(0.997*(INDEX('Mass attenuation coefficients'!$B$2:$B$37,MATCH($C20,'Mass attenuation coefficients'!$A$2:$A$37,1))+($C20-INDEX('Mass attenuation coefficients'!$A$2:$A$37,MATCH($C20,'Mass attenuation coefficients'!$A$2:$A$37,1)))*(INDEX('Mass attenuation coefficients'!$B$2:$B$37,MATCH($C20,'Mass attenuation coefficients'!$A$2:$A$37,1)+1)-INDEX('Mass attenuation coefficients'!$B$2:$B$37,MATCH($C20,'Mass attenuation coefficients'!$A$2:$A$37,1)))/(INDEX('Mass attenuation coefficients'!$A$2:$A$37,MATCH($C20,'Mass attenuation coefficients'!$A$2:$A$37,1)+1)-INDEX('Mass attenuation coefficients'!$A$2:$A$37,MATCH($C20,'Mass attenuation coefficients'!$A$2:$A$37,1)))),0.997*$C20*'Mass attenuation coefficients'!$B$2/'Mass attenuation coefficients'!$A$2) -> 0.115989983 | I20: =_xlfn.IFNA(INDEX('Shultis Faw'!$C$2:$C$26,MATCH($C20,'Shultis Faw'!$A$2:$A$26,1))+($C20-INDEX('Shultis Faw'!$A$2:$A$26,MATCH($C20,'Shultis Faw'!$A$2:$A$26,1)))*(INDEX('Shultis Faw'!$C$2:$C$26,MATCH($C20,'Shultis Faw'!$A$2:$A$26,1)+1)-INDEX('Shultis Faw'!$C$2:$C$26,MATCH($C20,'Shultis Faw'!$A$2:$A$26,1)))/(INDEX('Shultis Faw'!$A$2:$A$26,MATCH($C20,'Shultis Faw'!$A$2:$A$26,1)+1)-INDEX('Shultis Faw'!$A$2:$A$26,MATCH($C20,'Shultis Faw'!$A$2:$A$26,1))),$C20*'Shultis Faw'!$C$2/'Shultis Faw'!$A$2) -> 2.8729712 | J20: =_xlfn.IFNA(INDEX('Shultis Faw'!$D$2:$D$26,MATCH($C20,'Shultis Faw'!$A$2:$A$26,1))+($C20-INDEX('Shultis Faw'!$A$2:$A$26,MATCH($C20,'Shultis Faw'!$A$2:$A$26,1)))*(INDEX('Shultis Faw'!$D$2:$D$26,MATCH($C20,'Shultis Faw'!$A$2:$A$26,1)+1)-INDEX('Shultis Faw'!$D$2:$D$26,MATCH($C20,'Shultis Faw'!$A$2:$A$26,1)))/(INDEX('Shultis Faw'!$A$2:$A$26,MATCH($C20,'Shultis Faw'!$A$2:$A$26,1)+1)-INDEX('Shultis Faw'!$A$2:$A$26,MATCH($C20,'Shultis Faw'!$A$2:$A$26,1))),$C20*'Shultis Faw'!$D$2/'Shultis Faw'!$A$2) -> 1.9966768 | K20: =_xlfn.IFNA(INDEX('Shultis Faw'!$B$2:$B$26,MATCH($C20,'Shultis Faw'!$A$2:$A$26,1))+($C20-INDEX('Shultis Faw'!$A$2:$A$26,MATCH($C20,'Shultis Faw'!$A$2:$A$26,1)))*(INDEX('Shultis Faw'!$B$2:$B$26,MATCH($C20,'Shultis Faw'!$A$2:$A$26,1)+1)-INDEX('Shultis Faw'!$B$2:$B$26,MATCH($C20,'Shultis Faw'!$A$2:$A$26,1)))/(INDEX('Shultis Faw'!$A$2:$A$26,MATCH($C20,'Shultis Faw'!$A$2:$A$26,1)+1)-INDEX('Shultis Faw'!$A$2:$A$26,MATCH($C20,'Shultis Faw'!$A$2:$A$26,1))),$C20*'Shultis Faw'!$B$2/'Shultis Faw'!$A$2) -> -0.1612868 | L20: =_xlfn.IFNA(INDEX('Shultis Faw'!$E$2:$E$26,MATCH($C20,'Shultis Faw'!$A$2:$A$26,1))+($C20-INDEX('Shultis Faw'!$A$2:$A$26,MATCH($C20,'Shultis Faw'!$A$2:$A$26,1)))*(INDEX('Shultis Faw'!$E$2:$E$26,MATCH($C20,'Shultis Faw'!$A$2:$A$26,1)+1)-INDEX('Shultis Faw'!$E$2:$E$26,MATCH($C20,'Shultis Faw'!$A$2:$A$26,1)))/(INDEX('Shultis Faw'!$A$2:$A$26,MATCH($C20,'Shultis Faw'!$A$2:$A$26,1)+1)-INDEX('Shultis Faw'!$A$2:$A$26,MATCH($C20,'Shultis Faw'!$A$2:$A$26,1))),$C20*'Shultis Faw'!$E$2/'Shultis Faw'!$A$2) -> 0.06441472 | M20: =_xlfn.IFNA(INDEX('Shultis Faw'!$F$2:$F$26,MATCH($C20,'Shultis Faw'!$A$2:$A$26,1))+($C20-INDEX('Shultis Faw'!$A$2:$A$26,MATCH($C20,'Shultis Faw'!$A$2:$A$26,1)))*(INDEX('Shultis Faw'!$F$2:$F$26,MATCH($C20,'Shultis Faw'!$A$2:$A$26,1)+1)-INDEX('Shultis Faw'!$F$2:$F$26,MATCH($C20,'Shultis Faw'!$A$2:$A$26,1)))/(INDEX('Shultis Faw'!$A$2:$A$26,MATCH($C20,'Shultis Faw'!$A$2:$A$26,1)+1)-INDEX('Shultis Faw'!$A$2:$A$26,MATCH($C20,'Shultis Faw'!$A$2:$A$26,1))),$C20*'Shultis Faw'!$F$2/'Shultis Faw'!$A$2) -> 14.2154264 | N20: =J20*(H20*'Externe blootstelling'!$D$23/2)^K20+L20*(TANH(((H20*'Externe blootstelling'!$D$23)/(2*M20))-2)-TANH(-2))/(1-TANH(-2)) -> 1.826385444 | O20: =IF(N20=1,1+(I20-1)*H20*'Externe blootstelling'!$D$23/2,1+(I20-1)*(N20^(H20*'Externe blootstelling'!$D$23/2)-1)/(N20-1)) -> 5.197219916 | P20: =G20*EXP(-H20*'Externe blootstelling'!$D$23/2)*O20 -> 0.001177025224
B21: g | C21: 0.324651 | D21: 5.194416e-14 | E21: 0.000244 | F21: =_xlfn.IFNA(INDEX('hp (pSv cm2)'!$B$2:$B$52,MATCH($C21,'hp (pSv cm2)'!$A$2:$A$52,1))+($C21-INDEX('hp (pSv cm2)'!$A$2:$A$52,MATCH($C21,'hp (pSv cm2)'!$A$2:$A$52,1)))*(INDEX('hp (pSv cm2)'!$B$2:$B$52,MATCH($C21,'hp (pSv cm2)'!$A$2:$A$52,1)+1)-INDEX('hp (pSv cm2)'!$B$2:$B$52,MATCH($C21,'hp (pSv cm2)'!$A$2:$A$52,1)))/(INDEX('hp (pSv cm2)'!$A$2:$A$52,MATCH($C21,'hp (pSv cm2)'!$A$2:$A$52,1)+1)-INDEX('hp (pSv cm2)'!$A$2:$A$52,MATCH($C21,'hp (pSv cm2)'!$A$2:$A$52,1))),$C21*'hp (pSv cm2)'!$B$2/'hp (pSv cm2)'!$A$2) -> 1.6307899 | G21: 0.0003979127356 | H21: =_xlfn.IFNA(0.997*(INDEX('Mass attenuation coefficients'!$B$2:$B$37,MATCH($C21,'Mass attenuation coefficients'!$A$2:$A$37,1))+($C21-INDEX('Mass attenuation coefficients'!$A$2:$A$37,MATCH($C21,'Mass attenuation coefficients'!$A$2:$A$37,1)))*(INDEX('Mass attenuation coefficients'!$B$2:$B$37,MATCH($C21,'Mass attenuation coefficients'!$A$2:$A$37,1)+1)-INDEX('Mass attenuation coefficients'!$B$2:$B$37,MATCH($C21,'Mass attenuation coefficients'!$A$2:$A$37,1)))/(INDEX('Mass attenuation coefficients'!$A$2:$A$37,MATCH($C21,'Mass attenuation coefficients'!$A$2:$A$37,1)+1)-INDEX('Mass attenuation coefficients'!$A$2:$A$37,MATCH($C21,'Mass attenuation coefficients'!$A$2:$A$37,1)))),0.997*$C21*'Mass attenuation coefficients'!$B$2/'Mass attenuation coefficients'!$A$2) -> 0.1151720691 | I21: =_xlfn.IFNA(INDEX('Shultis Faw'!$C$2:$C$26,MATCH($C21,'Shultis Faw'!$A$2:$A$26,1))+($C21-INDEX('Shultis Faw'!$A$2:$A$26,MATCH($C21,'Shultis Faw'!$A$2:$A$26,1)))*(INDEX('Shultis Faw'!$C$2:$C$26,MATCH($C21,'Shultis Faw'!$A$2:$A$26,1)+1)-INDEX('Shultis Faw'!$C$2:$C$26,MATCH($C21,'Shultis Faw'!$A$2:$A$26,1)))/(INDEX('Shultis Faw'!$A$2:$A$26,MATCH($C21,'Shultis Faw'!$A$2:$A$26,1)+1)-INDEX('Shultis Faw'!$A$2:$A$26,MATCH($C21,'Shultis Faw'!$A$2:$A$26,1))),$C21*'Shultis Faw'!$C$2/'Shultis Faw'!$A$2) -> 2.8559074 | J21: =_xlfn.IFNA(INDEX('Shultis Faw'!$D$2:$D$26,MATCH($C21,'Shultis Faw'!$A$2:$A$26,1))+($C21-INDEX('Shultis Faw'!$A$2:$A$26,MATCH($C21,'Shultis Faw'!$A$2:$A$26,1)))*(INDEX('Shultis Faw'!$D$2:$D$26,MATCH($C21,'Shultis Faw'!$A$2:$A$26,1)+1)-INDEX('Shultis Faw'!$D$2:$D$26,MATCH($C21,'Shultis Faw'!$A$2:$A$26,1)))/(INDEX('Shultis Faw'!$A$2:$A$26,MATCH($C21,'Shultis Faw'!$A$2:$A$26,1)+1)-INDEX('Shultis Faw'!$A$2:$A$26,MATCH($C21,'Shultis Faw'!$A$2:$A$26,1))),$C21*'Shultis Faw'!$D$2/'Shultis Faw'!$A$2) -> 1.9874886 | K21: =_xlfn.IFNA(INDEX('Shultis Faw'!$B$2:$B$26,MATCH($C21,'Shultis Faw'!$A$2:$A$26,1))+($C21-INDEX('Shultis Faw'!$A$2:$A$26,MATCH($C21,'Shultis Faw'!$A$2:$A$26,1)))*(INDEX('Shultis Faw'!$B$2:$B$26,MATCH($C21,'Shultis Faw'!$A$2:$A$26,1)+1)-INDEX('Shultis Faw'!$B$2:$B$26,MATCH($C21,'Shultis Faw'!$A$2:$A$26,1)))/(INDEX('Shultis Faw'!$A$2:$A$26,MATCH($C21,'Shultis Faw'!$A$2:$A$26,1)+1)-INDEX('Shultis Faw'!$A$2:$A$26,MATCH($C21,'Shultis Faw'!$A$2:$A$26,1))),$C21*'Shultis Faw'!$B$2/'Shultis Faw'!$A$2) -> -0.16030235 | L21: =_xlfn.IFNA(INDEX('Shultis Faw'!$E$2:$E$26,MATCH($C21,'Shultis Faw'!$A$2:$A$26,1))+($C21-INDEX('Shultis Faw'!$A$2:$A$26,MATCH($C21,'Shultis Faw'!$A$2:$A$26,1)))*(INDEX('Shultis Faw'!$E$2:$E$26,MATCH($C21,'Shultis Faw'!$A$2:$A$26,1)+1)-INDEX('Shultis Faw'!$E$2:$E$26,MATCH($C21,'Shultis Faw'!$A$2:$A$26,1)))/(INDEX('Shultis Faw'!$A$2:$A$26,MATCH($C21,'Shultis Faw'!$A$2:$A$26,1)+1)-INDEX('Shultis Faw'!$A$2:$A$26,MATCH($C21,'Shultis Faw'!$A$2:$A$26,1))),$C21*'Shultis Faw'!$E$2/'Shultis Faw'!$A$2) -> 0.06402094 | M21: =_xlfn.IFNA(INDEX('Shultis Faw'!$F$2:$F$26,MATCH($C21,'Shultis Faw'!$A$2:$A$26,1))+($C21-INDEX('Shultis Faw'!$A$2:$A$26,MATCH($C21,'Shultis Faw'!$A$2:$A$26,1)))*(INDEX('Shultis Faw'!$F$2:$F$26,MATCH($C21,'Shultis Faw'!$A$2:$A$26,1)+1)-INDEX('Shultis Faw'!$F$2:$F$26,MATCH($C21,'Shultis Faw'!$A$2:$A$26,1)))/(INDEX('Shultis Faw'!$A$2:$A$26,MATCH($C21,'Shultis Faw'!$A$2:$A$26,1)+1)-INDEX('Shultis Faw'!$A$2:$A$26,MATCH($C21,'Shultis Faw'!$A$2:$A$26,1))),$C21*'Shultis Faw'!$F$2/'Shultis Faw'!$A$2) -> 14.2173953 | N21: =J21*(H21*'Externe blootstelling'!$D$23/2)^K21+L21*(TANH(((H21*'Externe blootstelling'!$D$23)/(2*M21))-2)-TANH(-2))/(1-TANH(-2)) -> 1.821033309 | O21: =IF(N21=1,1+(I21-1)*H21*'Externe blootstelling'!$D$23/2,1+(I21-1)*(N21^(H21*'Externe blootstelling'!$D$23/2)-1)/(N21-1)) -> 5.106267145 | P21: =G21*EXP(-H21*'Externe blootstelling'!$D$23/2)*O21 -> 0.0003610875047
B22: g | C22: 0.325789 | D22: 5.212624e-14 | E22: 0.00274 | F22: =_xlfn.IFNA(INDEX('hp (pSv cm2)'!$B$2:$B$52,MATCH($C22,'hp (pSv cm2)'!$A$2:$A$52,1))+($C22-INDEX('hp (pSv cm2)'!$A$2:$A$52,MATCH($C22,'hp (pSv cm2)'!$A$2:$A$52,1)))*(INDEX('hp (pSv cm2)'!$B$2:$B$52,MATCH($C22,'hp (pSv cm2)'!$A$2:$A$52,1)+1)-INDEX('hp (pSv cm2)'!$B$2:$B$52,MATCH($C22,'hp (pSv cm2)'!$A$2:$A$52,1)))/(INDEX('hp (pSv cm2)'!$A$2:$A$52,MATCH($C22,'hp (pSv cm2)'!$A$2:$A$52,1)+1)-INDEX('hp (pSv cm2)'!$A$2:$A$52,MATCH($C22,'hp (pSv cm2)'!$A$2:$A$52,1))),$C22*'hp (pSv cm2)'!$B$2/'hp (pSv cm2)'!$A$2) -> 1.6363661 | G22: 0.004483643114 | H22: =_xlfn.IFNA(0.997*(INDEX('Mass attenuation coefficients'!$B$2:$B$37,MATCH($C22,'Mass attenuation coefficients'!$A$2:$A$37,1))+($C22-INDEX('Mass attenuation coefficients'!$A$2:$A$37,MATCH($C22,'Mass attenuation coefficients'!$A$2:$A$37,1)))*(INDEX('Mass attenuation coefficients'!$B$2:$B$37,MATCH($C22,'Mass attenuation coefficients'!$A$2:$A$37,1)+1)-INDEX('Mass attenuation coefficients'!$B$2:$B$37,MATCH($C22,'Mass attenuation coefficients'!$A$2:$A$37,1)))/(INDEX('Mass attenuation coefficients'!$A$2:$A$37,MATCH($C22,'Mass attenuation coefficients'!$A$2:$A$37,1)+1)-INDEX('Mass attenuation coefficients'!$A$2:$A$37,MATCH($C22,'Mass attenuation coefficients'!$A$2:$A$37,1)))),0.997*$C22*'Mass attenuation coefficients'!$B$2/'Mass attenuation coefficients'!$A$2) -> 0.1150302459 | I22: =_xlfn.IFNA(INDEX('Shultis Faw'!$C$2:$C$26,MATCH($C22,'Shultis Faw'!$A$2:$A$26,1))+($C22-INDEX('Shultis Faw'!$A$2:$A$26,MATCH($C22,'Shultis Faw'!$A$2:$A$26,1)))*(INDEX('Shultis Faw'!$C$2:$C$26,MATCH($C22,'Shultis Faw'!$A$2:$A$26,1)+1)-INDEX('Shultis Faw'!$C$2:$C$26,MATCH($C22,'Shultis Faw'!$A$2:$A$26,1)))/(INDEX('Shultis Faw'!$A$2:$A$26,MATCH($C22,'Shultis Faw'!$A$2:$A$26,1)+1)-INDEX('Shultis Faw'!$A$2:$A$26,MATCH($C22,'Shultis Faw'!$A$2:$A$26,1))),$C22*'Shultis Faw'!$C$2/'Shultis Faw'!$A$2) -> 2.8529486 | J22: =_xlfn.IFNA(INDEX('Shultis Faw'!$D$2:$D$26,MATCH($C22,'Shultis Faw'!$A$2:$A$26,1))+($C22-INDEX('Shultis Faw'!$A$2:$A$26,MATCH($C22,'Shultis Faw'!$A$2:$A$26,1)))*(INDEX('Shultis Faw'!$D$2:$D$26,MATCH($C22,'Shultis Faw'!$A$2:$A$26,1)+1)-INDEX('Shultis Faw'!$D$2:$D$26,MATCH($C22,'Shultis Faw'!$A$2:$A$26,1)))/(INDEX('Shultis Faw'!$A$2:$A$26,MATCH($C22,'Shultis Faw'!$A$2:$A$26,1)+1)-INDEX('Shultis Faw'!$A$2:$A$26,MATCH($C22,'Shultis Faw'!$A$2:$A$26,1))),$C22*'Shultis Faw'!$D$2/'Shultis Faw'!$A$2) -> 1.9858954 | K22: =_xlfn.IFNA(INDEX('Shultis Faw'!$B$2:$B$26,MATCH($C22,'Shultis Faw'!$A$2:$A$26,1))+($C22-INDEX('Shultis Faw'!$A$2:$A$26,MATCH($C22,'Shultis Faw'!$A$2:$A$26,1)))*(INDEX('Shultis Faw'!$B$2:$B$26,MATCH($C22,'Shultis Faw'!$A$2:$A$26,1)+1)-INDEX('Shultis Faw'!$B$2:$B$26,MATCH($C22,'Shultis Faw'!$A$2:$A$26,1)))/(INDEX('Shultis Faw'!$A$2:$A$26,MATCH($C22,'Shultis Faw'!$A$2:$A$26,1)+1)-INDEX('Shultis Faw'!$A$2:$A$26,MATCH($C22,'Shultis Faw'!$A$2:$A$26,1))),$C22*'Shultis Faw'!$B$2/'Shultis Faw'!$A$2) -> -0.16013165 | L22: =_xlfn.IFNA(INDEX('Shultis Faw'!$E$2:$E$26,MATCH($C22,'Shultis Faw'!$A$2:$A$26,1))+($C22-INDEX('Shultis Faw'!$A$2:$A$26,MATCH($C22,'Shultis Faw'!$A$2:$A$26,1)))*(INDEX('Shultis Faw'!$E$2:$E$26,MATCH($C22,'Shultis Faw'!$A$2:$A$26,1)+1)-INDEX('Shultis Faw'!$E$2:$E$26,MATCH($C22,'Shultis Faw'!$A$2:$A$26,1)))/(INDEX('Shultis Faw'!$A$2:$A$26,MATCH($C22,'Shultis Faw'!$A$2:$A$26,1)+1)-INDEX('Shultis Faw'!$A$2:$A$26,MATCH($C22,'Shultis Faw'!$A$2:$A$26,1))),$C22*'Shultis Faw'!$E$2/'Shultis Faw'!$A$2) -> 0.06395266 | M22: =_xlfn.IFNA(INDEX('Shultis Faw'!$F$2:$F$26,MATCH($C22,'Shultis Faw'!$A$2:$A$26,1))+($C22-INDEX('Shultis Faw'!$A$2:$A$26,MATCH($C22,'Shultis Faw'!$A$2:$A$26,1)))*(INDEX('Shultis Faw'!$F$2:$F$26,MATCH($C22,'Shultis Faw'!$A$2:$A$26,1)+1)-INDEX('Shultis Faw'!$F$2:$F$26,MATCH($C22,'Shultis Faw'!$A$2:$A$26,1)))/(INDEX('Shultis Faw'!$A$2:$A$26,MATCH($C22,'Shultis Faw'!$A$2:$A$26,1)+1)-INDEX('Shultis Faw'!$A$2:$A$26,MATCH($C22,'Shultis Faw'!$A$2:$A$26,1))),$C22*'Shultis Faw'!$F$2/'Shultis Faw'!$A$2) -> 14.2177367 | N22: =J22*(H22*'Externe blootstelling'!$D$23/2)^K22+L22*(TANH(((H22*'Externe blootstelling'!$D$23)/(2*M22))-2)-TANH(-2))/(1-TANH(-2)) -> 1.82010183 | O22: =IF(N22=1,1+(I22-1)*H22*'Externe blootstelling'!$D$23/2,1+(I22-1)*(N22^(H22*'Externe blootstelling'!$D$23/2)-1)/(N22-1)) -> 5.09065921 | P22: =G22*EXP(-H22*'Externe blootstelling'!$D$23/2)*O22 -> 0.004064901681
B23: g | C23: 0.3584 | D23: 5.7344e-14 | E23: 0.00017 | F23: =_xlfn.IFNA(INDEX('hp (pSv cm2)'!$B$2:$B$52,MATCH($C23,'hp (pSv cm2)'!$A$2:$A$52,1))+($C23-INDEX('hp (pSv cm2)'!$A$2:$A$52,MATCH($C23,'hp (pSv cm2)'!$A$2:$A$52,1)))*(INDEX('hp (pSv cm2)'!$B$2:$B$52,MATCH($C23,'hp (pSv cm2)'!$A$2:$A$52,1)+1)-INDEX('hp (pSv cm2)'!$B$2:$B$52,MATCH($C23,'hp (pSv cm2)'!$A$2:$A$52,1)))/(INDEX('hp (pSv cm2)'!$A$2:$A$52,MATCH($C23,'hp (pSv cm2)'!$A$2:$A$52,1)+1)-INDEX('hp (pSv cm2)'!$A$2:$A$52,MATCH($C23,'hp (pSv cm2)'!$A$2:$A$52,1))),$C23*'hp (pSv cm2)'!$B$2/'hp (pSv cm2)'!$A$2) -> 1.79616 | G23: 0.0003053472 | H23: =_xlfn.IFNA(0.997*(INDEX('Mass attenuation coefficients'!$B$2:$B$37,MATCH($C23,'Mass attenuation coefficients'!$A$2:$A$37,1))+($C23-INDEX('Mass attenuation coefficients'!$A$2:$A$37,MATCH($C23,'Mass attenuation coefficients'!$A$2:$A$37,1)))*(INDEX('Mass attenuation coefficients'!$B$2:$B$37,MATCH($C23,'Mass attenuation coefficients'!$A$2:$A$37,1)+1)-INDEX('Mass attenuation coefficients'!$B$2:$B$37,MATCH($C23,'Mass attenuation coefficients'!$A$2:$A$37,1)))/(INDEX('Mass attenuation coefficients'!$A$2:$A$37,MATCH($C23,'Mass attenuation coefficients'!$A$2:$A$37,1)+1)-INDEX('Mass attenuation coefficients'!$A$2:$A$37,MATCH($C23,'Mass attenuation coefficients'!$A$2:$A$37,1)))),0.997*$C23*'Mass attenuation coefficients'!$B$2/'Mass attenuation coefficients'!$A$2) -> 0.1109661 | I23: =_xlfn.IFNA(INDEX('Shultis Faw'!$C$2:$C$26,MATCH($C23,'Shultis Faw'!$A$2:$A$26,1))+($C23-INDEX('Shultis Faw'!$A$2:$A$26,MATCH($C23,'Shultis Faw'!$A$2:$A$26,1)))*(INDEX('Shultis Faw'!$C$2:$C$26,MATCH($C23,'Shultis Faw'!$A$2:$A$26,1)+1)-INDEX('Shultis Faw'!$C$2:$C$26,MATCH($C23,'Shultis Faw'!$A$2:$A$26,1)))/(INDEX('Shultis Faw'!$A$2:$A$26,MATCH($C23,'Shultis Faw'!$A$2:$A$26,1)+1)-INDEX('Shultis Faw'!$A$2:$A$26,MATCH($C23,'Shultis Faw'!$A$2:$A$26,1))),$C23*'Shultis Faw'!$C$2/'Shultis Faw'!$A$2) -> 2.76816 | J23: =_xlfn.IFNA(INDEX('Shultis Faw'!$D$2:$D$26,MATCH($C23,'Shultis Faw'!$A$2:$A$26,1))+($C23-INDEX('Shultis Faw'!$A$2:$A$26,MATCH($C23,'Shultis Faw'!$A$2:$A$26,1)))*(INDEX('Shultis Faw'!$D$2:$D$26,MATCH($C23,'Shultis Faw'!$A$2:$A$26,1)+1)-INDEX('Shultis Faw'!$D$2:$D$26,MATCH($C23,'Shultis Faw'!$A$2:$A$26,1)))/(INDEX('Shultis Faw'!$A$2:$A$26,MATCH($C23,'Shultis Faw'!$A$2:$A$26,1)+1)-INDEX('Shultis Faw'!$A$2:$A$26,MATCH($C23,'Shultis Faw'!$A$2:$A$26,1))),$C23*'Shultis Faw'!$D$2/'Shultis Faw'!$A$2) -> 1.94024 | K23: =_xlfn.IFNA(INDEX('Shultis Faw'!$B$2:$B$26,MATCH($C23,'Shultis Faw'!$A$2:$A$26,1))+($C23-INDEX('Shultis Faw'!$A$2:$A$26,MATCH($C23,'Shultis Faw'!$A$2:$A$26,1)))*(INDEX('Shultis Faw'!$B$2:$B$26,MATCH($C23,'Shultis Faw'!$A$2:$A$26,1)+1)-INDEX('Shultis Faw'!$B$2:$B$26,MATCH($C23,'Shultis Faw'!$A$2:$A$26,1)))/(INDEX('Shultis Faw'!$A$2:$A$26,MATCH($C23,'Shultis Faw'!$A$2:$A$26,1)+1)-INDEX('Shultis Faw'!$A$2:$A$26,MATCH($C23,'Shultis Faw'!$A$2:$A$26,1))),$C23*'Shultis Faw'!$B$2/'Shultis Faw'!$A$2) -> -0.15524 | L23: =_xlfn.IFNA(INDEX('Shultis Faw'!$E$2:$E$26,MATCH($C23,'Shultis Faw'!$A$2:$A$26,1))+($C23-INDEX('Shultis Faw'!$A$2:$A$26,MATCH($C23,'Shultis Faw'!$A$2:$A$26,1)))*(INDEX('Shultis Faw'!$E$2:$E$26,MATCH($C23,'Shultis Faw'!$A$2:$A$26,1)+1)-INDEX('Shultis Faw'!$E$2:$E$26,MATCH($C23,'Shultis Faw'!$A$2:$A$26,1)))/(INDEX('Shultis Faw'!$A$2:$A$26,MATCH($C23,'Shultis Faw'!$A$2:$A$26,1)+1)-INDEX('Shultis Faw'!$A$2:$A$26,MATCH($C23,'Shultis Faw'!$A$2:$A$26,1))),$C23*'Shultis Faw'!$E$2/'Shultis Faw'!$A$2) -> 0.061996 | M23: =_xlfn.IFNA(INDEX('Shultis Faw'!$F$2:$F$26,MATCH($C23,'Shultis Faw'!$A$2:$A$26,1))+($C23-INDEX('Shultis Faw'!$A$2:$A$26,MATCH($C23,'Shultis Faw'!$A$2:$A$26,1)))*(INDEX('Shultis Faw'!$F$2:$F$26,MATCH($C23,'Shultis Faw'!$A$2:$A$26,1)+1)-INDEX('Shultis Faw'!$F$2:$F$26,MATCH($C23,'Shultis Faw'!$A$2:$A$26,1)))/(INDEX('Shultis Faw'!$A$2:$A$26,MATCH($C23,'Shultis Faw'!$A$2:$A$26,1)+1)-INDEX('Shultis Faw'!$A$2:$A$26,MATCH($C23,'Shultis Faw'!$A$2:$A$26,1))),$C23*'Shultis Faw'!$F$2/'Shultis Faw'!$A$2) -> 14.22752 | N23: =J23*(H23*'Externe blootstelling'!$D$23/2)^K23+L23*(TANH(((H23*'Externe blootstelling'!$D$23)/(2*M23))-2)-TANH(-2))/(1-TANH(-2)) -> 1.7929764 | O23: =IF(N23=1,1+(I23-1)*H23*'Externe blootstelling'!$D$23/2,1+(I23-1)*(N23^(H23*'Externe blootstelling'!$D$23/2)-1)/(N23-1)) -> 4.663190839 | P23: =G23*EXP(-H23*'Externe blootstelling'!$D$23/2)*O23 -> 0.0002695241328
B24: g | C24: 0.364489 | D24: 5.831824e-14 | E24: 0.812 | F24: =_xlfn.IFNA(INDEX('hp (pSv cm2)'!$B$2:$B$52,MATCH($C24,'hp (pSv cm2)'!$A$2:$A$52,1))+($C24-INDEX('hp (pSv cm2)'!$A$2:$A$52,MATCH($C24,'hp (pSv cm2)'!$A$2:$A$52,1)))*(INDEX('hp (pSv cm2)'!$B$2:$B$52,MATCH($C24,'hp (pSv cm2)'!$A$2:$A$52,1)+1)-INDEX('hp (pSv cm2)'!$B$2:$B$52,MATCH($C24,'hp (pSv cm2)'!$A$2:$A$52,1)))/(INDEX('hp (pSv cm2)'!$A$2:$A$52,MATCH($C24,'hp (pSv cm2)'!$A$2:$A$52,1)+1)-INDEX('hp (pSv cm2)'!$A$2:$A$52,MATCH($C24,'hp (pSv cm2)'!$A$2:$A$52,1))),$C24*'hp (pSv cm2)'!$B$2/'hp (pSv cm2)'!$A$2) -> 1.8259961 | G24: 1.482708833 | H24: =_xlfn.IFNA(0.997*(INDEX('Mass attenuation coefficients'!$B$2:$B$37,MATCH($C24,'Mass attenuation coefficients'!$A$2:$A$37,1))+($C24-INDEX('Mass attenuation coefficients'!$A$2:$A$37,MATCH($C24,'Mass attenuation coefficients'!$A$2:$A$37,1)))*(INDEX('Mass attenuation coefficients'!$B$2:$B$37,MATCH($C24,'Mass attenuation coefficients'!$A$2:$A$37,1)+1)-INDEX('Mass attenuation coefficients'!$B$2:$B$37,MATCH($C24,'Mass attenuation coefficients'!$A$2:$A$37,1)))/(INDEX('Mass attenuation coefficients'!$A$2:$A$37,MATCH($C24,'Mass attenuation coefficients'!$A$2:$A$37,1)+1)-INDEX('Mass attenuation coefficients'!$A$2:$A$37,MATCH($C24,'Mass attenuation coefficients'!$A$2:$A$37,1)))),0.997*$C24*'Mass attenuation coefficients'!$B$2/'Mass attenuation coefficients'!$A$2) -> 0.1102072584 | I24: =_xlfn.IFNA(INDEX('Shultis Faw'!$C$2:$C$26,MATCH($C24,'Shultis Faw'!$A$2:$A$26,1))+($C24-INDEX('Shultis Faw'!$A$2:$A$26,MATCH($C24,'Shultis Faw'!$A$2:$A$26,1)))*(INDEX('Shultis Faw'!$C$2:$C$26,MATCH($C24,'Shultis Faw'!$A$2:$A$26,1)+1)-INDEX('Shultis Faw'!$C$2:$C$26,MATCH($C24,'Shultis Faw'!$A$2:$A$26,1)))/(INDEX('Shultis Faw'!$A$2:$A$26,MATCH($C24,'Shultis Faw'!$A$2:$A$26,1)+1)-INDEX('Shultis Faw'!$A$2:$A$26,MATCH($C24,'Shultis Faw'!$A$2:$A$26,1))),$C24*'Shultis Faw'!$C$2/'Shultis Faw'!$A$2) -> 2.7523286 | J24: =_xlfn.IFNA(INDEX('Shultis Faw'!$D$2:$D$26,MATCH($C24,'Shultis Faw'!$A$2:$A$26,1))+($C24-INDEX('Shultis Faw'!$A$2:$A$26,MATCH($C24,'Shultis Faw'!$A$2:$A$26,1)))*(INDEX('Shultis Faw'!$D$2:$D$26,MATCH($C24,'Shultis Faw'!$A$2:$A$26,1)+1)-INDEX('Shultis Faw'!$D$2:$D$26,MATCH($C24,'Shultis Faw'!$A$2:$A$26,1)))/(INDEX('Shultis Faw'!$A$2:$A$26,MATCH($C24,'Shultis Faw'!$A$2:$A$26,1)+1)-INDEX('Shultis Faw'!$A$2:$A$26,MATCH($C24,'Shultis Faw'!$A$2:$A$26,1))),$C24*'Shultis Faw'!$D$2/'Shultis Faw'!$A$2) -> 1.9317154 | K24: =_xlfn.IFNA(INDEX('Shultis Faw'!$B$2:$B$26,MATCH($C24,'Shultis Faw'!$A$2:$A$26,1))+($C24-INDEX('Shultis Faw'!$A$2:$A$26,MATCH($C24,'Shultis Faw'!$A$2:$A$26,1)))*(INDEX('Shultis Faw'!$B$2:$B$26,MATCH($C24,'Shultis Faw'!$A$2:$A$26,1)+1)-INDEX('Shultis Faw'!$B$2:$B$26,MATCH($C24,'Shultis Faw'!$A$2:$A$26,1)))/(INDEX('Shultis Faw'!$A$2:$A$26,MATCH($C24,'Shultis Faw'!$A$2:$A$26,1)+1)-INDEX('Shultis Faw'!$A$2:$A$26,MATCH($C24,'Shultis Faw'!$A$2:$A$26,1))),$C24*'Shultis Faw'!$B$2/'Shultis Faw'!$A$2) -> -0.15432665 | L24: =_xlfn.IFNA(INDEX('Shultis Faw'!$E$2:$E$26,MATCH($C24,'Shultis Faw'!$A$2:$A$26,1))+($C24-INDEX('Shultis Faw'!$A$2:$A$26,MATCH($C24,'Shultis Faw'!$A$2:$A$26,1)))*(INDEX('Shultis Faw'!$E$2:$E$26,MATCH($C24,'Shultis Faw'!$A$2:$A$26,1)+1)-INDEX('Shultis Faw'!$E$2:$E$26,MATCH($C24,'Shultis Faw'!$A$2:$A$26,1)))/(INDEX('Shultis Faw'!$A$2:$A$26,MATCH($C24,'Shultis Faw'!$A$2:$A$26,1)+1)-INDEX('Shultis Faw'!$A$2:$A$26,MATCH($C24,'Shultis Faw'!$A$2:$A$26,1))),$C24*'Shultis Faw'!$E$2/'Shultis Faw'!$A$2) -> 0.06163066 | M24: =_xlfn.IFNA(INDEX('Shultis Faw'!$F$2:$F$26,MATCH($C24,'Shultis Faw'!$A$2:$A$26,1))+($C24-INDEX('Shultis Faw'!$A$2:$A$26,MATCH($C24,'Shultis Faw'!$A$2:$A$26,1)))*(INDEX('Shultis Faw'!$F$2:$F$26,MATCH($C24,'Shultis Faw'!$A$2:$A$26,1)+1)-INDEX('Shultis Faw'!$F$2:$F$26,MATCH($C24,'Shultis Faw'!$A$2:$A$26,1)))/(INDEX('Shultis Faw'!$A$2:$A$26,MATCH($C24,'Shultis Faw'!$A$2:$A$26,1)+1)-INDEX('Shultis Faw'!$A$2:$A$26,MATCH($C24,'Shultis Faw'!$A$2:$A$26,1))),$C24*'Shultis Faw'!$F$2/'Shultis Faw'!$A$2) -> 14.2293467 | N24: =J24*(H24*'Externe blootstelling'!$D$23/2)^K24+L24*(TANH(((H24*'Externe blootstelling'!$D$23)/(2*M24))-2)-TANH(-2))/(1-TANH(-2)) -> 1.787818875 | O24: =IF(N24=1,1+(I24-1)*H24*'Externe blootstelling'!$D$23/2,1+(I24-1)*(N24^(H24*'Externe blootstelling'!$D$23/2)-1)/(N24-1)) -> 4.587478045 | P24: =G24*EXP(-H24*'Externe blootstelling'!$D$23/2)*O24 -> 1.302248336
B25: g | C25: 0.404814 | D25: 6.477024e-14 | E25: 0.000552 | F25: =_xlfn.IFNA(INDEX('hp (pSv cm2)'!$B$2:$B$52,MATCH($C25,'hp (pSv cm2)'!$A$2:$A$52,1))+($C25-INDEX('hp (pSv cm2)'!$A$2:$A$52,MATCH($C25,'hp (pSv cm2)'!$A$2:$A$52,1)))*(INDEX('hp (pSv cm2)'!$B$2:$B$52,MATCH($C25,'hp (pSv cm2)'!$A$2:$A$52,1)+1)-INDEX('hp (pSv cm2)'!$B$2:$B$52,MATCH($C25,'hp (pSv cm2)'!$A$2:$A$52,1)))/(INDEX('hp (pSv cm2)'!$A$2:$A$52,MATCH($C25,'hp (pSv cm2)'!$A$2:$A$52,1)+1)-INDEX('hp (pSv cm2)'!$A$2:$A$52,MATCH($C25,'hp (pSv cm2)'!$A$2:$A$52,1))),$C25*'hp (pSv cm2)'!$B$2/'hp (pSv cm2)'!$A$2) -> 2.0226258 | G25: 0.001116489442 | H25: =_xlfn.IFNA(0.997*(INDEX('Mass attenuation coefficients'!$B$2:$B$37,MATCH($C25,'Mass attenuation coefficients'!$A$2:$A$37,1))+($C25-INDEX('Mass attenuation coefficients'!$A$2:$A$37,MATCH($C25,'Mass attenuation coefficients'!$A$2:$A$37,1)))*(INDEX('Mass attenuation coefficients'!$B$2:$B$37,MATCH($C25,'Mass attenuation coefficients'!$A$2:$A$37,1)+1)-INDEX('Mass attenuation coefficients'!$B$2:$B$37,MATCH($C25,'Mass attenuation coefficients'!$A$2:$A$37,1)))/(INDEX('Mass attenuation coefficients'!$A$2:$A$37,MATCH($C25,'Mass attenuation coefficients'!$A$2:$A$37,1)+1)-INDEX('Mass attenuation coefficients'!$A$2:$A$37,MATCH($C25,'Mass attenuation coefficients'!$A$2:$A$37,1)))),0.997*$C25*'Mass attenuation coefficients'!$B$2/'Mass attenuation coefficients'!$A$2) -> 0.1053387008 | I25: =_xlfn.IFNA(INDEX('Shultis Faw'!$C$2:$C$26,MATCH($C25,'Shultis Faw'!$A$2:$A$26,1))+($C25-INDEX('Shultis Faw'!$A$2:$A$26,MATCH($C25,'Shultis Faw'!$A$2:$A$26,1)))*(INDEX('Shultis Faw'!$C$2:$C$26,MATCH($C25,'Shultis Faw'!$A$2:$A$26,1)+1)-INDEX('Shultis Faw'!$C$2:$C$26,MATCH($C25,'Shultis Faw'!$A$2:$A$26,1)))/(INDEX('Shultis Faw'!$A$2:$A$26,MATCH($C25,'Shultis Faw'!$A$2:$A$26,1)+1)-INDEX('Shultis Faw'!$A$2:$A$26,MATCH($C25,'Shultis Faw'!$A$2:$A$26,1))),$C25*'Shultis Faw'!$C$2/'Shultis Faw'!$A$2) -> 2.6522976 | J25: =_xlfn.IFNA(INDEX('Shultis Faw'!$D$2:$D$26,MATCH($C25,'Shultis Faw'!$A$2:$A$26,1))+($C25-INDEX('Shultis Faw'!$A$2:$A$26,MATCH($C25,'Shultis Faw'!$A$2:$A$26,1)))*(INDEX('Shultis Faw'!$D$2:$D$26,MATCH($C25,'Shultis Faw'!$A$2:$A$26,1)+1)-INDEX('Shultis Faw'!$D$2:$D$26,MATCH($C25,'Shultis Faw'!$A$2:$A$26,1)))/(INDEX('Shultis Faw'!$A$2:$A$26,MATCH($C25,'Shultis Faw'!$A$2:$A$26,1)+1)-INDEX('Shultis Faw'!$A$2:$A$26,MATCH($C25,'Shultis Faw'!$A$2:$A$26,1))),$C25*'Shultis Faw'!$D$2/'Shultis Faw'!$A$2) -> 1.87641576 | K25: =_xlfn.IFNA(INDEX('Shultis Faw'!$B$2:$B$26,MATCH($C25,'Shultis Faw'!$A$2:$A$26,1))+($C25-INDEX('Shultis Faw'!$A$2:$A$26,MATCH($C25,'Shultis Faw'!$A$2:$A$26,1)))*(INDEX('Shultis Faw'!$B$2:$B$26,MATCH($C25,'Shultis Faw'!$A$2:$A$26,1)+1)-INDEX('Shultis Faw'!$B$2:$B$26,MATCH($C25,'Shultis Faw'!$A$2:$A$26,1)))/(INDEX('Shultis Faw'!$A$2:$A$26,MATCH($C25,'Shultis Faw'!$A$2:$A$26,1)+1)-INDEX('Shultis Faw'!$A$2:$A$26,MATCH($C25,'Shultis Faw'!$A$2:$A$26,1))),$C25*'Shultis Faw'!$B$2/'Shultis Faw'!$A$2) -> -0.14832604 | L25: =_xlfn.IFNA(INDEX('Shultis Faw'!$E$2:$E$26,MATCH($C25,'Shultis Faw'!$A$2:$A$26,1))+($C25-INDEX('Shultis Faw'!$A$2:$A$26,MATCH($C25,'Shultis Faw'!$A$2:$A$26,1)))*(INDEX('Shultis Faw'!$E$2:$E$26,MATCH($C25,'Shultis Faw'!$A$2:$A$26,1)+1)-INDEX('Shultis Faw'!$E$2:$E$26,MATCH($C25,'Shultis Faw'!$A$2:$A$26,1)))/(INDEX('Shultis Faw'!$A$2:$A$26,MATCH($C25,'Shultis Faw'!$A$2:$A$26,1)+1)-INDEX('Shultis Faw'!$A$2:$A$26,MATCH($C25,'Shultis Faw'!$A$2:$A$26,1))),$C25*'Shultis Faw'!$E$2/'Shultis Faw'!$A$2) -> 0.059264114 | M25: =_xlfn.IFNA(INDEX('Shultis Faw'!$F$2:$F$26,MATCH($C25,'Shultis Faw'!$A$2:$A$26,1))+($C25-INDEX('Shultis Faw'!$A$2:$A$26,MATCH($C25,'Shultis Faw'!$A$2:$A$26,1)))*(INDEX('Shultis Faw'!$F$2:$F$26,MATCH($C25,'Shultis Faw'!$A$2:$A$26,1)+1)-INDEX('Shultis Faw'!$F$2:$F$26,MATCH($C25,'Shultis Faw'!$A$2:$A$26,1)))/(INDEX('Shultis Faw'!$A$2:$A$26,MATCH($C25,'Shultis Faw'!$A$2:$A$26,1)+1)-INDEX('Shultis Faw'!$A$2:$A$26,MATCH($C25,'Shultis Faw'!$A$2:$A$26,1))),$C25*'Shultis Faw'!$F$2/'Shultis Faw'!$A$2) -> 14.2443326 | N25: =J25*(H25*'Externe blootstelling'!$D$23/2)^K25+L25*(TANH(((H25*'Externe blootstelling'!$D$23)/(2*M25))-2)-TANH(-2))/(1-TANH(-2)) -> 1.753577871 | O25: =IF(N25=1,1+(I25-1)*H25*'Externe blootstelling'!$D$23/2,1+(I25-1)*(N25^(H25*'Externe blootstelling'!$D$23/2)-1)/(N25-1)) -> 4.133153537 | P25: =G25*EXP(-H25*'Externe blootstelling'!$D$23/2)*O25 -> 0.0009504207549
B26: g | C26: 0.503004 | D26: 8.048064e-14 | E26: 0.00354 | F26: =_xlfn.IFNA(INDEX('hp (pSv cm2)'!$B$2:$B$52,MATCH($C26,'hp (pSv cm2)'!$A$2:$A$52,1))+($C26-INDEX('hp (pSv cm2)'!$A$2:$A$52,MATCH($C26,'hp (pSv cm2)'!$A$2:$A$52,1)))*(INDEX('hp (pSv cm2)'!$B$2:$B$52,MATCH($C26,'hp (pSv cm2)'!$A$2:$A$52,1)+1)-INDEX('hp (pSv cm2)'!$B$2:$B$52,MATCH($C26,'hp (pSv cm2)'!$A$2:$A$52,1)))/(INDEX('hp (pSv cm2)'!$A$2:$A$52,MATCH($C26,'hp (pSv cm2)'!$A$2:$A$52,1)+1)-INDEX('hp (pSv cm2)'!$A$2:$A$52,MATCH($C26,'hp (pSv cm2)'!$A$2:$A$52,1))),$C26*'hp (pSv cm2)'!$B$2/'hp (pSv cm2)'!$A$2) -> 2.4832176 | G26: 0.008790590304 | H26: =_xlfn.IFNA(0.997*(INDEX('Mass attenuation coefficients'!$B$2:$B$37,MATCH($C26,'Mass attenuation coefficients'!$A$2:$A$37,1))+($C26-INDEX('Mass attenuation coefficients'!$A$2:$A$37,MATCH($C26,'Mass attenuation coefficients'!$A$2:$A$37,1)))*(INDEX('Mass attenuation coefficients'!$B$2:$B$37,MATCH($C26,'Mass attenuation coefficients'!$A$2:$A$37,1)+1)-INDEX('Mass attenuation coefficients'!$B$2:$B$37,MATCH($C26,'Mass attenuation coefficients'!$A$2:$A$37,1)))/(INDEX('Mass attenuation coefficients'!$A$2:$A$37,MATCH($C26,'Mass attenuation coefficients'!$A$2:$A$37,1)+1)-INDEX('Mass attenuation coefficients'!$A$2:$A$37,MATCH($C26,'Mass attenuation coefficients'!$A$2:$A$37,1)))),0.997*$C26*'Mass attenuation coefficients'!$B$2/'Mass attenuation coefficients'!$A$2) -> 0.09636045638 | I26: =_xlfn.IFNA(INDEX('Shultis Faw'!$C$2:$C$26,MATCH($C26,'Shultis Faw'!$A$2:$A$26,1))+($C26-INDEX('Shultis Faw'!$A$2:$A$26,MATCH($C26,'Shultis Faw'!$A$2:$A$26,1)))*(INDEX('Shultis Faw'!$C$2:$C$26,MATCH($C26,'Shultis Faw'!$A$2:$A$26,1)+1)-INDEX('Shultis Faw'!$C$2:$C$26,MATCH($C26,'Shultis Faw'!$A$2:$A$26,1)))/(INDEX('Shultis Faw'!$A$2:$A$26,MATCH($C26,'Shultis Faw'!$A$2:$A$26,1)+1)-INDEX('Shultis Faw'!$A$2:$A$26,MATCH($C26,'Shultis Faw'!$A$2:$A$26,1))),$C26*'Shultis Faw'!$C$2/'Shultis Faw'!$A$2) -> 2.49630508 | J26: =_xlfn.IFNA(INDEX('Shultis Faw'!$D$2:$D$26,MATCH($C26,'Shultis Faw'!$A$2:$A$26,1))+($C26-INDEX('Shultis Faw'!$A$2:$A$26,MATCH($C26,'Shultis Faw'!$A$2:$A$26,1)))*(INDEX('Shultis Faw'!$D$2:$D$26,MATCH($C26,'Shultis Faw'!$A$2:$A$26,1)+1)-INDEX('Shultis Faw'!$D$2:$D$26,MATCH($C26,'Shultis Faw'!$A$2:$A$26,1)))/(INDEX('Shultis Faw'!$A$2:$A$26,MATCH($C26,'Shultis Faw'!$A$2:$A$26,1)+1)-INDEX('Shultis Faw'!$A$2:$A$26,MATCH($C26,'Shultis Faw'!$A$2:$A$26,1))),$C26*'Shultis Faw'!$D$2/'Shultis Faw'!$A$2) -> 1.76338652 | K26: =_xlfn.IFNA(INDEX('Shultis Faw'!$B$2:$B$26,MATCH($C26,'Shultis Faw'!$A$2:$A$26,1))+($C26-INDEX('Shultis Faw'!$A$2:$A$26,MATCH($C26,'Shultis Faw'!$A$2:$A$26,1)))*(INDEX('Shultis Faw'!$B$2:$B$26,MATCH($C26,'Shultis Faw'!$A$2:$A$26,1)+1)-INDEX('Shultis Faw'!$B$2:$B$26,MATCH($C26,'Shultis Faw'!$A$2:$A$26,1)))/(INDEX('Shultis Faw'!$A$2:$A$26,MATCH($C26,'Shultis Faw'!$A$2:$A$26,1)+1)-INDEX('Shultis Faw'!$A$2:$A$26,MATCH($C26,'Shultis Faw'!$A$2:$A$26,1))),$C26*'Shultis Faw'!$B$2/'Shultis Faw'!$A$2) -> -0.13466956 | L26: =_xlfn.IFNA(INDEX('Shultis Faw'!$E$2:$E$26,MATCH($C26,'Shultis Faw'!$A$2:$A$26,1))+($C26-INDEX('Shultis Faw'!$A$2:$A$26,MATCH($C26,'Shultis Faw'!$A$2:$A$26,1)))*(INDEX('Shultis Faw'!$E$2:$E$26,MATCH($C26,'Shultis Faw'!$A$2:$A$26,1)+1)-INDEX('Shultis Faw'!$E$2:$E$26,MATCH($C26,'Shultis Faw'!$A$2:$A$26,1)))/(INDEX('Shultis Faw'!$A$2:$A$26,MATCH($C26,'Shultis Faw'!$A$2:$A$26,1)+1)-INDEX('Shultis Faw'!$A$2:$A$26,MATCH($C26,'Shultis Faw'!$A$2:$A$26,1))),$C26*'Shultis Faw'!$E$2/'Shultis Faw'!$A$2) -> 0.054470828 | M26: =_xlfn.IFNA(INDEX('Shultis Faw'!$F$2:$F$26,MATCH($C26,'Shultis Faw'!$A$2:$A$26,1))+($C26-INDEX('Shultis Faw'!$A$2:$A$26,MATCH($C26,'Shultis Faw'!$A$2:$A$26,1)))*(INDEX('Shultis Faw'!$F$2:$F$26,MATCH($C26,'Shultis Faw'!$A$2:$A$26,1)+1)-INDEX('Shultis Faw'!$F$2:$F$26,MATCH($C26,'Shultis Faw'!$A$2:$A$26,1)))/(INDEX('Shultis Faw'!$A$2:$A$26,MATCH($C26,'Shultis Faw'!$A$2:$A$26,1)+1)-INDEX('Shultis Faw'!$A$2:$A$26,MATCH($C26,'Shultis Faw'!$A$2:$A$26,1))),$C26*'Shultis Faw'!$F$2/'Shultis Faw'!$A$2) -> 14.326996 | N26: =J26*(H26*'Externe blootstelling'!$D$23/2)^K26+L26*(TANH(((H26*'Externe blootstelling'!$D$23)/(2*M26))-2)-TANH(-2))/(1-TANH(-2)) -> 1.678255882 | O26: =IF(N26=1,1+(I26-1)*H26*'Externe blootstelling'!$D$23/2,1+(I26-1)*(N26^(H26*'Externe blootstelling'!$D$23/2)-1)/(N26-1)) -> 3.456600016 | P26: =G26*EXP(-H26*'Externe blootstelling'!$D$23/2)*O26 -> 0.007160361522
B27: g | C27: 0.636989 | D27: 1.0191824e-13 | E27: 0.0712 | F27: =_xlfn.IFNA(INDEX('hp (pSv cm2)'!$B$2:$B$52,MATCH($C27,'hp (pSv cm2)'!$A$2:$A$52,1))+($C27-INDEX('hp (pSv cm2)'!$A$2:$A$52,MATCH($C27,'hp (pSv cm2)'!$A$2:$A$52,1)))*(INDEX('hp (pSv cm2)'!$B$2:$B$52,MATCH($C27,'hp (pSv cm2)'!$A$2:$A$52,1)+1)-INDEX('hp (pSv cm2)'!$B$2:$B$52,MATCH($C27,'hp (pSv cm2)'!$A$2:$A$52,1)))/(INDEX('hp (pSv cm2)'!$A$2:$A$52,MATCH($C27,'hp (pSv cm2)'!$A$2:$A$52,1)+1)-INDEX('hp (pSv cm2)'!$A$2:$A$52,MATCH($C27,'hp (pSv cm2)'!$A$2:$A$52,1))),$C27*'hp (pSv cm2)'!$B$2/'hp (pSv cm2)'!$A$2) -> 3.0616549 | G27: 0.2179898289 | H27: =_xlfn.IFNA(0.997*(INDEX('Mass attenuation coefficients'!$B$2:$B$37,MATCH($C27,'Mass attenuation coefficients'!$A$2:$A$37,1))+($C27-INDEX('Mass attenuation coefficients'!$A$2:$A$37,MATCH($C27,'Mass attenuation coefficients'!$A$2:$A$37,1)))*(INDEX('Mass attenuation coefficients'!$B$2:$B$37,MATCH($C27,'Mass attenuation coefficients'!$A$2:$A$37,1)+1)-INDEX('Mass attenuation coefficients'!$B$2:$B$37,MATCH($C27,'Mass attenuation coefficients'!$A$2:$A$37,1)))/(INDEX('Mass attenuation coefficients'!$A$2:$A$37,MATCH($C27,'Mass attenuation coefficients'!$A$2:$A$37,1)+1)-INDEX('Mass attenuation coefficients'!$A$2:$A$37,MATCH($C27,'Mass attenuation coefficients'!$A$2:$A$37,1)))),0.997*$C27*'Mass attenuation coefficients'!$B$2/'Mass attenuation coefficients'!$A$2) -> 0.0872796233 | I27: =_xlfn.IFNA(INDEX('Shultis Faw'!$C$2:$C$26,MATCH($C27,'Shultis Faw'!$A$2:$A$26,1))+($C27-INDEX('Shultis Faw'!$A$2:$A$26,MATCH($C27,'Shultis Faw'!$A$2:$A$26,1)))*(INDEX('Shultis Faw'!$C$2:$C$26,MATCH($C27,'Shultis Faw'!$A$2:$A$26,1)+1)-INDEX('Shultis Faw'!$C$2:$C$26,MATCH($C27,'Shultis Faw'!$A$2:$A$26,1)))/(INDEX('Shultis Faw'!$A$2:$A$26,MATCH($C27,'Shultis Faw'!$A$2:$A$26,1)+1)-INDEX('Shultis Faw'!$A$2:$A$26,MATCH($C27,'Shultis Faw'!$A$2:$A$26,1))),$C27*'Shultis Faw'!$C$2/'Shultis Faw'!$A$2) -> 2.346484075 | J27: =_xlfn.IFNA(INDEX('Shultis Faw'!$D$2:$D$26,MATCH($C27,'Shultis Faw'!$A$2:$A$26,1))+($C27-INDEX('Shultis Faw'!$A$2:$A$26,MATCH($C27,'Shultis Faw'!$A$2:$A$26,1)))*(INDEX('Shultis Faw'!$D$2:$D$26,MATCH($C27,'Shultis Faw'!$A$2:$A$26,1)+1)-INDEX('Shultis Faw'!$D$2:$D$26,MATCH($C27,'Shultis Faw'!$A$2:$A$26,1)))/(INDEX('Shultis Faw'!$A$2:$A$26,MATCH($C27,'Shultis Faw'!$A$2:$A$26,1)+1)-INDEX('Shultis Faw'!$A$2:$A$26,MATCH($C27,'Shultis Faw'!$A$2:$A$26,1))),$C27*'Shultis Faw'!$D$2/'Shultis Faw'!$A$2) -> 1.654032425 | K27: =_xlfn.IFNA(INDEX('Shultis Faw'!$B$2:$B$26,MATCH($C27,'Shultis Faw'!$A$2:$A$26,1))+($C27-INDEX('Shultis Faw'!$A$2:$A$26,MATCH($C27,'Shultis Faw'!$A$2:$A$26,1)))*(INDEX('Shultis Faw'!$B$2:$B$26,MATCH($C27,'Shultis Faw'!$A$2:$A$26,1)+1)-INDEX('Shultis Faw'!$B$2:$B$26,MATCH($C27,'Shultis Faw'!$A$2:$A$26,1)))/(INDEX('Shultis Faw'!$A$2:$A$26,MATCH($C27,'Shultis Faw'!$A$2:$A$26,1)+1)-INDEX('Shultis Faw'!$A$2:$A$26,MATCH($C27,'Shultis Faw'!$A$2:$A$26,1))),$C27*'Shultis Faw'!$B$2/'Shultis Faw'!$A$2) -> -0.120486045 | L27: =_xlfn.IFNA(INDEX('Shultis Faw'!$E$2:$E$26,MATCH($C27,'Shultis Faw'!$A$2:$A$26,1))+($C27-INDEX('Shultis Faw'!$A$2:$A$26,MATCH($C27,'Shultis Faw'!$A$2:$A$26,1)))*(INDEX('Shultis Faw'!$E$2:$E$26,MATCH($C27,'Shultis Faw'!$A$2:$A$26,1)+1)-INDEX('Shultis Faw'!$E$2:$E$26,MATCH($C27,'Shultis Faw'!$A$2:$A$26,1)))/(INDEX('Shultis Faw'!$A$2:$A$26,MATCH($C27,'Shultis Faw'!$A$2:$A$26,1)+1)-INDEX('Shultis Faw'!$A$2:$A$26,MATCH($C27,'Shultis Faw'!$A$2:$A$26,1))),$C27*'Shultis Faw'!$E$2/'Shultis Faw'!$A$2) -> 0.049079363 | M27: =_xlfn.IFNA(INDEX('Shultis Faw'!$F$2:$F$26,MATCH($C27,'Shultis Faw'!$A$2:$A$26,1))+($C27-INDEX('Shultis Faw'!$A$2:$A$26,MATCH($C27,'Shultis Faw'!$A$2:$A$26,1)))*(INDEX('Shultis Faw'!$F$2:$F$26,MATCH($C27,'Shultis Faw'!$A$2:$A$26,1)+1)-INDEX('Shultis Faw'!$F$2:$F$26,MATCH($C27,'Shultis Faw'!$A$2:$A$26,1)))/(INDEX('Shultis Faw'!$A$2:$A$26,MATCH($C27,'Shultis Faw'!$A$2:$A$26,1)+1)-INDEX('Shultis Faw'!$A$2:$A$26,MATCH($C27,'Shultis Faw'!$A$2:$A$26,1))),$C27*'Shultis Faw'!$F$2/'Shultis Faw'!$A$2) -> 14.25404285 | N27: =J27*(H27*'Externe blootstelling'!$D$23/2)^K27+L27*(TANH(((H27*'Externe blootstelling'!$D$23)/(2*M27))-2)-TANH(-2))/(1-TANH(-2)) -> 1.601381321 | O27: =IF(N27=1,1+(I27-1)*H27*'Externe blootstelling'!$D$23/2,1+(I27-1)*(N27^(H27*'Externe blootstelling'!$D$23/2)-1)/(N27-1)) -> 2.908402492 | P27: =G27*EXP(-H27*'Externe blootstelling'!$D$23/2)*O27 -> 0.1712043743
B28: g | C28: 0.642719 | D28: 1.0283504e-13 | E28: 0.002183 | F28: =_xlfn.IFNA(INDEX('hp (pSv cm2)'!$B$2:$B$52,MATCH($C28,'hp (pSv cm2)'!$A$2:$A$52,1))+($C28-INDEX('hp (pSv cm2)'!$A$2:$A$52,MATCH($C28,'hp (pSv cm2)'!$A$2:$A$52,1)))*(INDEX('hp (pSv cm2)'!$B$2:$B$52,MATCH($C28,'hp (pSv cm2)'!$A$2:$A$52,1)+1)-INDEX('hp (pSv cm2)'!$B$2:$B$52,MATCH($C28,'hp (pSv cm2)'!$A$2:$A$52,1)))/(INDEX('hp (pSv cm2)'!$A$2:$A$52,MATCH($C28,'hp (pSv cm2)'!$A$2:$A$52,1)+1)-INDEX('hp (pSv cm2)'!$A$2:$A$52,MATCH($C28,'hp (pSv cm2)'!$A$2:$A$52,1))),$C28*'hp (pSv cm2)'!$B$2/'hp (pSv cm2)'!$A$2) -> 3.0851479 | G28: 0.006734877866 | H28: =_xlfn.IFNA(0.997*(INDEX('Mass attenuation coefficients'!$B$2:$B$37,MATCH($C28,'Mass attenuation coefficients'!$A$2:$A$37,1))+($C28-INDEX('Mass attenuation coefficients'!$A$2:$A$37,MATCH($C28,'Mass attenuation coefficients'!$A$2:$A$37,1)))*(INDEX('Mass attenuation coefficients'!$B$2:$B$37,MATCH($C28,'Mass attenuation coefficients'!$A$2:$A$37,1)+1)-INDEX('Mass attenuation coefficients'!$B$2:$B$37,MATCH($C28,'Mass attenuation coefficients'!$A$2:$A$37,1)))/(INDEX('Mass attenuation coefficients'!$A$2:$A$37,MATCH($C28,'Mass attenuation coefficients'!$A$2:$A$37,1)+1)-INDEX('Mass attenuation coefficients'!$A$2:$A$37,MATCH($C28,'Mass attenuation coefficients'!$A$2:$A$37,1)))),0.997*$C28*'Mass attenuation coefficients'!$B$2/'Mass attenuation coefficients'!$A$2) -> 0.08696798951 | I28: =_xlfn.IFNA(INDEX('Shultis Faw'!$C$2:$C$26,MATCH($C28,'Shultis Faw'!$A$2:$A$26,1))+($C28-INDEX('Shultis Faw'!$A$2:$A$26,MATCH($C28,'Shultis Faw'!$A$2:$A$26,1)))*(INDEX('Shultis Faw'!$C$2:$C$26,MATCH($C28,'Shultis Faw'!$A$2:$A$26,1)+1)-INDEX('Shultis Faw'!$C$2:$C$26,MATCH($C28,'Shultis Faw'!$A$2:$A$26,1)))/(INDEX('Shultis Faw'!$A$2:$A$26,MATCH($C28,'Shultis Faw'!$A$2:$A$26,1)+1)-INDEX('Shultis Faw'!$A$2:$A$26,MATCH($C28,'Shultis Faw'!$A$2:$A$26,1))),$C28*'Shultis Faw'!$C$2/'Shultis Faw'!$A$2) -> 2.341756825 | J28: =_xlfn.IFNA(INDEX('Shultis Faw'!$D$2:$D$26,MATCH($C28,'Shultis Faw'!$A$2:$A$26,1))+($C28-INDEX('Shultis Faw'!$A$2:$A$26,MATCH($C28,'Shultis Faw'!$A$2:$A$26,1)))*(INDEX('Shultis Faw'!$D$2:$D$26,MATCH($C28,'Shultis Faw'!$A$2:$A$26,1)+1)-INDEX('Shultis Faw'!$D$2:$D$26,MATCH($C28,'Shultis Faw'!$A$2:$A$26,1)))/(INDEX('Shultis Faw'!$A$2:$A$26,MATCH($C28,'Shultis Faw'!$A$2:$A$26,1)+1)-INDEX('Shultis Faw'!$A$2:$A$26,MATCH($C28,'Shultis Faw'!$A$2:$A$26,1))),$C28*'Shultis Faw'!$D$2/'Shultis Faw'!$A$2) -> 1.650164675 | K28: =_xlfn.IFNA(INDEX('Shultis Faw'!$B$2:$B$26,MATCH($C28,'Shultis Faw'!$A$2:$A$26,1))+($C28-INDEX('Shultis Faw'!$A$2:$A$26,MATCH($C28,'Shultis Faw'!$A$2:$A$26,1)))*(INDEX('Shultis Faw'!$B$2:$B$26,MATCH($C28,'Shultis Faw'!$A$2:$A$26,1)+1)-INDEX('Shultis Faw'!$B$2:$B$26,MATCH($C28,'Shultis Faw'!$A$2:$A$26,1)))/(INDEX('Shultis Faw'!$A$2:$A$26,MATCH($C28,'Shultis Faw'!$A$2:$A$26,1)+1)-INDEX('Shultis Faw'!$A$2:$A$26,MATCH($C28,'Shultis Faw'!$A$2:$A$26,1))),$C28*'Shultis Faw'!$B$2/'Shultis Faw'!$A$2) -> -0.119941695 | L28: =_xlfn.IFNA(INDEX('Shultis Faw'!$E$2:$E$26,MATCH($C28,'Shultis Faw'!$A$2:$A$26,1))+($C28-INDEX('Shultis Faw'!$A$2:$A$26,MATCH($C28,'Shultis Faw'!$A$2:$A$26,1)))*(INDEX('Shultis Faw'!$E$2:$E$26,MATCH($C28,'Shultis Faw'!$A$2:$A$26,1)+1)-INDEX('Shultis Faw'!$E$2:$E$26,MATCH($C28,'Shultis Faw'!$A$2:$A$26,1)))/(INDEX('Shultis Faw'!$A$2:$A$26,MATCH($C28,'Shultis Faw'!$A$2:$A$26,1)+1)-INDEX('Shultis Faw'!$A$2:$A$26,MATCH($C28,'Shultis Faw'!$A$2:$A$26,1))),$C28*'Shultis Faw'!$E$2/'Shultis Faw'!$A$2) -> 0.048890273 | M28: =_xlfn.IFNA(INDEX('Shultis Faw'!$F$2:$F$26,MATCH($C28,'Shultis Faw'!$A$2:$A$26,1))+($C28-INDEX('Shultis Faw'!$A$2:$A$26,MATCH($C28,'Shultis Faw'!$A$2:$A$26,1)))*(INDEX('Shultis Faw'!$F$2:$F$26,MATCH($C28,'Shultis Faw'!$A$2:$A$26,1)+1)-INDEX('Shultis Faw'!$F$2:$F$26,MATCH($C28,'Shultis Faw'!$A$2:$A$26,1)))/(INDEX('Shultis Faw'!$A$2:$A$26,MATCH($C28,'Shultis Faw'!$A$2:$A$26,1)+1)-INDEX('Shultis Faw'!$A$2:$A$26,MATCH($C28,'Shultis Faw'!$A$2:$A$26,1))),$C28*'Shultis Faw'!$F$2/'Shultis Faw'!$A$2) -> 14.25776735 | N28: =J28*(H28*'Externe blootstelling'!$D$23/2)^K28+L28*(TANH(((H28*'Externe blootstelling'!$D$23)/(2*M28))-2)-TANH(-2))/(1-TANH(-2)) -> 1.598555565 | O28: =IF(N28=1,1+(I28-1)*H28*'Externe blootstelling'!$D$23/2,1+(I28-1)*(N28^(H28*'Externe blootstelling'!$D$23/2)-1)/(N28-1)) -> 2.892016 | P28: =G28*EXP(-H28*'Externe blootstelling'!$D$23/2)*O28 -> 0.005284265701
B29: g | C29: 0.722911 | D29: 1.1566576e-13 | E29: 0.01786 | F29: =_xlfn.IFNA(INDEX('hp (pSv cm2)'!$B$2:$B$52,MATCH($C29,'hp (pSv cm2)'!$A$2:$A$52,1))+($C29-INDEX('hp (pSv cm2)'!$A$2:$A$52,MATCH($C29,'hp (pSv cm2)'!$A$2:$A$52,1)))*(INDEX('hp (pSv cm2)'!$B$2:$B$52,MATCH($C29,'hp (pSv cm2)'!$A$2:$A$52,1)+1)-INDEX('hp (pSv cm2)'!$B$2:$B$52,MATCH($C29,'hp (pSv cm2)'!$A$2:$A$52,1)))/(INDEX('hp (pSv cm2)'!$A$2:$A$52,MATCH($C29,'hp (pSv cm2)'!$A$2:$A$52,1)+1)-INDEX('hp (pSv cm2)'!$A$2:$A$52,MATCH($C29,'hp (pSv cm2)'!$A$2:$A$52,1))),$C29*'hp (pSv cm2)'!$B$2/'hp (pSv cm2)'!$A$2) -> 3.4139351 | G29: 0.06097288089 | H29: =_xlfn.IFNA(0.997*(INDEX('Mass attenuation coefficients'!$B$2:$B$37,MATCH($C29,'Mass attenuation coefficients'!$A$2:$A$37,1))+($C29-INDEX('Mass attenuation coefficients'!$A$2:$A$37,MATCH($C29,'Mass attenuation coefficients'!$A$2:$A$37,1)))*(INDEX('Mass attenuation coefficients'!$B$2:$B$37,MATCH($C29,'Mass attenuation coefficients'!$A$2:$A$37,1)+1)-INDEX('Mass attenuation coefficients'!$B$2:$B$37,MATCH($C29,'Mass attenuation coefficients'!$A$2:$A$37,1)))/(INDEX('Mass attenuation coefficients'!$A$2:$A$37,MATCH($C29,'Mass attenuation coefficients'!$A$2:$A$37,1)+1)-INDEX('Mass attenuation coefficients'!$A$2:$A$37,MATCH($C29,'Mass attenuation coefficients'!$A$2:$A$37,1)))),0.997*$C29*'Mass attenuation coefficients'!$B$2/'Mass attenuation coefficients'!$A$2) -> 0.08260663934 | I29: =_xlfn.IFNA(INDEX('Shultis Faw'!$C$2:$C$26,MATCH($C29,'Shultis Faw'!$A$2:$A$26,1))+($C29-INDEX('Shultis Faw'!$A$2:$A$26,MATCH($C29,'Shultis Faw'!$A$2:$A$26,1)))*(INDEX('Shultis Faw'!$C$2:$C$26,MATCH($C29,'Shultis Faw'!$A$2:$A$26,1)+1)-INDEX('Shultis Faw'!$C$2:$C$26,MATCH($C29,'Shultis Faw'!$A$2:$A$26,1)))/(INDEX('Shultis Faw'!$A$2:$A$26,MATCH($C29,'Shultis Faw'!$A$2:$A$26,1)+1)-INDEX('Shultis Faw'!$A$2:$A$26,MATCH($C29,'Shultis Faw'!$A$2:$A$26,1))),$C29*'Shultis Faw'!$C$2/'Shultis Faw'!$A$2) -> 2.275598425 | J29: =_xlfn.IFNA(INDEX('Shultis Faw'!$D$2:$D$26,MATCH($C29,'Shultis Faw'!$A$2:$A$26,1))+($C29-INDEX('Shultis Faw'!$A$2:$A$26,MATCH($C29,'Shultis Faw'!$A$2:$A$26,1)))*(INDEX('Shultis Faw'!$D$2:$D$26,MATCH($C29,'Shultis Faw'!$A$2:$A$26,1)+1)-INDEX('Shultis Faw'!$D$2:$D$26,MATCH($C29,'Shultis Faw'!$A$2:$A$26,1)))/(INDEX('Shultis Faw'!$A$2:$A$26,MATCH($C29,'Shultis Faw'!$A$2:$A$26,1)+1)-INDEX('Shultis Faw'!$A$2:$A$26,MATCH($C29,'Shultis Faw'!$A$2:$A$26,1))),$C29*'Shultis Faw'!$D$2/'Shultis Faw'!$A$2) -> 1.596035075 | K29: =_xlfn.IFNA(INDEX('Shultis Faw'!$B$2:$B$26,MATCH($C29,'Shultis Faw'!$A$2:$A$26,1))+($C29-INDEX('Shultis Faw'!$A$2:$A$26,MATCH($C29,'Shultis Faw'!$A$2:$A$26,1)))*(INDEX('Shultis Faw'!$B$2:$B$26,MATCH($C29,'Shultis Faw'!$A$2:$A$26,1)+1)-INDEX('Shultis Faw'!$B$2:$B$26,MATCH($C29,'Shultis Faw'!$A$2:$A$26,1)))/(INDEX('Shultis Faw'!$A$2:$A$26,MATCH($C29,'Shultis Faw'!$A$2:$A$26,1)+1)-INDEX('Shultis Faw'!$A$2:$A$26,MATCH($C29,'Shultis Faw'!$A$2:$A$26,1))),$C29*'Shultis Faw'!$B$2/'Shultis Faw'!$A$2) -> -0.112323455 | L29: =_xlfn.IFNA(INDEX('Shultis Faw'!$E$2:$E$26,MATCH($C29,'Shultis Faw'!$A$2:$A$26,1))+($C29-INDEX('Shultis Faw'!$A$2:$A$26,MATCH($C29,'Shultis Faw'!$A$2:$A$26,1)))*(INDEX('Shultis Faw'!$E$2:$E$26,MATCH($C29,'Shultis Faw'!$A$2:$A$26,1)+1)-INDEX('Shultis Faw'!$E$2:$E$26,MATCH($C29,'Shultis Faw'!$A$2:$A$26,1)))/(INDEX('Shultis Faw'!$A$2:$A$26,MATCH($C29,'Shultis Faw'!$A$2:$A$26,1)+1)-INDEX('Shultis Faw'!$A$2:$A$26,MATCH($C29,'Shultis Faw'!$A$2:$A$26,1))),$C29*'Shultis Faw'!$E$2/'Shultis Faw'!$A$2) -> 0.046243937 | M29: =_xlfn.IFNA(INDEX('Shultis Faw'!$F$2:$F$26,MATCH($C29,'Shultis Faw'!$A$2:$A$26,1))+($C29-INDEX('Shultis Faw'!$A$2:$A$26,MATCH($C29,'Shultis Faw'!$A$2:$A$26,1)))*(INDEX('Shultis Faw'!$F$2:$F$26,MATCH($C29,'Shultis Faw'!$A$2:$A$26,1)+1)-INDEX('Shultis Faw'!$F$2:$F$26,MATCH($C29,'Shultis Faw'!$A$2:$A$26,1)))/(INDEX('Shultis Faw'!$A$2:$A$26,MATCH($C29,'Shultis Faw'!$A$2:$A$26,1)+1)-INDEX('Shultis Faw'!$A$2:$A$26,MATCH($C29,'Shultis Faw'!$A$2:$A$26,1))),$C29*'Shultis Faw'!$F$2/'Shultis Faw'!$A$2) -> 14.30989215 | N29: =J29*(H29*'Externe blootstelling'!$D$23/2)^K29+L29*(TANH(((H29*'Externe blootstelling'!$D$23)/(2*M29))-2)-TANH(-2))/(1-TANH(-2)) -> 1.558217603 | O29: =IF(N29=1,1+(I29-1)*H29*'Externe blootstelling'!$D$23/2,1+(I29-1)*(N29^(H29*'Externe blootstelling'!$D$23/2)-1)/(N29-1)) -> 2.673966821 | P29: =G29*EXP(-H29*'Externe blootstelling'!$D$23/2)*O29 -> 0.04722354818
Q30: =SUM(P6:P29)/SUM(G6:G29) -> 0.8628320723
A32: 153Sm | B32: X-ray | C32: 0.006483 | D32: =C32*1000000*1.6E-19 -> 1.03728e-15 | E32: 0.1088 | F32: =_xlfn.IFNA(INDEX('hp (pSv cm2)'!$B$2:$B$52,MATCH($C32,'hp (pSv cm2)'!$A$2:$A$52,1))+($C32-INDEX('hp (pSv cm2)'!$A$2:$A$52,MATCH($C32,'hp (pSv cm2)'!$A$2:$A$52,1)))*(INDEX('hp (pSv cm2)'!$B$2:$B$52,MATCH($C32,'hp (pSv cm2)'!$A$2:$A$52,1)+1)-INDEX('hp (pSv cm2)'!$B$2:$B$52,MATCH($C32,'hp (pSv cm2)'!$A$2:$A$52,1)))/(INDEX('hp (pSv cm2)'!$A$2:$A$52,MATCH($C32,'hp (pSv cm2)'!$A$2:$A$52,1)+1)-INDEX('hp (pSv cm2)'!$A$2:$A$52,MATCH($C32,'hp (pSv cm2)'!$A$2:$A$52,1))),$C32*'hp (pSv cm2)'!$B$2/'hp (pSv cm2)'!$A$2) -> 0.0194497 | G32: =F32*E32 -> 0.00211612736 | H32: =_xlfn.IFNA(0.997*(INDEX('Mass attenuation coefficients'!$B$2:$B$37,MATCH($C32,'Mass attenuation coefficients'!$A$2:$A$37,1))+($C32-INDEX('Mass attenuation coefficients'!$A$2:$A$37,MATCH($C32,'Mass attenuation coefficients'!$A$2:$A$37,1)))*(INDEX('Mass attenuation coefficients'!$B$2:$B$37,MATCH($C32,'Mass attenuation coefficients'!$A$2:$A$37,1)+1)-INDEX('Mass attenuation coefficients'!$B$2:$B$37,MATCH($C32,'Mass attenuation coefficients'!$A$2:$A$37,1)))/(INDEX('Mass attenuation coefficients'!$A$2:$A$37,MATCH($C32,'Mass attenuation coefficients'!$A$2:$A$37,1)+1)-INDEX('Mass attenuation coefficients'!$A$2:$A$37,MATCH($C32,'Mass attenuation coefficients'!$A$2:$A$37,1)))),0.997*$C32*'Mass attenuation coefficients'!$B$2/'Mass attenuation coefficients'!$A$2) -> 21.13021362 | I32: =_xlfn.IFNA(INDEX('Shultis Faw'!$C$2:$C$26,MATCH($C32,'Shultis Faw'!$A$2:$A$26,1))+($C32-INDEX('Shultis Faw'!$A$2:$A$26,MATCH($C32,'Shultis Faw'!$A$2:$A$26,1)))*(INDEX('Shultis Faw'!$C$2:$C$26,MATCH($C32,'Shultis Faw'!$A$2:$A$26,1)+1)-INDEX('Shultis Faw'!$C$2:$C$26,MATCH($C32,'Shultis Faw'!$A$2:$A$26,1)))/(INDEX('Shultis Faw'!$A$2:$A$26,MATCH($C32,'Shultis Faw'!$A$2:$A$26,1)+1)-INDEX('Shultis Faw'!$A$2:$A$26,MATCH($C32,'Shultis Faw'!$A$2:$A$26,1))),$C32*'Shultis Faw'!$C$2/'Shultis Faw'!$A$2) -> 0.5108604 | J32: =_xlfn.IFNA(INDEX('Shultis Faw'!$D$2:$D$26,MATCH($C32,'Shultis Faw'!$A$2:$A$26,1))+($C32-INDEX('Shultis Faw'!$A$2:$A$26,MATCH($C32,'Shultis Faw'!$A$2:$A$26,1)))*(INDEX('Shultis Faw'!$D$2:$D$26,MATCH($C32,'Shultis Faw'!$A$2:$A$26,1)+1)-INDEX('Shultis Faw'!$D$2:$D$26,MATCH($C32,'Shultis Faw'!$A$2:$A$26,1)))/(INDEX('Shultis Faw'!$A$2:$A$26,MATCH($C32,'Shultis Faw'!$A$2:$A$26,1)+1)-INDEX('Shultis Faw'!$A$2:$A$26,MATCH($C32,'Shultis Faw'!$A$2:$A$26,1))),$C32*'Shultis Faw'!$D$2/'Shultis Faw'!$A$2) -> 0.2001086 | K32: =_xlfn.IFNA(INDEX('Shultis Faw'!$B$2:$B$26,MATCH($C32,'Shultis Faw'!$A$2:$A$26,1))+($C32-INDEX('Shultis Faw'!$A$2:$A$26,MATCH($C32,'Shultis Faw'!$A$2:$A$26,1)))*(INDEX('Shultis Faw'!$B$2:$B$26,MATCH($C32,'Shultis Faw'!$A$2:$A$26,1)+1)-INDEX('Shultis Faw'!$B$2:$B$26,MATCH($C32,'Shultis Faw'!$A$2:$A$26,1)))/(INDEX('Shultis Faw'!$A$2:$A$26,MATCH($C32,'Shultis Faw'!$A$2:$A$26,1)+1)-INDEX('Shultis Faw'!$A$2:$A$26,MATCH($C32,'Shultis Faw'!$A$2:$A$26,1))),$C32*'Shultis Faw'!$B$2/'Shultis Faw'!$A$2) -> 0.0743384 | L32: =_xlfn.IFNA(INDEX('Shultis Faw'!$E$2:$E$26,MATCH($C32,'Shultis Faw'!$A$2:$A$26,1))+($C32-INDEX('Shultis Faw'!$A$2:$A$26,MATCH($C32,'Shultis Faw'!$A$2:$A$26,1)))*(INDEX('Shultis Faw'!$E$2:$E$26,MATCH($C32,'Shultis Faw'!$A$2:$A$26,1)+1)-INDEX('Shultis Faw'!$E$2:$E$26,MATCH($C32,'Shultis Faw'!$A$2:$A$26,1)))/(INDEX('Shultis Faw'!$A$2:$A$26,MATCH($C32,'Shultis Faw'!$A$2:$A$26,1)+1)-INDEX('Shultis Faw'!$A$2:$A$26,MATCH($C32,'Shultis Faw'!$A$2:$A$26,1))),$C32*'Shultis Faw'!$E$2/'Shultis Faw'!$A$2) -> -0.03924376 | M32: =_xlfn.IFNA(INDEX('Shultis Faw'!$F$2:$F$26,MATCH($C32,'Shultis Faw'!$A$2:$A$26,1))+($C32-INDEX('Shultis Faw'!$A$2:$A$26,MATCH($C32,'Shultis Faw'!$A$2:$A$26,1)))*(INDEX('Shultis Faw'!$F$2:$F$26,MATCH($C32,'Shultis Faw'!$A$2:$A$26,1)+1)-INDEX('Shultis Faw'!$F$2:$F$26,MATCH($C32,'Shultis Faw'!$A$2:$A$26,1)))/(INDEX('Shultis Faw'!$A$2:$A$26,MATCH($C32,'Shultis Faw'!$A$2:$A$26,1)+1)-INDEX('Shultis Faw'!$A$2:$A$26,MATCH($C32,'Shultis Faw'!$A$2:$A$26,1))),$C32*'Shultis Faw'!$F$2/'Shultis Faw'!$A$2) -> 6.150206 | N32: =J32*(H32*'Externe blootstelling'!$D$23/2)^K32+L32*(TANH(((H32*'Externe blootstelling'!$D$23)/(2*M32))-2)-TANH(-2))/(1-TANH(-2)) -> 0.2677897173 | O32: =IF(N32=1,1+(I32-1)*H32*'Externe blootstelling'!$D$23/2,1+(I32-1)*(N32^(H32*'Externe blootstelling'!$D$23/2)-1)/(N32-1)) -> 0.3319684092 | P32: =G32*EXP(-H32*'Externe blootstelling'!$D$23/2)*O32 -> 1.568956646e-141
B33: g | C33: 0.01981296 | D33: 3.1700736e-15 | E33: 1.05e-06 | F33: =_xlfn.IFNA(INDEX('hp (pSv cm2)'!$B$2:$B$52,MATCH($C33,'hp (pSv cm2)'!$A$2:$A$52,1))+($C33-INDEX('hp (pSv cm2)'!$A$2:$A$52,MATCH($C33,'hp (pSv cm2)'!$A$2:$A$52,1)))*(INDEX('hp (pSv cm2)'!$B$2:$B$52,MATCH($C33,'hp (pSv cm2)'!$A$2:$A$52,1)+1)-INDEX('hp (pSv cm2)'!$B$2:$B$52,MATCH($C33,'hp (pSv cm2)'!$A$2:$A$52,1)))/(INDEX('hp (pSv cm2)'!$A$2:$A$52,MATCH($C33,'hp (pSv cm2)'!$A$2:$A$52,1)+1)-INDEX('hp (pSv cm2)'!$A$2:$A$52,MATCH($C33,'hp (pSv cm2)'!$A$2:$A$52,1))),$C33*'hp (pSv cm2)'!$B$2/'hp (pSv cm2)'!$A$2) -> 0.2222567467 | G33: 2.33369584e-07 | H33: =_xlfn.IFNA(0.997*(INDEX('Mass attenuation coefficients'!$B$2:$B$37,MATCH($C33,'Mass attenuation coefficients'!$A$2:$A$37,1))+($C33-INDEX('Mass attenuation coefficients'!$A$2:$A$37,MATCH($C33,'Mass attenuation coefficients'!$A$2:$A$37,1)))*(INDEX('Mass attenuation coefficients'!$B$2:$B$37,MATCH($C33,'Mass attenuation coefficients'!$A$2:$A$37,1)+1)-INDEX('Mass attenuation coefficients'!$B$2:$B$37,MATCH($C33,'Mass attenuation coefficients'!$A$2:$A$37,1)))/(INDEX('Mass attenuation coefficients'!$A$2:$A$37,MATCH($C33,'Mass attenuation coefficients'!$A$2:$A$37,1)+1)-INDEX('Mass attenuation coefficients'!$A$2:$A$37,MATCH($C33,'Mass attenuation coefficients'!$A$2:$A$37,1)))),0.997*$C33*'Mass attenuation coefficients'!$B$2/'Mass attenuation coefficients'!$A$2) -> 0.839372373 | I33: =_xlfn.IFNA(INDEX('Shultis Faw'!$C$2:$C$26,MATCH($C33,'Shultis Faw'!$A$2:$A$26,1))+($C33-INDEX('Shultis Faw'!$A$2:$A$26,MATCH($C33,'Shultis Faw'!$A$2:$A$26,1)))*(INDEX('Shultis Faw'!$C$2:$C$26,MATCH($C33,'Shultis Faw'!$A$2:$A$26,1)+1)-INDEX('Shultis Faw'!$C$2:$C$26,MATCH($C33,'Shultis Faw'!$A$2:$A$26,1)))/(INDEX('Shultis Faw'!$A$2:$A$26,MATCH($C33,'Shultis Faw'!$A$2:$A$26,1)+1)-INDEX('Shultis Faw'!$A$2:$A$26,MATCH($C33,'Shultis Faw'!$A$2:$A$26,1))),$C33*'Shultis Faw'!$C$2/'Shultis Faw'!$A$2) -> 1.41783504 | J33: =_xlfn.IFNA(INDEX('Shultis Faw'!$D$2:$D$26,MATCH($C33,'Shultis Faw'!$A$2:$A$26,1))+($C33-INDEX('Shultis Faw'!$A$2:$A$26,MATCH($C33,'Shultis Faw'!$A$2:$A$26,1)))*(INDEX('Shultis Faw'!$D$2:$D$26,MATCH($C33,'Shultis Faw'!$A$2:$A$26,1)+1)-INDEX('Shultis Faw'!$D$2:$D$26,MATCH($C33,'Shultis Faw'!$A$2:$A$26,1)))/(INDEX('Shultis Faw'!$A$2:$A$26,MATCH($C33,'Shultis Faw'!$A$2:$A$26,1)+1)-INDEX('Shultis Faw'!$A$2:$A$26,MATCH($C33,'Shultis Faw'!$A$2:$A$26,1))),$C33*'Shultis Faw'!$D$2/'Shultis Faw'!$A$2) -> 0.545782912 | K33: =_xlfn.IFNA(INDEX('Shultis Faw'!$B$2:$B$26,MATCH($C33,'Shultis Faw'!$A$2:$A$26,1))+($C33-INDEX('Shultis Faw'!$A$2:$A$26,MATCH($C33,'Shultis Faw'!$A$2:$A$26,1)))*(INDEX('Shultis Faw'!$B$2:$B$26,MATCH($C33,'Shultis Faw'!$A$2:$A$26,1)+1)-INDEX('Shultis Faw'!$B$2:$B$26,MATCH($C33,'Shultis Faw'!$A$2:$A$26,1)))/(INDEX('Shultis Faw'!$A$2:$A$26,MATCH($C33,'Shultis Faw'!$A$2:$A$26,1)+1)-INDEX('Shultis Faw'!$A$2:$A$26,MATCH($C33,'Shultis Faw'!$A$2:$A$26,1))),$C33*'Shultis Faw'!$B$2/'Shultis Faw'!$A$2) -> 0.144084832 | L33: =_xlfn.IFNA(INDEX('Shultis Faw'!$E$2:$E$26,MATCH($C33,'Shultis Faw'!$A$2:$A$26,1))+($C33-INDEX('Shultis Faw'!$A$2:$A$26,MATCH($C33,'Shultis Faw'!$A$2:$A$26,1)))*(INDEX('Shultis Faw'!$E$2:$E$26,MATCH($C33,'Shultis Faw'!$A$2:$A$26,1)+1)-INDEX('Shultis Faw'!$E$2:$E$26,MATCH($C33,'Shultis Faw'!$A$2:$A$26,1)))/(INDEX('Shultis Faw'!$A$2:$A$26,MATCH($C33,'Shultis Faw'!$A$2:$A$26,1)+1)-INDEX('Shultis Faw'!$A$2:$A$26,MATCH($C33,'Shultis Faw'!$A$2:$A$26,1))),$C33*'Shultis Faw'!$E$2/'Shultis Faw'!$A$2) -> -0.0714519008 | M33: =_xlfn.IFNA(INDEX('Shultis Faw'!$F$2:$F$26,MATCH($C33,'Shultis Faw'!$A$2:$A$26,1))+($C33-INDEX('Shultis Faw'!$A$2:$A$26,MATCH($C33,'Shultis Faw'!$A$2:$A$26,1)))*(INDEX('Shultis Faw'!$F$2:$F$26,MATCH($C33,'Shultis Faw'!$A$2:$A$26,1)+1)-INDEX('Shultis Faw'!$F$2:$F$26,MATCH($C33,'Shultis Faw'!$A$2:$A$26,1)))/(INDEX('Shultis Faw'!$A$2:$A$26,MATCH($C33,'Shultis Faw'!$A$2:$A$26,1)+1)-INDEX('Shultis Faw'!$A$2:$A$26,MATCH($C33,'Shultis Faw'!$A$2:$A$26,1))),$C33*'Shultis Faw'!$F$2/'Shultis Faw'!$A$2) -> 14.83643296 | N33: =J33*(H33*'Externe blootstelling'!$D$23/2)^K33+L33*(TANH(((H33*'Externe blootstelling'!$D$23)/(2*M33))-2)-TANH(-2))/(1-TANH(-2)) -> 0.7808712201 | O33: =IF(N33=1,1+(I33-1)*H33*'Externe blootstelling'!$D$23/2,1+(I33-1)*(N33^(H33*'Externe blootstelling'!$D$23/2)-1)/(N33-1)) -> 2.822114165 | P33: =G33*EXP(-H33*'Externe blootstelling'!$D$23/2)*O33 -> 2.241800609e-12
B34: X-ray | C34: 0.0409024 | D34: 6.544384e-15 | E34: 0.166 | F34: =_xlfn.IFNA(INDEX('hp (pSv cm2)'!$B$2:$B$52,MATCH($C34,'hp (pSv cm2)'!$A$2:$A$52,1))+($C34-INDEX('hp (pSv cm2)'!$A$2:$A$52,MATCH($C34,'hp (pSv cm2)'!$A$2:$A$52,1)))*(INDEX('hp (pSv cm2)'!$B$2:$B$52,MATCH($C34,'hp (pSv cm2)'!$A$2:$A$52,1)+1)-INDEX('hp (pSv cm2)'!$B$2:$B$52,MATCH($C34,'hp (pSv cm2)'!$A$2:$A$52,1)))/(INDEX('hp (pSv cm2)'!$A$2:$A$52,MATCH($C34,'hp (pSv cm2)'!$A$2:$A$52,1)+1)-INDEX('hp (pSv cm2)'!$A$2:$A$52,MATCH($C34,'hp (pSv cm2)'!$A$2:$A$52,1))),$C34*'hp (pSv cm2)'!$B$2/'hp (pSv cm2)'!$A$2) -> 0.35171456 | G34: 0.05838461696 | H34: =_xlfn.IFNA(0.997*(INDEX('Mass attenuation coefficients'!$B$2:$B$37,MATCH($C34,'Mass attenuation coefficients'!$A$2:$A$37,1))+($C34-INDEX('Mass attenuation coefficients'!$A$2:$A$37,MATCH($C34,'Mass attenuation coefficients'!$A$2:$A$37,1)))*(INDEX('Mass attenuation coefficients'!$B$2:$B$37,MATCH($C34,'Mass attenuation coefficients'!$A$2:$A$37,1)+1)-INDEX('Mass attenuation coefficients'!$B$2:$B$37,MATCH($C34,'Mass attenuation coefficients'!$A$2:$A$37,1)))/(INDEX('Mass attenuation coefficients'!$A$2:$A$37,MATCH($C34,'Mass attenuation coefficients'!$A$2:$A$37,1)+1)-INDEX('Mass attenuation coefficients'!$A$2:$A$37,MATCH($C34,'Mass attenuation coefficients'!$A$2:$A$37,1)))),0.997*$C34*'Mass attenuation coefficients'!$B$2/'Mass attenuation coefficients'!$A$2) -> 0.2637703718 | I34: =_xlfn.IFNA(INDEX('Shultis Faw'!$C$2:$C$26,MATCH($C34,'Shultis Faw'!$A$2:$A$26,1))+($C34-INDEX('Shultis Faw'!$A$2:$A$26,MATCH($C34,'Shultis Faw'!$A$2:$A$26,1)))*(INDEX('Shultis Faw'!$C$2:$C$26,MATCH($C34,'Shultis Faw'!$A$2:$A$26,1)+1)-INDEX('Shultis Faw'!$C$2:$C$26,MATCH($C34,'Shultis Faw'!$A$2:$A$26,1)))/(INDEX('Shultis Faw'!$A$2:$A$26,MATCH($C34,'Shultis Faw'!$A$2:$A$26,1)+1)-INDEX('Shultis Faw'!$A$2:$A$26,MATCH($C34,'Shultis Faw'!$A$2:$A$26,1))),$C34*'Shultis Faw'!$C$2/'Shultis Faw'!$A$2) -> 3.56579616 | J34: =_xlfn.IFNA(INDEX('Shultis Faw'!$D$2:$D$26,MATCH($C34,'Shultis Faw'!$A$2:$A$26,1))+($C34-INDEX('Shultis Faw'!$A$2:$A$26,MATCH($C34,'Shultis Faw'!$A$2:$A$26,1)))*(INDEX('Shultis Faw'!$D$2:$D$26,MATCH($C34,'Shultis Faw'!$A$2:$A$26,1)+1)-INDEX('Shultis Faw'!$D$2:$D$26,MATCH($C34,'Shultis Faw'!$A$2:$A$26,1)))/(INDEX('Shultis Faw'!$A$2:$A$26,MATCH($C34,'Shultis Faw'!$A$2:$A$26,1)+1)-INDEX('Shultis Faw'!$A$2:$A$26,MATCH($C34,'Shultis Faw'!$A$2:$A$26,1))),$C34*'Shultis Faw'!$D$2/'Shultis Faw'!$A$2) -> 1.1476816 | K34: =_xlfn.IFNA(INDEX('Shultis Faw'!$B$2:$B$26,MATCH($C34,'Shultis Faw'!$A$2:$A$26,1))+($C34-INDEX('Shultis Faw'!$A$2:$A$26,MATCH($C34,'Shultis Faw'!$A$2:$A$26,1)))*(INDEX('Shultis Faw'!$B$2:$B$26,MATCH($C34,'Shultis Faw'!$A$2:$A$26,1)+1)-INDEX('Shultis Faw'!$B$2:$B$26,MATCH($C34,'Shultis Faw'!$A$2:$A$26,1)))/(INDEX('Shultis Faw'!$A$2:$A$26,MATCH($C34,'Shultis Faw'!$A$2:$A$26,1)+1)-INDEX('Shultis Faw'!$A$2:$A$26,MATCH($C34,'Shultis Faw'!$A$2:$A$26,1))),$C34*'Shultis Faw'!$B$2/'Shultis Faw'!$A$2) -> -0.0248656 | L34: =_xlfn.IFNA(INDEX('Shultis Faw'!$E$2:$E$26,MATCH($C34,'Shultis Faw'!$A$2:$A$26,1))+($C34-INDEX('Shultis Faw'!$A$2:$A$26,MATCH($C34,'Shultis Faw'!$A$2:$A$26,1)))*(INDEX('Shultis Faw'!$E$2:$E$26,MATCH($C34,'Shultis Faw'!$A$2:$A$26,1)+1)-INDEX('Shultis Faw'!$E$2:$E$26,MATCH($C34,'Shultis Faw'!$A$2:$A$26,1)))/(INDEX('Shultis Faw'!$A$2:$A$26,MATCH($C34,'Shultis Faw'!$A$2:$A$26,1)+1)-INDEX('Shultis Faw'!$A$2:$A$26,MATCH($C34,'Shultis Faw'!$A$2:$A$26,1))),$C34*'Shultis Faw'!$E$2/'Shultis Faw'!$A$2) -> 0.00544256 | M34: =_xlfn.IFNA(INDEX('Shultis Faw'!$F$2:$F$26,MATCH($C34,'Shultis Faw'!$A$2:$A$26,1))+($C34-INDEX('Shultis Faw'!$A$2:$A$26,MATCH($C34,'Shultis Faw'!$A$2:$A$26,1)))*(INDEX('Shultis Faw'!$F$2:$F$26,MATCH($C34,'Shultis Faw'!$A$2:$A$26,1)+1)-INDEX('Shultis Faw'!$F$2:$F$26,MATCH($C34,'Shultis Faw'!$A$2:$A$26,1)))/(INDEX('Shultis Faw'!$A$2:$A$26,MATCH($C34,'Shultis Faw'!$A$2:$A$26,1)+1)-INDEX('Shultis Faw'!$A$2:$A$26,MATCH($C34,'Shultis Faw'!$A$2:$A$26,1))),$C34*'Shultis Faw'!$F$2/'Shultis Faw'!$A$2) -> 11.845968 | N34: =J34*(H34*'Externe blootstelling'!$D$23/2)^K34+L34*(TANH(((H34*'Externe blootstelling'!$D$23)/(2*M34))-2)-TANH(-2))/(1-TANH(-2)) -> 1.109186515 | O34: =IF(N34=1,1+(I34-1)*H34*'Externe blootstelling'!$D$23/2,1+(I34-1)*(N34^(H34*'Externe blootstelling'!$D$23/2)-1)/(N34-1)) -> 12.9100091 | P34: =G34*EXP(-H34*'Externe blootstelling'!$D$23/2)*O34 -> 0.0144183223
B35: X-ray | C35: 0.0415427 | D35: 6.646832e-15 | E35: 0.3 | F35: =_xlfn.IFNA(INDEX('hp (pSv cm2)'!$B$2:$B$52,MATCH($C35,'hp (pSv cm2)'!$A$2:$A$52,1))+($C35-INDEX('hp (pSv cm2)'!$A$2:$A$52,MATCH($C35,'hp (pSv cm2)'!$A$2:$A$52,1)))*(INDEX('hp (pSv cm2)'!$B$2:$B$52,MATCH($C35,'hp (pSv cm2)'!$A$2:$A$52,1)+1)-INDEX('hp (pSv cm2)'!$B$2:$B$52,MATCH($C35,'hp (pSv cm2)'!$A$2:$A$52,1)))/(INDEX('hp (pSv cm2)'!$A$2:$A$52,MATCH($C35,'hp (pSv cm2)'!$A$2:$A$52,1)+1)-INDEX('hp (pSv cm2)'!$A$2:$A$52,MATCH($C35,'hp (pSv cm2)'!$A$2:$A$52,1))),$C35*'hp (pSv cm2)'!$B$2/'hp (pSv cm2)'!$A$2) -> 0.35293113 | G35: 0.105879339 | H35: =_xlfn.IFNA(0.997*(INDEX('Mass attenuation coefficients'!$B$2:$B$37,MATCH($C35,'Mass attenuation coefficients'!$A$2:$A$37,1))+($C35-INDEX('Mass attenuation coefficients'!$A$2:$A$37,MATCH($C35,'Mass attenuation coefficients'!$A$2:$A$37,1)))*(INDEX('Mass attenuation coefficients'!$B$2:$B$37,MATCH($C35,'Mass attenuation coefficients'!$A$2:$A$37,1)+1)-INDEX('Mass attenuation coefficients'!$B$2:$B$37,MATCH($C35,'Mass attenuation coefficients'!$A$2:$A$37,1)))/(INDEX('Mass attenuation coefficients'!$A$2:$A$37,MATCH($C35,'Mass attenuation coefficients'!$A$2:$A$37,1)+1)-INDEX('Mass attenuation coefficients'!$A$2:$A$37,MATCH($C35,'Mass attenuation coefficients'!$A$2:$A$37,1)))),0.997*$C35*'Mass attenuation coefficients'!$B$2/'Mass attenuation coefficients'!$A$2) -> 0.2611274823 | I35: =_xlfn.IFNA(INDEX('Shultis Faw'!$C$2:$C$26,MATCH($C35,'Shultis Faw'!$A$2:$A$26,1))+($C35-INDEX('Shultis Faw'!$A$2:$A$26,MATCH($C35,'Shultis Faw'!$A$2:$A$26,1)))*(INDEX('Shultis Faw'!$C$2:$C$26,MATCH($C35,'Shultis Faw'!$A$2:$A$26,1)+1)-INDEX('Shultis Faw'!$C$2:$C$26,MATCH($C35,'Shultis Faw'!$A$2:$A$26,1)))/(INDEX('Shultis Faw'!$A$2:$A$26,MATCH($C35,'Shultis Faw'!$A$2:$A$26,1)+1)-INDEX('Shultis Faw'!$A$2:$A$26,MATCH($C35,'Shultis Faw'!$A$2:$A$26,1))),$C35*'Shultis Faw'!$C$2/'Shultis Faw'!$A$2) -> 3.62880168 | J35: =_xlfn.IFNA(INDEX('Shultis Faw'!$D$2:$D$26,MATCH($C35,'Shultis Faw'!$A$2:$A$26,1))+($C35-INDEX('Shultis Faw'!$A$2:$A$26,MATCH($C35,'Shultis Faw'!$A$2:$A$26,1)))*(INDEX('Shultis Faw'!$D$2:$D$26,MATCH($C35,'Shultis Faw'!$A$2:$A$26,1)+1)-INDEX('Shultis Faw'!$D$2:$D$26,MATCH($C35,'Shultis Faw'!$A$2:$A$26,1)))/(INDEX('Shultis Faw'!$A$2:$A$26,MATCH($C35,'Shultis Faw'!$A$2:$A$26,1)+1)-INDEX('Shultis Faw'!$A$2:$A$26,MATCH($C35,'Shultis Faw'!$A$2:$A$26,1))),$C35*'Shultis Faw'!$D$2/'Shultis Faw'!$A$2) -> 1.1694518 | K35: =_xlfn.IFNA(INDEX('Shultis Faw'!$B$2:$B$26,MATCH($C35,'Shultis Faw'!$A$2:$A$26,1))+($C35-INDEX('Shultis Faw'!$A$2:$A$26,MATCH($C35,'Shultis Faw'!$A$2:$A$26,1)))*(INDEX('Shultis Faw'!$B$2:$B$26,MATCH($C35,'Shultis Faw'!$A$2:$A$26,1)+1)-INDEX('Shultis Faw'!$B$2:$B$26,MATCH($C35,'Shultis Faw'!$A$2:$A$26,1)))/(INDEX('Shultis Faw'!$A$2:$A$26,MATCH($C35,'Shultis Faw'!$A$2:$A$26,1)+1)-INDEX('Shultis Faw'!$A$2:$A$26,MATCH($C35,'Shultis Faw'!$A$2:$A$26,1))),$C35*'Shultis Faw'!$B$2/'Shultis Faw'!$A$2) -> -0.02902755 | L35: =_xlfn.IFNA(INDEX('Shultis Faw'!$E$2:$E$26,MATCH($C35,'Shultis Faw'!$A$2:$A$26,1))+($C35-INDEX('Shultis Faw'!$A$2:$A$26,MATCH($C35,'Shultis Faw'!$A$2:$A$26,1)))*(INDEX('Shultis Faw'!$E$2:$E$26,MATCH($C35,'Shultis Faw'!$A$2:$A$26,1)+1)-INDEX('Shultis Faw'!$E$2:$E$26,MATCH($C35,'Shultis Faw'!$A$2:$A$26,1)))/(INDEX('Shultis Faw'!$A$2:$A$26,MATCH($C35,'Shultis Faw'!$A$2:$A$26,1)+1)-INDEX('Shultis Faw'!$A$2:$A$26,MATCH($C35,'Shultis Faw'!$A$2:$A$26,1))),$C35*'Shultis Faw'!$E$2/'Shultis Faw'!$A$2) -> 0.007459505 | M35: =_xlfn.IFNA(INDEX('Shultis Faw'!$F$2:$F$26,MATCH($C35,'Shultis Faw'!$A$2:$A$26,1))+($C35-INDEX('Shultis Faw'!$A$2:$A$26,MATCH($C35,'Shultis Faw'!$A$2:$A$26,1)))*(INDEX('Shultis Faw'!$F$2:$F$26,MATCH($C35,'Shultis Faw'!$A$2:$A$26,1)+1)-INDEX('Shultis Faw'!$F$2:$F$26,MATCH($C35,'Shultis Faw'!$A$2:$A$26,1)))/(INDEX('Shultis Faw'!$A$2:$A$26,MATCH($C35,'Shultis Faw'!$A$2:$A$26,1)+1)-INDEX('Shultis Faw'!$A$2:$A$26,MATCH($C35,'Shultis Faw'!$A$2:$A$26,1))),$C35*'Shultis Faw'!$F$2/'Shultis Faw'!$A$2) -> 11.9708265 | N35: =J35*(H35*'Externe blootstelling'!$D$23/2)^K35+L35*(TANH(((H35*'Externe blootstelling'!$D$23)/(2*M35))-2)-TANH(-2))/(1-TANH(-2)) -> 1.124133096 | O35: =IF(N35=1,1+(I35-1)*H35*'Externe blootstelling'!$D$23/2,1+(I35-1)*(N35^(H35*'Externe blootstelling'!$D$23/2)-1)/(N35-1)) -> 13.31300204 | P35: =G35*EXP(-H35*'Externe blootstelling'!$D$23/2)*O35 -> 0.02805393912
B36: X-ray | C36: 0.0471051 | D36: 7.536816e-15 | E36: 0.0945 | F36: =_xlfn.IFNA(INDEX('hp (pSv cm2)'!$B$2:$B$52,MATCH($C36,'hp (pSv cm2)'!$A$2:$A$52,1))+($C36-INDEX('hp (pSv cm2)'!$A$2:$A$52,MATCH($C36,'hp (pSv cm2)'!$A$2:$A$52,1)))*(INDEX('hp (pSv cm2)'!$B$2:$B$52,MATCH($C36,'hp (pSv cm2)'!$A$2:$A$52,1)+1)-INDEX('hp (pSv cm2)'!$B$2:$B$52,MATCH($C36,'hp (pSv cm2)'!$A$2:$A$52,1)))/(INDEX('hp (pSv cm2)'!$A$2:$A$52,MATCH($C36,'hp (pSv cm2)'!$A$2:$A$52,1)+1)-INDEX('hp (pSv cm2)'!$A$2:$A$52,MATCH($C36,'hp (pSv cm2)'!$A$2:$A$52,1))),$C36*'hp (pSv cm2)'!$B$2/'hp (pSv cm2)'!$A$2) -> 0.36349969 | G36: 0.0343507207 | H36: =_xlfn.IFNA(0.997*(INDEX('Mass attenuation coefficients'!$B$2:$B$37,MATCH($C36,'Mass attenuation coefficients'!$A$2:$A$37,1))+($C36-INDEX('Mass attenuation coefficients'!$A$2:$A$37,MATCH($C36,'Mass attenuation coefficients'!$A$2:$A$37,1)))*(INDEX('Mass attenuation coefficients'!$B$2:$B$37,MATCH($C36,'Mass attenuation coefficients'!$A$2:$A$37,1)+1)-INDEX('Mass attenuation coefficients'!$B$2:$B$37,MATCH($C36,'Mass attenuation coefficients'!$A$2:$A$37,1)))/(INDEX('Mass attenuation coefficients'!$A$2:$A$37,MATCH($C36,'Mass attenuation coefficients'!$A$2:$A$37,1)+1)-INDEX('Mass attenuation coefficients'!$A$2:$A$37,MATCH($C36,'Mass attenuation coefficients'!$A$2:$A$37,1)))),0.997*$C36*'Mass attenuation coefficients'!$B$2/'Mass attenuation coefficients'!$A$2) -> 0.2381682313 | I36: =_xlfn.IFNA(INDEX('Shultis Faw'!$C$2:$C$26,MATCH($C36,'Shultis Faw'!$A$2:$A$26,1))+($C36-INDEX('Shultis Faw'!$A$2:$A$26,MATCH($C36,'Shultis Faw'!$A$2:$A$26,1)))*(INDEX('Shultis Faw'!$C$2:$C$26,MATCH($C36,'Shultis Faw'!$A$2:$A$26,1)+1)-INDEX('Shultis Faw'!$C$2:$C$26,MATCH($C36,'Shultis Faw'!$A$2:$A$26,1)))/(INDEX('Shultis Faw'!$A$2:$A$26,MATCH($C36,'Shultis Faw'!$A$2:$A$26,1)+1)-INDEX('Shultis Faw'!$A$2:$A$26,MATCH($C36,'Shultis Faw'!$A$2:$A$26,1))),$C36*'Shultis Faw'!$C$2/'Shultis Faw'!$A$2) -> 4.17614184 | J36: =_xlfn.IFNA(INDEX('Shultis Faw'!$D$2:$D$26,MATCH($C36,'Shultis Faw'!$A$2:$A$26,1))+($C36-INDEX('Shultis Faw'!$A$2:$A$26,MATCH($C36,'Shultis Faw'!$A$2:$A$26,1)))*(INDEX('Shultis Faw'!$D$2:$D$26,MATCH($C36,'Shultis Faw'!$A$2:$A$26,1)+1)-INDEX('Shultis Faw'!$D$2:$D$26,MATCH($C36,'Shultis Faw'!$A$2:$A$26,1)))/(INDEX('Shultis Faw'!$A$2:$A$26,MATCH($C36,'Shultis Faw'!$A$2:$A$26,1)+1)-INDEX('Shultis Faw'!$A$2:$A$26,MATCH($C36,'Shultis Faw'!$A$2:$A$26,1))),$C36*'Shultis Faw'!$D$2/'Shultis Faw'!$A$2) -> 1.3585734 | K36: =_xlfn.IFNA(INDEX('Shultis Faw'!$B$2:$B$26,MATCH($C36,'Shultis Faw'!$A$2:$A$26,1))+($C36-INDEX('Shultis Faw'!$A$2:$A$26,MATCH($C36,'Shultis Faw'!$A$2:$A$26,1)))*(INDEX('Shultis Faw'!$B$2:$B$26,MATCH($C36,'Shultis Faw'!$A$2:$A$26,1)+1)-INDEX('Shultis Faw'!$B$2:$B$26,MATCH($C36,'Shultis Faw'!$A$2:$A$26,1)))/(INDEX('Shultis Faw'!$A$2:$A$26,MATCH($C36,'Shultis Faw'!$A$2:$A$26,1)+1)-INDEX('Shultis Faw'!$A$2:$A$26,MATCH($C36,'Shultis Faw'!$A$2:$A$26,1))),$C36*'Shultis Faw'!$B$2/'Shultis Faw'!$A$2) -> -0.06518315 | L36: =_xlfn.IFNA(INDEX('Shultis Faw'!$E$2:$E$26,MATCH($C36,'Shultis Faw'!$A$2:$A$26,1))+($C36-INDEX('Shultis Faw'!$A$2:$A$26,MATCH($C36,'Shultis Faw'!$A$2:$A$26,1)))*(INDEX('Shultis Faw'!$E$2:$E$26,MATCH($C36,'Shultis Faw'!$A$2:$A$26,1)+1)-INDEX('Shultis Faw'!$E$2:$E$26,MATCH($C36,'Shultis Faw'!$A$2:$A$26,1)))/(INDEX('Shultis Faw'!$A$2:$A$26,MATCH($C36,'Shultis Faw'!$A$2:$A$26,1)+1)-INDEX('Shultis Faw'!$A$2:$A$26,MATCH($C36,'Shultis Faw'!$A$2:$A$26,1))),$C36*'Shultis Faw'!$E$2/'Shultis Faw'!$A$2) -> 0.024981065 | M36: =_xlfn.IFNA(INDEX('Shultis Faw'!$F$2:$F$26,MATCH($C36,'Shultis Faw'!$A$2:$A$26,1))+($C36-INDEX('Shultis Faw'!$A$2:$A$26,MATCH($C36,'Shultis Faw'!$A$2:$A$26,1)))*(INDEX('Shultis Faw'!$F$2:$F$26,MATCH($C36,'Shultis Faw'!$A$2:$A$26,1)+1)-INDEX('Shultis Faw'!$F$2:$F$26,MATCH($C36,'Shultis Faw'!$A$2:$A$26,1)))/(INDEX('Shultis Faw'!$A$2:$A$26,MATCH($C36,'Shultis Faw'!$A$2:$A$26,1)+1)-INDEX('Shultis Faw'!$A$2:$A$26,MATCH($C36,'Shultis Faw'!$A$2:$A$26,1))),$C36*'Shultis Faw'!$F$2/'Shultis Faw'!$A$2) -> 13.0554945 | N36: =J36*(H36*'Externe blootstelling'!$D$23/2)^K36+L36*(TANH(((H36*'Externe blootstelling'!$D$23)/(2*M36))-2)-TANH(-2))/(1-TANH(-2)) -> 1.250692837 | O36: =IF(N36=1,1+(I36-1)*H36*'Externe blootstelling'!$D$23/2,1+(I36-1)*(N36^(H36*'Externe blootstelling'!$D$23/2)-1)/(N36-1)) -> 16.50340727 | P36: =G36*EXP(-H36*'Externe blootstelling'!$D$23/2)*O36 -> 0.01592143621
B37: X-ray | C37: 0.04838 | D37: 7.7408e-15 | E37: 0.0244 | F37: =_xlfn.IFNA(INDEX('hp (pSv cm2)'!$B$2:$B$52,MATCH($C37,'hp (pSv cm2)'!$A$2:$A$52,1))+($C37-INDEX('hp (pSv cm2)'!$A$2:$A$52,MATCH($C37,'hp (pSv cm2)'!$A$2:$A$52,1)))*(INDEX('hp (pSv cm2)'!$B$2:$B$52,MATCH($C37,'hp (pSv cm2)'!$A$2:$A$52,1)+1)-INDEX('hp (pSv cm2)'!$B$2:$B$52,MATCH($C37,'hp (pSv cm2)'!$A$2:$A$52,1)))/(INDEX('hp (pSv cm2)'!$A$2:$A$52,MATCH($C37,'hp (pSv cm2)'!$A$2:$A$52,1)+1)-INDEX('hp (pSv cm2)'!$A$2:$A$52,MATCH($C37,'hp (pSv cm2)'!$A$2:$A$52,1))),$C37*'hp (pSv cm2)'!$B$2/'hp (pSv cm2)'!$A$2) -> 0.365922 | G37: 0.0089284968 | H37: =_xlfn.IFNA(0.997*(INDEX('Mass attenuation coefficients'!$B$2:$B$37,MATCH($C37,'Mass attenuation coefficients'!$A$2:$A$37,1))+($C37-INDEX('Mass attenuation coefficients'!$A$2:$A$37,MATCH($C37,'Mass attenuation coefficients'!$A$2:$A$37,1)))*(INDEX('Mass attenuation coefficients'!$B$2:$B$37,MATCH($C37,'Mass attenuation coefficients'!$A$2:$A$37,1)+1)-INDEX('Mass attenuation coefficients'!$B$2:$B$37,MATCH($C37,'Mass attenuation coefficients'!$A$2:$A$37,1)))/(INDEX('Mass attenuation coefficients'!$A$2:$A$37,MATCH($C37,'Mass attenuation coefficients'!$A$2:$A$37,1)+1)-INDEX('Mass attenuation coefficients'!$A$2:$A$37,MATCH($C37,'Mass attenuation coefficients'!$A$2:$A$37,1)))),0.997*$C37*'Mass attenuation coefficients'!$B$2/'Mass attenuation coefficients'!$A$2) -> 0.2329059796 | I37: =_xlfn.IFNA(INDEX('Shultis Faw'!$C$2:$C$26,MATCH($C37,'Shultis Faw'!$A$2:$A$26,1))+($C37-INDEX('Shultis Faw'!$A$2:$A$26,MATCH($C37,'Shultis Faw'!$A$2:$A$26,1)))*(INDEX('Shultis Faw'!$C$2:$C$26,MATCH($C37,'Shultis Faw'!$A$2:$A$26,1)+1)-INDEX('Shultis Faw'!$C$2:$C$26,MATCH($C37,'Shultis Faw'!$A$2:$A$26,1)))/(INDEX('Shultis Faw'!$A$2:$A$26,MATCH($C37,'Shultis Faw'!$A$2:$A$26,1)+1)-INDEX('Shultis Faw'!$A$2:$A$26,MATCH($C37,'Shultis Faw'!$A$2:$A$26,1))),$C37*'Shultis Faw'!$C$2/'Shultis Faw'!$A$2) -> 4.301592 | J37: =_xlfn.IFNA(INDEX('Shultis Faw'!$D$2:$D$26,MATCH($C37,'Shultis Faw'!$A$2:$A$26,1))+($C37-INDEX('Shultis Faw'!$A$2:$A$26,MATCH($C37,'Shultis Faw'!$A$2:$A$26,1)))*(INDEX('Shultis Faw'!$D$2:$D$26,MATCH($C37,'Shultis Faw'!$A$2:$A$26,1)+1)-INDEX('Shultis Faw'!$D$2:$D$26,MATCH($C37,'Shultis Faw'!$A$2:$A$26,1)))/(INDEX('Shultis Faw'!$A$2:$A$26,MATCH($C37,'Shultis Faw'!$A$2:$A$26,1)+1)-INDEX('Shultis Faw'!$A$2:$A$26,MATCH($C37,'Shultis Faw'!$A$2:$A$26,1))),$C37*'Shultis Faw'!$D$2/'Shultis Faw'!$A$2) -> 1.40192 | K37: =_xlfn.IFNA(INDEX('Shultis Faw'!$B$2:$B$26,MATCH($C37,'Shultis Faw'!$A$2:$A$26,1))+($C37-INDEX('Shultis Faw'!$A$2:$A$26,MATCH($C37,'Shultis Faw'!$A$2:$A$26,1)))*(INDEX('Shultis Faw'!$B$2:$B$26,MATCH($C37,'Shultis Faw'!$A$2:$A$26,1)+1)-INDEX('Shultis Faw'!$B$2:$B$26,MATCH($C37,'Shultis Faw'!$A$2:$A$26,1)))/(INDEX('Shultis Faw'!$A$2:$A$26,MATCH($C37,'Shultis Faw'!$A$2:$A$26,1)+1)-INDEX('Shultis Faw'!$A$2:$A$26,MATCH($C37,'Shultis Faw'!$A$2:$A$26,1))),$C37*'Shultis Faw'!$B$2/'Shultis Faw'!$A$2) -> -0.07347 | L37: =_xlfn.IFNA(INDEX('Shultis Faw'!$E$2:$E$26,MATCH($C37,'Shultis Faw'!$A$2:$A$26,1))+($C37-INDEX('Shultis Faw'!$A$2:$A$26,MATCH($C37,'Shultis Faw'!$A$2:$A$26,1)))*(INDEX('Shultis Faw'!$E$2:$E$26,MATCH($C37,'Shultis Faw'!$A$2:$A$26,1)+1)-INDEX('Shultis Faw'!$E$2:$E$26,MATCH($C37,'Shultis Faw'!$A$2:$A$26,1)))/(INDEX('Shultis Faw'!$A$2:$A$26,MATCH($C37,'Shultis Faw'!$A$2:$A$26,1)+1)-INDEX('Shultis Faw'!$A$2:$A$26,MATCH($C37,'Shultis Faw'!$A$2:$A$26,1))),$C37*'Shultis Faw'!$E$2/'Shultis Faw'!$A$2) -> 0.028997 | M37: =_xlfn.IFNA(INDEX('Shultis Faw'!$F$2:$F$26,MATCH($C37,'Shultis Faw'!$A$2:$A$26,1))+($C37-INDEX('Shultis Faw'!$A$2:$A$26,MATCH($C37,'Shultis Faw'!$A$2:$A$26,1)))*(INDEX('Shultis Faw'!$F$2:$F$26,MATCH($C37,'Shultis Faw'!$A$2:$A$26,1)+1)-INDEX('Shultis Faw'!$F$2:$F$26,MATCH($C37,'Shultis Faw'!$A$2:$A$26,1)))/(INDEX('Shultis Faw'!$A$2:$A$26,MATCH($C37,'Shultis Faw'!$A$2:$A$26,1)+1)-INDEX('Shultis Faw'!$A$2:$A$26,MATCH($C37,'Shultis Faw'!$A$2:$A$26,1))),$C37*'Shultis Faw'!$F$2/'Shultis Faw'!$A$2) -> 13.3041 | N37: =J37*(H37*'Externe blootstelling'!$D$23/2)^K37+L37*(TANH(((H37*'Externe blootstelling'!$D$23)/(2*M37))-2)-TANH(-2))/(1-TANH(-2)) -> 1.279174749 | O37: =IF(N37=1,1+(I37-1)*H37*'Externe blootstelling'!$D$23/2,1+(I37-1)*(N37^(H37*'Externe blootstelling'!$D$23/2)-1)/(N37-1)) -> 17.1259695 | P37: =G37*EXP(-H37*'Externe blootstelling'!$D$23/2)*O37 -> 0.004647151033
B38: g | C38: 0.0541936 | D38: 8.670976e-15 | E38: 1.9e-05 | F38: =_xlfn.IFNA(INDEX('hp (pSv cm2)'!$B$2:$B$52,MATCH($C38,'hp (pSv cm2)'!$A$2:$A$52,1))+($C38-INDEX('hp (pSv cm2)'!$A$2:$A$52,MATCH($C38,'hp (pSv cm2)'!$A$2:$A$52,1)))*(INDEX('hp (pSv cm2)'!$B$2:$B$52,MATCH($C38,'hp (pSv cm2)'!$A$2:$A$52,1)+1)-INDEX('hp (pSv cm2)'!$B$2:$B$52,MATCH($C38,'hp (pSv cm2)'!$A$2:$A$52,1)))/(INDEX('hp (pSv cm2)'!$A$2:$A$52,MATCH($C38,'hp (pSv cm2)'!$A$2:$A$52,1)+1)-INDEX('hp (pSv cm2)'!$A$2:$A$52,MATCH($C38,'hp (pSv cm2)'!$A$2:$A$52,1))),$C38*'hp (pSv cm2)'!$B$2/'hp (pSv cm2)'!$A$2) -> 0.3773872 | G38: 7.1703568e-06 | H38: =_xlfn.IFNA(0.997*(INDEX('Mass attenuation coefficients'!$B$2:$B$37,MATCH($C38,'Mass attenuation coefficients'!$A$2:$A$37,1))+($C38-INDEX('Mass attenuation coefficients'!$A$2:$A$37,MATCH($C38,'Mass attenuation coefficients'!$A$2:$A$37,1)))*(INDEX('Mass attenuation coefficients'!$B$2:$B$37,MATCH($C38,'Mass attenuation coefficients'!$A$2:$A$37,1)+1)-INDEX('Mass attenuation coefficients'!$B$2:$B$37,MATCH($C38,'Mass attenuation coefficients'!$A$2:$A$37,1)))/(INDEX('Mass attenuation coefficients'!$A$2:$A$37,MATCH($C38,'Mass attenuation coefficients'!$A$2:$A$37,1)+1)-INDEX('Mass attenuation coefficients'!$A$2:$A$37,MATCH($C38,'Mass attenuation coefficients'!$A$2:$A$37,1)))),0.997*$C38*'Mass attenuation coefficients'!$B$2/'Mass attenuation coefficients'!$A$2) -> 0.2174391597 | I38: =_xlfn.IFNA(INDEX('Shultis Faw'!$C$2:$C$26,MATCH($C38,'Shultis Faw'!$A$2:$A$26,1))+($C38-INDEX('Shultis Faw'!$A$2:$A$26,MATCH($C38,'Shultis Faw'!$A$2:$A$26,1)))*(INDEX('Shultis Faw'!$C$2:$C$26,MATCH($C38,'Shultis Faw'!$A$2:$A$26,1)+1)-INDEX('Shultis Faw'!$C$2:$C$26,MATCH($C38,'Shultis Faw'!$A$2:$A$26,1)))/(INDEX('Shultis Faw'!$A$2:$A$26,MATCH($C38,'Shultis Faw'!$A$2:$A$26,1)+1)-INDEX('Shultis Faw'!$A$2:$A$26,MATCH($C38,'Shultis Faw'!$A$2:$A$26,1))),$C38*'Shultis Faw'!$C$2/'Shultis Faw'!$A$2) -> 4.67990592 | J38: =_xlfn.IFNA(INDEX('Shultis Faw'!$D$2:$D$26,MATCH($C38,'Shultis Faw'!$A$2:$A$26,1))+($C38-INDEX('Shultis Faw'!$A$2:$A$26,MATCH($C38,'Shultis Faw'!$A$2:$A$26,1)))*(INDEX('Shultis Faw'!$D$2:$D$26,MATCH($C38,'Shultis Faw'!$A$2:$A$26,1)+1)-INDEX('Shultis Faw'!$D$2:$D$26,MATCH($C38,'Shultis Faw'!$A$2:$A$26,1)))/(INDEX('Shultis Faw'!$A$2:$A$26,MATCH($C38,'Shultis Faw'!$A$2:$A$26,1)+1)-INDEX('Shultis Faw'!$A$2:$A$26,MATCH($C38,'Shultis Faw'!$A$2:$A$26,1))),$C38*'Shultis Faw'!$D$2/'Shultis Faw'!$A$2) -> 1.57148528 | K38: =_xlfn.IFNA(INDEX('Shultis Faw'!$B$2:$B$26,MATCH($C38,'Shultis Faw'!$A$2:$A$26,1))+($C38-INDEX('Shultis Faw'!$A$2:$A$26,MATCH($C38,'Shultis Faw'!$A$2:$A$26,1)))*(INDEX('Shultis Faw'!$B$2:$B$26,MATCH($C38,'Shultis Faw'!$A$2:$A$26,1)+1)-INDEX('Shultis Faw'!$B$2:$B$26,MATCH($C38,'Shultis Faw'!$A$2:$A$26,1)))/(INDEX('Shultis Faw'!$A$2:$A$26,MATCH($C38,'Shultis Faw'!$A$2:$A$26,1)+1)-INDEX('Shultis Faw'!$A$2:$A$26,MATCH($C38,'Shultis Faw'!$A$2:$A$26,1))),$C38*'Shultis Faw'!$B$2/'Shultis Faw'!$A$2) -> -0.10161312 | L38: =_xlfn.IFNA(INDEX('Shultis Faw'!$E$2:$E$26,MATCH($C38,'Shultis Faw'!$A$2:$A$26,1))+($C38-INDEX('Shultis Faw'!$A$2:$A$26,MATCH($C38,'Shultis Faw'!$A$2:$A$26,1)))*(INDEX('Shultis Faw'!$E$2:$E$26,MATCH($C38,'Shultis Faw'!$A$2:$A$26,1)+1)-INDEX('Shultis Faw'!$E$2:$E$26,MATCH($C38,'Shultis Faw'!$A$2:$A$26,1)))/(INDEX('Shultis Faw'!$A$2:$A$26,MATCH($C38,'Shultis Faw'!$A$2:$A$26,1)+1)-INDEX('Shultis Faw'!$A$2:$A$26,MATCH($C38,'Shultis Faw'!$A$2:$A$26,1))),$C38*'Shultis Faw'!$E$2/'Shultis Faw'!$A$2) -> 0.04332592 | M38: =_xlfn.IFNA(INDEX('Shultis Faw'!$F$2:$F$26,MATCH($C38,'Shultis Faw'!$A$2:$A$26,1))+($C38-INDEX('Shultis Faw'!$A$2:$A$26,MATCH($C38,'Shultis Faw'!$A$2:$A$26,1)))*(INDEX('Shultis Faw'!$F$2:$F$26,MATCH($C38,'Shultis Faw'!$A$2:$A$26,1)+1)-INDEX('Shultis Faw'!$F$2:$F$26,MATCH($C38,'Shultis Faw'!$A$2:$A$26,1)))/(INDEX('Shultis Faw'!$A$2:$A$26,MATCH($C38,'Shultis Faw'!$A$2:$A$26,1)+1)-INDEX('Shultis Faw'!$A$2:$A$26,MATCH($C38,'Shultis Faw'!$A$2:$A$26,1))),$C38*'Shultis Faw'!$F$2/'Shultis Faw'!$A$2) -> 13.6283872 | N38: =J38*(H38*'Externe blootstelling'!$D$23/2)^K38+L38*(TANH(((H38*'Externe blootstelling'!$D$23)/(2*M38))-2)-TANH(-2))/(1-TANH(-2)) -> 1.394076545 | O38: =IF(N38=1,1+(I38-1)*H38*'Externe blootstelling'!$D$23/2,1+(I38-1)*(N38^(H38*'Externe blootstelling'!$D$23/2)-1)/(N38-1)) -> 19.25880384 | P38: =G38*EXP(-H38*'Externe blootstelling'!$D$23/2)*O38 -> 5.292741321e-06
B39: g | C39: 0.0682574 | D39: 1.0921184e-14 | E39: 1.3e-05 | F39: =_xlfn.IFNA(INDEX('hp (pSv cm2)'!$B$2:$B$52,MATCH($C39,'hp (pSv cm2)'!$A$2:$A$52,1))+($C39-INDEX('hp (pSv cm2)'!$A$2:$A$52,MATCH($C39,'hp (pSv cm2)'!$A$2:$A$52,1)))*(INDEX('hp (pSv cm2)'!$B$2:$B$52,MATCH($C39,'hp (pSv cm2)'!$A$2:$A$52,1)+1)-INDEX('hp (pSv cm2)'!$B$2:$B$52,MATCH($C39,'hp (pSv cm2)'!$A$2:$A$52,1)))/(INDEX('hp (pSv cm2)'!$A$2:$A$52,MATCH($C39,'hp (pSv cm2)'!$A$2:$A$52,1)+1)-INDEX('hp (pSv cm2)'!$A$2:$A$52,MATCH($C39,'hp (pSv cm2)'!$A$2:$A$52,1))),$C39*'hp (pSv cm2)'!$B$2/'hp (pSv cm2)'!$A$2) -> 0.40716628 | G39: 5.29316164e-06 | H39: =_xlfn.IFNA(0.997*(INDEX('Mass attenuation coefficients'!$B$2:$B$37,MATCH($C39,'Mass attenuation coefficients'!$A$2:$A$37,1))+($C39-INDEX('Mass attenuation coefficients'!$A$2:$A$37,MATCH($C39,'Mass attenuation coefficients'!$A$2:$A$37,1)))*(INDEX('Mass attenuation coefficients'!$B$2:$B$37,MATCH($C39,'Mass attenuation coefficients'!$A$2:$A$37,1)+1)-INDEX('Mass attenuation coefficients'!$B$2:$B$37,MATCH($C39,'Mass attenuation coefficients'!$A$2:$A$37,1)))/(INDEX('Mass attenuation coefficients'!$A$2:$A$37,MATCH($C39,'Mass attenuation coefficients'!$A$2:$A$37,1)+1)-INDEX('Mass attenuation coefficients'!$A$2:$A$37,MATCH($C39,'Mass attenuation coefficients'!$A$2:$A$37,1)))),0.997*$C39*'Mass attenuation coefficients'!$B$2/'Mass attenuation coefficients'!$A$2) -> 0.1961440831 | I39: =_xlfn.IFNA(INDEX('Shultis Faw'!$C$2:$C$26,MATCH($C39,'Shultis Faw'!$A$2:$A$26,1))+($C39-INDEX('Shultis Faw'!$A$2:$A$26,MATCH($C39,'Shultis Faw'!$A$2:$A$26,1)))*(INDEX('Shultis Faw'!$C$2:$C$26,MATCH($C39,'Shultis Faw'!$A$2:$A$26,1)+1)-INDEX('Shultis Faw'!$C$2:$C$26,MATCH($C39,'Shultis Faw'!$A$2:$A$26,1)))/(INDEX('Shultis Faw'!$A$2:$A$26,MATCH($C39,'Shultis Faw'!$A$2:$A$26,1)+1)-INDEX('Shultis Faw'!$A$2:$A$26,MATCH($C39,'Shultis Faw'!$A$2:$A$26,1))),$C39*'Shultis Faw'!$C$2/'Shultis Faw'!$A$2) -> 5.01437812 | J39: =_xlfn.IFNA(INDEX('Shultis Faw'!$D$2:$D$26,MATCH($C39,'Shultis Faw'!$A$2:$A$26,1))+($C39-INDEX('Shultis Faw'!$A$2:$A$26,MATCH($C39,'Shultis Faw'!$A$2:$A$26,1)))*(INDEX('Shultis Faw'!$D$2:$D$26,MATCH($C39,'Shultis Faw'!$A$2:$A$26,1)+1)-INDEX('Shultis Faw'!$D$2:$D$26,MATCH($C39,'Shultis Faw'!$A$2:$A$26,1)))/(INDEX('Shultis Faw'!$A$2:$A$26,MATCH($C39,'Shultis Faw'!$A$2:$A$26,1)+1)-INDEX('Shultis Faw'!$A$2:$A$26,MATCH($C39,'Shultis Faw'!$A$2:$A$26,1))),$C39*'Shultis Faw'!$D$2/'Shultis Faw'!$A$2) -> 1.86583423 | K39: =_xlfn.IFNA(INDEX('Shultis Faw'!$B$2:$B$26,MATCH($C39,'Shultis Faw'!$A$2:$A$26,1))+($C39-INDEX('Shultis Faw'!$A$2:$A$26,MATCH($C39,'Shultis Faw'!$A$2:$A$26,1)))*(INDEX('Shultis Faw'!$B$2:$B$26,MATCH($C39,'Shultis Faw'!$A$2:$A$26,1)+1)-INDEX('Shultis Faw'!$B$2:$B$26,MATCH($C39,'Shultis Faw'!$A$2:$A$26,1)))/(INDEX('Shultis Faw'!$A$2:$A$26,MATCH($C39,'Shultis Faw'!$A$2:$A$26,1)+1)-INDEX('Shultis Faw'!$A$2:$A$26,MATCH($C39,'Shultis Faw'!$A$2:$A$26,1))),$C39*'Shultis Faw'!$B$2/'Shultis Faw'!$A$2) -> -0.14334054 | L39: =_xlfn.IFNA(INDEX('Shultis Faw'!$E$2:$E$26,MATCH($C39,'Shultis Faw'!$A$2:$A$26,1))+($C39-INDEX('Shultis Faw'!$A$2:$A$26,MATCH($C39,'Shultis Faw'!$A$2:$A$26,1)))*(INDEX('Shultis Faw'!$E$2:$E$26,MATCH($C39,'Shultis Faw'!$A$2:$A$26,1)+1)-INDEX('Shultis Faw'!$E$2:$E$26,MATCH($C39,'Shultis Faw'!$A$2:$A$26,1)))/(INDEX('Shultis Faw'!$A$2:$A$26,MATCH($C39,'Shultis Faw'!$A$2:$A$26,1)+1)-INDEX('Shultis Faw'!$A$2:$A$26,MATCH($C39,'Shultis Faw'!$A$2:$A$26,1))),$C39*'Shultis Faw'!$E$2/'Shultis Faw'!$A$2) -> 0.064728983 | M39: =_xlfn.IFNA(INDEX('Shultis Faw'!$F$2:$F$26,MATCH($C39,'Shultis Faw'!$A$2:$A$26,1))+($C39-INDEX('Shultis Faw'!$A$2:$A$26,MATCH($C39,'Shultis Faw'!$A$2:$A$26,1)))*(INDEX('Shultis Faw'!$F$2:$F$26,MATCH($C39,'Shultis Faw'!$A$2:$A$26,1)+1)-INDEX('Shultis Faw'!$F$2:$F$26,MATCH($C39,'Shultis Faw'!$A$2:$A$26,1)))/(INDEX('Shultis Faw'!$A$2:$A$26,MATCH($C39,'Shultis Faw'!$A$2:$A$26,1)+1)-INDEX('Shultis Faw'!$A$2:$A$26,MATCH($C39,'Shultis Faw'!$A$2:$A$26,1))),$C39*'Shultis Faw'!$F$2/'Shultis Faw'!$A$2) -> 13.6523861 | N39: =J39*(H39*'Externe blootstelling'!$D$23/2)^K39+L39*(TANH(((H39*'Externe blootstelling'!$D$23)/(2*M39))-2)-TANH(-2))/(1-TANH(-2)) -> 1.599053227 | O39: =IF(N39=1,1+(I39-1)*H39*'Externe blootstelling'!$D$23/2,1+(I39-1)*(N39^(H39*'Externe blootstelling'!$D$23/2)-1)/(N39-1)) -> 20.96433962 | P39: =G39*EXP(-H39*'Externe blootstelling'!$D$23/2)*O39 -> 5.853720048e-06
B40: g | C40: 0.069673 | D40: 1.114768e-14 | E40: 0.04691 | F40: =_xlfn.IFNA(INDEX('hp (pSv cm2)'!$B$2:$B$52,MATCH($C40,'hp (pSv cm2)'!$A$2:$A$52,1))+($C40-INDEX('hp (pSv cm2)'!$A$2:$A$52,MATCH($C40,'hp (pSv cm2)'!$A$2:$A$52,1)))*(INDEX('hp (pSv cm2)'!$B$2:$B$52,MATCH($C40,'hp (pSv cm2)'!$A$2:$A$52,1)+1)-INDEX('hp (pSv cm2)'!$B$2:$B$52,MATCH($C40,'hp (pSv cm2)'!$A$2:$A$52,1)))/(INDEX('hp (pSv cm2)'!$A$2:$A$52,MATCH($C40,'hp (pSv cm2)'!$A$2:$A$52,1)+1)-INDEX('hp (pSv cm2)'!$A$2:$A$52,MATCH($C40,'hp (pSv cm2)'!$A$2:$A$52,1))),$C40*'hp (pSv cm2)'!$B$2/'hp (pSv cm2)'!$A$2) -> 0.4102806 | G40: 0.01924626295 | H40: =_xlfn.IFNA(0.997*(INDEX('Mass attenuation coefficients'!$B$2:$B$37,MATCH($C40,'Mass attenuation coefficients'!$A$2:$A$37,1))+($C40-INDEX('Mass attenuation coefficients'!$A$2:$A$37,MATCH($C40,'Mass attenuation coefficients'!$A$2:$A$37,1)))*(INDEX('Mass attenuation coefficients'!$B$2:$B$37,MATCH($C40,'Mass attenuation coefficients'!$A$2:$A$37,1)+1)-INDEX('Mass attenuation coefficients'!$B$2:$B$37,MATCH($C40,'Mass attenuation coefficients'!$A$2:$A$37,1)))/(INDEX('Mass attenuation coefficients'!$A$2:$A$37,MATCH($C40,'Mass attenuation coefficients'!$A$2:$A$37,1)+1)-INDEX('Mass attenuation coefficients'!$A$2:$A$37,MATCH($C40,'Mass attenuation coefficients'!$A$2:$A$37,1)))),0.997*$C40*'Mass attenuation coefficients'!$B$2/'Mass attenuation coefficients'!$A$2) -> 0.1945774811 | I40: =_xlfn.IFNA(INDEX('Shultis Faw'!$C$2:$C$26,MATCH($C40,'Shultis Faw'!$A$2:$A$26,1))+($C40-INDEX('Shultis Faw'!$A$2:$A$26,MATCH($C40,'Shultis Faw'!$A$2:$A$26,1)))*(INDEX('Shultis Faw'!$C$2:$C$26,MATCH($C40,'Shultis Faw'!$A$2:$A$26,1)+1)-INDEX('Shultis Faw'!$C$2:$C$26,MATCH($C40,'Shultis Faw'!$A$2:$A$26,1)))/(INDEX('Shultis Faw'!$A$2:$A$26,MATCH($C40,'Shultis Faw'!$A$2:$A$26,1)+1)-INDEX('Shultis Faw'!$A$2:$A$26,MATCH($C40,'Shultis Faw'!$A$2:$A$26,1))),$C40*'Shultis Faw'!$C$2/'Shultis Faw'!$A$2) -> 5.0197574 | J40: =_xlfn.IFNA(INDEX('Shultis Faw'!$D$2:$D$26,MATCH($C40,'Shultis Faw'!$A$2:$A$26,1))+($C40-INDEX('Shultis Faw'!$A$2:$A$26,MATCH($C40,'Shultis Faw'!$A$2:$A$26,1)))*(INDEX('Shultis Faw'!$D$2:$D$26,MATCH($C40,'Shultis Faw'!$A$2:$A$26,1)+1)-INDEX('Shultis Faw'!$D$2:$D$26,MATCH($C40,'Shultis Faw'!$A$2:$A$26,1)))/(INDEX('Shultis Faw'!$A$2:$A$26,MATCH($C40,'Shultis Faw'!$A$2:$A$26,1)+1)-INDEX('Shultis Faw'!$A$2:$A$26,MATCH($C40,'Shultis Faw'!$A$2:$A$26,1))),$C40*'Shultis Faw'!$D$2/'Shultis Faw'!$A$2) -> 1.88912085 | K40: =_xlfn.IFNA(INDEX('Shultis Faw'!$B$2:$B$26,MATCH($C40,'Shultis Faw'!$A$2:$A$26,1))+($C40-INDEX('Shultis Faw'!$A$2:$A$26,MATCH($C40,'Shultis Faw'!$A$2:$A$26,1)))*(INDEX('Shultis Faw'!$B$2:$B$26,MATCH($C40,'Shultis Faw'!$A$2:$A$26,1)+1)-INDEX('Shultis Faw'!$B$2:$B$26,MATCH($C40,'Shultis Faw'!$A$2:$A$26,1)))/(INDEX('Shultis Faw'!$A$2:$A$26,MATCH($C40,'Shultis Faw'!$A$2:$A$26,1)+1)-INDEX('Shultis Faw'!$A$2:$A$26,MATCH($C40,'Shultis Faw'!$A$2:$A$26,1))),$C40*'Shultis Faw'!$B$2/'Shultis Faw'!$A$2) -> -0.1463133 | L40: =_xlfn.IFNA(INDEX('Shultis Faw'!$E$2:$E$26,MATCH($C40,'Shultis Faw'!$A$2:$A$26,1))+($C40-INDEX('Shultis Faw'!$A$2:$A$26,MATCH($C40,'Shultis Faw'!$A$2:$A$26,1)))*(INDEX('Shultis Faw'!$E$2:$E$26,MATCH($C40,'Shultis Faw'!$A$2:$A$26,1)+1)-INDEX('Shultis Faw'!$E$2:$E$26,MATCH($C40,'Shultis Faw'!$A$2:$A$26,1)))/(INDEX('Shultis Faw'!$A$2:$A$26,MATCH($C40,'Shultis Faw'!$A$2:$A$26,1)+1)-INDEX('Shultis Faw'!$A$2:$A$26,MATCH($C40,'Shultis Faw'!$A$2:$A$26,1))),$C40*'Shultis Faw'!$E$2/'Shultis Faw'!$A$2) -> 0.066208285 | M40: =_xlfn.IFNA(INDEX('Shultis Faw'!$F$2:$F$26,MATCH($C40,'Shultis Faw'!$A$2:$A$26,1))+($C40-INDEX('Shultis Faw'!$A$2:$A$26,MATCH($C40,'Shultis Faw'!$A$2:$A$26,1)))*(INDEX('Shultis Faw'!$F$2:$F$26,MATCH($C40,'Shultis Faw'!$A$2:$A$26,1)+1)-INDEX('Shultis Faw'!$F$2:$F$26,MATCH($C40,'Shultis Faw'!$A$2:$A$26,1)))/(INDEX('Shultis Faw'!$A$2:$A$26,MATCH($C40,'Shultis Faw'!$A$2:$A$26,1)+1)-INDEX('Shultis Faw'!$A$2:$A$26,MATCH($C40,'Shultis Faw'!$A$2:$A$26,1))),$C40*'Shultis Faw'!$F$2/'Shultis Faw'!$A$2) -> 13.6545095 | N40: =J40*(H40*'Externe blootstelling'!$D$23/2)^K40+L40*(TANH(((H40*'Externe blootstelling'!$D$23)/(2*M40))-2)-TANH(-2))/(1-TANH(-2)) -> 1.615720784 | O40: =IF(N40=1,1+(I40-1)*H40*'Externe blootstelling'!$D$23/2,1+(I40-1)*(N40^(H40*'Externe blootstelling'!$D$23/2)-1)/(N40-1)) -> 20.95444413 | P40: =G40*EXP(-H40*'Externe blootstelling'!$D$23/2)*O40 -> 0.02178029032
B41: g | C41: 0.07542213 | D41: 1.20675408e-14 | E41: 0.00169 | F41: =_xlfn.IFNA(INDEX('hp (pSv cm2)'!$B$2:$B$52,MATCH($C41,'hp (pSv cm2)'!$A$2:$A$52,1))+($C41-INDEX('hp (pSv cm2)'!$A$2:$A$52,MATCH($C41,'hp (pSv cm2)'!$A$2:$A$52,1)))*(INDEX('hp (pSv cm2)'!$B$2:$B$52,MATCH($C41,'hp (pSv cm2)'!$A$2:$A$52,1)+1)-INDEX('hp (pSv cm2)'!$B$2:$B$52,MATCH($C41,'hp (pSv cm2)'!$A$2:$A$52,1)))/(INDEX('hp (pSv cm2)'!$A$2:$A$52,MATCH($C41,'hp (pSv cm2)'!$A$2:$A$52,1)+1)-INDEX('hp (pSv cm2)'!$A$2:$A$52,MATCH($C41,'hp (pSv cm2)'!$A$2:$A$52,1))),$C41*'hp (pSv cm2)'!$B$2/'hp (pSv cm2)'!$A$2) -> 0.428350816 | G41: 0.000723912879 | H41: =_xlfn.IFNA(0.997*(INDEX('Mass attenuation coefficients'!$B$2:$B$37,MATCH($C41,'Mass attenuation coefficients'!$A$2:$A$37,1))+($C41-INDEX('Mass attenuation coefficients'!$A$2:$A$37,MATCH($C41,'Mass attenuation coefficients'!$A$2:$A$37,1)))*(INDEX('Mass attenuation coefficients'!$B$2:$B$37,MATCH($C41,'Mass attenuation coefficients'!$A$2:$A$37,1)+1)-INDEX('Mass attenuation coefficients'!$B$2:$B$37,MATCH($C41,'Mass attenuation coefficients'!$A$2:$A$37,1)))/(INDEX('Mass attenuation coefficients'!$A$2:$A$37,MATCH($C41,'Mass attenuation coefficients'!$A$2:$A$37,1)+1)-INDEX('Mass attenuation coefficients'!$A$2:$A$37,MATCH($C41,'Mass attenuation coefficients'!$A$2:$A$37,1)))),0.997*$C41*'Mass attenuation coefficients'!$B$2/'Mass attenuation coefficients'!$A$2) -> 0.1882150914 | I41: =_xlfn.IFNA(INDEX('Shultis Faw'!$C$2:$C$26,MATCH($C41,'Shultis Faw'!$A$2:$A$26,1))+($C41-INDEX('Shultis Faw'!$A$2:$A$26,MATCH($C41,'Shultis Faw'!$A$2:$A$26,1)))*(INDEX('Shultis Faw'!$C$2:$C$26,MATCH($C41,'Shultis Faw'!$A$2:$A$26,1)+1)-INDEX('Shultis Faw'!$C$2:$C$26,MATCH($C41,'Shultis Faw'!$A$2:$A$26,1)))/(INDEX('Shultis Faw'!$A$2:$A$26,MATCH($C41,'Shultis Faw'!$A$2:$A$26,1)+1)-INDEX('Shultis Faw'!$A$2:$A$26,MATCH($C41,'Shultis Faw'!$A$2:$A$26,1))),$C41*'Shultis Faw'!$C$2/'Shultis Faw'!$A$2) -> 5.041604094 | J41: =_xlfn.IFNA(INDEX('Shultis Faw'!$D$2:$D$26,MATCH($C41,'Shultis Faw'!$A$2:$A$26,1))+($C41-INDEX('Shultis Faw'!$A$2:$A$26,MATCH($C41,'Shultis Faw'!$A$2:$A$26,1)))*(INDEX('Shultis Faw'!$D$2:$D$26,MATCH($C41,'Shultis Faw'!$A$2:$A$26,1)+1)-INDEX('Shultis Faw'!$D$2:$D$26,MATCH($C41,'Shultis Faw'!$A$2:$A$26,1)))/(INDEX('Shultis Faw'!$A$2:$A$26,MATCH($C41,'Shultis Faw'!$A$2:$A$26,1)+1)-INDEX('Shultis Faw'!$A$2:$A$26,MATCH($C41,'Shultis Faw'!$A$2:$A$26,1))),$C41*'Shultis Faw'!$D$2/'Shultis Faw'!$A$2) -> 1.983694038 | K41: =_xlfn.IFNA(INDEX('Shultis Faw'!$B$2:$B$26,MATCH($C41,'Shultis Faw'!$A$2:$A$26,1))+($C41-INDEX('Shultis Faw'!$A$2:$A$26,MATCH($C41,'Shultis Faw'!$A$2:$A$26,1)))*(INDEX('Shultis Faw'!$B$2:$B$26,MATCH($C41,'Shultis Faw'!$A$2:$A$26,1)+1)-INDEX('Shultis Faw'!$B$2:$B$26,MATCH($C41,'Shultis Faw'!$A$2:$A$26,1)))/(INDEX('Shultis Faw'!$A$2:$A$26,MATCH($C41,'Shultis Faw'!$A$2:$A$26,1)+1)-INDEX('Shultis Faw'!$A$2:$A$26,MATCH($C41,'Shultis Faw'!$A$2:$A$26,1))),$C41*'Shultis Faw'!$B$2/'Shultis Faw'!$A$2) -> -0.158386473 | L41: =_xlfn.IFNA(INDEX('Shultis Faw'!$E$2:$E$26,MATCH($C41,'Shultis Faw'!$A$2:$A$26,1))+($C41-INDEX('Shultis Faw'!$A$2:$A$26,MATCH($C41,'Shultis Faw'!$A$2:$A$26,1)))*(INDEX('Shultis Faw'!$E$2:$E$26,MATCH($C41,'Shultis Faw'!$A$2:$A$26,1)+1)-INDEX('Shultis Faw'!$E$2:$E$26,MATCH($C41,'Shultis Faw'!$A$2:$A$26,1)))/(INDEX('Shultis Faw'!$A$2:$A$26,MATCH($C41,'Shultis Faw'!$A$2:$A$26,1)+1)-INDEX('Shultis Faw'!$A$2:$A$26,MATCH($C41,'Shultis Faw'!$A$2:$A$26,1))),$C41*'Shultis Faw'!$E$2/'Shultis Faw'!$A$2) -> 0.07221612585 | M41: =_xlfn.IFNA(INDEX('Shultis Faw'!$F$2:$F$26,MATCH($C41,'Shultis Faw'!$A$2:$A$26,1))+($C41-INDEX('Shultis Faw'!$A$2:$A$26,MATCH($C41,'Shultis Faw'!$A$2:$A$26,1)))*(INDEX('Shultis Faw'!$F$2:$F$26,MATCH($C41,'Shultis Faw'!$A$2:$A$26,1)+1)-INDEX('Shultis Faw'!$F$2:$F$26,MATCH($C41,'Shultis Faw'!$A$2:$A$26,1)))/(INDEX('Shultis Faw'!$A$2:$A$26,MATCH($C41,'Shultis Faw'!$A$2:$A$26,1)+1)-INDEX('Shultis Faw'!$A$2:$A$26,MATCH($C41,'Shultis Faw'!$A$2:$A$26,1))),$C41*'Shultis Faw'!$F$2/'Shultis Faw'!$A$2) -> 13.6631332 | N41: =J41*(H41*'Externe blootstelling'!$D$23/2)^K41+L41*(TANH(((H41*'Externe blootstelling'!$D$23)/(2*M41))-2)-TANH(-2))/(1-TANH(-2)) -> 1.683653017 | O41: =IF(N41=1,1+(I41-1)*H41*'Externe blootstelling'!$D$23/2,1+(I41-1)*(N41^(H41*'Externe blootstelling'!$D$23/2)-1)/(N41-1)) -> 20.82062474 | P41: =G41*EXP(-H41*'Externe blootstelling'!$D$23/2)*O41 -> 0.000895505847
B42: g | C42: 0.08336717 | D42: 1.33387472e-14 | E42: 0.00193 | F42: =_xlfn.IFNA(INDEX('hp (pSv cm2)'!$B$2:$B$52,MATCH($C42,'hp (pSv cm2)'!$A$2:$A$52,1))+($C42-INDEX('hp (pSv cm2)'!$A$2:$A$52,MATCH($C42,'hp (pSv cm2)'!$A$2:$A$52,1)))*(INDEX('hp (pSv cm2)'!$B$2:$B$52,MATCH($C42,'hp (pSv cm2)'!$A$2:$A$52,1)+1)-INDEX('hp (pSv cm2)'!$B$2:$B$52,MATCH($C42,'hp (pSv cm2)'!$A$2:$A$52,1)))/(INDEX('hp (pSv cm2)'!$A$2:$A$52,MATCH($C42,'hp (pSv cm2)'!$A$2:$A$52,1)+1)-INDEX('hp (pSv cm2)'!$A$2:$A$52,MATCH($C42,'hp (pSv cm2)'!$A$2:$A$52,1))),$C42*'hp (pSv cm2)'!$B$2/'hp (pSv cm2)'!$A$2) -> 0.4556268875 | G42: 0.0008793598929 | H42: =_xlfn.IFNA(0.997*(INDEX('Mass attenuation coefficients'!$B$2:$B$37,MATCH($C42,'Mass attenuation coefficients'!$A$2:$A$37,1))+($C42-INDEX('Mass attenuation coefficients'!$A$2:$A$37,MATCH($C42,'Mass attenuation coefficients'!$A$2:$A$37,1)))*(INDEX('Mass attenuation coefficients'!$B$2:$B$37,MATCH($C42,'Mass attenuation coefficients'!$A$2:$A$37,1)+1)-INDEX('Mass attenuation coefficients'!$B$2:$B$37,MATCH($C42,'Mass attenuation coefficients'!$A$2:$A$37,1)))/(INDEX('Mass attenuation coefficients'!$A$2:$A$37,MATCH($C42,'Mass attenuation coefficients'!$A$2:$A$37,1)+1)-INDEX('Mass attenuation coefficients'!$A$2:$A$37,MATCH($C42,'Mass attenuation coefficients'!$A$2:$A$37,1)))),0.997*$C42*'Mass attenuation coefficients'!$B$2/'Mass attenuation coefficients'!$A$2) -> 0.1809668055 | I42: =_xlfn.IFNA(INDEX('Shultis Faw'!$C$2:$C$26,MATCH($C42,'Shultis Faw'!$A$2:$A$26,1))+($C42-INDEX('Shultis Faw'!$A$2:$A$26,MATCH($C42,'Shultis Faw'!$A$2:$A$26,1)))*(INDEX('Shultis Faw'!$C$2:$C$26,MATCH($C42,'Shultis Faw'!$A$2:$A$26,1)+1)-INDEX('Shultis Faw'!$C$2:$C$26,MATCH($C42,'Shultis Faw'!$A$2:$A$26,1)))/(INDEX('Shultis Faw'!$A$2:$A$26,MATCH($C42,'Shultis Faw'!$A$2:$A$26,1)+1)-INDEX('Shultis Faw'!$A$2:$A$26,MATCH($C42,'Shultis Faw'!$A$2:$A$26,1))),$C42*'Shultis Faw'!$C$2/'Shultis Faw'!$A$2) -> 4.992330034 | J42: =_xlfn.IFNA(INDEX('Shultis Faw'!$D$2:$D$26,MATCH($C42,'Shultis Faw'!$A$2:$A$26,1))+($C42-INDEX('Shultis Faw'!$A$2:$A$26,MATCH($C42,'Shultis Faw'!$A$2:$A$26,1)))*(INDEX('Shultis Faw'!$D$2:$D$26,MATCH($C42,'Shultis Faw'!$A$2:$A$26,1)+1)-INDEX('Shultis Faw'!$D$2:$D$26,MATCH($C42,'Shultis Faw'!$A$2:$A$26,1)))/(INDEX('Shultis Faw'!$A$2:$A$26,MATCH($C42,'Shultis Faw'!$A$2:$A$26,1)+1)-INDEX('Shultis Faw'!$A$2:$A$26,MATCH($C42,'Shultis Faw'!$A$2:$A$26,1))),$C42*'Shultis Faw'!$D$2/'Shultis Faw'!$A$2) -> 2.086274077 | K42: =_xlfn.IFNA(INDEX('Shultis Faw'!$B$2:$B$26,MATCH($C42,'Shultis Faw'!$A$2:$A$26,1))+($C42-INDEX('Shultis Faw'!$A$2:$A$26,MATCH($C42,'Shultis Faw'!$A$2:$A$26,1)))*(INDEX('Shultis Faw'!$B$2:$B$26,MATCH($C42,'Shultis Faw'!$A$2:$A$26,1)+1)-INDEX('Shultis Faw'!$B$2:$B$26,MATCH($C42,'Shultis Faw'!$A$2:$A$26,1)))/(INDEX('Shultis Faw'!$A$2:$A$26,MATCH($C42,'Shultis Faw'!$A$2:$A$26,1)+1)-INDEX('Shultis Faw'!$A$2:$A$26,MATCH($C42,'Shultis Faw'!$A$2:$A$26,1))),$C42*'Shultis Faw'!$B$2/'Shultis Faw'!$A$2) -> -0.171030453 | L42: =_xlfn.IFNA(INDEX('Shultis Faw'!$E$2:$E$26,MATCH($C42,'Shultis Faw'!$A$2:$A$26,1))+($C42-INDEX('Shultis Faw'!$A$2:$A$26,MATCH($C42,'Shultis Faw'!$A$2:$A$26,1)))*(INDEX('Shultis Faw'!$E$2:$E$26,MATCH($C42,'Shultis Faw'!$A$2:$A$26,1)+1)-INDEX('Shultis Faw'!$E$2:$E$26,MATCH($C42,'Shultis Faw'!$A$2:$A$26,1)))/(INDEX('Shultis Faw'!$A$2:$A$26,MATCH($C42,'Shultis Faw'!$A$2:$A$26,1)+1)-INDEX('Shultis Faw'!$A$2:$A$26,MATCH($C42,'Shultis Faw'!$A$2:$A$26,1))),$C42*'Shultis Faw'!$E$2/'Shultis Faw'!$A$2) -> 0.0779428076 | M42: =_xlfn.IFNA(INDEX('Shultis Faw'!$F$2:$F$26,MATCH($C42,'Shultis Faw'!$A$2:$A$26,1))+($C42-INDEX('Shultis Faw'!$A$2:$A$26,MATCH($C42,'Shultis Faw'!$A$2:$A$26,1)))*(INDEX('Shultis Faw'!$F$2:$F$26,MATCH($C42,'Shultis Faw'!$A$2:$A$26,1)+1)-INDEX('Shultis Faw'!$F$2:$F$26,MATCH($C42,'Shultis Faw'!$A$2:$A$26,1)))/(INDEX('Shultis Faw'!$A$2:$A$26,MATCH($C42,'Shultis Faw'!$A$2:$A$26,1)+1)-INDEX('Shultis Faw'!$A$2:$A$26,MATCH($C42,'Shultis Faw'!$A$2:$A$26,1))),$C42*'Shultis Faw'!$F$2/'Shultis Faw'!$A$2) -> 13.61275811 | N42: =J42*(H42*'Externe blootstelling'!$D$23/2)^K42+L42*(TANH(((H42*'Externe blootstelling'!$D$23)/(2*M42))-2)-TANH(-2))/(1-TANH(-2)) -> 1.75940276 | O42: =IF(N42=1,1+(I42-1)*H42*'Externe blootstelling'!$D$23/2,1+(I42-1)*(N42^(H42*'Externe blootstelling'!$D$23/2)-1)/(N42-1)) -> 20.10961964 | P42: =G42*EXP(-H42*'Externe blootstelling'!$D$23/2)*O42 -> 0.00117132452
B43: g | C43: 0.08948595 | D43: 1.4317752e-14 | E43: 0.00158 | F43: =_xlfn.IFNA(INDEX('hp (pSv cm2)'!$B$2:$B$52,MATCH($C43,'hp (pSv cm2)'!$A$2:$A$52,1))+($C43-INDEX('hp (pSv cm2)'!$A$2:$A$52,MATCH($C43,'hp (pSv cm2)'!$A$2:$A$52,1)))*(INDEX('hp (pSv cm2)'!$B$2:$B$52,MATCH($C43,'hp (pSv cm2)'!$A$2:$A$52,1)+1)-INDEX('hp (pSv cm2)'!$B$2:$B$52,MATCH($C43,'hp (pSv cm2)'!$A$2:$A$52,1)))/(INDEX('hp (pSv cm2)'!$A$2:$A$52,MATCH($C43,'hp (pSv cm2)'!$A$2:$A$52,1)+1)-INDEX('hp (pSv cm2)'!$A$2:$A$52,MATCH($C43,'hp (pSv cm2)'!$A$2:$A$52,1))),$C43*'hp (pSv cm2)'!$B$2/'hp (pSv cm2)'!$A$2) -> 0.4785723125 | G43: 0.0007561442538 | H43: =_xlfn.IFNA(0.997*(INDEX('Mass attenuation coefficients'!$B$2:$B$37,MATCH($C43,'Mass attenuation coefficients'!$A$2:$A$37,1))+($C43-INDEX('Mass attenuation coefficients'!$A$2:$A$37,MATCH($C43,'Mass attenuation coefficients'!$A$2:$A$37,1)))*(INDEX('Mass attenuation coefficients'!$B$2:$B$37,MATCH($C43,'Mass attenuation coefficients'!$A$2:$A$37,1)+1)-INDEX('Mass attenuation coefficients'!$B$2:$B$37,MATCH($C43,'Mass attenuation coefficients'!$A$2:$A$37,1)))/(INDEX('Mass attenuation coefficients'!$A$2:$A$37,MATCH($C43,'Mass attenuation coefficients'!$A$2:$A$37,1)+1)-INDEX('Mass attenuation coefficients'!$A$2:$A$37,MATCH($C43,'Mass attenuation coefficients'!$A$2:$A$37,1)))),0.997*$C43*'Mass attenuation coefficients'!$B$2/'Mass attenuation coefficients'!$A$2) -> 0.1770015301 | I43: =_xlfn.IFNA(INDEX('Shultis Faw'!$C$2:$C$26,MATCH($C43,'Shultis Faw'!$A$2:$A$26,1))+($C43-INDEX('Shultis Faw'!$A$2:$A$26,MATCH($C43,'Shultis Faw'!$A$2:$A$26,1)))*(INDEX('Shultis Faw'!$C$2:$C$26,MATCH($C43,'Shultis Faw'!$A$2:$A$26,1)+1)-INDEX('Shultis Faw'!$C$2:$C$26,MATCH($C43,'Shultis Faw'!$A$2:$A$26,1)))/(INDEX('Shultis Faw'!$A$2:$A$26,MATCH($C43,'Shultis Faw'!$A$2:$A$26,1)+1)-INDEX('Shultis Faw'!$A$2:$A$26,MATCH($C43,'Shultis Faw'!$A$2:$A$26,1))),$C43*'Shultis Faw'!$C$2/'Shultis Faw'!$A$2) -> 4.87117819 | J43: =_xlfn.IFNA(INDEX('Shultis Faw'!$D$2:$D$26,MATCH($C43,'Shultis Faw'!$A$2:$A$26,1))+($C43-INDEX('Shultis Faw'!$A$2:$A$26,MATCH($C43,'Shultis Faw'!$A$2:$A$26,1)))*(INDEX('Shultis Faw'!$D$2:$D$26,MATCH($C43,'Shultis Faw'!$A$2:$A$26,1)+1)-INDEX('Shultis Faw'!$D$2:$D$26,MATCH($C43,'Shultis Faw'!$A$2:$A$26,1)))/(INDEX('Shultis Faw'!$A$2:$A$26,MATCH($C43,'Shultis Faw'!$A$2:$A$26,1)+1)-INDEX('Shultis Faw'!$A$2:$A$26,MATCH($C43,'Shultis Faw'!$A$2:$A$26,1))),$C43*'Shultis Faw'!$D$2/'Shultis Faw'!$A$2) -> 2.135836195 | K43: =_xlfn.IFNA(INDEX('Shultis Faw'!$B$2:$B$26,MATCH($C43,'Shultis Faw'!$A$2:$A$26,1))+($C43-INDEX('Shultis Faw'!$A$2:$A$26,MATCH($C43,'Shultis Faw'!$A$2:$A$26,1)))*(INDEX('Shultis Faw'!$B$2:$B$26,MATCH($C43,'Shultis Faw'!$A$2:$A$26,1)+1)-INDEX('Shultis Faw'!$B$2:$B$26,MATCH($C43,'Shultis Faw'!$A$2:$A$26,1)))/(INDEX('Shultis Faw'!$A$2:$A$26,MATCH($C43,'Shultis Faw'!$A$2:$A$26,1)+1)-INDEX('Shultis Faw'!$A$2:$A$26,MATCH($C43,'Shultis Faw'!$A$2:$A$26,1))),$C43*'Shultis Faw'!$B$2/'Shultis Faw'!$A$2) -> -0.176537355 | L43: =_xlfn.IFNA(INDEX('Shultis Faw'!$E$2:$E$26,MATCH($C43,'Shultis Faw'!$A$2:$A$26,1))+($C43-INDEX('Shultis Faw'!$A$2:$A$26,MATCH($C43,'Shultis Faw'!$A$2:$A$26,1)))*(INDEX('Shultis Faw'!$E$2:$E$26,MATCH($C43,'Shultis Faw'!$A$2:$A$26,1)+1)-INDEX('Shultis Faw'!$E$2:$E$26,MATCH($C43,'Shultis Faw'!$A$2:$A$26,1)))/(INDEX('Shultis Faw'!$A$2:$A$26,MATCH($C43,'Shultis Faw'!$A$2:$A$26,1)+1)-INDEX('Shultis Faw'!$A$2:$A$26,MATCH($C43,'Shultis Faw'!$A$2:$A$26,1))),$C43*'Shultis Faw'!$E$2/'Shultis Faw'!$A$2) -> 0.079656066 | M43: =_xlfn.IFNA(INDEX('Shultis Faw'!$F$2:$F$26,MATCH($C43,'Shultis Faw'!$A$2:$A$26,1))+($C43-INDEX('Shultis Faw'!$A$2:$A$26,MATCH($C43,'Shultis Faw'!$A$2:$A$26,1)))*(INDEX('Shultis Faw'!$F$2:$F$26,MATCH($C43,'Shultis Faw'!$A$2:$A$26,1)+1)-INDEX('Shultis Faw'!$F$2:$F$26,MATCH($C43,'Shultis Faw'!$A$2:$A$26,1)))/(INDEX('Shultis Faw'!$A$2:$A$26,MATCH($C43,'Shultis Faw'!$A$2:$A$26,1)+1)-INDEX('Shultis Faw'!$A$2:$A$26,MATCH($C43,'Shultis Faw'!$A$2:$A$26,1))),$C43*'Shultis Faw'!$F$2/'Shultis Faw'!$A$2) -> 13.50873885 | N43: =J43*(H43*'Externe blootstelling'!$D$23/2)^K43+L43*(TANH(((H43*'Externe blootstelling'!$D$23)/(2*M43))-2)-TANH(-2))/(1-TANH(-2)) -> 1.798329474 | O43: =IF(N43=1,1+(I43-1)*H43*'Externe blootstelling'!$D$23/2,1+(I43-1)*(N43^(H43*'Externe blootstelling'!$D$23/2)-1)/(N43-1)) -> 19.18359569 | P43: =G43*EXP(-H43*'Externe blootstelling'!$D$23/2)*O43 -> 0.001019701015
B44: g | C44: 0.0968824 | D44: 1.5501184e-14 | E44: 7e-05 | F44: =_xlfn.IFNA(INDEX('hp (pSv cm2)'!$B$2:$B$52,MATCH($C44,'hp (pSv cm2)'!$A$2:$A$52,1))+($C44-INDEX('hp (pSv cm2)'!$A$2:$A$52,MATCH($C44,'hp (pSv cm2)'!$A$2:$A$52,1)))*(INDEX('hp (pSv cm2)'!$B$2:$B$52,MATCH($C44,'hp (pSv cm2)'!$A$2:$A$52,1)+1)-INDEX('hp (pSv cm2)'!$B$2:$B$52,MATCH($C44,'hp (pSv cm2)'!$A$2:$A$52,1)))/(INDEX('hp (pSv cm2)'!$A$2:$A$52,MATCH($C44,'hp (pSv cm2)'!$A$2:$A$52,1)+1)-INDEX('hp (pSv cm2)'!$A$2:$A$52,MATCH($C44,'hp (pSv cm2)'!$A$2:$A$52,1))),$C44*'hp (pSv cm2)'!$B$2/'hp (pSv cm2)'!$A$2) -> 0.506309 | G44: 3.544163e-05 | H44: =_xlfn.IFNA(0.997*(INDEX('Mass attenuation coefficients'!$B$2:$B$37,MATCH($C44,'Mass attenuation coefficients'!$A$2:$A$37,1))+($C44-INDEX('Mass attenuation coefficients'!$A$2:$A$37,MATCH($C44,'Mass attenuation coefficients'!$A$2:$A$37,1)))*(INDEX('Mass attenuation coefficients'!$B$2:$B$37,MATCH($C44,'Mass attenuation coefficients'!$A$2:$A$37,1)+1)-INDEX('Mass attenuation coefficients'!$B$2:$B$37,MATCH($C44,'Mass attenuation coefficients'!$A$2:$A$37,1)))/(INDEX('Mass attenuation coefficients'!$A$2:$A$37,MATCH($C44,'Mass attenuation coefficients'!$A$2:$A$37,1)+1)-INDEX('Mass attenuation coefficients'!$A$2:$A$37,MATCH($C44,'Mass attenuation coefficients'!$A$2:$A$37,1)))),0.997*$C44*'Mass attenuation coefficients'!$B$2/'Mass attenuation coefficients'!$A$2) -> 0.1722082607 | I44: =_xlfn.IFNA(INDEX('Shultis Faw'!$C$2:$C$26,MATCH($C44,'Shultis Faw'!$A$2:$A$26,1))+($C44-INDEX('Shultis Faw'!$A$2:$A$26,MATCH($C44,'Shultis Faw'!$A$2:$A$26,1)))*(INDEX('Shultis Faw'!$C$2:$C$26,MATCH($C44,'Shultis Faw'!$A$2:$A$26,1)+1)-INDEX('Shultis Faw'!$C$2:$C$26,MATCH($C44,'Shultis Faw'!$A$2:$A$26,1)))/(INDEX('Shultis Faw'!$A$2:$A$26,MATCH($C44,'Shultis Faw'!$A$2:$A$26,1)+1)-INDEX('Shultis Faw'!$A$2:$A$26,MATCH($C44,'Shultis Faw'!$A$2:$A$26,1))),$C44*'Shultis Faw'!$C$2/'Shultis Faw'!$A$2) -> 4.72472848 | J44: =_xlfn.IFNA(INDEX('Shultis Faw'!$D$2:$D$26,MATCH($C44,'Shultis Faw'!$A$2:$A$26,1))+($C44-INDEX('Shultis Faw'!$A$2:$A$26,MATCH($C44,'Shultis Faw'!$A$2:$A$26,1)))*(INDEX('Shultis Faw'!$D$2:$D$26,MATCH($C44,'Shultis Faw'!$A$2:$A$26,1)+1)-INDEX('Shultis Faw'!$D$2:$D$26,MATCH($C44,'Shultis Faw'!$A$2:$A$26,1)))/(INDEX('Shultis Faw'!$A$2:$A$26,MATCH($C44,'Shultis Faw'!$A$2:$A$26,1)+1)-INDEX('Shultis Faw'!$A$2:$A$26,MATCH($C44,'Shultis Faw'!$A$2:$A$26,1))),$C44*'Shultis Faw'!$D$2/'Shultis Faw'!$A$2) -> 2.19574744 | K44: =_xlfn.IFNA(INDEX('Shultis Faw'!$B$2:$B$26,MATCH($C44,'Shultis Faw'!$A$2:$A$26,1))+($C44-INDEX('Shultis Faw'!$A$2:$A$26,MATCH($C44,'Shultis Faw'!$A$2:$A$26,1)))*(INDEX('Shultis Faw'!$B$2:$B$26,MATCH($C44,'Shultis Faw'!$A$2:$A$26,1)+1)-INDEX('Shultis Faw'!$B$2:$B$26,MATCH($C44,'Shultis Faw'!$A$2:$A$26,1)))/(INDEX('Shultis Faw'!$A$2:$A$26,MATCH($C44,'Shultis Faw'!$A$2:$A$26,1)+1)-INDEX('Shultis Faw'!$A$2:$A$26,MATCH($C44,'Shultis Faw'!$A$2:$A$26,1))),$C44*'Shultis Faw'!$B$2/'Shultis Faw'!$A$2) -> -0.18319416 | L44: =_xlfn.IFNA(INDEX('Shultis Faw'!$E$2:$E$26,MATCH($C44,'Shultis Faw'!$A$2:$A$26,1))+($C44-INDEX('Shultis Faw'!$A$2:$A$26,MATCH($C44,'Shultis Faw'!$A$2:$A$26,1)))*(INDEX('Shultis Faw'!$E$2:$E$26,MATCH($C44,'Shultis Faw'!$A$2:$A$26,1)+1)-INDEX('Shultis Faw'!$E$2:$E$26,MATCH($C44,'Shultis Faw'!$A$2:$A$26,1)))/(INDEX('Shultis Faw'!$A$2:$A$26,MATCH($C44,'Shultis Faw'!$A$2:$A$26,1)+1)-INDEX('Shultis Faw'!$A$2:$A$26,MATCH($C44,'Shultis Faw'!$A$2:$A$26,1))),$C44*'Shultis Faw'!$E$2/'Shultis Faw'!$A$2) -> 0.081727072 | M44: =_xlfn.IFNA(INDEX('Shultis Faw'!$F$2:$F$26,MATCH($C44,'Shultis Faw'!$A$2:$A$26,1))+($C44-INDEX('Shultis Faw'!$A$2:$A$26,MATCH($C44,'Shultis Faw'!$A$2:$A$26,1)))*(INDEX('Shultis Faw'!$F$2:$F$26,MATCH($C44,'Shultis Faw'!$A$2:$A$26,1)+1)-INDEX('Shultis Faw'!$F$2:$F$26,MATCH($C44,'Shultis Faw'!$A$2:$A$26,1)))/(INDEX('Shultis Faw'!$A$2:$A$26,MATCH($C44,'Shultis Faw'!$A$2:$A$26,1)+1)-INDEX('Shultis Faw'!$A$2:$A$26,MATCH($C44,'Shultis Faw'!$A$2:$A$26,1))),$C44*'Shultis Faw'!$F$2/'Shultis Faw'!$A$2) -> 13.3829992 | N44: =J44*(H44*'Externe blootstelling'!$D$23/2)^K44+L44*(TANH(((H44*'Externe blootstelling'!$D$23)/(2*M44))-2)-TANH(-2))/(1-TANH(-2)) -> 1.846041121 | O44: =IF(N44=1,1+(I44-1)*H44*'Externe blootstelling'!$D$23/2,1+(I44-1)*(N44^(H44*'Externe blootstelling'!$D$23/2)-1)/(N44-1)) -> 18.04797047 | P44: =G44*EXP(-H44*'Externe blootstelling'!$D$23/2)*O44 -> 4.831762722e-05
B45: g | C45: 0.097431 | D45: 1.558896e-14 | E45: 0.00767 | F45: =_xlfn.IFNA(INDEX('hp (pSv cm2)'!$B$2:$B$52,MATCH($C45,'hp (pSv cm2)'!$A$2:$A$52,1))+($C45-INDEX('hp (pSv cm2)'!$A$2:$A$52,MATCH($C45,'hp (pSv cm2)'!$A$2:$A$52,1)))*(INDEX('hp (pSv cm2)'!$B$2:$B$52,MATCH($C45,'hp (pSv cm2)'!$A$2:$A$52,1)+1)-INDEX('hp (pSv cm2)'!$B$2:$B$52,MATCH($C45,'hp (pSv cm2)'!$A$2:$A$52,1)))/(INDEX('hp (pSv cm2)'!$A$2:$A$52,MATCH($C45,'hp (pSv cm2)'!$A$2:$A$52,1)+1)-INDEX('hp (pSv cm2)'!$A$2:$A$52,MATCH($C45,'hp (pSv cm2)'!$A$2:$A$52,1))),$C45*'hp (pSv cm2)'!$B$2/'hp (pSv cm2)'!$A$2) -> 0.50836625 | G45: 0.003899169138 | H45: =_xlfn.IFNA(0.997*(INDEX('Mass attenuation coefficients'!$B$2:$B$37,MATCH($C45,'Mass attenuation coefficients'!$A$2:$A$37,1))+($C45-INDEX('Mass attenuation coefficients'!$A$2:$A$37,MATCH($C45,'Mass attenuation coefficients'!$A$2:$A$37,1)))*(INDEX('Mass attenuation coefficients'!$B$2:$B$37,MATCH($C45,'Mass attenuation coefficients'!$A$2:$A$37,1)+1)-INDEX('Mass attenuation coefficients'!$B$2:$B$37,MATCH($C45,'Mass attenuation coefficients'!$A$2:$A$37,1)))/(INDEX('Mass attenuation coefficients'!$A$2:$A$37,MATCH($C45,'Mass attenuation coefficients'!$A$2:$A$37,1)+1)-INDEX('Mass attenuation coefficients'!$A$2:$A$37,MATCH($C45,'Mass attenuation coefficients'!$A$2:$A$37,1)))),0.997*$C45*'Mass attenuation coefficients'!$B$2/'Mass attenuation coefficients'!$A$2) -> 0.1718527404 | I45: =_xlfn.IFNA(INDEX('Shultis Faw'!$C$2:$C$26,MATCH($C45,'Shultis Faw'!$A$2:$A$26,1))+($C45-INDEX('Shultis Faw'!$A$2:$A$26,MATCH($C45,'Shultis Faw'!$A$2:$A$26,1)))*(INDEX('Shultis Faw'!$C$2:$C$26,MATCH($C45,'Shultis Faw'!$A$2:$A$26,1)+1)-INDEX('Shultis Faw'!$C$2:$C$26,MATCH($C45,'Shultis Faw'!$A$2:$A$26,1)))/(INDEX('Shultis Faw'!$A$2:$A$26,MATCH($C45,'Shultis Faw'!$A$2:$A$26,1)+1)-INDEX('Shultis Faw'!$A$2:$A$26,MATCH($C45,'Shultis Faw'!$A$2:$A$26,1))),$C45*'Shultis Faw'!$C$2/'Shultis Faw'!$A$2) -> 4.7138662 | J45: =_xlfn.IFNA(INDEX('Shultis Faw'!$D$2:$D$26,MATCH($C45,'Shultis Faw'!$A$2:$A$26,1))+($C45-INDEX('Shultis Faw'!$A$2:$A$26,MATCH($C45,'Shultis Faw'!$A$2:$A$26,1)))*(INDEX('Shultis Faw'!$D$2:$D$26,MATCH($C45,'Shultis Faw'!$A$2:$A$26,1)+1)-INDEX('Shultis Faw'!$D$2:$D$26,MATCH($C45,'Shultis Faw'!$A$2:$A$26,1)))/(INDEX('Shultis Faw'!$A$2:$A$26,MATCH($C45,'Shultis Faw'!$A$2:$A$26,1)+1)-INDEX('Shultis Faw'!$A$2:$A$26,MATCH($C45,'Shultis Faw'!$A$2:$A$26,1))),$C45*'Shultis Faw'!$D$2/'Shultis Faw'!$A$2) -> 2.2001911 | K45: =_xlfn.IFNA(INDEX('Shultis Faw'!$B$2:$B$26,MATCH($C45,'Shultis Faw'!$A$2:$A$26,1))+($C45-INDEX('Shultis Faw'!$A$2:$A$26,MATCH($C45,'Shultis Faw'!$A$2:$A$26,1)))*(INDEX('Shultis Faw'!$B$2:$B$26,MATCH($C45,'Shultis Faw'!$A$2:$A$26,1)+1)-INDEX('Shultis Faw'!$B$2:$B$26,MATCH($C45,'Shultis Faw'!$A$2:$A$26,1)))/(INDEX('Shultis Faw'!$A$2:$A$26,MATCH($C45,'Shultis Faw'!$A$2:$A$26,1)+1)-INDEX('Shultis Faw'!$A$2:$A$26,MATCH($C45,'Shultis Faw'!$A$2:$A$26,1))),$C45*'Shultis Faw'!$B$2/'Shultis Faw'!$A$2) -> -0.1836879 | L45: =_xlfn.IFNA(INDEX('Shultis Faw'!$E$2:$E$26,MATCH($C45,'Shultis Faw'!$A$2:$A$26,1))+($C45-INDEX('Shultis Faw'!$A$2:$A$26,MATCH($C45,'Shultis Faw'!$A$2:$A$26,1)))*(INDEX('Shultis Faw'!$E$2:$E$26,MATCH($C45,'Shultis Faw'!$A$2:$A$26,1)+1)-INDEX('Shultis Faw'!$E$2:$E$26,MATCH($C45,'Shultis Faw'!$A$2:$A$26,1)))/(INDEX('Shultis Faw'!$A$2:$A$26,MATCH($C45,'Shultis Faw'!$A$2:$A$26,1)+1)-INDEX('Shultis Faw'!$A$2:$A$26,MATCH($C45,'Shultis Faw'!$A$2:$A$26,1))),$C45*'Shultis Faw'!$E$2/'Shultis Faw'!$A$2) -> 0.08188068 | M45: =_xlfn.IFNA(INDEX('Shultis Faw'!$F$2:$F$26,MATCH($C45,'Shultis Faw'!$A$2:$A$26,1))+($C45-INDEX('Shultis Faw'!$A$2:$A$26,MATCH($C45,'Shultis Faw'!$A$2:$A$26,1)))*(INDEX('Shultis Faw'!$F$2:$F$26,MATCH($C45,'Shultis Faw'!$A$2:$A$26,1)+1)-INDEX('Shultis Faw'!$F$2:$F$26,MATCH($C45,'Shultis Faw'!$A$2:$A$26,1)))/(INDEX('Shultis Faw'!$A$2:$A$26,MATCH($C45,'Shultis Faw'!$A$2:$A$26,1)+1)-INDEX('Shultis Faw'!$A$2:$A$26,MATCH($C45,'Shultis Faw'!$A$2:$A$26,1))),$C45*'Shultis Faw'!$F$2/'Shultis Faw'!$A$2) -> 13.373673 | N45: =J45*(H45*'Externe blootstelling'!$D$23/2)^K45+L45*(TANH(((H45*'Externe blootstelling'!$D$23)/(2*M45))-2)-TANH(-2))/(1-TANH(-2)) -> 1.849611371 | O45: =IF(N45=1,1+(I45-1)*H45*'Externe blootstelling'!$D$23/2,1+(I45-1)*(N45^(H45*'Externe blootstelling'!$D$23/2)-1)/(N45-1)) -> 17.96330461 | P45: =G45*EXP(-H45*'Externe blootstelling'!$D$23/2)*O45 -> 0.00531909633
B46: g | C46: 0.10318012 | D46: 1.65088192e-14 | E46: 0.2919 | F46: =_xlfn.IFNA(INDEX('hp (pSv cm2)'!$B$2:$B$52,MATCH($C46,'hp (pSv cm2)'!$A$2:$A$52,1))+($C46-INDEX('hp (pSv cm2)'!$A$2:$A$52,MATCH($C46,'hp (pSv cm2)'!$A$2:$A$52,1)))*(INDEX('hp (pSv cm2)'!$B$2:$B$52,MATCH($C46,'hp (pSv cm2)'!$A$2:$A$52,1)+1)-INDEX('hp (pSv cm2)'!$B$2:$B$52,MATCH($C46,'hp (pSv cm2)'!$A$2:$A$52,1)))/(INDEX('hp (pSv cm2)'!$A$2:$A$52,MATCH($C46,'hp (pSv cm2)'!$A$2:$A$52,1)+1)-INDEX('hp (pSv cm2)'!$A$2:$A$52,MATCH($C46,'hp (pSv cm2)'!$A$2:$A$52,1))),$C46*'hp (pSv cm2)'!$B$2/'hp (pSv cm2)'!$A$2) -> 0.5325649496 | G46: 0.1554557088 | H46: =_xlfn.IFNA(0.997*(INDEX('Mass attenuation coefficients'!$B$2:$B$37,MATCH($C46,'Mass attenuation coefficients'!$A$2:$A$37,1))+($C46-INDEX('Mass attenuation coefficients'!$A$2:$A$37,MATCH($C46,'Mass attenuation coefficients'!$A$2:$A$37,1)))*(INDEX('Mass attenuation coefficients'!$B$2:$B$37,MATCH($C46,'Mass attenuation coefficients'!$A$2:$A$37,1)+1)-INDEX('Mass attenuation coefficients'!$B$2:$B$37,MATCH($C46,'Mass attenuation coefficients'!$A$2:$A$37,1)))/(INDEX('Mass attenuation coefficients'!$A$2:$A$37,MATCH($C46,'Mass attenuation coefficients'!$A$2:$A$37,1)+1)-INDEX('Mass attenuation coefficients'!$A$2:$A$37,MATCH($C46,'Mass attenuation coefficients'!$A$2:$A$37,1)))),0.997*$C46*'Mass attenuation coefficients'!$B$2/'Mass attenuation coefficients'!$A$2) -> 0.1689069858 | I46: =_xlfn.IFNA(INDEX('Shultis Faw'!$C$2:$C$26,MATCH($C46,'Shultis Faw'!$A$2:$A$26,1))+($C46-INDEX('Shultis Faw'!$A$2:$A$26,MATCH($C46,'Shultis Faw'!$A$2:$A$26,1)))*(INDEX('Shultis Faw'!$C$2:$C$26,MATCH($C46,'Shultis Faw'!$A$2:$A$26,1)+1)-INDEX('Shultis Faw'!$C$2:$C$26,MATCH($C46,'Shultis Faw'!$A$2:$A$26,1)))/(INDEX('Shultis Faw'!$A$2:$A$26,MATCH($C46,'Shultis Faw'!$A$2:$A$26,1)+1)-INDEX('Shultis Faw'!$A$2:$A$26,MATCH($C46,'Shultis Faw'!$A$2:$A$26,1))),$C46*'Shultis Faw'!$C$2/'Shultis Faw'!$A$2) -> 4.614280562 | J46: =_xlfn.IFNA(INDEX('Shultis Faw'!$D$2:$D$26,MATCH($C46,'Shultis Faw'!$A$2:$A$26,1))+($C46-INDEX('Shultis Faw'!$A$2:$A$26,MATCH($C46,'Shultis Faw'!$A$2:$A$26,1)))*(INDEX('Shultis Faw'!$D$2:$D$26,MATCH($C46,'Shultis Faw'!$A$2:$A$26,1)+1)-INDEX('Shultis Faw'!$D$2:$D$26,MATCH($C46,'Shultis Faw'!$A$2:$A$26,1)))/(INDEX('Shultis Faw'!$A$2:$A$26,MATCH($C46,'Shultis Faw'!$A$2:$A$26,1)+1)-INDEX('Shultis Faw'!$A$2:$A$26,MATCH($C46,'Shultis Faw'!$A$2:$A$26,1))),$C46*'Shultis Faw'!$D$2/'Shultis Faw'!$A$2) -> 2.22233565 | K46: =_xlfn.IFNA(INDEX('Shultis Faw'!$B$2:$B$26,MATCH($C46,'Shultis Faw'!$A$2:$A$26,1))+($C46-INDEX('Shultis Faw'!$A$2:$A$26,MATCH($C46,'Shultis Faw'!$A$2:$A$26,1)))*(INDEX('Shultis Faw'!$B$2:$B$26,MATCH($C46,'Shultis Faw'!$A$2:$A$26,1)+1)-INDEX('Shultis Faw'!$B$2:$B$26,MATCH($C46,'Shultis Faw'!$A$2:$A$26,1)))/(INDEX('Shultis Faw'!$A$2:$A$26,MATCH($C46,'Shultis Faw'!$A$2:$A$26,1)+1)-INDEX('Shultis Faw'!$A$2:$A$26,MATCH($C46,'Shultis Faw'!$A$2:$A$26,1))),$C46*'Shultis Faw'!$B$2/'Shultis Faw'!$A$2) -> -0.1859363976 | L46: =_xlfn.IFNA(INDEX('Shultis Faw'!$E$2:$E$26,MATCH($C46,'Shultis Faw'!$A$2:$A$26,1))+($C46-INDEX('Shultis Faw'!$A$2:$A$26,MATCH($C46,'Shultis Faw'!$A$2:$A$26,1)))*(INDEX('Shultis Faw'!$E$2:$E$26,MATCH($C46,'Shultis Faw'!$A$2:$A$26,1)+1)-INDEX('Shultis Faw'!$E$2:$E$26,MATCH($C46,'Shultis Faw'!$A$2:$A$26,1)))/(INDEX('Shultis Faw'!$A$2:$A$26,MATCH($C46,'Shultis Faw'!$A$2:$A$26,1)+1)-INDEX('Shultis Faw'!$A$2:$A$26,MATCH($C46,'Shultis Faw'!$A$2:$A$26,1))),$C46*'Shultis Faw'!$E$2/'Shultis Faw'!$A$2) -> 0.08228834824 | M46: =_xlfn.IFNA(INDEX('Shultis Faw'!$F$2:$F$26,MATCH($C46,'Shultis Faw'!$A$2:$A$26,1))+($C46-INDEX('Shultis Faw'!$A$2:$A$26,MATCH($C46,'Shultis Faw'!$A$2:$A$26,1)))*(INDEX('Shultis Faw'!$F$2:$F$26,MATCH($C46,'Shultis Faw'!$A$2:$A$26,1)+1)-INDEX('Shultis Faw'!$F$2:$F$26,MATCH($C46,'Shultis Faw'!$A$2:$A$26,1)))/(INDEX('Shultis Faw'!$A$2:$A$26,MATCH($C46,'Shultis Faw'!$A$2:$A$26,1)+1)-INDEX('Shultis Faw'!$A$2:$A$26,MATCH($C46,'Shultis Faw'!$A$2:$A$26,1))),$C46*'Shultis Faw'!$F$2/'Shultis Faw'!$A$2) -> 13.38469806 | N46: =J46*(H46*'Externe blootstelling'!$D$23/2)^K46+L46*(TANH(((H46*'Externe blootstelling'!$D$23)/(2*M46))-2)-TANH(-2))/(1-TANH(-2)) -> 1.870237677 | O46: =IF(N46=1,1+(I46-1)*H46*'Externe blootstelling'!$D$23/2,1+(I46-1)*(N46^(H46*'Externe blootstelling'!$D$23/2)-1)/(N46-1)) -> 17.13590018 | P46: =G46*EXP(-H46*'Externe blootstelling'!$D$23/2)*O46 -> 0.2114379894
B47: g | C47: 0.1181105 | D47: 1.889768e-14 | E47: 2.3e-06 | F47: =_xlfn.IFNA(INDEX('hp (pSv cm2)'!$B$2:$B$52,MATCH($C47,'hp (pSv cm2)'!$A$2:$A$52,1))+($C47-INDEX('hp (pSv cm2)'!$A$2:$A$52,MATCH($C47,'hp (pSv cm2)'!$A$2:$A$52,1)))*(INDEX('hp (pSv cm2)'!$B$2:$B$52,MATCH($C47,'hp (pSv cm2)'!$A$2:$A$52,1)+1)-INDEX('hp (pSv cm2)'!$B$2:$B$52,MATCH($C47,'hp (pSv cm2)'!$A$2:$A$52,1)))/(INDEX('hp (pSv cm2)'!$A$2:$A$52,MATCH($C47,'hp (pSv cm2)'!$A$2:$A$52,1)+1)-INDEX('hp (pSv cm2)'!$A$2:$A$52,MATCH($C47,'hp (pSv cm2)'!$A$2:$A$52,1))),$C47*'hp (pSv cm2)'!$B$2/'hp (pSv cm2)'!$A$2) -> 0.60094609 | G47: 1.382176007e-06 | H47: =_xlfn.IFNA(0.997*(INDEX('Mass attenuation coefficients'!$B$2:$B$37,MATCH($C47,'Mass attenuation coefficients'!$A$2:$A$37,1))+($C47-INDEX('Mass attenuation coefficients'!$A$2:$A$37,MATCH($C47,'Mass attenuation coefficients'!$A$2:$A$37,1)))*(INDEX('Mass attenuation coefficients'!$B$2:$B$37,MATCH($C47,'Mass attenuation coefficients'!$A$2:$A$37,1)+1)-INDEX('Mass attenuation coefficients'!$B$2:$B$37,MATCH($C47,'Mass attenuation coefficients'!$A$2:$A$37,1)))/(INDEX('Mass attenuation coefficients'!$A$2:$A$37,MATCH($C47,'Mass attenuation coefficients'!$A$2:$A$37,1)+1)-INDEX('Mass attenuation coefficients'!$A$2:$A$37,MATCH($C47,'Mass attenuation coefficients'!$A$2:$A$37,1)))),0.997*$C47*'Mass attenuation coefficients'!$B$2/'Mass attenuation coefficients'!$A$2) -> 0.1628932079 | I47: =_xlfn.IFNA(INDEX('Shultis Faw'!$C$2:$C$26,MATCH($C47,'Shultis Faw'!$A$2:$A$26,1))+($C47-INDEX('Shultis Faw'!$A$2:$A$26,MATCH($C47,'Shultis Faw'!$A$2:$A$26,1)))*(INDEX('Shultis Faw'!$C$2:$C$26,MATCH($C47,'Shultis Faw'!$A$2:$A$26,1)+1)-INDEX('Shultis Faw'!$C$2:$C$26,MATCH($C47,'Shultis Faw'!$A$2:$A$26,1)))/(INDEX('Shultis Faw'!$A$2:$A$26,MATCH($C47,'Shultis Faw'!$A$2:$A$26,1)+1)-INDEX('Shultis Faw'!$A$2:$A$26,MATCH($C47,'Shultis Faw'!$A$2:$A$26,1))),$C47*'Shultis Faw'!$C$2/'Shultis Faw'!$A$2) -> 4.38554714 | J47: =_xlfn.IFNA(INDEX('Shultis Faw'!$D$2:$D$26,MATCH($C47,'Shultis Faw'!$A$2:$A$26,1))+($C47-INDEX('Shultis Faw'!$A$2:$A$26,MATCH($C47,'Shultis Faw'!$A$2:$A$26,1)))*(INDEX('Shultis Faw'!$D$2:$D$26,MATCH($C47,'Shultis Faw'!$A$2:$A$26,1)+1)-INDEX('Shultis Faw'!$D$2:$D$26,MATCH($C47,'Shultis Faw'!$A$2:$A$26,1)))/(INDEX('Shultis Faw'!$A$2:$A$26,MATCH($C47,'Shultis Faw'!$A$2:$A$26,1)+1)-INDEX('Shultis Faw'!$A$2:$A$26,MATCH($C47,'Shultis Faw'!$A$2:$A$26,1))),$C47*'Shultis Faw'!$D$2/'Shultis Faw'!$A$2) -> 2.22860641 | K47: =_xlfn.IFNA(INDEX('Shultis Faw'!$B$2:$B$26,MATCH($C47,'Shultis Faw'!$A$2:$A$26,1))+($C47-INDEX('Shultis Faw'!$A$2:$A$26,MATCH($C47,'Shultis Faw'!$A$2:$A$26,1)))*(INDEX('Shultis Faw'!$B$2:$B$26,MATCH($C47,'Shultis Faw'!$A$2:$A$26,1)+1)-INDEX('Shultis Faw'!$B$2:$B$26,MATCH($C47,'Shultis Faw'!$A$2:$A$26,1)))/(INDEX('Shultis Faw'!$A$2:$A$26,MATCH($C47,'Shultis Faw'!$A$2:$A$26,1)+1)-INDEX('Shultis Faw'!$A$2:$A$26,MATCH($C47,'Shultis Faw'!$A$2:$A$26,1))),$C47*'Shultis Faw'!$B$2/'Shultis Faw'!$A$2) -> -0.18563779 | L47: =_xlfn.IFNA(INDEX('Shultis Faw'!$E$2:$E$26,MATCH($C47,'Shultis Faw'!$A$2:$A$26,1))+($C47-INDEX('Shultis Faw'!$A$2:$A$26,MATCH($C47,'Shultis Faw'!$A$2:$A$26,1)))*(INDEX('Shultis Faw'!$E$2:$E$26,MATCH($C47,'Shultis Faw'!$A$2:$A$26,1)+1)-INDEX('Shultis Faw'!$E$2:$E$26,MATCH($C47,'Shultis Faw'!$A$2:$A$26,1)))/(INDEX('Shultis Faw'!$A$2:$A$26,MATCH($C47,'Shultis Faw'!$A$2:$A$26,1)+1)-INDEX('Shultis Faw'!$A$2:$A$26,MATCH($C47,'Shultis Faw'!$A$2:$A$26,1))),$C47*'Shultis Faw'!$E$2/'Shultis Faw'!$A$2) -> 0.080825171 | M47: =_xlfn.IFNA(INDEX('Shultis Faw'!$F$2:$F$26,MATCH($C47,'Shultis Faw'!$A$2:$A$26,1))+($C47-INDEX('Shultis Faw'!$A$2:$A$26,MATCH($C47,'Shultis Faw'!$A$2:$A$26,1)))*(INDEX('Shultis Faw'!$F$2:$F$26,MATCH($C47,'Shultis Faw'!$A$2:$A$26,1)+1)-INDEX('Shultis Faw'!$F$2:$F$26,MATCH($C47,'Shultis Faw'!$A$2:$A$26,1)))/(INDEX('Shultis Faw'!$A$2:$A$26,MATCH($C47,'Shultis Faw'!$A$2:$A$26,1)+1)-INDEX('Shultis Faw'!$A$2:$A$26,MATCH($C47,'Shultis Faw'!$A$2:$A$26,1))),$C47*'Shultis Faw'!$F$2/'Shultis Faw'!$A$2) -> 13.6415006 | N47: =J47*(H47*'Externe blootstelling'!$D$23/2)^K47+L47*(TANH(((H47*'Externe blootstelling'!$D$23)/(2*M47))-2)-TANH(-2))/(1-TANH(-2)) -> 1.888643154 | O47: =IF(N47=1,1+(I47-1)*H47*'Externe blootstelling'!$D$23/2,1+(I47-1)*(N47^(H47*'Externe blootstelling'!$D$23/2)-1)/(N47-1)) -> 15.20567776 | P47: =G47*EXP(-H47*'Externe blootstelling'!$D$23/2)*O47 -> 1.825638612e-06
B48: g | C48: 0.1516244 | D48: 2.4259904e-14 | E48: 0.0001033 | F48: =_xlfn.IFNA(INDEX('hp (pSv cm2)'!$B$2:$B$52,MATCH($C48,'hp (pSv cm2)'!$A$2:$A$52,1))+($C48-INDEX('hp (pSv cm2)'!$A$2:$A$52,MATCH($C48,'hp (pSv cm2)'!$A$2:$A$52,1)))*(INDEX('hp (pSv cm2)'!$B$2:$B$52,MATCH($C48,'hp (pSv cm2)'!$A$2:$A$52,1)+1)-INDEX('hp (pSv cm2)'!$B$2:$B$52,MATCH($C48,'hp (pSv cm2)'!$A$2:$A$52,1)))/(INDEX('hp (pSv cm2)'!$A$2:$A$52,MATCH($C48,'hp (pSv cm2)'!$A$2:$A$52,1)+1)-INDEX('hp (pSv cm2)'!$A$2:$A$52,MATCH($C48,'hp (pSv cm2)'!$A$2:$A$52,1))),$C48*'hp (pSv cm2)'!$B$2/'hp (pSv cm2)'!$A$2) -> 0.755219464 | G48: 7.801417063e-05 | H48: =_xlfn.IFNA(0.997*(INDEX('Mass attenuation coefficients'!$B$2:$B$37,MATCH($C48,'Mass attenuation coefficients'!$A$2:$A$37,1))+($C48-INDEX('Mass attenuation coefficients'!$A$2:$A$37,MATCH($C48,'Mass attenuation coefficients'!$A$2:$A$37,1)))*(INDEX('Mass attenuation coefficients'!$B$2:$B$37,MATCH($C48,'Mass attenuation coefficients'!$A$2:$A$37,1)+1)-INDEX('Mass attenuation coefficients'!$B$2:$B$37,MATCH($C48,'Mass attenuation coefficients'!$A$2:$A$37,1)))/(INDEX('Mass attenuation coefficients'!$A$2:$A$37,MATCH($C48,'Mass attenuation coefficients'!$A$2:$A$37,1)+1)-INDEX('Mass attenuation coefficients'!$A$2:$A$37,MATCH($C48,'Mass attenuation coefficients'!$A$2:$A$37,1)))),0.997*$C48*'Mass attenuation coefficients'!$B$2/'Mass attenuation coefficients'!$A$2) -> 0.1496112278 | I48: =_xlfn.IFNA(INDEX('Shultis Faw'!$C$2:$C$26,MATCH($C48,'Shultis Faw'!$A$2:$A$26,1))+($C48-INDEX('Shultis Faw'!$A$2:$A$26,MATCH($C48,'Shultis Faw'!$A$2:$A$26,1)))*(INDEX('Shultis Faw'!$C$2:$C$26,MATCH($C48,'Shultis Faw'!$A$2:$A$26,1)+1)-INDEX('Shultis Faw'!$C$2:$C$26,MATCH($C48,'Shultis Faw'!$A$2:$A$26,1)))/(INDEX('Shultis Faw'!$A$2:$A$26,MATCH($C48,'Shultis Faw'!$A$2:$A$26,1)+1)-INDEX('Shultis Faw'!$A$2:$A$26,MATCH($C48,'Shultis Faw'!$A$2:$A$26,1))),$C48*'Shultis Faw'!$C$2/'Shultis Faw'!$A$2) -> 3.883387528 | J48: =_xlfn.IFNA(INDEX('Shultis Faw'!$D$2:$D$26,MATCH($C48,'Shultis Faw'!$A$2:$A$26,1))+($C48-INDEX('Shultis Faw'!$A$2:$A$26,MATCH($C48,'Shultis Faw'!$A$2:$A$26,1)))*(INDEX('Shultis Faw'!$D$2:$D$26,MATCH($C48,'Shultis Faw'!$A$2:$A$26,1)+1)-INDEX('Shultis Faw'!$D$2:$D$26,MATCH($C48,'Shultis Faw'!$A$2:$A$26,1)))/(INDEX('Shultis Faw'!$A$2:$A$26,MATCH($C48,'Shultis Faw'!$A$2:$A$26,1)+1)-INDEX('Shultis Faw'!$A$2:$A$26,MATCH($C48,'Shultis Faw'!$A$2:$A$26,1))),$C48*'Shultis Faw'!$D$2/'Shultis Faw'!$A$2) -> 2.239141056 | K48: =_xlfn.IFNA(INDEX('Shultis Faw'!$B$2:$B$26,MATCH($C48,'Shultis Faw'!$A$2:$A$26,1))+($C48-INDEX('Shultis Faw'!$A$2:$A$26,MATCH($C48,'Shultis Faw'!$A$2:$A$26,1)))*(INDEX('Shultis Faw'!$B$2:$B$26,MATCH($C48,'Shultis Faw'!$A$2:$A$26,1)+1)-INDEX('Shultis Faw'!$B$2:$B$26,MATCH($C48,'Shultis Faw'!$A$2:$A$26,1)))/(INDEX('Shultis Faw'!$A$2:$A$26,MATCH($C48,'Shultis Faw'!$A$2:$A$26,1)+1)-INDEX('Shultis Faw'!$A$2:$A$26,MATCH($C48,'Shultis Faw'!$A$2:$A$26,1))),$C48*'Shultis Faw'!$B$2/'Shultis Faw'!$A$2) -> -0.184707608 | L48: =_xlfn.IFNA(INDEX('Shultis Faw'!$E$2:$E$26,MATCH($C48,'Shultis Faw'!$A$2:$A$26,1))+($C48-INDEX('Shultis Faw'!$A$2:$A$26,MATCH($C48,'Shultis Faw'!$A$2:$A$26,1)))*(INDEX('Shultis Faw'!$E$2:$E$26,MATCH($C48,'Shultis Faw'!$A$2:$A$26,1)+1)-INDEX('Shultis Faw'!$E$2:$E$26,MATCH($C48,'Shultis Faw'!$A$2:$A$26,1)))/(INDEX('Shultis Faw'!$A$2:$A$26,MATCH($C48,'Shultis Faw'!$A$2:$A$26,1)+1)-INDEX('Shultis Faw'!$A$2:$A$26,MATCH($C48,'Shultis Faw'!$A$2:$A$26,1))),$C48*'Shultis Faw'!$E$2/'Shultis Faw'!$A$2) -> 0.0776902536 | M48: =_xlfn.IFNA(INDEX('Shultis Faw'!$F$2:$F$26,MATCH($C48,'Shultis Faw'!$A$2:$A$26,1))+($C48-INDEX('Shultis Faw'!$A$2:$A$26,MATCH($C48,'Shultis Faw'!$A$2:$A$26,1)))*(INDEX('Shultis Faw'!$F$2:$F$26,MATCH($C48,'Shultis Faw'!$A$2:$A$26,1)+1)-INDEX('Shultis Faw'!$F$2:$F$26,MATCH($C48,'Shultis Faw'!$A$2:$A$26,1)))/(INDEX('Shultis Faw'!$A$2:$A$26,MATCH($C48,'Shultis Faw'!$A$2:$A$26,1)+1)-INDEX('Shultis Faw'!$A$2:$A$26,MATCH($C48,'Shultis Faw'!$A$2:$A$26,1))),$C48*'Shultis Faw'!$F$2/'Shultis Faw'!$A$2) -> 14.20007128 | N48: =J48*(H48*'Externe blootstelling'!$D$23/2)^K48+L48*(TANH(((H48*'Externe blootstelling'!$D$23)/(2*M48))-2)-TANH(-2))/(1-TANH(-2)) -> 1.929101251 | O48: =IF(N48=1,1+(I48-1)*H48*'Externe blootstelling'!$D$23/2,1+(I48-1)*(N48^(H48*'Externe blootstelling'!$D$23/2)-1)/(N48-1)) -> 11.45549174 | P48: =G48*EXP(-H48*'Externe blootstelling'!$D$23/2)*O48 -> 9.474521217e-05
B49: g | C49: 0.1665546 | D49: 2.6648736e-14 | E49: 6.1e-06 | F49: =_xlfn.IFNA(INDEX('hp (pSv cm2)'!$B$2:$B$52,MATCH($C49,'hp (pSv cm2)'!$A$2:$A$52,1))+($C49-INDEX('hp (pSv cm2)'!$A$2:$A$52,MATCH($C49,'hp (pSv cm2)'!$A$2:$A$52,1)))*(INDEX('hp (pSv cm2)'!$B$2:$B$52,MATCH($C49,'hp (pSv cm2)'!$A$2:$A$52,1)+1)-INDEX('hp (pSv cm2)'!$B$2:$B$52,MATCH($C49,'hp (pSv cm2)'!$A$2:$A$52,1)))/(INDEX('hp (pSv cm2)'!$A$2:$A$52,MATCH($C49,'hp (pSv cm2)'!$A$2:$A$52,1)+1)-INDEX('hp (pSv cm2)'!$A$2:$A$52,MATCH($C49,'hp (pSv cm2)'!$A$2:$A$52,1))),$C49*'hp (pSv cm2)'!$B$2/'hp (pSv cm2)'!$A$2) -> 0.830766276 | G49: 5.067674284e-06 | H49: =_xlfn.IFNA(0.997*(INDEX('Mass attenuation coefficients'!$B$2:$B$37,MATCH($C49,'Mass attenuation coefficients'!$A$2:$A$37,1))+($C49-INDEX('Mass attenuation coefficients'!$A$2:$A$37,MATCH($C49,'Mass attenuation coefficients'!$A$2:$A$37,1)))*(INDEX('Mass attenuation coefficients'!$B$2:$B$37,MATCH($C49,'Mass attenuation coefficients'!$A$2:$A$37,1)+1)-INDEX('Mass attenuation coefficients'!$B$2:$B$37,MATCH($C49,'Mass attenuation coefficients'!$A$2:$A$37,1)))/(INDEX('Mass attenuation coefficients'!$A$2:$A$37,MATCH($C49,'Mass attenuation coefficients'!$A$2:$A$37,1)+1)-INDEX('Mass attenuation coefficients'!$A$2:$A$37,MATCH($C49,'Mass attenuation coefficients'!$A$2:$A$37,1)))),0.997*$C49*'Mass attenuation coefficients'!$B$2/'Mass attenuation coefficients'!$A$2) -> 0.1455921672 | I49: =_xlfn.IFNA(INDEX('Shultis Faw'!$C$2:$C$26,MATCH($C49,'Shultis Faw'!$A$2:$A$26,1))+($C49-INDEX('Shultis Faw'!$A$2:$A$26,MATCH($C49,'Shultis Faw'!$A$2:$A$26,1)))*(INDEX('Shultis Faw'!$C$2:$C$26,MATCH($C49,'Shultis Faw'!$A$2:$A$26,1)+1)-INDEX('Shultis Faw'!$C$2:$C$26,MATCH($C49,'Shultis Faw'!$A$2:$A$26,1)))/(INDEX('Shultis Faw'!$A$2:$A$26,MATCH($C49,'Shultis Faw'!$A$2:$A$26,1)+1)-INDEX('Shultis Faw'!$A$2:$A$26,MATCH($C49,'Shultis Faw'!$A$2:$A$26,1))),$C49*'Shultis Faw'!$C$2/'Shultis Faw'!$A$2) -> 3.758272452 | J49: =_xlfn.IFNA(INDEX('Shultis Faw'!$D$2:$D$26,MATCH($C49,'Shultis Faw'!$A$2:$A$26,1))+($C49-INDEX('Shultis Faw'!$A$2:$A$26,MATCH($C49,'Shultis Faw'!$A$2:$A$26,1)))*(INDEX('Shultis Faw'!$D$2:$D$26,MATCH($C49,'Shultis Faw'!$A$2:$A$26,1)+1)-INDEX('Shultis Faw'!$D$2:$D$26,MATCH($C49,'Shultis Faw'!$A$2:$A$26,1)))/(INDEX('Shultis Faw'!$A$2:$A$26,MATCH($C49,'Shultis Faw'!$A$2:$A$26,1)+1)-INDEX('Shultis Faw'!$A$2:$A$26,MATCH($C49,'Shultis Faw'!$A$2:$A$26,1))),$C49*'Shultis Faw'!$D$2/'Shultis Faw'!$A$2) -> 2.212863904 | K49: =_xlfn.IFNA(INDEX('Shultis Faw'!$B$2:$B$26,MATCH($C49,'Shultis Faw'!$A$2:$A$26,1))+($C49-INDEX('Shultis Faw'!$A$2:$A$26,MATCH($C49,'Shultis Faw'!$A$2:$A$26,1)))*(INDEX('Shultis Faw'!$B$2:$B$26,MATCH($C49,'Shultis Faw'!$A$2:$A$26,1)+1)-INDEX('Shultis Faw'!$B$2:$B$26,MATCH($C49,'Shultis Faw'!$A$2:$A$26,1)))/(INDEX('Shultis Faw'!$A$2:$A$26,MATCH($C49,'Shultis Faw'!$A$2:$A$26,1)+1)-INDEX('Shultis Faw'!$A$2:$A$26,MATCH($C49,'Shultis Faw'!$A$2:$A$26,1))),$C49*'Shultis Faw'!$B$2/'Shultis Faw'!$A$2) -> -0.182020172 | L49: =_xlfn.IFNA(INDEX('Shultis Faw'!$E$2:$E$26,MATCH($C49,'Shultis Faw'!$A$2:$A$26,1))+($C49-INDEX('Shultis Faw'!$A$2:$A$26,MATCH($C49,'Shultis Faw'!$A$2:$A$26,1)))*(INDEX('Shultis Faw'!$E$2:$E$26,MATCH($C49,'Shultis Faw'!$A$2:$A$26,1)+1)-INDEX('Shultis Faw'!$E$2:$E$26,MATCH($C49,'Shultis Faw'!$A$2:$A$26,1)))/(INDEX('Shultis Faw'!$A$2:$A$26,MATCH($C49,'Shultis Faw'!$A$2:$A$26,1)+1)-INDEX('Shultis Faw'!$A$2:$A$26,MATCH($C49,'Shultis Faw'!$A$2:$A$26,1))),$C49*'Shultis Faw'!$E$2/'Shultis Faw'!$A$2) -> 0.0776006724 | M49: =_xlfn.IFNA(INDEX('Shultis Faw'!$F$2:$F$26,MATCH($C49,'Shultis Faw'!$A$2:$A$26,1))+($C49-INDEX('Shultis Faw'!$A$2:$A$26,MATCH($C49,'Shultis Faw'!$A$2:$A$26,1)))*(INDEX('Shultis Faw'!$F$2:$F$26,MATCH($C49,'Shultis Faw'!$A$2:$A$26,1)+1)-INDEX('Shultis Faw'!$F$2:$F$26,MATCH($C49,'Shultis Faw'!$A$2:$A$26,1)))/(INDEX('Shultis Faw'!$A$2:$A$26,MATCH($C49,'Shultis Faw'!$A$2:$A$26,1)+1)-INDEX('Shultis Faw'!$A$2:$A$26,MATCH($C49,'Shultis Faw'!$A$2:$A$26,1))),$C49*'Shultis Faw'!$F$2/'Shultis Faw'!$A$2) -> 14.29263852 | N49: =J49*(H49*'Externe blootstelling'!$D$23/2)^K49+L49*(TANH(((H49*'Externe blootstelling'!$D$23)/(2*M49))-2)-TANH(-2))/(1-TANH(-2)) -> 1.920084176 | O49: =IF(N49=1,1+(I49-1)*H49*'Externe blootstelling'!$D$23/2,1+(I49-1)*(N49^(H49*'Externe blootstelling'!$D$23/2)-1)/(N49-1)) -> 10.46300524 | P49: =G49*EXP(-H49*'Externe blootstelling'!$D$23/2)*O49 -> 5.970586764e-06
B50: g | C50: 0.1723032 | D50: 2.7568512e-14 | E50: 4e-06 | F50: =_xlfn.IFNA(INDEX('hp (pSv cm2)'!$B$2:$B$52,MATCH($C50,'hp (pSv cm2)'!$A$2:$A$52,1))+($C50-INDEX('hp (pSv cm2)'!$A$2:$A$52,MATCH($C50,'hp (pSv cm2)'!$A$2:$A$52,1)))*(INDEX('hp (pSv cm2)'!$B$2:$B$52,MATCH($C50,'hp (pSv cm2)'!$A$2:$A$52,1)+1)-INDEX('hp (pSv cm2)'!$B$2:$B$52,MATCH($C50,'hp (pSv cm2)'!$A$2:$A$52,1)))/(INDEX('hp (pSv cm2)'!$A$2:$A$52,MATCH($C50,'hp (pSv cm2)'!$A$2:$A$52,1)+1)-INDEX('hp (pSv cm2)'!$A$2:$A$52,MATCH($C50,'hp (pSv cm2)'!$A$2:$A$52,1))),$C50*'hp (pSv cm2)'!$B$2/'hp (pSv cm2)'!$A$2) -> 0.859854192 | G50: 3.439416768e-06 | H50: =_xlfn.IFNA(0.997*(INDEX('Mass attenuation coefficients'!$B$2:$B$37,MATCH($C50,'Mass attenuation coefficients'!$A$2:$A$37,1))+($C50-INDEX('Mass attenuation coefficients'!$A$2:$A$37,MATCH($C50,'Mass attenuation coefficients'!$A$2:$A$37,1)))*(INDEX('Mass attenuation coefficients'!$B$2:$B$37,MATCH($C50,'Mass attenuation coefficients'!$A$2:$A$37,1)+1)-INDEX('Mass attenuation coefficients'!$B$2:$B$37,MATCH($C50,'Mass attenuation coefficients'!$A$2:$A$37,1)))/(INDEX('Mass attenuation coefficients'!$A$2:$A$37,MATCH($C50,'Mass attenuation coefficients'!$A$2:$A$37,1)+1)-INDEX('Mass attenuation coefficients'!$A$2:$A$37,MATCH($C50,'Mass attenuation coefficients'!$A$2:$A$37,1)))),0.997*$C50*'Mass attenuation coefficients'!$B$2/'Mass attenuation coefficients'!$A$2) -> 0.1440447016 | I50: =_xlfn.IFNA(INDEX('Shultis Faw'!$C$2:$C$26,MATCH($C50,'Shultis Faw'!$A$2:$A$26,1))+($C50-INDEX('Shultis Faw'!$A$2:$A$26,MATCH($C50,'Shultis Faw'!$A$2:$A$26,1)))*(INDEX('Shultis Faw'!$C$2:$C$26,MATCH($C50,'Shultis Faw'!$A$2:$A$26,1)+1)-INDEX('Shultis Faw'!$C$2:$C$26,MATCH($C50,'Shultis Faw'!$A$2:$A$26,1)))/(INDEX('Shultis Faw'!$A$2:$A$26,MATCH($C50,'Shultis Faw'!$A$2:$A$26,1)+1)-INDEX('Shultis Faw'!$A$2:$A$26,MATCH($C50,'Shultis Faw'!$A$2:$A$26,1))),$C50*'Shultis Faw'!$C$2/'Shultis Faw'!$A$2) -> 3.710099184 | J50: =_xlfn.IFNA(INDEX('Shultis Faw'!$D$2:$D$26,MATCH($C50,'Shultis Faw'!$A$2:$A$26,1))+($C50-INDEX('Shultis Faw'!$A$2:$A$26,MATCH($C50,'Shultis Faw'!$A$2:$A$26,1)))*(INDEX('Shultis Faw'!$D$2:$D$26,MATCH($C50,'Shultis Faw'!$A$2:$A$26,1)+1)-INDEX('Shultis Faw'!$D$2:$D$26,MATCH($C50,'Shultis Faw'!$A$2:$A$26,1)))/(INDEX('Shultis Faw'!$A$2:$A$26,MATCH($C50,'Shultis Faw'!$A$2:$A$26,1)+1)-INDEX('Shultis Faw'!$A$2:$A$26,MATCH($C50,'Shultis Faw'!$A$2:$A$26,1))),$C50*'Shultis Faw'!$D$2/'Shultis Faw'!$A$2) -> 2.202746368 | K50: =_xlfn.IFNA(INDEX('Shultis Faw'!$B$2:$B$26,MATCH($C50,'Shultis Faw'!$A$2:$A$26,1))+($C50-INDEX('Shultis Faw'!$A$2:$A$26,MATCH($C50,'Shultis Faw'!$A$2:$A$26,1)))*(INDEX('Shultis Faw'!$B$2:$B$26,MATCH($C50,'Shultis Faw'!$A$2:$A$26,1)+1)-INDEX('Shultis Faw'!$B$2:$B$26,MATCH($C50,'Shultis Faw'!$A$2:$A$26,1)))/(INDEX('Shultis Faw'!$A$2:$A$26,MATCH($C50,'Shultis Faw'!$A$2:$A$26,1)+1)-INDEX('Shultis Faw'!$A$2:$A$26,MATCH($C50,'Shultis Faw'!$A$2:$A$26,1))),$C50*'Shultis Faw'!$B$2/'Shultis Faw'!$A$2) -> -0.180985424 | L50: =_xlfn.IFNA(INDEX('Shultis Faw'!$E$2:$E$26,MATCH($C50,'Shultis Faw'!$A$2:$A$26,1))+($C50-INDEX('Shultis Faw'!$A$2:$A$26,MATCH($C50,'Shultis Faw'!$A$2:$A$26,1)))*(INDEX('Shultis Faw'!$E$2:$E$26,MATCH($C50,'Shultis Faw'!$A$2:$A$26,1)+1)-INDEX('Shultis Faw'!$E$2:$E$26,MATCH($C50,'Shultis Faw'!$A$2:$A$26,1)))/(INDEX('Shultis Faw'!$A$2:$A$26,MATCH($C50,'Shultis Faw'!$A$2:$A$26,1)+1)-INDEX('Shultis Faw'!$A$2:$A$26,MATCH($C50,'Shultis Faw'!$A$2:$A$26,1))),$C50*'Shultis Faw'!$E$2/'Shultis Faw'!$A$2) -> 0.0775661808 | M50: =_xlfn.IFNA(INDEX('Shultis Faw'!$F$2:$F$26,MATCH($C50,'Shultis Faw'!$A$2:$A$26,1))+($C50-INDEX('Shultis Faw'!$A$2:$A$26,MATCH($C50,'Shultis Faw'!$A$2:$A$26,1)))*(INDEX('Shultis Faw'!$F$2:$F$26,MATCH($C50,'Shultis Faw'!$A$2:$A$26,1)+1)-INDEX('Shultis Faw'!$F$2:$F$26,MATCH($C50,'Shultis Faw'!$A$2:$A$26,1)))/(INDEX('Shultis Faw'!$A$2:$A$26,MATCH($C50,'Shultis Faw'!$A$2:$A$26,1)+1)-INDEX('Shultis Faw'!$A$2:$A$26,MATCH($C50,'Shultis Faw'!$A$2:$A$26,1))),$C50*'Shultis Faw'!$F$2/'Shultis Faw'!$A$2) -> 14.32827984 | N50: =J50*(H50*'Externe blootstelling'!$D$23/2)^K50+L50*(TANH(((H50*'Externe blootstelling'!$D$23)/(2*M50))-2)-TANH(-2))/(1-TANH(-2)) -> 1.916546862 | O50: =IF(N50=1,1+(I50-1)*H50*'Externe blootstelling'!$D$23/2,1+(I50-1)*(N50^(H50*'Externe blootstelling'!$D$23/2)-1)/(N50-1)) -> 10.10077143 | P50: =G50*EXP(-H50*'Externe blootstelling'!$D$23/2)*O50 -> 4.003797115e-06
B51: g | C51: 0.17285307 | D51: 2.76564912e-14 | E51: 0.000736 | F51: =_xlfn.IFNA(INDEX('hp (pSv cm2)'!$B$2:$B$52,MATCH($C51,'hp (pSv cm2)'!$A$2:$A$52,1))+($C51-INDEX('hp (pSv cm2)'!$A$2:$A$52,MATCH($C51,'hp (pSv cm2)'!$A$2:$A$52,1)))*(INDEX('hp (pSv cm2)'!$B$2:$B$52,MATCH($C51,'hp (pSv cm2)'!$A$2:$A$52,1)+1)-INDEX('hp (pSv cm2)'!$B$2:$B$52,MATCH($C51,'hp (pSv cm2)'!$A$2:$A$52,1)))/(INDEX('hp (pSv cm2)'!$A$2:$A$52,MATCH($C51,'hp (pSv cm2)'!$A$2:$A$52,1)+1)-INDEX('hp (pSv cm2)'!$A$2:$A$52,MATCH($C51,'hp (pSv cm2)'!$A$2:$A$52,1))),$C51*'hp (pSv cm2)'!$B$2/'hp (pSv cm2)'!$A$2) -> 0.8626365342 | G51: 0.0006349004892 | H51: =_xlfn.IFNA(0.997*(INDEX('Mass attenuation coefficients'!$B$2:$B$37,MATCH($C51,'Mass attenuation coefficients'!$A$2:$A$37,1))+($C51-INDEX('Mass attenuation coefficients'!$A$2:$A$37,MATCH($C51,'Mass attenuation coefficients'!$A$2:$A$37,1)))*(INDEX('Mass attenuation coefficients'!$B$2:$B$37,MATCH($C51,'Mass attenuation coefficients'!$A$2:$A$37,1)+1)-INDEX('Mass attenuation coefficients'!$B$2:$B$37,MATCH($C51,'Mass attenuation coefficients'!$A$2:$A$37,1)))/(INDEX('Mass attenuation coefficients'!$A$2:$A$37,MATCH($C51,'Mass attenuation coefficients'!$A$2:$A$37,1)+1)-INDEX('Mass attenuation coefficients'!$A$2:$A$37,MATCH($C51,'Mass attenuation coefficients'!$A$2:$A$37,1)))),0.997*$C51*'Mass attenuation coefficients'!$B$2/'Mass attenuation coefficients'!$A$2) -> 0.1438966821 | I51: =_xlfn.IFNA(INDEX('Shultis Faw'!$C$2:$C$26,MATCH($C51,'Shultis Faw'!$A$2:$A$26,1))+($C51-INDEX('Shultis Faw'!$A$2:$A$26,MATCH($C51,'Shultis Faw'!$A$2:$A$26,1)))*(INDEX('Shultis Faw'!$C$2:$C$26,MATCH($C51,'Shultis Faw'!$A$2:$A$26,1)+1)-INDEX('Shultis Faw'!$C$2:$C$26,MATCH($C51,'Shultis Faw'!$A$2:$A$26,1)))/(INDEX('Shultis Faw'!$A$2:$A$26,MATCH($C51,'Shultis Faw'!$A$2:$A$26,1)+1)-INDEX('Shultis Faw'!$A$2:$A$26,MATCH($C51,'Shultis Faw'!$A$2:$A$26,1))),$C51*'Shultis Faw'!$C$2/'Shultis Faw'!$A$2) -> 3.705491273 | J51: =_xlfn.IFNA(INDEX('Shultis Faw'!$D$2:$D$26,MATCH($C51,'Shultis Faw'!$A$2:$A$26,1))+($C51-INDEX('Shultis Faw'!$A$2:$A$26,MATCH($C51,'Shultis Faw'!$A$2:$A$26,1)))*(INDEX('Shultis Faw'!$D$2:$D$26,MATCH($C51,'Shultis Faw'!$A$2:$A$26,1)+1)-INDEX('Shultis Faw'!$D$2:$D$26,MATCH($C51,'Shultis Faw'!$A$2:$A$26,1)))/(INDEX('Shultis Faw'!$A$2:$A$26,MATCH($C51,'Shultis Faw'!$A$2:$A$26,1)+1)-INDEX('Shultis Faw'!$A$2:$A$26,MATCH($C51,'Shultis Faw'!$A$2:$A$26,1))),$C51*'Shultis Faw'!$D$2/'Shultis Faw'!$A$2) -> 2.201778597 | K51: =_xlfn.IFNA(INDEX('Shultis Faw'!$B$2:$B$26,MATCH($C51,'Shultis Faw'!$A$2:$A$26,1))+($C51-INDEX('Shultis Faw'!$A$2:$A$26,MATCH($C51,'Shultis Faw'!$A$2:$A$26,1)))*(INDEX('Shultis Faw'!$B$2:$B$26,MATCH($C51,'Shultis Faw'!$A$2:$A$26,1)+1)-INDEX('Shultis Faw'!$B$2:$B$26,MATCH($C51,'Shultis Faw'!$A$2:$A$26,1)))/(INDEX('Shultis Faw'!$A$2:$A$26,MATCH($C51,'Shultis Faw'!$A$2:$A$26,1)+1)-INDEX('Shultis Faw'!$A$2:$A$26,MATCH($C51,'Shultis Faw'!$A$2:$A$26,1))),$C51*'Shultis Faw'!$B$2/'Shultis Faw'!$A$2) -> -0.1808864474 | L51: =_xlfn.IFNA(INDEX('Shultis Faw'!$E$2:$E$26,MATCH($C51,'Shultis Faw'!$A$2:$A$26,1))+($C51-INDEX('Shultis Faw'!$A$2:$A$26,MATCH($C51,'Shultis Faw'!$A$2:$A$26,1)))*(INDEX('Shultis Faw'!$E$2:$E$26,MATCH($C51,'Shultis Faw'!$A$2:$A$26,1)+1)-INDEX('Shultis Faw'!$E$2:$E$26,MATCH($C51,'Shultis Faw'!$A$2:$A$26,1)))/(INDEX('Shultis Faw'!$A$2:$A$26,MATCH($C51,'Shultis Faw'!$A$2:$A$26,1)+1)-INDEX('Shultis Faw'!$A$2:$A$26,MATCH($C51,'Shultis Faw'!$A$2:$A$26,1))),$C51*'Shultis Faw'!$E$2/'Shultis Faw'!$A$2) -> 0.07756288158 | M51: =_xlfn.IFNA(INDEX('Shultis Faw'!$F$2:$F$26,MATCH($C51,'Shultis Faw'!$A$2:$A$26,1))+($C51-INDEX('Shultis Faw'!$A$2:$A$26,MATCH($C51,'Shultis Faw'!$A$2:$A$26,1)))*(INDEX('Shultis Faw'!$F$2:$F$26,MATCH($C51,'Shultis Faw'!$A$2:$A$26,1)+1)-INDEX('Shultis Faw'!$F$2:$F$26,MATCH($C51,'Shultis Faw'!$A$2:$A$26,1)))/(INDEX('Shultis Faw'!$A$2:$A$26,MATCH($C51,'Shultis Faw'!$A$2:$A$26,1)+1)-INDEX('Shultis Faw'!$A$2:$A$26,MATCH($C51,'Shultis Faw'!$A$2:$A$26,1))),$C51*'Shultis Faw'!$F$2/'Shultis Faw'!$A$2) -> 14.33168903 | N51: =J51*(H51*'Externe blootstelling'!$D$23/2)^K51+L51*(TANH(((H51*'Externe blootstelling'!$D$23)/(2*M51))-2)-TANH(-2))/(1-TANH(-2)) -> 1.916206602 | O51: =IF(N51=1,1+(I51-1)*H51*'Externe blootstelling'!$D$23/2,1+(I51-1)*(N51^(H51*'Externe blootstelling'!$D$23/2)-1)/(N51-1)) -> 10.06668463 | P51: =G51*EXP(-H51*'Externe blootstelling'!$D$23/2)*O51 -> 0.0007382255974
B52: g | C52: 0.41205 | D52: 6.5928e-14 | E52: 1.91e-05 | F52: =_xlfn.IFNA(INDEX('hp (pSv cm2)'!$B$2:$B$52,MATCH($C52,'hp (pSv cm2)'!$A$2:$A$52,1))+($C52-INDEX('hp (pSv cm2)'!$A$2:$A$52,MATCH($C52,'hp (pSv cm2)'!$A$2:$A$52,1)))*(INDEX('hp (pSv cm2)'!$B$2:$B$52,MATCH($C52,'hp (pSv cm2)'!$A$2:$A$52,1)+1)-INDEX('hp (pSv cm2)'!$B$2:$B$52,MATCH($C52,'hp (pSv cm2)'!$A$2:$A$52,1)))/(INDEX('hp (pSv cm2)'!$A$2:$A$52,MATCH($C52,'hp (pSv cm2)'!$A$2:$A$52,1)+1)-INDEX('hp (pSv cm2)'!$A$2:$A$52,MATCH($C52,'hp (pSv cm2)'!$A$2:$A$52,1))),$C52*'hp (pSv cm2)'!$B$2/'hp (pSv cm2)'!$A$2) -> 2.056635 | G52: 3.92817285e-05 | H52: =_xlfn.IFNA(0.997*(INDEX('Mass attenuation coefficients'!$B$2:$B$37,MATCH($C52,'Mass attenuation coefficients'!$A$2:$A$37,1))+($C52-INDEX('Mass attenuation coefficients'!$A$2:$A$37,MATCH($C52,'Mass attenuation coefficients'!$A$2:$A$37,1)))*(INDEX('Mass attenuation coefficients'!$B$2:$B$37,MATCH($C52,'Mass attenuation coefficients'!$A$2:$A$37,1)+1)-INDEX('Mass attenuation coefficients'!$B$2:$B$37,MATCH($C52,'Mass attenuation coefficients'!$A$2:$A$37,1)))/(INDEX('Mass attenuation coefficients'!$A$2:$A$37,MATCH($C52,'Mass attenuation coefficients'!$A$2:$A$37,1)+1)-INDEX('Mass attenuation coefficients'!$A$2:$A$37,MATCH($C52,'Mass attenuation coefficients'!$A$2:$A$37,1)))),0.997*$C52*'Mass attenuation coefficients'!$B$2/'Mass attenuation coefficients'!$A$2) -> 0.1046728216 | I52: =_xlfn.IFNA(INDEX('Shultis Faw'!$C$2:$C$26,MATCH($C52,'Shultis Faw'!$A$2:$A$26,1))+($C52-INDEX('Shultis Faw'!$A$2:$A$26,MATCH($C52,'Shultis Faw'!$A$2:$A$26,1)))*(INDEX('Shultis Faw'!$C$2:$C$26,MATCH($C52,'Shultis Faw'!$A$2:$A$26,1)+1)-INDEX('Shultis Faw'!$C$2:$C$26,MATCH($C52,'Shultis Faw'!$A$2:$A$26,1)))/(INDEX('Shultis Faw'!$A$2:$A$26,MATCH($C52,'Shultis Faw'!$A$2:$A$26,1)+1)-INDEX('Shultis Faw'!$A$2:$A$26,MATCH($C52,'Shultis Faw'!$A$2:$A$26,1))),$C52*'Shultis Faw'!$C$2/'Shultis Faw'!$A$2) -> 2.64072 | J52: =_xlfn.IFNA(INDEX('Shultis Faw'!$D$2:$D$26,MATCH($C52,'Shultis Faw'!$A$2:$A$26,1))+($C52-INDEX('Shultis Faw'!$A$2:$A$26,MATCH($C52,'Shultis Faw'!$A$2:$A$26,1)))*(INDEX('Shultis Faw'!$D$2:$D$26,MATCH($C52,'Shultis Faw'!$A$2:$A$26,1)+1)-INDEX('Shultis Faw'!$D$2:$D$26,MATCH($C52,'Shultis Faw'!$A$2:$A$26,1)))/(INDEX('Shultis Faw'!$A$2:$A$26,MATCH($C52,'Shultis Faw'!$A$2:$A$26,1)+1)-INDEX('Shultis Faw'!$A$2:$A$26,MATCH($C52,'Shultis Faw'!$A$2:$A$26,1))),$C52*'Shultis Faw'!$D$2/'Shultis Faw'!$A$2) -> 1.868022 | K52: =_xlfn.IFNA(INDEX('Shultis Faw'!$B$2:$B$26,MATCH($C52,'Shultis Faw'!$A$2:$A$26,1))+($C52-INDEX('Shultis Faw'!$A$2:$A$26,MATCH($C52,'Shultis Faw'!$A$2:$A$26,1)))*(INDEX('Shultis Faw'!$B$2:$B$26,MATCH($C52,'Shultis Faw'!$A$2:$A$26,1)+1)-INDEX('Shultis Faw'!$B$2:$B$26,MATCH($C52,'Shultis Faw'!$A$2:$A$26,1)))/(INDEX('Shultis Faw'!$A$2:$A$26,MATCH($C52,'Shultis Faw'!$A$2:$A$26,1)+1)-INDEX('Shultis Faw'!$A$2:$A$26,MATCH($C52,'Shultis Faw'!$A$2:$A$26,1))),$C52*'Shultis Faw'!$B$2/'Shultis Faw'!$A$2) -> -0.147313 | L52: =_xlfn.IFNA(INDEX('Shultis Faw'!$E$2:$E$26,MATCH($C52,'Shultis Faw'!$A$2:$A$26,1))+($C52-INDEX('Shultis Faw'!$A$2:$A$26,MATCH($C52,'Shultis Faw'!$A$2:$A$26,1)))*(INDEX('Shultis Faw'!$E$2:$E$26,MATCH($C52,'Shultis Faw'!$A$2:$A$26,1)+1)-INDEX('Shultis Faw'!$E$2:$E$26,MATCH($C52,'Shultis Faw'!$A$2:$A$26,1)))/(INDEX('Shultis Faw'!$A$2:$A$26,MATCH($C52,'Shultis Faw'!$A$2:$A$26,1)+1)-INDEX('Shultis Faw'!$A$2:$A$26,MATCH($C52,'Shultis Faw'!$A$2:$A$26,1))),$C52*'Shultis Faw'!$E$2/'Shultis Faw'!$A$2) -> 0.05890955 | M52: =_xlfn.IFNA(INDEX('Shultis Faw'!$F$2:$F$26,MATCH($C52,'Shultis Faw'!$A$2:$A$26,1))+($C52-INDEX('Shultis Faw'!$A$2:$A$26,MATCH($C52,'Shultis Faw'!$A$2:$A$26,1)))*(INDEX('Shultis Faw'!$F$2:$F$26,MATCH($C52,'Shultis Faw'!$A$2:$A$26,1)+1)-INDEX('Shultis Faw'!$F$2:$F$26,MATCH($C52,'Shultis Faw'!$A$2:$A$26,1)))/(INDEX('Shultis Faw'!$A$2:$A$26,MATCH($C52,'Shultis Faw'!$A$2:$A$26,1)+1)-INDEX('Shultis Faw'!$A$2:$A$26,MATCH($C52,'Shultis Faw'!$A$2:$A$26,1))),$C52*'Shultis Faw'!$F$2/'Shultis Faw'!$A$2) -> 14.250845 | N52: =J52*(H52*'Externe blootstelling'!$D$23/2)^K52+L52*(TANH(((H52*'Externe blootstelling'!$D$23)/(2*M52))-2)-TANH(-2))/(1-TANH(-2)) -> 1.748172426 | O52: =IF(N52=1,1+(I52-1)*H52*'Externe blootstelling'!$D$23/2,1+(I52-1)*(N52^(H52*'Externe blootstelling'!$D$23/2)-1)/(N52-1)) -> 4.078265666 | P52: =G52*EXP(-H52*'Externe blootstelling'!$D$23/2)*O52 -> 3.332603684e-05
B53: g | C53: 0.4244 | D53: 6.7904e-14 | E53: 1.95e-05 | F53: =_xlfn.IFNA(INDEX('hp (pSv cm2)'!$B$2:$B$52,MATCH($C53,'hp (pSv cm2)'!$A$2:$A$52,1))+($C53-INDEX('hp (pSv cm2)'!$A$2:$A$52,MATCH($C53,'hp (pSv cm2)'!$A$2:$A$52,1)))*(INDEX('hp (pSv cm2)'!$B$2:$B$52,MATCH($C53,'hp (pSv cm2)'!$A$2:$A$52,1)+1)-INDEX('hp (pSv cm2)'!$B$2:$B$52,MATCH($C53,'hp (pSv cm2)'!$A$2:$A$52,1)))/(INDEX('hp (pSv cm2)'!$A$2:$A$52,MATCH($C53,'hp (pSv cm2)'!$A$2:$A$52,1)+1)-INDEX('hp (pSv cm2)'!$A$2:$A$52,MATCH($C53,'hp (pSv cm2)'!$A$2:$A$52,1))),$C53*'hp (pSv cm2)'!$B$2/'hp (pSv cm2)'!$A$2) -> 2.11468 | G53: 4.123626e-05 | H53: =_xlfn.IFNA(0.997*(INDEX('Mass attenuation coefficients'!$B$2:$B$37,MATCH($C53,'Mass attenuation coefficients'!$A$2:$A$37,1))+($C53-INDEX('Mass attenuation coefficients'!$A$2:$A$37,MATCH($C53,'Mass attenuation coefficients'!$A$2:$A$37,1)))*(INDEX('Mass attenuation coefficients'!$B$2:$B$37,MATCH($C53,'Mass attenuation coefficients'!$A$2:$A$37,1)+1)-INDEX('Mass attenuation coefficients'!$B$2:$B$37,MATCH($C53,'Mass attenuation coefficients'!$A$2:$A$37,1)))/(INDEX('Mass attenuation coefficients'!$A$2:$A$37,MATCH($C53,'Mass attenuation coefficients'!$A$2:$A$37,1)+1)-INDEX('Mass attenuation coefficients'!$A$2:$A$37,MATCH($C53,'Mass attenuation coefficients'!$A$2:$A$37,1)))),0.997*$C53*'Mass attenuation coefficients'!$B$2/'Mass attenuation coefficients'!$A$2) -> 0.1035363364 | I53: =_xlfn.IFNA(INDEX('Shultis Faw'!$C$2:$C$26,MATCH($C53,'Shultis Faw'!$A$2:$A$26,1))+($C53-INDEX('Shultis Faw'!$A$2:$A$26,MATCH($C53,'Shultis Faw'!$A$2:$A$26,1)))*(INDEX('Shultis Faw'!$C$2:$C$26,MATCH($C53,'Shultis Faw'!$A$2:$A$26,1)+1)-INDEX('Shultis Faw'!$C$2:$C$26,MATCH($C53,'Shultis Faw'!$A$2:$A$26,1)))/(INDEX('Shultis Faw'!$A$2:$A$26,MATCH($C53,'Shultis Faw'!$A$2:$A$26,1)+1)-INDEX('Shultis Faw'!$A$2:$A$26,MATCH($C53,'Shultis Faw'!$A$2:$A$26,1))),$C53*'Shultis Faw'!$C$2/'Shultis Faw'!$A$2) -> 2.62096 | J53: =_xlfn.IFNA(INDEX('Shultis Faw'!$D$2:$D$26,MATCH($C53,'Shultis Faw'!$A$2:$A$26,1))+($C53-INDEX('Shultis Faw'!$A$2:$A$26,MATCH($C53,'Shultis Faw'!$A$2:$A$26,1)))*(INDEX('Shultis Faw'!$D$2:$D$26,MATCH($C53,'Shultis Faw'!$A$2:$A$26,1)+1)-INDEX('Shultis Faw'!$D$2:$D$26,MATCH($C53,'Shultis Faw'!$A$2:$A$26,1)))/(INDEX('Shultis Faw'!$A$2:$A$26,MATCH($C53,'Shultis Faw'!$A$2:$A$26,1)+1)-INDEX('Shultis Faw'!$A$2:$A$26,MATCH($C53,'Shultis Faw'!$A$2:$A$26,1))),$C53*'Shultis Faw'!$D$2/'Shultis Faw'!$A$2) -> 1.853696 | K53: =_xlfn.IFNA(INDEX('Shultis Faw'!$B$2:$B$26,MATCH($C53,'Shultis Faw'!$A$2:$A$26,1))+($C53-INDEX('Shultis Faw'!$A$2:$A$26,MATCH($C53,'Shultis Faw'!$A$2:$A$26,1)))*(INDEX('Shultis Faw'!$B$2:$B$26,MATCH($C53,'Shultis Faw'!$A$2:$A$26,1)+1)-INDEX('Shultis Faw'!$B$2:$B$26,MATCH($C53,'Shultis Faw'!$A$2:$A$26,1)))/(INDEX('Shultis Faw'!$A$2:$A$26,MATCH($C53,'Shultis Faw'!$A$2:$A$26,1)+1)-INDEX('Shultis Faw'!$A$2:$A$26,MATCH($C53,'Shultis Faw'!$A$2:$A$26,1))),$C53*'Shultis Faw'!$B$2/'Shultis Faw'!$A$2) -> -0.145584 | L53: =_xlfn.IFNA(INDEX('Shultis Faw'!$E$2:$E$26,MATCH($C53,'Shultis Faw'!$A$2:$A$26,1))+($C53-INDEX('Shultis Faw'!$A$2:$A$26,MATCH($C53,'Shultis Faw'!$A$2:$A$26,1)))*(INDEX('Shultis Faw'!$E$2:$E$26,MATCH($C53,'Shultis Faw'!$A$2:$A$26,1)+1)-INDEX('Shultis Faw'!$E$2:$E$26,MATCH($C53,'Shultis Faw'!$A$2:$A$26,1)))/(INDEX('Shultis Faw'!$A$2:$A$26,MATCH($C53,'Shultis Faw'!$A$2:$A$26,1)+1)-INDEX('Shultis Faw'!$A$2:$A$26,MATCH($C53,'Shultis Faw'!$A$2:$A$26,1))),$C53*'Shultis Faw'!$E$2/'Shultis Faw'!$A$2) -> 0.0583044 | M53: =_xlfn.IFNA(INDEX('Shultis Faw'!$F$2:$F$26,MATCH($C53,'Shultis Faw'!$A$2:$A$26,1))+($C53-INDEX('Shultis Faw'!$A$2:$A$26,MATCH($C53,'Shultis Faw'!$A$2:$A$26,1)))*(INDEX('Shultis Faw'!$F$2:$F$26,MATCH($C53,'Shultis Faw'!$A$2:$A$26,1)+1)-INDEX('Shultis Faw'!$F$2:$F$26,MATCH($C53,'Shultis Faw'!$A$2:$A$26,1)))/(INDEX('Shultis Faw'!$A$2:$A$26,MATCH($C53,'Shultis Faw'!$A$2:$A$26,1)+1)-INDEX('Shultis Faw'!$A$2:$A$26,MATCH($C53,'Shultis Faw'!$A$2:$A$26,1))),$C53*'Shultis Faw'!$F$2/'Shultis Faw'!$A$2) -> 14.26196 | N53: =J53*(H53*'Externe blootstelling'!$D$23/2)^K53+L53*(TANH(((H53*'Externe blootstelling'!$D$23)/(2*M53))-2)-TANH(-2))/(1-TANH(-2)) -> 1.738876068 | O53: =IF(N53=1,1+(I53-1)*H53*'Externe blootstelling'!$D$23/2,1+(I53-1)*(N53^(H53*'Externe blootstelling'!$D$23/2)-1)/(N53-1)) -> 3.986407441 | P53: =G53*EXP(-H53*'Externe blootstelling'!$D$23/2)*O53 -> 3.47842033e-05
B54: g | C54: 0.4369 | D54: 6.9904e-14 | E54: 1.58e-05 | F54: =_xlfn.IFNA(INDEX('hp (pSv cm2)'!$B$2:$B$52,MATCH($C54,'hp (pSv cm2)'!$A$2:$A$52,1))+($C54-INDEX('hp (pSv cm2)'!$A$2:$A$52,MATCH($C54,'hp (pSv cm2)'!$A$2:$A$52,1)))*(INDEX('hp (pSv cm2)'!$B$2:$B$52,MATCH($C54,'hp (pSv cm2)'!$A$2:$A$52,1)+1)-INDEX('hp (pSv cm2)'!$B$2:$B$52,MATCH($C54,'hp (pSv cm2)'!$A$2:$A$52,1)))/(INDEX('hp (pSv cm2)'!$A$2:$A$52,MATCH($C54,'hp (pSv cm2)'!$A$2:$A$52,1)+1)-INDEX('hp (pSv cm2)'!$A$2:$A$52,MATCH($C54,'hp (pSv cm2)'!$A$2:$A$52,1))),$C54*'hp (pSv cm2)'!$B$2/'hp (pSv cm2)'!$A$2) -> 2.17343 | G54: 3.4340194e-05 | H54: =_xlfn.IFNA(0.997*(INDEX('Mass attenuation coefficients'!$B$2:$B$37,MATCH($C54,'Mass attenuation coefficients'!$A$2:$A$37,1))+($C54-INDEX('Mass attenuation coefficients'!$A$2:$A$37,MATCH($C54,'Mass attenuation coefficients'!$A$2:$A$37,1)))*(INDEX('Mass attenuation coefficients'!$B$2:$B$37,MATCH($C54,'Mass attenuation coefficients'!$A$2:$A$37,1)+1)-INDEX('Mass attenuation coefficients'!$B$2:$B$37,MATCH($C54,'Mass attenuation coefficients'!$A$2:$A$37,1)))/(INDEX('Mass attenuation coefficients'!$A$2:$A$37,MATCH($C54,'Mass attenuation coefficients'!$A$2:$A$37,1)+1)-INDEX('Mass attenuation coefficients'!$A$2:$A$37,MATCH($C54,'Mass attenuation coefficients'!$A$2:$A$37,1)))),0.997*$C54*'Mass attenuation coefficients'!$B$2/'Mass attenuation coefficients'!$A$2) -> 0.1023860476 | I54: =_xlfn.IFNA(INDEX('Shultis Faw'!$C$2:$C$26,MATCH($C54,'Shultis Faw'!$A$2:$A$26,1))+($C54-INDEX('Shultis Faw'!$A$2:$A$26,MATCH($C54,'Shultis Faw'!$A$2:$A$26,1)))*(INDEX('Shultis Faw'!$C$2:$C$26,MATCH($C54,'Shultis Faw'!$A$2:$A$26,1)+1)-INDEX('Shultis Faw'!$C$2:$C$26,MATCH($C54,'Shultis Faw'!$A$2:$A$26,1)))/(INDEX('Shultis Faw'!$A$2:$A$26,MATCH($C54,'Shultis Faw'!$A$2:$A$26,1)+1)-INDEX('Shultis Faw'!$A$2:$A$26,MATCH($C54,'Shultis Faw'!$A$2:$A$26,1))),$C54*'Shultis Faw'!$C$2/'Shultis Faw'!$A$2) -> 2.60096 | J54: =_xlfn.IFNA(INDEX('Shultis Faw'!$D$2:$D$26,MATCH($C54,'Shultis Faw'!$A$2:$A$26,1))+($C54-INDEX('Shultis Faw'!$A$2:$A$26,MATCH($C54,'Shultis Faw'!$A$2:$A$26,1)))*(INDEX('Shultis Faw'!$D$2:$D$26,MATCH($C54,'Shultis Faw'!$A$2:$A$26,1)+1)-INDEX('Shultis Faw'!$D$2:$D$26,MATCH($C54,'Shultis Faw'!$A$2:$A$26,1)))/(INDEX('Shultis Faw'!$A$2:$A$26,MATCH($C54,'Shultis Faw'!$A$2:$A$26,1)+1)-INDEX('Shultis Faw'!$A$2:$A$26,MATCH($C54,'Shultis Faw'!$A$2:$A$26,1))),$C54*'Shultis Faw'!$D$2/'Shultis Faw'!$A$2) -> 1.839196 | K54: =_xlfn.IFNA(INDEX('Shultis Faw'!$B$2:$B$26,MATCH($C54,'Shultis Faw'!$A$2:$A$26,1))+($C54-INDEX('Shultis Faw'!$A$2:$A$26,MATCH($C54,'Shultis Faw'!$A$2:$A$26,1)))*(INDEX('Shultis Faw'!$B$2:$B$26,MATCH($C54,'Shultis Faw'!$A$2:$A$26,1)+1)-INDEX('Shultis Faw'!$B$2:$B$26,MATCH($C54,'Shultis Faw'!$A$2:$A$26,1)))/(INDEX('Shultis Faw'!$A$2:$A$26,MATCH($C54,'Shultis Faw'!$A$2:$A$26,1)+1)-INDEX('Shultis Faw'!$A$2:$A$26,MATCH($C54,'Shultis Faw'!$A$2:$A$26,1))),$C54*'Shultis Faw'!$B$2/'Shultis Faw'!$A$2) -> -0.143834 | L54: =_xlfn.IFNA(INDEX('Shultis Faw'!$E$2:$E$26,MATCH($C54,'Shultis Faw'!$A$2:$A$26,1))+($C54-INDEX('Shultis Faw'!$A$2:$A$26,MATCH($C54,'Shultis Faw'!$A$2:$A$26,1)))*(INDEX('Shultis Faw'!$E$2:$E$26,MATCH($C54,'Shultis Faw'!$A$2:$A$26,1)+1)-INDEX('Shultis Faw'!$E$2:$E$26,MATCH($C54,'Shultis Faw'!$A$2:$A$26,1)))/(INDEX('Shultis Faw'!$A$2:$A$26,MATCH($C54,'Shultis Faw'!$A$2:$A$26,1)+1)-INDEX('Shultis Faw'!$A$2:$A$26,MATCH($C54,'Shultis Faw'!$A$2:$A$26,1))),$C54*'Shultis Faw'!$E$2/'Shultis Faw'!$A$2) -> 0.0576919 | M54: =_xlfn.IFNA(INDEX('Shultis Faw'!$F$2:$F$26,MATCH($C54,'Shultis Faw'!$A$2:$A$26,1))+($C54-INDEX('Shultis Faw'!$A$2:$A$26,MATCH($C54,'Shultis Faw'!$A$2:$A$26,1)))*(INDEX('Shultis Faw'!$F$2:$F$26,MATCH($C54,'Shultis Faw'!$A$2:$A$26,1)+1)-INDEX('Shultis Faw'!$F$2:$F$26,MATCH($C54,'Shultis Faw'!$A$2:$A$26,1)))/(INDEX('Shultis Faw'!$A$2:$A$26,MATCH($C54,'Shultis Faw'!$A$2:$A$26,1)+1)-INDEX('Shultis Faw'!$A$2:$A$26,MATCH($C54,'Shultis Faw'!$A$2:$A$26,1))),$C54*'Shultis Faw'!$F$2/'Shultis Faw'!$A$2) -> 14.27321 | N54: =J54*(H54*'Externe blootstelling'!$D$23/2)^K54+L54*(TANH(((H54*'Externe blootstelling'!$D$23)/(2*M54))-2)-TANH(-2))/(1-TANH(-2)) -> 1.729376032 | O54: =IF(N54=1,1+(I54-1)*H54*'Externe blootstelling'!$D$23/2,1+(I54-1)*(N54^(H54*'Externe blootstelling'!$D$23/2)-1)/(N54-1)) -> 3.895726493 | P54: =G54*EXP(-H54*'Externe blootstelling'!$D$23/2)*O54 -> 2.880088086e-05
B55: g | C55: 0.4432 | D55: 7.0912e-14 | E55: 4.1e-06 | F55: =_xlfn.IFNA(INDEX('hp (pSv cm2)'!$B$2:$B$52,MATCH($C55,'hp (pSv cm2)'!$A$2:$A$52,1))+($C55-INDEX('hp (pSv cm2)'!$A$2:$A$52,MATCH($C55,'hp (pSv cm2)'!$A$2:$A$52,1)))*(INDEX('hp (pSv cm2)'!$B$2:$B$52,MATCH($C55,'hp (pSv cm2)'!$A$2:$A$52,1)+1)-INDEX('hp (pSv cm2)'!$B$2:$B$52,MATCH($C55,'hp (pSv cm2)'!$A$2:$A$52,1)))/(INDEX('hp (pSv cm2)'!$A$2:$A$52,MATCH($C55,'hp (pSv cm2)'!$A$2:$A$52,1)+1)-INDEX('hp (pSv cm2)'!$A$2:$A$52,MATCH($C55,'hp (pSv cm2)'!$A$2:$A$52,1))),$C55*'hp (pSv cm2)'!$B$2/'hp (pSv cm2)'!$A$2) -> 2.20304 | G55: 9.032464e-06 | H55: =_xlfn.IFNA(0.997*(INDEX('Mass attenuation coefficients'!$B$2:$B$37,MATCH($C55,'Mass attenuation coefficients'!$A$2:$A$37,1))+($C55-INDEX('Mass attenuation coefficients'!$A$2:$A$37,MATCH($C55,'Mass attenuation coefficients'!$A$2:$A$37,1)))*(INDEX('Mass attenuation coefficients'!$B$2:$B$37,MATCH($C55,'Mass attenuation coefficients'!$A$2:$A$37,1)+1)-INDEX('Mass attenuation coefficients'!$B$2:$B$37,MATCH($C55,'Mass attenuation coefficients'!$A$2:$A$37,1)))/(INDEX('Mass attenuation coefficients'!$A$2:$A$37,MATCH($C55,'Mass attenuation coefficients'!$A$2:$A$37,1)+1)-INDEX('Mass attenuation coefficients'!$A$2:$A$37,MATCH($C55,'Mass attenuation coefficients'!$A$2:$A$37,1)))),0.997*$C55*'Mass attenuation coefficients'!$B$2/'Mass attenuation coefficients'!$A$2) -> 0.1018063021 | I55: =_xlfn.IFNA(INDEX('Shultis Faw'!$C$2:$C$26,MATCH($C55,'Shultis Faw'!$A$2:$A$26,1))+($C55-INDEX('Shultis Faw'!$A$2:$A$26,MATCH($C55,'Shultis Faw'!$A$2:$A$26,1)))*(INDEX('Shultis Faw'!$C$2:$C$26,MATCH($C55,'Shultis Faw'!$A$2:$A$26,1)+1)-INDEX('Shultis Faw'!$C$2:$C$26,MATCH($C55,'Shultis Faw'!$A$2:$A$26,1)))/(INDEX('Shultis Faw'!$A$2:$A$26,MATCH($C55,'Shultis Faw'!$A$2:$A$26,1)+1)-INDEX('Shultis Faw'!$A$2:$A$26,MATCH($C55,'Shultis Faw'!$A$2:$A$26,1))),$C55*'Shultis Faw'!$C$2/'Shultis Faw'!$A$2) -> 2.59088 | J55: =_xlfn.IFNA(INDEX('Shultis Faw'!$D$2:$D$26,MATCH($C55,'Shultis Faw'!$A$2:$A$26,1))+($C55-INDEX('Shultis Faw'!$A$2:$A$26,MATCH($C55,'Shultis Faw'!$A$2:$A$26,1)))*(INDEX('Shultis Faw'!$D$2:$D$26,MATCH($C55,'Shultis Faw'!$A$2:$A$26,1)+1)-INDEX('Shultis Faw'!$D$2:$D$26,MATCH($C55,'Shultis Faw'!$A$2:$A$26,1)))/(INDEX('Shultis Faw'!$A$2:$A$26,MATCH($C55,'Shultis Faw'!$A$2:$A$26,1)+1)-INDEX('Shultis Faw'!$A$2:$A$26,MATCH($C55,'Shultis Faw'!$A$2:$A$26,1))),$C55*'Shultis Faw'!$D$2/'Shultis Faw'!$A$2) -> 1.831888 | K55: =_xlfn.IFNA(INDEX('Shultis Faw'!$B$2:$B$26,MATCH($C55,'Shultis Faw'!$A$2:$A$26,1))+($C55-INDEX('Shultis Faw'!$A$2:$A$26,MATCH($C55,'Shultis Faw'!$A$2:$A$26,1)))*(INDEX('Shultis Faw'!$B$2:$B$26,MATCH($C55,'Shultis Faw'!$A$2:$A$26,1)+1)-INDEX('Shultis Faw'!$B$2:$B$26,MATCH($C55,'Shultis Faw'!$A$2:$A$26,1)))/(INDEX('Shultis Faw'!$A$2:$A$26,MATCH($C55,'Shultis Faw'!$A$2:$A$26,1)+1)-INDEX('Shultis Faw'!$A$2:$A$26,MATCH($C55,'Shultis Faw'!$A$2:$A$26,1))),$C55*'Shultis Faw'!$B$2/'Shultis Faw'!$A$2) -> -0.142952 | L55: =_xlfn.IFNA(INDEX('Shultis Faw'!$E$2:$E$26,MATCH($C55,'Shultis Faw'!$A$2:$A$26,1))+($C55-INDEX('Shultis Faw'!$A$2:$A$26,MATCH($C55,'Shultis Faw'!$A$2:$A$26,1)))*(INDEX('Shultis Faw'!$E$2:$E$26,MATCH($C55,'Shultis Faw'!$A$2:$A$26,1)+1)-INDEX('Shultis Faw'!$E$2:$E$26,MATCH($C55,'Shultis Faw'!$A$2:$A$26,1)))/(INDEX('Shultis Faw'!$A$2:$A$26,MATCH($C55,'Shultis Faw'!$A$2:$A$26,1)+1)-INDEX('Shultis Faw'!$A$2:$A$26,MATCH($C55,'Shultis Faw'!$A$2:$A$26,1))),$C55*'Shultis Faw'!$E$2/'Shultis Faw'!$A$2) -> 0.0573832 | M55: =_xlfn.IFNA(INDEX('Shultis Faw'!$F$2:$F$26,MATCH($C55,'Shultis Faw'!$A$2:$A$26,1))+($C55-INDEX('Shultis Faw'!$A$2:$A$26,MATCH($C55,'Shultis Faw'!$A$2:$A$26,1)))*(INDEX('Shultis Faw'!$F$2:$F$26,MATCH($C55,'Shultis Faw'!$A$2:$A$26,1)+1)-INDEX('Shultis Faw'!$F$2:$F$26,MATCH($C55,'Shultis Faw'!$A$2:$A$26,1)))/(INDEX('Shultis Faw'!$A$2:$A$26,MATCH($C55,'Shultis Faw'!$A$2:$A$26,1)+1)-INDEX('Shultis Faw'!$A$2:$A$26,MATCH($C55,'Shultis Faw'!$A$2:$A$26,1))),$C55*'Shultis Faw'!$F$2/'Shultis Faw'!$A$2) -> 14.27888 | N55: =J55*(H55*'Externe blootstelling'!$D$23/2)^K55+L55*(TANH(((H55*'Externe blootstelling'!$D$23)/(2*M55))-2)-TANH(-2))/(1-TANH(-2)) -> 1.72455339 | O55: =IF(N55=1,1+(I55-1)*H55*'Externe blootstelling'!$D$23/2,1+(I55-1)*(N55^(H55*'Externe blootstelling'!$D$23/2)-1)/(N55-1)) -> 3.850880867 | P55: =G55*EXP(-H55*'Externe blootstelling'!$D$23/2)*O55 -> 7.553662809e-06
B56: g | C56: 0.462 | D56: 7.392e-14 | E56: 1.58e-05 | F56: =_xlfn.IFNA(INDEX('hp (pSv cm2)'!$B$2:$B$52,MATCH($C56,'hp (pSv cm2)'!$A$2:$A$52,1))+($C56-INDEX('hp (pSv cm2)'!$A$2:$A$52,MATCH($C56,'hp (pSv cm2)'!$A$2:$A$52,1)))*(INDEX('hp (pSv cm2)'!$B$2:$B$52,MATCH($C56,'hp (pSv cm2)'!$A$2:$A$52,1)+1)-INDEX('hp (pSv cm2)'!$B$2:$B$52,MATCH($C56,'hp (pSv cm2)'!$A$2:$A$52,1)))/(INDEX('hp (pSv cm2)'!$A$2:$A$52,MATCH($C56,'hp (pSv cm2)'!$A$2:$A$52,1)+1)-INDEX('hp (pSv cm2)'!$A$2:$A$52,MATCH($C56,'hp (pSv cm2)'!$A$2:$A$52,1))),$C56*'hp (pSv cm2)'!$B$2/'hp (pSv cm2)'!$A$2) -> 2.2914 | G56: 3.620412e-05 | H56: =_xlfn.IFNA(0.997*(INDEX('Mass attenuation coefficients'!$B$2:$B$37,MATCH($C56,'Mass attenuation coefficients'!$A$2:$A$37,1))+($C56-INDEX('Mass attenuation coefficients'!$A$2:$A$37,MATCH($C56,'Mass attenuation coefficients'!$A$2:$A$37,1)))*(INDEX('Mass attenuation coefficients'!$B$2:$B$37,MATCH($C56,'Mass attenuation coefficients'!$A$2:$A$37,1)+1)-INDEX('Mass attenuation coefficients'!$B$2:$B$37,MATCH($C56,'Mass attenuation coefficients'!$A$2:$A$37,1)))/(INDEX('Mass attenuation coefficients'!$A$2:$A$37,MATCH($C56,'Mass attenuation coefficients'!$A$2:$A$37,1)+1)-INDEX('Mass attenuation coefficients'!$A$2:$A$37,MATCH($C56,'Mass attenuation coefficients'!$A$2:$A$37,1)))),0.997*$C56*'Mass attenuation coefficients'!$B$2/'Mass attenuation coefficients'!$A$2) -> 0.1000762678 | I56: =_xlfn.IFNA(INDEX('Shultis Faw'!$C$2:$C$26,MATCH($C56,'Shultis Faw'!$A$2:$A$26,1))+($C56-INDEX('Shultis Faw'!$A$2:$A$26,MATCH($C56,'Shultis Faw'!$A$2:$A$26,1)))*(INDEX('Shultis Faw'!$C$2:$C$26,MATCH($C56,'Shultis Faw'!$A$2:$A$26,1)+1)-INDEX('Shultis Faw'!$C$2:$C$26,MATCH($C56,'Shultis Faw'!$A$2:$A$26,1)))/(INDEX('Shultis Faw'!$A$2:$A$26,MATCH($C56,'Shultis Faw'!$A$2:$A$26,1)+1)-INDEX('Shultis Faw'!$A$2:$A$26,MATCH($C56,'Shultis Faw'!$A$2:$A$26,1))),$C56*'Shultis Faw'!$C$2/'Shultis Faw'!$A$2) -> 2.5608 | J56: =_xlfn.IFNA(INDEX('Shultis Faw'!$D$2:$D$26,MATCH($C56,'Shultis Faw'!$A$2:$A$26,1))+($C56-INDEX('Shultis Faw'!$A$2:$A$26,MATCH($C56,'Shultis Faw'!$A$2:$A$26,1)))*(INDEX('Shultis Faw'!$D$2:$D$26,MATCH($C56,'Shultis Faw'!$A$2:$A$26,1)+1)-INDEX('Shultis Faw'!$D$2:$D$26,MATCH($C56,'Shultis Faw'!$A$2:$A$26,1)))/(INDEX('Shultis Faw'!$A$2:$A$26,MATCH($C56,'Shultis Faw'!$A$2:$A$26,1)+1)-INDEX('Shultis Faw'!$A$2:$A$26,MATCH($C56,'Shultis Faw'!$A$2:$A$26,1))),$C56*'Shultis Faw'!$D$2/'Shultis Faw'!$A$2) -> 1.81008 | K56: =_xlfn.IFNA(INDEX('Shultis Faw'!$B$2:$B$26,MATCH($C56,'Shultis Faw'!$A$2:$A$26,1))+($C56-INDEX('Shultis Faw'!$A$2:$A$26,MATCH($C56,'Shultis Faw'!$A$2:$A$26,1)))*(INDEX('Shultis Faw'!$B$2:$B$26,MATCH($C56,'Shultis Faw'!$A$2:$A$26,1)+1)-INDEX('Shultis Faw'!$B$2:$B$26,MATCH($C56,'Shultis Faw'!$A$2:$A$26,1)))/(INDEX('Shultis Faw'!$A$2:$A$26,MATCH($C56,'Shultis Faw'!$A$2:$A$26,1)+1)-INDEX('Shultis Faw'!$A$2:$A$26,MATCH($C56,'Shultis Faw'!$A$2:$A$26,1))),$C56*'Shultis Faw'!$B$2/'Shultis Faw'!$A$2) -> -0.14032 | L56: =_xlfn.IFNA(INDEX('Shultis Faw'!$E$2:$E$26,MATCH($C56,'Shultis Faw'!$A$2:$A$26,1))+($C56-INDEX('Shultis Faw'!$A$2:$A$26,MATCH($C56,'Shultis Faw'!$A$2:$A$26,1)))*(INDEX('Shultis Faw'!$E$2:$E$26,MATCH($C56,'Shultis Faw'!$A$2:$A$26,1)+1)-INDEX('Shultis Faw'!$E$2:$E$26,MATCH($C56,'Shultis Faw'!$A$2:$A$26,1)))/(INDEX('Shultis Faw'!$A$2:$A$26,MATCH($C56,'Shultis Faw'!$A$2:$A$26,1)+1)-INDEX('Shultis Faw'!$A$2:$A$26,MATCH($C56,'Shultis Faw'!$A$2:$A$26,1))),$C56*'Shultis Faw'!$E$2/'Shultis Faw'!$A$2) -> 0.056462 | M56: =_xlfn.IFNA(INDEX('Shultis Faw'!$F$2:$F$26,MATCH($C56,'Shultis Faw'!$A$2:$A$26,1))+($C56-INDEX('Shultis Faw'!$A$2:$A$26,MATCH($C56,'Shultis Faw'!$A$2:$A$26,1)))*(INDEX('Shultis Faw'!$F$2:$F$26,MATCH($C56,'Shultis Faw'!$A$2:$A$26,1)+1)-INDEX('Shultis Faw'!$F$2:$F$26,MATCH($C56,'Shultis Faw'!$A$2:$A$26,1)))/(INDEX('Shultis Faw'!$A$2:$A$26,MATCH($C56,'Shultis Faw'!$A$2:$A$26,1)+1)-INDEX('Shultis Faw'!$A$2:$A$26,MATCH($C56,'Shultis Faw'!$A$2:$A$26,1))),$C56*'Shultis Faw'!$F$2/'Shultis Faw'!$A$2) -> 14.2958 | N56: =J56*(H56*'Externe blootstelling'!$D$23/2)^K56+L56*(TANH(((H56*'Externe blootstelling'!$D$23)/(2*M56))-2)-TANH(-2))/(1-TANH(-2)) -> 1.710024014 | O56: =IF(N56=1,1+(I56-1)*H56*'Externe blootstelling'!$D$23/2,1+(I56-1)*(N56^(H56*'Externe blootstelling'!$D$23/2)-1)/(N56-1)) -> 3.720393777 | P56: =G56*EXP(-H56*'Externe blootstelling'!$D$23/2)*O56 -> 3.001983784e-05
B57: g | C57: 0.4636 | D57: 7.4176e-14 | E57: 0.000127 | F57: =_xlfn.IFNA(INDEX('hp (pSv cm2)'!$B$2:$B$52,MATCH($C57,'hp (pSv cm2)'!$A$2:$A$52,1))+($C57-INDEX('hp (pSv cm2)'!$A$2:$A$52,MATCH($C57,'hp (pSv cm2)'!$A$2:$A$52,1)))*(INDEX('hp (pSv cm2)'!$B$2:$B$52,MATCH($C57,'hp (pSv cm2)'!$A$2:$A$52,1)+1)-INDEX('hp (pSv cm2)'!$B$2:$B$52,MATCH($C57,'hp (pSv cm2)'!$A$2:$A$52,1)))/(INDEX('hp (pSv cm2)'!$A$2:$A$52,MATCH($C57,'hp (pSv cm2)'!$A$2:$A$52,1)+1)-INDEX('hp (pSv cm2)'!$A$2:$A$52,MATCH($C57,'hp (pSv cm2)'!$A$2:$A$52,1))),$C57*'hp (pSv cm2)'!$B$2/'hp (pSv cm2)'!$A$2) -> 2.29892 | G57: 0.00029196284 | H57: =_xlfn.IFNA(0.997*(INDEX('Mass attenuation coefficients'!$B$2:$B$37,MATCH($C57,'Mass attenuation coefficients'!$A$2:$A$37,1))+($C57-INDEX('Mass attenuation coefficients'!$A$2:$A$37,MATCH($C57,'Mass attenuation coefficients'!$A$2:$A$37,1)))*(INDEX('Mass attenuation coefficients'!$B$2:$B$37,MATCH($C57,'Mass attenuation coefficients'!$A$2:$A$37,1)+1)-INDEX('Mass attenuation coefficients'!$B$2:$B$37,MATCH($C57,'Mass attenuation coefficients'!$A$2:$A$37,1)))/(INDEX('Mass attenuation coefficients'!$A$2:$A$37,MATCH($C57,'Mass attenuation coefficients'!$A$2:$A$37,1)+1)-INDEX('Mass attenuation coefficients'!$A$2:$A$37,MATCH($C57,'Mass attenuation coefficients'!$A$2:$A$37,1)))),0.997*$C57*'Mass attenuation coefficients'!$B$2/'Mass attenuation coefficients'!$A$2) -> 0.09992903084 | I57: =_xlfn.IFNA(INDEX('Shultis Faw'!$C$2:$C$26,MATCH($C57,'Shultis Faw'!$A$2:$A$26,1))+($C57-INDEX('Shultis Faw'!$A$2:$A$26,MATCH($C57,'Shultis Faw'!$A$2:$A$26,1)))*(INDEX('Shultis Faw'!$C$2:$C$26,MATCH($C57,'Shultis Faw'!$A$2:$A$26,1)+1)-INDEX('Shultis Faw'!$C$2:$C$26,MATCH($C57,'Shultis Faw'!$A$2:$A$26,1)))/(INDEX('Shultis Faw'!$A$2:$A$26,MATCH($C57,'Shultis Faw'!$A$2:$A$26,1)+1)-INDEX('Shultis Faw'!$A$2:$A$26,MATCH($C57,'Shultis Faw'!$A$2:$A$26,1))),$C57*'Shultis Faw'!$C$2/'Shultis Faw'!$A$2) -> 2.55824 | J57: =_xlfn.IFNA(INDEX('Shultis Faw'!$D$2:$D$26,MATCH($C57,'Shultis Faw'!$A$2:$A$26,1))+($C57-INDEX('Shultis Faw'!$A$2:$A$26,MATCH($C57,'Shultis Faw'!$A$2:$A$26,1)))*(INDEX('Shultis Faw'!$D$2:$D$26,MATCH($C57,'Shultis Faw'!$A$2:$A$26,1)+1)-INDEX('Shultis Faw'!$D$2:$D$26,MATCH($C57,'Shultis Faw'!$A$2:$A$26,1)))/(INDEX('Shultis Faw'!$A$2:$A$26,MATCH($C57,'Shultis Faw'!$A$2:$A$26,1)+1)-INDEX('Shultis Faw'!$A$2:$A$26,MATCH($C57,'Shultis Faw'!$A$2:$A$26,1))),$C57*'Shultis Faw'!$D$2/'Shultis Faw'!$A$2) -> 1.808224 | K57: =_xlfn.IFNA(INDEX('Shultis Faw'!$B$2:$B$26,MATCH($C57,'Shultis Faw'!$A$2:$A$26,1))+($C57-INDEX('Shultis Faw'!$A$2:$A$26,MATCH($C57,'Shultis Faw'!$A$2:$A$26,1)))*(INDEX('Shultis Faw'!$B$2:$B$26,MATCH($C57,'Shultis Faw'!$A$2:$A$26,1)+1)-INDEX('Shultis Faw'!$B$2:$B$26,MATCH($C57,'Shultis Faw'!$A$2:$A$26,1)))/(INDEX('Shultis Faw'!$A$2:$A$26,MATCH($C57,'Shultis Faw'!$A$2:$A$26,1)+1)-INDEX('Shultis Faw'!$A$2:$A$26,MATCH($C57,'Shultis Faw'!$A$2:$A$26,1))),$C57*'Shultis Faw'!$B$2/'Shultis Faw'!$A$2) -> -0.140096 | L57: =_xlfn.IFNA(INDEX('Shultis Faw'!$E$2:$E$26,MATCH($C57,'Shultis Faw'!$A$2:$A$26,1))+($C57-INDEX('Shultis Faw'!$A$2:$A$26,MATCH($C57,'Shultis Faw'!$A$2:$A$26,1)))*(INDEX('Shultis Faw'!$E$2:$E$26,MATCH($C57,'Shultis Faw'!$A$2:$A$26,1)+1)-INDEX('Shultis Faw'!$E$2:$E$26,MATCH($C57,'Shultis Faw'!$A$2:$A$26,1)))/(INDEX('Shultis Faw'!$A$2:$A$26,MATCH($C57,'Shultis Faw'!$A$2:$A$26,1)+1)-INDEX('Shultis Faw'!$A$2:$A$26,MATCH($C57,'Shultis Faw'!$A$2:$A$26,1))),$C57*'Shultis Faw'!$E$2/'Shultis Faw'!$A$2) -> 0.0563836 | M57: =_xlfn.IFNA(INDEX('Shultis Faw'!$F$2:$F$26,MATCH($C57,'Shultis Faw'!$A$2:$A$26,1))+($C57-INDEX('Shultis Faw'!$A$2:$A$26,MATCH($C57,'Shultis Faw'!$A$2:$A$26,1)))*(INDEX('Shultis Faw'!$F$2:$F$26,MATCH($C57,'Shultis Faw'!$A$2:$A$26,1)+1)-INDEX('Shultis Faw'!$F$2:$F$26,MATCH($C57,'Shultis Faw'!$A$2:$A$26,1)))/(INDEX('Shultis Faw'!$A$2:$A$26,MATCH($C57,'Shultis Faw'!$A$2:$A$26,1)+1)-INDEX('Shultis Faw'!$A$2:$A$26,MATCH($C57,'Shultis Faw'!$A$2:$A$26,1))),$C57*'Shultis Faw'!$F$2/'Shultis Faw'!$A$2) -> 14.29724 | N57: =J57*(H57*'Externe blootstelling'!$D$23/2)^K57+L57*(TANH(((H57*'Externe blootstelling'!$D$23)/(2*M57))-2)-TANH(-2))/(1-TANH(-2)) -> 1.708777923 | O57: =IF(N57=1,1+(I57-1)*H57*'Externe blootstelling'!$D$23/2,1+(I57-1)*(N57^(H57*'Externe blootstelling'!$D$23/2)-1)/(N57-1)) -> 3.709515578 | P57: =G57*EXP(-H57*'Externe blootstelling'!$D$23/2)*O57 -> 0.0002419164376
B58: g | C58: 0.485 | D58: 7.76e-14 | E58: 3.8e-06 | F58: =_xlfn.IFNA(INDEX('hp (pSv cm2)'!$B$2:$B$52,MATCH($C58,'hp (pSv cm2)'!$A$2:$A$52,1))+($C58-INDEX('hp (pSv cm2)'!$A$2:$A$52,MATCH($C58,'hp (pSv cm2)'!$A$2:$A$52,1)))*(INDEX('hp (pSv cm2)'!$B$2:$B$52,MATCH($C58,'hp (pSv cm2)'!$A$2:$A$52,1)+1)-INDEX('hp (pSv cm2)'!$B$2:$B$52,MATCH($C58,'hp (pSv cm2)'!$A$2:$A$52,1)))/(INDEX('hp (pSv cm2)'!$A$2:$A$52,MATCH($C58,'hp (pSv cm2)'!$A$2:$A$52,1)+1)-INDEX('hp (pSv cm2)'!$A$2:$A$52,MATCH($C58,'hp (pSv cm2)'!$A$2:$A$52,1))),$C58*'hp (pSv cm2)'!$B$2/'hp (pSv cm2)'!$A$2) -> 2.3995 | G58: 9.1181e-06 | H58: =_xlfn.IFNA(0.997*(INDEX('Mass attenuation coefficients'!$B$2:$B$37,MATCH($C58,'Mass attenuation coefficients'!$A$2:$A$37,1))+($C58-INDEX('Mass attenuation coefficients'!$A$2:$A$37,MATCH($C58,'Mass attenuation coefficients'!$A$2:$A$37,1)))*(INDEX('Mass attenuation coefficients'!$B$2:$B$37,MATCH($C58,'Mass attenuation coefficients'!$A$2:$A$37,1)+1)-INDEX('Mass attenuation coefficients'!$B$2:$B$37,MATCH($C58,'Mass attenuation coefficients'!$A$2:$A$37,1)))/(INDEX('Mass attenuation coefficients'!$A$2:$A$37,MATCH($C58,'Mass attenuation coefficients'!$A$2:$A$37,1)+1)-INDEX('Mass attenuation coefficients'!$A$2:$A$37,MATCH($C58,'Mass attenuation coefficients'!$A$2:$A$37,1)))),0.997*$C58*'Mass attenuation coefficients'!$B$2/'Mass attenuation coefficients'!$A$2) -> 0.0979597365 | I58: =_xlfn.IFNA(INDEX('Shultis Faw'!$C$2:$C$26,MATCH($C58,'Shultis Faw'!$A$2:$A$26,1))+($C58-INDEX('Shultis Faw'!$A$2:$A$26,MATCH($C58,'Shultis Faw'!$A$2:$A$26,1)))*(INDEX('Shultis Faw'!$C$2:$C$26,MATCH($C58,'Shultis Faw'!$A$2:$A$26,1)+1)-INDEX('Shultis Faw'!$C$2:$C$26,MATCH($C58,'Shultis Faw'!$A$2:$A$26,1)))/(INDEX('Shultis Faw'!$A$2:$A$26,MATCH($C58,'Shultis Faw'!$A$2:$A$26,1)+1)-INDEX('Shultis Faw'!$A$2:$A$26,MATCH($C58,'Shultis Faw'!$A$2:$A$26,1))),$C58*'Shultis Faw'!$C$2/'Shultis Faw'!$A$2) -> 2.524 | J58: =_xlfn.IFNA(INDEX('Shultis Faw'!$D$2:$D$26,MATCH($C58,'Shultis Faw'!$A$2:$A$26,1))+($C58-INDEX('Shultis Faw'!$A$2:$A$26,MATCH($C58,'Shultis Faw'!$A$2:$A$26,1)))*(INDEX('Shultis Faw'!$D$2:$D$26,MATCH($C58,'Shultis Faw'!$A$2:$A$26,1)+1)-INDEX('Shultis Faw'!$D$2:$D$26,MATCH($C58,'Shultis Faw'!$A$2:$A$26,1)))/(INDEX('Shultis Faw'!$A$2:$A$26,MATCH($C58,'Shultis Faw'!$A$2:$A$26,1)+1)-INDEX('Shultis Faw'!$A$2:$A$26,MATCH($C58,'Shultis Faw'!$A$2:$A$26,1))),$C58*'Shultis Faw'!$D$2/'Shultis Faw'!$A$2) -> 1.7834 | K58: =_xlfn.IFNA(INDEX('Shultis Faw'!$B$2:$B$26,MATCH($C58,'Shultis Faw'!$A$2:$A$26,1))+($C58-INDEX('Shultis Faw'!$A$2:$A$26,MATCH($C58,'Shultis Faw'!$A$2:$A$26,1)))*(INDEX('Shultis Faw'!$B$2:$B$26,MATCH($C58,'Shultis Faw'!$A$2:$A$26,1)+1)-INDEX('Shultis Faw'!$B$2:$B$26,MATCH($C58,'Shultis Faw'!$A$2:$A$26,1)))/(INDEX('Shultis Faw'!$A$2:$A$26,MATCH($C58,'Shultis Faw'!$A$2:$A$26,1)+1)-INDEX('Shultis Faw'!$A$2:$A$26,MATCH($C58,'Shultis Faw'!$A$2:$A$26,1))),$C58*'Shultis Faw'!$B$2/'Shultis Faw'!$A$2) -> -0.1371 | L58: =_xlfn.IFNA(INDEX('Shultis Faw'!$E$2:$E$26,MATCH($C58,'Shultis Faw'!$A$2:$A$26,1))+($C58-INDEX('Shultis Faw'!$A$2:$A$26,MATCH($C58,'Shultis Faw'!$A$2:$A$26,1)))*(INDEX('Shultis Faw'!$E$2:$E$26,MATCH($C58,'Shultis Faw'!$A$2:$A$26,1)+1)-INDEX('Shultis Faw'!$E$2:$E$26,MATCH($C58,'Shultis Faw'!$A$2:$A$26,1)))/(INDEX('Shultis Faw'!$A$2:$A$26,MATCH($C58,'Shultis Faw'!$A$2:$A$26,1)+1)-INDEX('Shultis Faw'!$A$2:$A$26,MATCH($C58,'Shultis Faw'!$A$2:$A$26,1))),$C58*'Shultis Faw'!$E$2/'Shultis Faw'!$A$2) -> 0.055335 | M58: =_xlfn.IFNA(INDEX('Shultis Faw'!$F$2:$F$26,MATCH($C58,'Shultis Faw'!$A$2:$A$26,1))+($C58-INDEX('Shultis Faw'!$A$2:$A$26,MATCH($C58,'Shultis Faw'!$A$2:$A$26,1)))*(INDEX('Shultis Faw'!$F$2:$F$26,MATCH($C58,'Shultis Faw'!$A$2:$A$26,1)+1)-INDEX('Shultis Faw'!$F$2:$F$26,MATCH($C58,'Shultis Faw'!$A$2:$A$26,1)))/(INDEX('Shultis Faw'!$A$2:$A$26,MATCH($C58,'Shultis Faw'!$A$2:$A$26,1)+1)-INDEX('Shultis Faw'!$A$2:$A$26,MATCH($C58,'Shultis Faw'!$A$2:$A$26,1))),$C58*'Shultis Faw'!$F$2/'Shultis Faw'!$A$2) -> 14.3165 | N58: =J58*(H58*'Externe blootstelling'!$D$23/2)^K58+L58*(TANH(((H58*'Externe blootstelling'!$D$23)/(2*M58))-2)-TANH(-2))/(1-TANH(-2)) -> 1.691967436 | O58: =IF(N58=1,1+(I58-1)*H58*'Externe blootstelling'!$D$23/2,1+(I58-1)*(N58^(H58*'Externe blootstelling'!$D$23/2)-1)/(N58-1)) -> 3.567356139 | P58: =G58*EXP(-H58*'Externe blootstelling'!$D$23/2)*O58 -> 7.483421789e-06
